Workbook

Sheet APPENDIX A

Sheet APPENDIX B

Sheet APPENDIX C

Sheet APPENDIX D
F4: AQM predicted tumbling | G4: AQM predicted r (precession more closely approximates experimental)
H5: prediction closest to experimental | I5: R=1.25*A^1/3 | Q5: =1 -> 1
C6: Nuclide | D6: RMS Charge Radius R | E6: Uncertainty △R | G6: predicted precessing
A8: 1 | B8: 1 | C8: H-1 | D8: 0.84 | E8: 0.0086 | F8: 0.84 | H8: 0.84 | I8: =1.25*B8^(1/3) -> 1.250 | K8: H-1 | L8: 0.84 | M8: 1
A9: =A8+1 -> 2 | B9: 2 | C9: H-2 | D9: 2.13 | E9: 0.0088 | F9: 2.11 | G9: 2.11 | H9: 2.11 | I9: =1.25*B9^(1/3) -> 1.575 | K9: H-2 | L9: 2.13 | M9: 2 | N9: 1.98
A10: =A9+1 -> 3 | B10: 3 | C10: He-3 | D10: 1.97 | E10: 0.003 | F10: 1.92 | G10: 1.63 | H10: 1.92 | I10: 1.803 | K10: He-3 | L10: 1.97 | M10: 3 | N10: 1.76
A11: 4 | B11: 4 | C11: He-4 | D11: 1.68 | E11: 0.0028 | F11: 1.63 | G11: 1.63 | H11: 1.63 | I11: 1.984 | K11: He-4 | L11: 1.68 | M11: 4 | N11: 1.43
B12: 5 | C12: He-5 | I12: 2.137 | K12: Li-6 | L12: 2.59 | M12: 6 | N12: 2.39
A13: =A11+1 -> 5 | B13: 6 | C13: Li-6 | D13: 2.59 | E13: 0.039 | F13: 2.42 | G13: 2.42 | H13: 2.42 | I13: 2.271 | K13: Li-7 | L13: 2.44 | M13: 7 | N13: 2.44
A14: 6 | B14: 7 | C14: Li-7 | D14: 2.44 | E14: 0.042 | F14: 2.42 | G14: 2.42 | H14: 2.42 | I14: 2.391 | K14: Be-9 | L14: 2.52 | M14: 9 | N14: 2.46
B15: 8 | C15: Be-8 | I15: 2.500 | K15: B-10 | L15: 2.43 | M15: 10 | N15: 2.28
A16: =A14+1 -> 7 | B16: 9 | C16: Be-9 | D16: 2.52 | E16: 0.012 | F16: 2.47 | G16: 2.47 | H16: 2.47 | I16: 2.600 | K16: C-12 | L16: 2.47 | M16: =12 -> 12 | N16: 2.32
A17: 8 | B17: 10 | C17: B-10 | D17: 2.43 | E17: 0.0499 | F17: 2.42 | G17: 2.42 | H17: 2.42 | I17: 2.693
A18: 9 | B18: 11 | C18: B-11 | D18: 2.41 | E18: 0.0294 | F18: 2.42 | G18: 2.42 | H18: 2.42 | I18: 2.780
A19: 10 | B19: 12 | C19: C-12 | D19: 2.47 | E19: 0.0022 | F19: 2.47 | G19: 2.47 | H19: 2.47 | I19: 2.862
A20: 11 | B20: 13 | C20: C-13 | D20: 2.46 | E20: 0.0034 | F20: 2.48 | G20: 2.47 | H20: 2.47 | I20: 2.939
A21: 12 | B21: 14 | C21: N-14 | D21: 2.56 | E21: 0.007 | F21: 2.79 | G21: 2.61 | H21: 2.61 | I21: 3.013
A22: 13 | B22: 15 | C22: N-15 | D22: 2.61 | E22: 0.008 | F22: 2.84 | G22: 2.61 | H22: 2.61 | I22: 3.083
A23: 14 | B23: 16 | C23: O-16 | D23: 2.70 | E23: 0.0052 | F23: 2.80 | G23: 2.61 | H23: 2.61 | I23: 3.150
A24: 15 | B24: 17 | C24: O-17 | D24: 2.69 | E24: 0.0075 | F24: 2.73 | G24: 2.61 | H24: 2.73 | I24: 3.214
A25: 16 | B25: 18 | C25: O-18 | D25: 2.77 | E25: 0.0056 | F25: 2.74 | G25: 2.61 | H25: 2.74 | I25: 3.276
A26: 17 | B26: 19 | C26: F-19 | D26: 2.90 | E26: 0.0025 | F26: 2.63 | G26: 2.61 | H26: 2.63 | I26: 3.336
A27: 18 | B27: 20 | C27: Ne-20 | D27: 3.01 | E27: 0.0021 | F27: 2.86 | G27: 2.82 | H27: 2.86 | I27: 3.393
A28: =A27+1 -> 19 | B28: 21 | C28: Ne-21 | D28: 2.97 | E28: 0.0033 | F28: 2.92 | G28: 2.82 | H28: 2.92 | I28: 3.449
A29: 20 | B29: 22 | C29: Ne-22 | D29: 2.95 | E29: 0.004 | F29: 2.92 | G29: 2.82 | H29: 2.92 | I29: 3.503
A30: 21 | B30: 23 | C30: Na-23 | D30: 2.99 | E30: 0.0021 | F30: 2.83 | G30: 2.82 | H30: 2.83 | I30: 3.555
A31: 22 | B31: 24 | C31: Mg-24 | D31: 3.06 | E31: 0.0016 | F31: 2.82 | G31: 2.82 | H31: 2.82 | I31: 3.606
A32: 23 | B32: 25 | C32: Mg-25 | D32: 3.03 | E32: 0.0022 | F32: 2.85 | G32: 2.82 | H32: 2.85 | I32: 3.655
A33: 24 | B33: 26 | C33: Mg-26 | D33: 3.03 | E33: 0.0018 | F33: 2.82 | G33: 2.82 | H33: 2.82 | I33: 3.703
A34: 25 | B34: 27 | C34: Al-27 | D34: 3.06 | E34: 0.0031 | F34: 3.11 | G34: 3.09 | H34: 3.11 | I34: 3.750
A35: 26 | B35: 28 | C35: Si-28 | D35: 3.12 | E35: 0.0024 | F35: 3.13 | G35: 3.09 | H35: 3.13 | I35: 3.796
A36: 27 | B36: 29 | C36: Si-29 | D36: 3.12 | E36: 0.0052 | F36: 3.12 | G36: 3.09 | H36: 3.12 | I36: 3.840
A37: 28 | B37: 30 | C37: Si-30 | D37: 3.13 | E37: 0.004 | F37: 3.13 | G37: 3.09 | H37: 3.13 | I37: 3.884
A38: 29 | B38: 31 | C38: P-31 | D38: 3.19 | E38: 0.0019 | F38: 3.13 | G38: 3.09 | H38: 3.13 | I38: 3.927
A39: 30 | B39: 32 | C39: S-32 | D39: 3.26 | E39: 0.0018 | F39: 3.30 | G39: 3.41 | H39: 3.30 | I39: 3.969
A40: 31 | B40: 33 | C40: S-34 | D40: 3.28 | E40: 0.0021 | F40: 3.34 | G40: 3.41 | H40: 3.34 | I40: 4.009
A41: 32 | B41: 35 | C41: Cl-35 | D41: 3.37 | E41: 0.0191 | F41: 3.41 | G41: 3.41 | H41: 3.41 | I41: 4.089
A42: 33 | B42: 36 | C42: Ar-36 | D42: 3.39 | E42: 0.0023 | F42: 3.41 | G42: 3.41 | H42: 3.41 | I42: 4.127
D43: Ave = | E43: =AVERAGE(E8:E42) -> 0.008966666667
D44: Stan Dev = | E44: =STDEV(E8:E42) -> 0.01254341627
D45: Pearsons R= | E45: =ROUND(CORREL(D9:D42,F9:F42),2) -> 0.960
D46: t= | E46: =E45*SQRT(33-2)/SQRT(1-E45^2) -> 19.08947782
D47: 2-tail p-value= | E47: =_xlfn.T.DIST.2T(E46,(33-2)) -> 1.074662959e-18

Sheet H-1 to F-19 (2)
J1: "Best Fit" Radius/Structure Predictions for Light Nuclei through F-19 based on Alternating Quark Model
J6: •
D7: best fit =
A10: H-2 | F10: nucleon | G10: quark position | H10: mass (MeV) | I10: x (fm) | J10: y (fm) | K10: weight x | L10: weight y
F12: p | G12: 0 | H12: 336 | I12: 0 | J12: 0 | K12: =H12*I12 -> 0 | L12: =H12*J12 -> 0
G13: 1 | H13: 340 | I13: =I12+0.8414 -> 0.8414 | J13: 0 | K13: =H13*I13 -> 286.076 | L13: =H13*J13 -> 0
B14: proton mass = | C14: 938.272088 | D14: =C14/3 -> 312.7573627 | G14: 2 | H14: 336 | I14: =I13+0.8414 -> 1.6828 | J14: 0 | K14: 565.4208 | L14: 0
B15: neutron mass = | C15: 939.5654205 | D15: =C15/3 -> 313.1884735 | E15: =C14/C15 -> 99.86% | F15: n | G15: 3 | H15: 340 | I15: 2.5242 | J15: 0 | K15: 858.228 | L15: 0
C16: =C14+C15 -> 1877.837509 | G16: 4 | H16: 336 | I16: 3.3656 | J16: 0 | K16: 1130.8416 | L16: 0
B17: u mass | C17: =C16/H18 -> 0.925955379 | G17: 5 | H17: 340 | I17: 4.207 | J17: 0 | K17: 1430.38 | L17: 0
B18: d mass | C18: =C17*1.12 -> 1.037070024 | H18: =SUM(H12:H17) -> 2028 | I18: =SUM(I12:I17) -> 12.621 | K18: =SUM(K12:K17) -> 4270.9464 | L18: =SUM(L12:L17) -> 0 | N18: =SUM(L12:L17) -> 0
L20: Center of Mass | M20: x = | N20: =K18/H18 -> 2.105989349
D21: =700/2.12 -> 330.1886792 | M21: y = | N21: =L18/H18 -> 0
D22: =D21*1.12 -> 369.8113208 | M22: experimental (fm) = | N22: 2.12799
M23: AQM predicted r (tumbling) = | N23: =SQRT((N20-I12)^2+(N21-J12)^2) -> 2.1060 | O23: COM to quark 0 | Q23: 2.105989349
M24: % agreement= | N24: =ABS(N23-N22)/((N22+N23)/2) -> 1.0%
L25: (5 x 0.8414)/2= | N25: =5*0.8414/2 -> 2.1035
D27: COM = Center of Mass
A29: H-3 | E29: H-3 as a sequence of 9 quarks occupying 9 of 12 vertices of a dodecagon | N29: dodecagon circumradius = 1.625 fm
E30: (Axis of rotation passes through Center of Mass (COM) and comes directly out of the page) | N30: dodecagon exterior angle = 30 degrees
F32: nucleon | G32: quark position | H32: angle (deg) | I32: angle (rad) | J32: mass (MeV) | K32: x (fm) | L32: y (fm) | M32: weight x | N32: weight y
F34: p | G34: 0 | H34: 330 | I34: =RADIANS(H34) -> 5.759586532 | J34: 336 | K34: =TRUNC(1.62546*SIN(I34),4) -> -0.8127 | L34: =TRUNC(1.62546*COS(I34),4) -> 1.4076 | M34: =J34*K34 -> -273.0672 | N34: =J34*L34 -> 472.9536
G35: 1 | H35: 0 | I35: =RADIANS(H35) -> 0 | J35: 340 | K35: =TRUNC(1.62546*SIN(I35),4) -> 0 | L35: 1.6254 | M35: =J35*K35 -> 0 | N35: =J35*L35 -> 552.636
D36: Up Quark | G36: 2 | H36: =H35+30 -> 30 | I36: 0.5235987756 | J36: 336 | K36: 0.8127 | L36: 1.4076 | M36: 273.0672 | N36: 472.9536
D37: Down Quark | F37: n | G37: 3 | H37: =H36+30 -> 60 | I37: 1.047197551 | J37: 340 | K37: 1.4076 | L37: 0.8127 | M37: 478.584 | N37: 276.318
G38: 4 | H38: 90 | I38: 1.570796327 | J38: 336 | K38: 1.6254 | L38: 0 | M38: 546.1344 | N38: 0
G39: 5 | H39: 120 | I39: 2.094395102 | J39: 340 | K39: 1.4076 | L39: -0.8127 | M39: 478.584 | N39: -276.318
F40: unoccupied | G40: 6 | H40: 150 | I40: 2.617993878 | J40: 0 | K40: 0.8127 | L40: -1.4076 | M40: 0 | N40: 0
G41: 7 | H41: 180 | I41: 3.141592654 | J41: 0 | K41: 0 | L41: -1.6254 | M41: 0 | N41: 0
G42: 8 | H42: 210 | I42: 3.665191429 | J42: 0 | K42: -0.8127 | L42: -1.4076 | M42: 0 | N42: 0
F43: n | G43: 9 | H43: 240 | I43: 4.188790205 | J43: 340 | K43: -1.4076 | L43: -0.8127 | M43: -478.584 | N43: -276.318
G44: 10 | H44: 270 | I44: 4.71238898 | J44: 336 | K44: -1.6254 | L44: 0 | M44: -546.1344 | N44: 0
G45: 11 | H45: 300 | I45: 5.235987756 | J45: 340 | K45: -1.4076 | L45: 0.8127 | M45: -478.584 | N45: =J45*L45 -> 276.318
I46: Total= | J46: =SUM(J34:J45) -> 3044 | M46: =SUM(M34:M45) -> 0 | N46: =SUM(N34:N45) -> 1498.5432
L48: Center of Mass | M48: x = | N48: =M46/J46 -> 0
I49: AQM predicted r (precessing)= | J49: =SQRT((K38-K44)^2+(L38-L44)^J623)/2 -> 1.6254 | M49: y = | N49: =N46/J46 -> 0.4922940867
I50: % agreement= | J50: =ABS(J49-N50)/((N50+J49)/2) -> 7.9% | M50: experimental (fm) = | N50: 1.7591
M51: AQM predicted r (tumbling) = | N51: =SQRT((N48-K39)^2+(N49-L39)^2) -> 1.919465375 | O51: COM to quark 5
M52: % agreement= | N52: =ABS(N51-N50)/((N50+N51)/2) -> 8.7%
A54: He-3 | E54: He-3 as a sequence of 9 quarks occupying 9 of 12 vertices of a dodecagon
E55: (Axis of rotation passes through Center of Mass (COM) and comes directly out of the page) | N55: dodecagon circumradius = 1.625 fm
F57: nucleon | G57: quark position | H57: angle (deg) | I57: angle (rad) | J57: mass (MeV) | K57: x (fm) | L57: y (fm) | M57: weight x | N57: weight y
F59: n | G59: 0 | H59: 330 | I59: =RADIANS(H59) -> 5.759586532 | J59: 340 | K59: =TRUNC(1.62546*SIN(I59),4) -> -0.8127 | L59: =TRUNC(1.62546*COS(I59),4) -> 1.4076 | M59: =J59*K59 -> -276.318 | N59: =J59*L59 -> 478.584
D60: Up Quark | G60: 1 | H60: 0 | I60: =RADIANS(H60) -> 0 | J60: 336 | K60: 0 | L60: 1.6254 | M60: =J60*K60 -> 0 | N60: =J60*L60 -> 546.1344
D61: Down Quark | G61: 2 | H61: 30 | I61: 0.5235987756 | J61: 340 | K61: 0.8127 | L61: 1.4076 | M61: 276.318 | N61: 478.584
F62: p | G62: 3 | H62: 60 | I62: 1.047197551 | J62: 336 | K62: 1.4076 | L62: 0.8127 | M62: 472.9536 | N62: 273.0672
G63: 4 | H63: 90 | I63: 1.570796327 | J63: 340 | K63: 1.6254 | L63: 0 | M63: 552.636 | N63: 0
G64: 5 | H64: 120 | I64: 2.094395102 | J64: 336 | K64: 1.4076 | L64: -0.8127 | M64: 472.9536 | N64: -273.0672
F65: unoccupied | G65: 6 | H65: 150 | I65: 2.617993878 | J65: 0 | K65: 0.8127 | L65: -1.4076 | M65: 0 | N65: 0
G66: 7 | H66: 180 | I66: 3.141592654 | J66: 0 | K66: 0 | L66: -1.6254 | M66: 0 | N66: 0
G67: 8 | H67: 210 | I67: 3.665191429 | J67: 0 | K67: -0.8127 | L67: -1.4076 | M67: 0 | N67: 0
F68: p | G68: 9 | H68: 240 | I68: 4.188790205 | J68: 336 | K68: -1.4076 | L68: -0.8127 | M68: -472.9536 | N68: -273.0672
G69: 10 | H69: 270 | I69: 4.71238898 | J69: 340 | K69: -1.6254 | L69: 0 | M69: -552.636 | N69: 0
G70: 11 | H70: 300 | I70: 5.235987756 | J70: 336 | K70: -1.4076 | L70: 0.8127 | M70: =J70*K70 -> -472.9536 | N70: 273.0672
I71: Total = | J71: =SUM(J59:J70) -> 3040 | M71: =SUM(M59:M70) -> 0 | N71: =SUM(N59:N70) -> 1503.3024
K73: Center of Mass | M73: x = | N73: =M71/J71 -> 0
M74: y = | N74: =N71/J71 -> 0.4945073684
I75: AQM predicted r (precessing)= | J75: =SQRT((J63-J69)^2+(K63-K69)^2)/2 -> 1.6254 | M75: experimental (fm) = | N75: 1.9661
I76: % agreement= | J76: =ABS(J75-N76)/((N76+J75)/2) -> 16.7% | M76: AQM predicted r (tumbling) = | N76: =SQRT((N73-K64)^2+(N74-L64)^2) -> 1.920970813 | O76: Center of Mass to quark 5
M77: % agreement= | N77: =ABS(N76-N75)/((N75+N76)/2) -> 2.3%
A80: He-4
F82: nucleon | G82: quark position | H82: angle (deg) | I82: angle (rad) | J82: mass (MeV) | K82: x (fm) | L82: y (fm) | M82: weight x | N82: weight y
F84: n | G84: 0 | H84: 330 | I84: =RADIANS(H84) -> 5.759586532 | J84: 340 | K84: =TRUNC(1.62546*SIN(I84),4) -> -0.8127 | L84: =TRUNC(1.62546*COS(I84),4) -> 1.4076 | M84: =J84*K84 -> -276.318 | N84: =J84*L84 -> 478.584
G85: 1 | H85: 0 | I85: =RADIANS(H85) -> 0 | J85: 336 | K85: 0 | L85: 1.6254 | M85: =J85*K85 -> 0 | N85: =J85*L85 -> 546.1344
G86: 2 | H86: 30 | I86: 0.5235987756 | J86: 340 | K86: 0.8127 | L86: 1.4076 | M86: 276.318 | N86: 478.584
F87: p | G87: 3 | H87: 60 | I87: 1.047197551 | J87: 336 | K87: 1.4076 | L87: 0.8127 | M87: 472.9536 | N87: 273.0672
G88: 4 | H88: 90 | I88: 1.570796327 | J88: 340 | K88: 1.6254 | L88: 0 | M88: 552.636 | N88: 0
G89: 5 | H89: 120 | I89: 2.094395102 | J89: 336 | K89: 1.4076 | L89: -0.8127 | M89: 472.9536 | N89: -273.0672
F90: n | G90: 6 | H90: 150 | I90: 2.617993878 | J90: 340 | K90: 0.8127 | L90: -1.4076 | M90: 276.318 | N90: -478.584
G91: 7 | H91: 180 | I91: 3.141592654 | J91: 336 | K91: 0 | L91: -1.6254 | M91: 0 | N91: -546.1344
G92: 8 | H92: 210 | I92: 3.665191429 | J92: 340 | K92: -0.8127 | L92: -1.4076 | M92: -276.318 | N92: -478.584
F93: p | G93: 9 | H93: 240 | I93: 4.188790205 | J93: 336 | K93: -1.4076 | L93: -0.8127 | M93: -472.9536 | N93: -273.0672
G94: 10 | H94: 270 | I94: 4.71238898 | J94: 340 | K94: -1.6254 | L94: 0 | M94: -552.636 | N94: 0
G95: 11 | H95: 300 | I95: 5.235987756 | J95: 336 | K95: -1.4076 | L95: 0.8127 | M95: =J95*K95 -> -472.9536 | N95: 273.0672
I96: Total = | J96: =SUM(J84:J95) -> 4056 | M96: =SUM(M84:M95) -> 0 | N96: =SUM(N84:N95) -> 0
K98: Center of Mass | M98: x = | N98: =M96/J96 -> 0
M99: y = | N99: =N96/J96 -> 0
I100: AQM predicted r (precessing)= | J100: =SQRT((J87-J93)^2+(K87-K93)^2)/2 -> 1.4076 | M100: experimental (fm) = | N100: 1.6755
I101: % agreement= | J101: =ABS(J100-N101)/((N101+J100)/2) -> 14.4% | M101: AQM predicted r (tumbling) = | N101: =SQRT((N98-K89)^2+(N99-L89)^2) -> 1.625367358 | O101: 1.625367358
M102: % agreement= | N102: =ABS(N101-N100)/((N100+N101)/2) -> 3.0%
A112: Li-6 | F112: ring | G112: nucleon position | H112: type | I112: quark position | J112: angle (deg) | K112: angle (rad) | L112: mass (MeV) | M112: x (fm) | N112: y (fm) | O112: z (fm) | P112: weight x | Q112: weight y | R112: weight z
F114: Li-6 Base | G114: 0 | H114: p | I114: 0 | J114: 0 | K114: =RADIANS(J114) -> 0 | L114: 336 | M114: =TRUNC(2.423*SIN(K114),4) -> 0 | N114: =TRUNC(2.423*COS(K114),4) -> 2.423 | O114: 0 | P114: =L114*M114 -> 0 | Q114: =L114*N114 -> 814.128 | R114: =L114*O114 -> 0
I115: 1 | J115: 20 | K115: =RADIANS(J115) -> 0.3490658504 | L115: 340 | M115: =TRUNC(2.423*SIN(K115),4) -> 0.8287 | N115: =TRUNC(2.423*COS(K115),4) -> 2.2768 | O115: 0 | P115: 281.758 | Q115: 774.112 | R115: 0
I116: 2 | J116: 40 | K116: 0.6981317008 | L116: 336 | M116: 1.5574 | N116: 1.8561 | O116: 0 | P116: 523.2864 | Q116: 623.6496 | R116: 0
G117: 1 | H117: n | I117: 3 | J117: 60 | K117: 1.047197551 | L117: 340 | M117: 2.0983 | N117: 1.2115 | O117: 0 | P117: 713.422 | Q117: 411.91 | R117: 0
I118: 4 | J118: 80 | K118: 1.396263402 | L118: 336 | M118: 2.3861 | N118: 0.4207 | O118: 0 | P118: 801.7296 | Q118: 141.3552 | R118: 0
I119: 5 | J119: 100 | K119: 1.745329252 | L119: 340 | M119: 2.3861 | N119: -0.4207 | O119: 0 | P119: 811.274 | Q119: -143.038 | R119: 0
G120: 2 | H120: p | I120: 6 | J120: 120 | K120: 2.094395102 | L120: 336 | M120: 2.0983 | N120: -1.2115 | O120: 0 | P120: 705.0288 | Q120: -407.064 | R120: 0
I121: 7 | J121: 140 | K121: 2.443460953 | L121: 340 | M121: 1.5574 | N121: -1.8561 | O121: 0 | P121: 529.516 | Q121: -631.074 | R121: 0
I122: 8 | J122: 160 | K122: 2.792526803 | L122: 336 | M122: 0.8287 | N122: -2.2768 | O122: 0 | P122: 278.4432 | Q122: -765.0048 | R122: 0
G123: 3 | H123: n | I123: 9 | J123: 180 | K123: 3.141592654 | L123: 340 | M123: 0 | N123: -2.423 | O123: 0 | P123: 0 | Q123: -823.82 | R123: 0
I124: 10 | J124: 200 | K124: 3.490658504 | L124: 336 | M124: -0.8287 | N124: -2.2768 | O124: 0 | P124: -278.4432 | Q124: -765.0048 | R124: 0
I125: 11 | J125: 220 | K125: 3.839724354 | L125: 340 | M125: -1.5574 | N125: -1.8561 | O125: 0 | P125: -529.516 | Q125: -631.074 | R125: 0
G126: 4 | H126: p | I126: 12 | J126: 240 | K126: 4.188790205 | L126: 336 | M126: -2.0983 | N126: -1.2115 | O126: 0 | P126: -705.0288 | Q126: -407.064 | R126: 0
I127: 13 | J127: 260 | K127: 4.537856055 | L127: 340 | M127: -2.3861 | N127: -0.4207 | O127: 0 | P127: -811.274 | Q127: -143.038 | R127: 0
I128: 14 | J128: 280 | K128: 4.886921906 | L128: 336 | M128: -2.3861 | N128: 0.4207 | O128: 0 | P128: -801.7296 | Q128: 141.3552 | R128: 0
G129: 5 | H129: n | I129: 15 | J129: 300 | K129: 5.235987756 | L129: 340 | M129: -2.0983 | N129: 1.2115 | O129: 0 | P129: -713.422 | Q129: 411.91 | R129: 0
I130: 16 | J130: 320 | K130: 5.585053606 | L130: 336 | M130: -1.5574 | N130: 1.8561 | O130: 0 | P130: -523.2864 | Q130: 623.6496 | R130: 0
I131: 17 | J131: 340 | K131: 5.934119457 | L131: 340 | M131: -0.8287 | N131: 2.2768 | O131: 0 | P131: -281.758 | Q131: 774.112 | R131: 0
L132: =SUM(L114:L131) -> 6084 | P132: =SUM(P114:P131) -> 0 | Q132: =SUM(Q114:Q131) -> 0 | R132: =SUM(R114:R131) -> 0
O133: Coordinates
N134: Center of Mass | O134: x= | P134: =P132/L132 -> 0
O135: y= | P135: =Q132/L132 -> 0
O136: z= | P136: =R132/L132 -> 0
N137: experimental radius= | P137: 2.59
O138: AQM predicted r (tumbling)= | P138: =SQRT((M124-P134)^2+(N124-P135)^2+(O124-P136)^2) -> 2.422924252 | Q138: COM to quark 8 (farthest)
P139: =ABS(P138-P137)/((P137+P138)/2) -> 6.7%
A142: Li-7
F145: ring | G145: nucleon position | H145: type | I145: quark position | J145: angle (deg) | K145: angle (rad) | L145: mass (MeV) | M145: x (fm) | N145: y (fm) | O145: z (fm) | P145: weight x | Q145: weight y | R145: weight z
F147: 1 | G147: 0 | H147: p | I147: 0 | J147: 0 | K147: =RADIANS(J147) -> 0 | L147: 336 | M147: =TRUNC(2.423*SIN(K147),4) -> 0 | N147: =TRUNC(2.423*COS(K147),4) -> 2.423 | O147: 0 | P147: =L147*M147 -> 0 | Q147: =L147*N147 -> 814.128 | R147: =L147*O147 -> 0
I148: 1 | J148: 20 | K148: =RADIANS(J148) -> 0.3490658504 | L148: 340 | M148: =TRUNC(2.423*SIN(K148),4) -> 0.8287 | N148: =TRUNC(2.423*COS(K148),4) -> 2.2768 | O148: 0 | P148: 281.758 | Q148: 774.112 | R148: 0
I149: 2 | J149: 40 | K149: 0.6981317008 | L149: 336 | M149: 1.5574 | N149: 1.8561 | O149: 0 | P149: 523.2864 | Q149: 623.6496 | R149: 0
G150: 1 | H150: n | I150: 3 | J150: 60 | K150: 1.047197551 | L150: 340 | M150: 2.0983 | N150: 1.2115 | O150: 0 | P150: 713.422 | Q150: 411.91 | R150: 0
I151: 4 | J151: 80 | K151: 1.396263402 | L151: 336 | M151: 2.3861 | N151: 0.4207 | O151: 0 | P151: 801.7296 | Q151: 141.3552 | R151: 0
I152: 5 | J152: 100 | K152: 1.745329252 | L152: 340 | M152: 2.3861 | N152: -0.4207 | O152: 0 | P152: 811.274 | Q152: -143.038 | R152: 0
G153: 2 | H153: p | I153: 6 | J153: 120 | K153: 2.094395102 | L153: 336 | M153: 2.0983 | N153: -1.2115 | O153: 0 | P153: 705.0288 | Q153: -407.064 | R153: 0
I154: 7 | J154: 140 | K154: 2.443460953 | L154: 340 | M154: 1.5574 | N154: -1.8561 | O154: 0 | P154: 529.516 | Q154: -631.074 | R154: 0
I155: 8 | J155: 160 | K155: 2.792526803 | L155: 336 | M155: 0.8287 | N155: -2.2768 | O155: 0 | P155: 278.4432 | Q155: -765.0048 | R155: 0
G156: 3 | H156: n | I156: 9 | J156: 180 | K156: 3.141592654 | L156: 340 | M156: 0 | N156: -2.423 | O156: 0 | P156: 0 | Q156: -823.82 | R156: 0
I157: 10 | J157: 200 | K157: 3.490658504 | L157: 336 | M157: -0.8287 | N157: -2.2768 | O157: 0 | P157: -278.4432 | Q157: -765.0048 | R157: 0
I158: 11 | J158: 220 | K158: 3.839724354 | L158: 340 | M158: -1.5574 | N158: -1.8561 | O158: 0 | P158: -529.516 | Q158: -631.074 | R158: 0
G159: 4 | H159: p | I159: 12 | J159: 240 | K159: 4.188790205 | L159: 336 | M159: -2.0983 | N159: -1.2115 | O159: 0 | P159: -705.0288 | Q159: -407.064 | R159: 0
B160: Up Quark | I160: 13 | J160: 260 | K160: 4.537856055 | L160: 340 | M160: -2.3861 | N160: -0.4207 | O160: 0 | P160: -811.274 | Q160: -143.038 | R160: 0
B161: Down Quark | I161: 14 | J161: 280 | K161: 4.886921906 | L161: 336 | M161: -2.3861 | N161: 0.4207 | O161: 0 | P161: -801.7296 | Q161: 141.3552 | R161: 0
G162: 5 | H162: n | I162: 15 | J162: 300 | K162: 5.235987756 | L162: 340 | M162: -2.0983 | N162: 1.2115 | O162: 0 | P162: -713.422 | Q162: 411.91 | R162: 0
I163: 16 | J163: 320 | K163: 5.585053606 | L163: 336 | M163: -1.5574 | N163: 1.8561 | O163: 0 | P163: -523.2864 | Q163: 623.6496 | R163: 0
I164: 17 | J164: 340 | K164: 5.934119457 | L164: 340 | M164: -0.8287 | N164: 2.2768 | O164: 0 | P164: -281.758 | Q164: 774.112 | R164: 0
F165: C | G165: Center | H165: n | I165: C + 0.84(x) | J165: 90 | K165: =RADIANS(J165) -> 1.570796327 | L165: 340 | M165: 0.84 | N165: 0 | O165: 0 | P165: 285.6 | Q165: 0 | R165: 0
I166: C | J166: c | K166: c | L166: 336 | M166: 0 | N166: 0 | O166: 0 | P166: 0 | Q166: 0 | R166: 0
I167: C - 0.84(x) | J167: 270 | K167: =RADIANS(J167) -> 4.71238898 | L167: 340 | M167: -0.84 | N167: 0 | O167: 0 | P167: -285.6 | Q167: 0 | R167: 0
L168: =SUM(L147:L167) -> 7100 | P168: =SUM(P147:P167) -> 0 | Q168: =SUM(Q147:Q167) -> 3.410605132e-13 | R168: =SUM(R147:R167) -> 0
O169: Coordinates
N170: Center of Mass | O170: x= | P170: =P168/L168 -> 0
O171: y= | P171: =Q168/L168 -> 4.8036692e-17
O172: z= | P172: =R168/L168 -> 0
N173: experimental radius= | P173: 2.444
O174: AQM predicted r (tumbling)= | P174: =SQRT((M157-P170)^2+(N157-P171)^2+(O157-P172)^2) -> 2.422924252 | Q174: COM to quark 8 (farthest)
P175: =ABS(P174-P173)/((P173+P174)/2) -> 0.9%
O178: 2.422924252
A180: Be-9
B183: Be-9 has 9 sequential quarks overlapping an 18-gon base
B184: a=0.8414 fm (proton radius)
B185: circumradius of 18-gon = 2.423 fm
B186: angle=20 degrees
F188: ring | G188: nucleon position | H188: type | I188: quark position | J188: angle (deg) | K188: angle (rad) | L188: mass (MeV) | M188: x (fm) | N188: y (fm) | O188: z (fm) | P188: weight x | Q188: weight y | R188: weight z
F190: 1 | G190: 0 | H190: p | I190: 0 | J190: 0 | K190: =RADIANS(J190) -> 0 | L190: 336 | M190: =TRUNC(2.423*SIN(K190),4) -> 0 | N190: =TRUNC(2.423*COS(K190),4) -> 2.423 | O190: 0 | P190: =L190*M190 -> 0 | Q190: =L190*N190 -> 814.128 | R190: =L190*O190 -> 0
I191: 1 | J191: =J190+20 -> 20 | K191: 0.3490658504 | L191: 340 | M191: 0.8287 | N191: 2.2768 | O191: 0 | P191: 281.758 | Q191: 774.112 | R191: 0
I192: 2 | J192: 40 | K192: 0.6981317008 | L192: 336 | M192: 1.5574 | N192: 1.8561 | O192: 0 | P192: 523.2864 | Q192: 623.6496 | R192: 0
G193: 1 | H193: n | I193: 3 | J193: 60 | K193: 1.047197551 | L193: 340 | M193: 2.0983 | N193: 1.2115 | O193: 0 | P193: 713.422 | Q193: 411.91 | R193: 0
I194: 4 | J194: 80 | K194: 1.396263402 | L194: 336 | M194: 2.3861 | N194: 0.4207 | O194: 0 | P194: 801.7296 | Q194: 141.3552 | R194: 0
I195: 5 | J195: 100 | K195: 1.745329252 | L195: 340 | M195: 2.3861 | N195: -0.4207 | O195: 0 | P195: 811.274 | Q195: -143.038 | R195: 0
G196: 2 | H196: p | I196: 6 | J196: 120 | K196: 2.094395102 | L196: 336 | M196: 2.0983 | N196: -1.2115 | O196: 0 | P196: 705.0288 | Q196: -407.064 | R196: 0
I197: 7* | J197: 140 | K197: 2.443460953 | L197: 340 | M197: 1.5574 | N197: -1.8561 | O197: 0 | P197: 529.516 | Q197: -631.074 | R197: 0
I198: 8 | J198: 160 | K198: 2.792526803 | L198: 336 | M198: 0.8287 | N198: -2.2768 | O198: 0 | P198: 278.4432 | Q198: -765.0048 | R198: 0
G199: 3 | H199: n | I199: 9 | J199: 180 | K199: 3.141592654 | L199: 340 | M199: 0 | N199: -2.423 | O199: 0 | P199: 0 | Q199: -823.82 | R199: 0
I200: 10 | J200: 200 | K200: 3.490658504 | L200: 336 | M200: -0.8287 | N200: -2.2768 | O200: 0 | P200: -278.4432 | Q200: -765.0048 | R200: 0
B201: Up Quark | I201: 11 | J201: 220 | K201: 3.839724354 | L201: 340 | M201: -1.5574 | N201: -1.8561 | O201: 0 | P201: -529.516 | Q201: -631.074 | R201: 0
B202: Down Quark | G202: 4 | H202: p | I202: 12 | J202: 240 | K202: 4.188790205 | L202: 336 | M202: -2.0983 | N202: -1.2115 | O202: 0 | P202: -705.0288 | Q202: -407.064 | R202: 0 | T202: r= | U202: =SQRT((0.9616)^2+(SQRT((2*0.9616)^2+(2*0.8414)^2)/2)) -> 1.48405461
I203: 13 | J203: 260 | K203: 4.537856055 | L203: 340 | M203: -2.3861 | N203: -0.4207 | O203: 0 | P203: -811.274 | Q203: -143.038 | R203: 0
I204: 14 | J204: 280 | K204: 4.886921906 | L204: 336 | M204: -2.3861 | N204: 0.4207 | O204: 0 | P204: -801.7296 | Q204: 141.3552 | R204: 0
G205: 5 | H205: n | I205: 15 | J205: 300 | K205: 5.235987756 | L205: 340 | M205: -2.0983 | N205: 1.2115 | O205: 0 | P205: -713.422 | Q205: 411.91 | R205: 0
I206: 16 | J206: 320 | K206: 5.585053606 | L206: 336 | M206: -1.5574 | N206: 1.8561 | O206: 0 | P206: -523.2864 | Q206: 623.6496 | R206: 0
I207: 17 | J207: 340 | K207: 5.934119457 | L207: 340 | M207: -0.8287 | N207: 2.2768 | O207: 0 | P207: -281.758 | Q207: 774.112 | R207: 0
F208: 2 | G208: 0 | H208: n | I208: 0 | J208: 0 | K208: 0 | L208: 340 | M208: 0 | N208: 2.423 | O208: 0.9616 | P208: 0 | Q208: 823.82 | R208: 326.944
I209: 1 | J209: =J208+20 -> 20 | K209: 0.3490658504 | L209: 336 | M209: 0.8287 | N209: 2.2768 | O209: 0.9616 | P209: 278.4432 | Q209: 765.0048 | R209: 323.0976
I210: 2 | J210: =J209+20 -> 40 | K210: 0.6981317008 | L210: 340 | M210: 1.5574 | N210: 1.8561 | O210: 0.9616 | P210: 529.516 | Q210: 631.074 | R210: 326.944
G211: 1 | H211: p | I211: 3 | J211: =J210+20 -> 60 | K211: 1.047197551 | L211: 336 | M211: 2.0983 | N211: 1.2115 | O211: 0.9616 | P211: 705.0288 | Q211: 407.064 | R211: 323.0976
I212: 4 | J212: 80 | K212: 1.396263402 | L212: 340 | M212: 2.3861 | N212: 0.4207 | O212: 0.9616 | P212: 811.274 | Q212: 143.038 | R212: 326.944
I213: 5 | J213: 100 | K213: 1.745329252 | L213: 336 | M213: 2.3861 | N213: -0.4207 | O213: 0.9616 | P213: 801.7296 | Q213: -141.3552 | R213: 323.0976
G214: 2 | H214: n | I214: 6 | J214: 120 | K214: 2.094395102 | L214: 340 | M214: 2.0983 | N214: -1.2115 | O214: 0.9616 | P214: 713.422 | Q214: -411.91 | R214: 326.944
I215: 7 | J215: 140 | K215: 2.443460953 | L215: 336 | M215: 1.5574 | N215: -1.8561 | O215: 0.9616 | P215: 523.2864 | Q215: -623.6496 | R215: 323.0976
I216: 8 | J216: 160 | K216: 2.792526803 | L216: 340 | M216: 0.8287 | N216: -2.2768 | O216: 0.9616 | P216: 281.758 | Q216: -774.112 | R216: 326.944
L217: =SUM(L190:L216) -> 9128 | P217: =SUM(P190:P216) -> 4644.458 | Q217: =SUM(Q190:Q216) -> 818.974 | R217: =SUM(R190:R216) -> 2927.1104
M218: Coordinates
L219: Center of Mass | M219: x= | N219: =P217/L217 -> 0.5088144172
I220: AQM predicted r (precessing*)= | J220: =SQRT((M212-M203)^2+(N212-N203)^2+(O212-O203)^2)/2 -> 2.470147838 | M220: y= | N220: =Q217/L217 -> 0.089721078
I221: % agreement= | J221: =ABS(J220-N222)/((N222+J220)/2) -> 2.0% | M221: z= | N221: =R217/L217 -> 0.3206737949
M222: Be-9 accepted r= | N222: 2.519 | O222: (+/- 0.0120 fm)
M223: AQM predicted r (tumbling)= | N223: =TRUNC(SQRT((N219-M208)^2+(N220-N208)^2+(N221-O208)^2),4) -> 2.4726 | O223: Center of Mass to quark 0, Ring 2
M224: % agreement= | N224: =ABS(N223-N222)/((N222+N223)/2) -> 1.9%
A227: B-10 | E227: B-10 as an 18-gon + sequence of 12 overlapping quarks
E228: a=0.8414 fm (proton radius)
E229: circumradius of 18-gon = 2.423 fm
E230: angle=20 degrees
F233: ring | G233: nucleon position | H233: type | I233: quark position | J233: angle (deg) | K233: angle (rad) | L233: mass (MeV) | M233: x (fm) | N233: y (fm) | O233: z (fm) | P233: weight x | Q233: weight y | R233: weight z | V233: ring | W233: nucleon position | X233: type | Y233: quark position | Z233: angle (deg) | AA233: angle (rad) | AB233: mass (MeV) | AC233: x (fm) | AD233: y (fm) | AE233: z (fm) | AF233: weight x | AG233: weight y | AH233: weight z
F235: 1 | G235: 0 | H235: p | I235: 0 | J235: 0 | K235: =RADIANS(J235) -> 0 | L235: 336 | M235: =TRUNC(2.423*SIN(K235),4) -> 0 | N235: =TRUNC(2.423*COS(K235),4) -> 2.423 | O235: 0 | P235: =L235*M235 -> 0 | Q235: =L235*N235 -> 814.128 | R235: =L235*O235 -> 0 | V235: 1 | W235: 0 | X235: p | Y235: 0 | Z235: 0 | AA235: =RADIANS(Z235) -> 0 | AB235: 2.16 | AC235: =TRUNC(2.423*SIN(AA235),4) -> 0 | AD235: =TRUNC(2.423*COS(AA235),4) -> 2.423 | AE235: 0 | AF235: =AB235*AC235 -> 0 | AG235: =AB235*AD235 -> 5.23368 | AH235: =AB235*AE235 -> 0
I236: 1 | J236: 20 | K236: =RADIANS(J236) -> 0.3490658504 | L236: 340 | M236: =TRUNC(2.423*SIN(K236),4) -> 0.8287 | N236: =TRUNC(2.423*COS(K236),4) -> 2.2768 | O236: 0 | P236: 281.758 | Q236: 774.112 | R236: 0 | Y236: 1 | Z236: 20 | AA236: =RADIANS(Z236) -> 0.3490658504 | AB236: 4.67 | AC236: =TRUNC(2.423*SIN(AA236),4) -> 0.8287 | AD236: =TRUNC(2.423*COS(AA236),4) -> 2.2768 | AE236: 0 | AF236: 3.870029 | AG236: 10.632656 | AH236: 0
I237: 2 | J237: 40 | K237: 0.6981317008 | L237: 336 | M237: 1.5574 | N237: 1.8561 | O237: 0 | P237: 523.2864 | Q237: 623.6496 | R237: 0 | Y237: 2 | Z237: 40 | AA237: 0.6981317008 | AB237: 2.16 | AC237: 1.5574 | AD237: 1.8561 | AE237: 0 | AF237: 3.363984 | AG237: 4.009176 | AH237: 0
G238: 1 | H238: n | I238: 3 | J238: 60 | K238: 1.047197551 | L238: 340 | M238: 2.0983 | N238: 1.2115 | O238: 0 | P238: 713.422 | Q238: 411.91 | R238: 0 | W238: 1 | X238: n | Y238: 3 | Z238: 60 | AA238: 1.047197551 | AB238: 4.67 | AC238: 2.0983 | AD238: 1.2115 | AE238: 0 | AF238: 9.799061 | AG238: 5.657705 | AH238: 0
I239: 4 | J239: 80 | K239: 1.396263402 | L239: 336 | M239: 2.3861 | N239: 0.4207 | O239: 0 | P239: 801.7296 | Q239: 141.3552 | R239: 0 | Y239: 4 | Z239: 80 | AA239: 1.396263402 | AB239: 2.16 | AC239: 2.3861 | AD239: 0.4207 | AE239: 0 | AF239: 5.153976 | AG239: 0.908712 | AH239: 0
I240: 5 | J240: 100 | K240: 1.745329252 | L240: 340 | M240: 2.3861 | N240: -0.4207 | O240: 0 | P240: 811.274 | Q240: -143.038 | R240: 0 | Y240: 5 | Z240: 100 | AA240: 1.745329252 | AB240: 4.67 | AC240: 2.3861 | AD240: -0.4207 | AE240: 0 | AF240: 11.143087 | AG240: -1.964669 | AH240: 0
G241: 2 | H241: p | I241: 6 | J241: 120 | K241: 2.094395102 | L241: 336 | M241: 2.0983 | N241: -1.2115 | O241: 0 | P241: 705.0288 | Q241: -407.064 | R241: 0 | W241: 2 | X241: p | Y241: 6 | Z241: 120 | AA241: 2.094395102 | AB241: 2.16 | AC241: 2.0983 | AD241: -1.2115 | AE241: 0 | AF241: 4.532328 | AG241: -2.61684 | AH241: 0
I242: 7 | J242: 140 | K242: 2.443460953 | L242: 340 | M242: 1.5574 | N242: -1.8561 | O242: 0 | P242: 529.516 | Q242: -631.074 | R242: 0 | Y242: 7 | Z242: 140 | AA242: 2.443460953 | AB242: 4.67 | AC242: 1.5574 | AD242: -1.8561 | AE242: 0 | AF242: 7.273058 | AG242: -8.667987 | AH242: 0
I243: 8 | J243: 160 | K243: 2.792526803 | L243: 336 | M243: 0.8287 | N243: -2.2768 | O243: 0 | P243: 278.4432 | Q243: -765.0048 | R243: 0 | Y243: 8 | Z243: 160 | AA243: 2.792526803 | AB243: 2.16 | AC243: 0.8287 | AD243: -2.2768 | AE243: 0 | AF243: 1.789992 | AG243: -4.917888 | AH243: 0
G244: 3 | H244: n | I244: 9 | J244: 180 | K244: 3.141592654 | L244: 340 | M244: 0 | N244: -2.423 | O244: 0 | P244: 0 | Q244: -823.82 | R244: 0 | W244: 3 | X244: n | Y244: 9 | Z244: 180 | AA244: 3.141592654 | AB244: 4.67 | AC244: 0 | AD244: -2.423 | AE244: 0 | AF244: 0 | AG244: -11.31541 | AH244: 0
B245: Up Quark | I245: 10 | J245: 200 | K245: 3.490658504 | L245: 336 | M245: -0.8287 | N245: -2.2768 | O245: 0 | P245: -278.4432 | Q245: -765.0048 | R245: 0 | Y245: 10 | Z245: 200 | AA245: 3.490658504 | AB245: 2.16 | AC245: -0.8287 | AD245: -2.2768 | AE245: 0 | AF245: -1.789992 | AG245: -4.917888 | AH245: 0
B246: Down Quark | I246: 11 | J246: 220 | K246: 3.839724354 | L246: 340 | M246: -1.5574 | N246: -1.8561 | O246: 0 | P246: -529.516 | Q246: -631.074 | R246: 0 | Y246: 11 | Z246: 220 | AA246: 3.839724354 | AB246: 4.67 | AC246: -1.5574 | AD246: -1.8561 | AE246: 0 | AF246: -7.273058 | AG246: -8.667987 | AH246: 0
G247: 4 | H247: p | I247: 12 | J247: 240 | K247: 4.188790205 | L247: 336 | M247: -2.0983 | N247: -1.2115 | O247: 0 | P247: -705.0288 | Q247: -407.064 | R247: 0 | W247: 4 | X247: p | Y247: 12 | Z247: 240 | AA247: 4.188790205 | AB247: 2.16 | AC247: -2.0983 | AD247: -1.2115 | AE247: 0 | AF247: -4.532328 | AG247: -2.61684 | AH247: 0
I248: 13 | J248: 260 | K248: 4.537856055 | L248: 340 | M248: -2.3861 | N248: -0.4207 | O248: 0 | P248: -811.274 | Q248: -143.038 | R248: 0 | Y248: 13 | Z248: 260 | AA248: 4.537856055 | AB248: 4.67 | AC248: -2.3861 | AD248: -0.4207 | AE248: 0 | AF248: -11.143087 | AG248: -1.964669 | AH248: 0
I249: 14 | J249: 280 | K249: 4.886921906 | L249: 336 | M249: -2.3861 | N249: 0.4207 | O249: 0 | P249: -801.7296 | Q249: 141.3552 | R249: 0 | Y249: 14 | Z249: 280 | AA249: 4.886921906 | AB249: 2.16 | AC249: -2.3861 | AD249: 0.4207 | AE249: 0 | AF249: -5.153976 | AG249: 0.908712 | AH249: 0
... 524 more rows

Sheet Ne-20 to Mg-24
K1: "Best Fit" Radius/Structure Predictions for Light Nuclei Ne-20 to Mg-24 based on Alternating Quark Model (Average Agreement = 100%, SD=1.5%)
A22: Ne-20 | F22: ring | G22: nucleon position | H22: type | I22: quark position | J22: angle (deg) | K22: angle (rad) | L22: mass (MeV) | M22: x (fm) | N22: y (fm) | O22: z (fm) | P22: weight x | Q22: weight y | R22: weight z
F24: 1 | G24: 0 | H24: p | I24: 0 | J24: 0 | K24: =RADIANS(J24) -> 0 | L24: 336 | M24: =TRUNC(2.423*SIN(K24),4) -> 0 | N24: =TRUNC(2.423*COS(K24),4) -> 2.423 | O24: 0 | P24: =L24*M24 -> 0 | Q24: =L24*N24 -> 814.128 | R24: =L24*O24 -> 0
I25: 1 | J25: =J24+20 -> 20 | K25: 0.3490658504 | L25: 340 | M25: 0.8287 | N25: 2.2768 | O25: 0 | P25: 281.758 | Q25: 774.112 | R25: 0
I26: 2 | J26: 40 | K26: 0.6981317008 | L26: 336 | M26: 1.5574 | N26: 1.8561 | O26: 0 | P26: 523.2864 | Q26: 623.6496 | R26: 0
G27: 1 | H27: n | I27: 3 | J27: 60 | K27: 1.047197551 | L27: 340 | M27: 2.0983 | N27: 1.2115 | O27: 0 | P27: 713.422 | Q27: 411.91 | R27: 0
I28: 4 | J28: 80 | K28: 1.396263402 | L28: 336 | M28: 2.3861 | N28: 0.4207 | O28: 0 | P28: 801.7296 | Q28: 141.3552 | R28: 0
I29: 5 | J29: 100 | K29: 1.745329252 | L29: 340 | M29: 2.3861 | N29: -0.4207 | O29: 0 | P29: 811.274 | Q29: -143.038 | R29: 0
G30: 2 | H30: p | I30: 6 | J30: 120 | K30: 2.094395102 | L30: 336 | M30: 2.0983 | N30: -1.2115 | O30: 0 | P30: 705.0288 | Q30: -407.064 | R30: 0
I31: 7 | J31: 140 | K31: 2.443460953 | L31: 340 | M31: 1.5574 | N31: -1.8561 | O31: 0 | P31: 529.516 | Q31: -631.074 | R31: 0
I32: 8 | J32: 160 | K32: 2.792526803 | L32: 336 | M32: 0.8287 | N32: -2.2768 | O32: 0 | P32: 278.4432 | Q32: -765.0048 | R32: 0
G33: 3 | H33: n | I33: 9 | J33: 180 | K33: 3.141592654 | L33: 340 | M33: 0 | N33: -2.423 | O33: 0 | P33: 0 | Q33: -823.82 | R33: 0
I34: 10 | J34: 200 | K34: 3.490658504 | L34: 336 | M34: -0.8287 | N34: -2.2768 | O34: 0 | P34: -278.4432 | Q34: -765.0048 | R34: 0
I35: 11 | J35: 220 | K35: 3.839724354 | L35: 340 | M35: -1.5574 | N35: -1.8561 | O35: 0 | P35: -529.516 | Q35: -631.074 | R35: 0
G36: 4 | H36: p | I36: 12 | J36: 240 | K36: 4.188790205 | L36: 336 | M36: -2.0983 | N36: -1.2115 | O36: 0 | P36: -705.0288 | Q36: -407.064 | R36: 0
I37: 13 | J37: 260 | K37: 4.537856055 | L37: 340 | M37: -2.3861 | N37: -0.4207 | O37: 0 | P37: -811.274 | Q37: -143.038 | R37: 0
I38: 14 | J38: 280 | K38: 4.886921906 | L38: 336 | M38: -2.3861 | N38: 0.4207 | O38: 0 | P38: -801.7296 | Q38: 141.3552 | R38: 0
G39: 5 | H39: n | I39: 15 | J39: 300 | K39: 5.235987756 | L39: 340 | M39: -2.0983 | N39: 1.2115 | O39: 0 | P39: -713.422 | Q39: 411.91 | R39: 0
I40: 16 | J40: 320 | K40: 5.585053606 | L40: 336 | M40: -1.5574 | N40: 1.8561 | O40: 0 | P40: -523.2864 | Q40: 623.6496 | R40: 0
I41: 17 | J41: 340 | K41: 5.934119457 | L41: 340 | M41: -0.8287 | N41: 2.2768 | O41: 0 | P41: -281.758 | Q41: 774.112 | R41: 0
F42: 2 | G42: 0 | H42: n | I42: 0' | J42: 0 | K42: 0 | L42: 340 | M42: 0 | N42: 2.423 | O42: 0.9616 | P42: 0 | Q42: 823.82 | R42: 326.944
I43: 1' | J43: =J42+20 -> 20 | K43: 0.3490658504 | L43: 336 | M43: 0.8287 | N43: 2.2768 | O43: 0.9616 | P43: 278.4432 | Q43: 765.0048 | R43: 323.0976
I44: 2' | J44: =J43+20 -> 40 | K44: 0.6981317008 | L44: 340 | M44: 1.5574 | N44: 1.8561 | O44: 0.9616 | P44: 529.516 | Q44: 631.074 | R44: 326.944
G45: 1 | H45: p | I45: 3' | J45: =J44+20 -> 60 | K45: 1.047197551 | L45: 336 | M45: 2.0983 | N45: 1.2115 | O45: 0.9616 | P45: 705.0288 | Q45: 407.064 | R45: 323.0976
I46: 4' | J46: =J45+20 -> 80 | K46: 1.396263402 | L46: 340 | M46: 2.3861 | N46: 0.4207 | O46: 0.9616 | P46: 811.274 | Q46: 143.038 | R46: 326.944
I47: 5' | J47: 100 | K47: 1.745329252 | L47: 336 | M47: 2.3861 | N47: -0.4207 | O47: 0.9616 | P47: 801.7296 | Q47: -141.3552 | R47: 323.0976
G48: 2 | H48: n | I48: 6' | J48: 120 | K48: 2.094395102 | L48: 340 | M48: 2.0983 | N48: -1.2115 | O48: 0.9616 | P48: 713.422 | Q48: -411.91 | R48: 326.944
I49: 7' | J49: 140 | K49: 2.443460953 | L49: 336 | M49: 1.5574 | N49: -1.8561 | O49: 0.9616 | P49: 523.2864 | Q49: -623.6496 | R49: 323.0976
I50: 8' | J50: 160 | K50: 2.792526803 | L50: 340 | M50: 0.8287 | N50: -2.2768 | O50: 0.9616 | P50: 281.758 | Q50: -774.112 | R50: 326.944
G51: 3 | H51: p | I51: 9' | J51: 180 | K51: 3.141592654 | L51: 336 | M51: 0 | N51: -2.423 | O51: 0.9616 | P51: 0 | Q51: -814.128 | R51: 323.0976
I52: 10' | J52: 200 | K52: 3.490658504 | L52: 340 | M52: -0.8287 | N52: -2.2768 | O52: 0.9616 | P52: -281.758 | Q52: -774.112 | R52: 326.944
I53: 11' | J53: 220 | K53: 3.839724354 | L53: 336 | M53: -1.5574 | N53: -1.8561 | O53: 0.9616 | P53: -523.2864 | Q53: -623.6496 | R53: 323.0976
B54: Up Quark | G54: 4 | H54: n | I54: 12' | J54: 240 | K54: 4.188790205 | L54: 340 | M54: -2.0983 | N54: -1.2115 | O54: 0.9616 | P54: -713.422 | Q54: -411.91 | R54: 326.944
B55: Down Quark | I55: 13' | J55: 260 | K55: 4.537856055 | L55: 336 | M55: -2.3861 | N55: -0.4207 | O55: 0.9616 | P55: -801.7296 | Q55: -141.3552 | R55: 323.0976
I56: 14' | J56: 280 | K56: 4.886921906 | L56: 340 | M56: -2.3861 | N56: 0.4207 | O56: 0.9616 | P56: -811.274 | Q56: 143.038 | R56: 326.944
G57: 5 | H57: p | I57: 15' | J57: 300 | K57: 5.235987756 | L57: 336 | M57: -2.0983 | N57: 1.2115 | O57: 0.9616 | P57: -705.0288 | Q57: 407.064 | R57: 323.0976
A58: Ne-20 | I58: 16' | J58: 320 | K58: 5.585053606 | L58: 340 | M58: -1.5574 | N58: 1.8561 | O58: 0.9616 | P58: -529.516 | Q58: 631.074 | R58: 326.944
I59: 17' | J59: 340 | K59: 5.934119457 | L59: 336 | M59: -0.8287 | N59: 2.2768 | O59: 0.9616 | P59: -278.4432 | Q59: 765.0048 | R59: 323.0976
F60: 3 | G60: 0 | H60: p | I60: 0" | J60: 0 | K60: 0 | L60: 336 | M60: 0 | N60: 2.423 | O60: =2*0.9616 -> 1.9232 | P60: 0 | Q60: 814.128 | R60: 646.1952 | AE60: 2.423 | AF60: =AE60+0.46 -> 2.883
I61: 1" | J61: 20 | K61: 0.3490658504 | L61: 340 | M61: 0.8287 | N61: 2.2768 | O61: 1.9232 | P61: 281.758 | Q61: 774.112 | R61: 653.888 | AE61: 2.2768 | AF61: =AE61+0.46 -> 2.7368
I62: 2" | J62: 40 | K62: 0.6981317008 | L62: 336 | M62: 1.5574 | N62: 1.8561 | O62: 1.9232 | P62: 523.2864 | Q62: 623.6496 | R62: 646.1952 | AE62: 1.8561 | AF62: 2.3161
G63: 1 | H63: n | I63: 3" | J63: 60 | K63: 1.047197551 | L63: 340 | M63: 2.0983 | N63: 1.2115 | O63: 1.9232 | P63: 713.422 | Q63: 411.91 | R63: 653.888 | AE63: 1.2115 | AF63: 1.6715
I64: 4" | J64: 80 | K64: 1.396263402 | L64: 336 | M64: 2.3861 | N64: 0.4207 | O64: 1.9232 | P64: 801.7296 | Q64: 141.3552 | R64: 646.1952 | AE64: 0.4207 | AF64: 0.8807
I65: 5" | J65: 100 | K65: 1.745329252 | L65: 340 | M65: 2.3861 | N65: -0.4207 | O65: 1.9232 | P65: 811.274 | Q65: -143.038 | R65: 653.888 | AE65: -0.4207 | AF65: 0.0393
G66: 2 | H66: p | I66: 6" | J66: =J65+20 -> 120 | K66: 2.094395102 | L66: 336 | M66: 2.0983 | N66: -1.2115 | O66: 1.9232 | P66: 705.0288 | Q66: -407.064 | R66: 646.1952 | AE66: -1.2115 | AF66: -0.7515
I67: 7" | J67: =J66+20 -> 140 | K67: 2.443460953 | L67: 340 | M67: 1.5574 | N67: -1.8561 | O67: 1.9232 | P67: 529.516 | Q67: -631.074 | R67: 653.888 | AE67: -1.8561 | AF67: -1.3961
I68: 8" | J68: =J67+20 -> 160 | K68: 2.792526803 | L68: 336 | M68: 0.8287 | N68: -2.2768 | O68: 1.9232 | P68: 278.4432 | Q68: -765.0048 | R68: 646.1952 | AE68: -2.2768 | AF68: -1.8168
G69: 3 | H69: n | I69: 9" | J69: 180 | K69: 3.141592654 | L69: 340 | M69: 0 | N69: -2.423 | O69: 1.9232 | P69: 0 | Q69: -823.82 | R69: 653.888 | AE69: -2.423 | AF69: -1.963
I70: 10" | J70: 200 | K70: 3.490658504 | L70: 336 | M70: -0.8287 | N70: -2.2768 | O70: 1.9232 | P70: -278.4432 | Q70: -765.0048 | R70: 646.1952 | AE70: -2.2768 | AF70: -1.8168
I71: 11" | J71: 220 | K71: 3.839724354 | L71: 340 | M71: -1.5574 | N71: -1.8561 | O71: 1.9232 | P71: -529.516 | Q71: -631.074 | R71: 653.888 | AE71: -1.8561 | AF71: -1.3961
G72: 4 | H72: p | I72: 12" | J72: 240 | K72: 4.188790205 | L72: 336 | M72: -2.0983 | N72: -1.2115 | O72: 1.9232 | P72: -705.0288 | Q72: -407.064 | R72: 646.1952 | AE72: -1.2115 | AF72: -0.7515
I73: 13" | J73: 260 | K73: 4.537856055 | L73: 340 | M73: -2.3861 | N73: -0.4207 | O73: 1.9232 | P73: -811.274 | Q73: -143.038 | R73: 653.888 | AE73: -0.4207 | AF73: 0.0393
I74: 14" | J74: 280 | K74: 4.886921906 | L74: 336 | M74: -2.3861 | N74: 0.4207 | O74: 1.9232 | P74: -801.7296 | Q74: 141.3552 | R74: 646.1952 | AE74: 0.4207 | AF74: 0.8807
G75: 5 | H75: n | I75: 15" | J75: 300 | K75: 5.235987756 | L75: 340 | M75: -2.0983 | N75: 1.2115 | O75: 1.9232 | P75: -713.422 | Q75: 411.91 | R75: 653.888 | AE75: 1.2115 | AF75: 1.6715
I76: 16" | J76: 320 | K76: 5.585053606 | L76: 336 | M76: -1.5574 | N76: 1.8561 | O76: 1.9232 | P76: -523.2864 | Q76: 623.6496 | R76: 646.1952 | AE76: 1.8561 | AF76: 2.3161
I77: 17" | J77: 340 | K77: 5.934119457 | L77: 340 | M77: -0.8287 | N77: 2.2768 | O77: 1.9232 | P77: -281.758 | Q77: 774.112 | R77: 653.888 | AE77: 2.2768 | AF77: 2.7368
F78: 4 | G78: 0 | H78: n | I78: 0"' | J78: 0 | K78: 0 | L78: 340 | M78: 0 | N78: 2.423 | O78: =3*0.9616 -> 2.8848 | P78: 0 | Q78: 823.82 | R78: 980.832 | AE78: 2.423 | AF78: 2.883
I79: 1"' | J79: =J78+20 -> 20 | K79: 0.3490658504 | L79: 336 | M79: 0.8287 | N79: 2.2768 | O79: 2.8848 | P79: 278.4432 | Q79: 765.0048 | R79: 969.2928 | AE79: 2.2768 | AF79: 2.7368
I80: 2"' | J80: =J79+20 -> 40 | K80: 0.6981317008 | L80: 340 | M80: 1.5574 | N80: 1.8561 | O80: 2.8848 | P80: 529.516 | Q80: 631.074 | R80: 980.832 | AE80: 1.8561 | AF80: 2.3161
G81: 1 | H81: p | I81: 3"' | J81: 60 | K81: 1.047197551 | L81: 336 | M81: 2.0983 | N81: 1.2115 | O81: 2.8848 | P81: 705.0288 | Q81: 407.064 | R81: 969.2928 | AE81: 1.2115 | AF81: 1.6715
I82: 4"' | J82: 80 | K82: 1.396263402 | L82: 340 | M82: 2.3861 | N82: 0.4207 | O82: 2.8848 | P82: 811.274 | Q82: 143.038 | R82: 980.832 | AE82: 0.4207 | AF82: 0.8807
I83: 5"' | J83: 100 | K83: 1.745329252 | L83: 336 | M83: 2.3861 | N83: -0.4207 | O83: 2.8848 | P83: 801.7296 | Q83: -141.3552 | R83: 969.2928 | AE83: -0.4207 | AF83: 0.0393
L84: =SUM(L24:L83) -> 20280 | P84: =SUM(P24:P83) -> 3125.9916 | Q84: =SUM(Q24:Q83) -> 2628.6456 | R84: =SUM(R24:R83) -> 23401.4976
O85: Coordinates
O86: x= | P86: =P84/L84 -> 0.1541415976
O87: y= | P87: =Q84/L84 -> 0.1296176331
O88: z= | P88: =R84/L84 -> 1.15392
N89: experimental radius= | P89: 3.0055
K90: AQM predicted r (precessing)= | L90: =SQRT((M34-M79)^2+(N34-N79)^2+(O34-O79)^2)/2 -> 2.819765893 | O90: AQM predicted r (tumbling)= | P90: =SQRT((M35-P86)^2+(N35-P87)^2+(O35-P88)^2) -> 2.864259158 | Q90: COM to quark 11 | S90: =SQRT((P35-S86)^2+(Q35-S87)^2+(R35-S88)^2) -> 823.7970549
K91: % agreement= | L91: =ABS(L90-P89)/((P90+L90)/2) -> 6.5% | O91: % agreement= | P91: =ABS(P90-P89)/((P89+P90)/2) -> 4.8% | S91: 2.864259158
I93: 2.9695
A95: Ne-21 | F95: ring | G95: nucleon position | H95: type | I95: quark position | J95: angle (deg) | K95: angle (rad) | L95: mass (MeV) | M95: x (fm) | N95: y (fm) | O95: z (fm) | P95: weight x | Q95: weight y | R95: weight z
F97: 1 | G97: 0 | H97: p | I97: 0 | J97: 0 | K97: =RADIANS(J97) -> 0 | L97: 336 | M97: =TRUNC(2.423*SIN(K97),4) -> 0 | N97: =TRUNC(2.423*COS(K97),4) -> 2.423 | O97: 0 | P97: =L97*M97 -> 0 | Q97: =L97*N97 -> 814.128 | R97: =L97*O97 -> 0
I98: 1 | J98: =J97+20 -> 20 | K98: 0.3490658504 | L98: 340 | M98: 0.8287 | N98: 2.2768 | O98: 0 | P98: 281.758 | Q98: 774.112 | R98: 0
I99: 2 | J99: 40 | K99: 0.6981317008 | L99: 336 | M99: 1.5574 | N99: 1.8561 | O99: 0 | P99: 523.2864 | Q99: 623.6496 | R99: 0
G100: 1 | H100: n | I100: 3 | J100: 60 | K100: 1.047197551 | L100: 340 | M100: 2.0983 | N100: 1.2115 | O100: 0 | P100: 713.422 | Q100: 411.91 | R100: 0
I101: 4 | J101: 80 | K101: 1.396263402 | L101: 336 | M101: 2.3861 | N101: 0.4207 | O101: 0 | P101: 801.7296 | Q101: 141.3552 | R101: 0
I102: 5 | J102: 100 | K102: 1.745329252 | L102: 340 | M102: 2.3861 | N102: -0.4207 | O102: 0 | P102: 811.274 | Q102: -143.038 | R102: 0
G103: 2 | H103: p | I103: 6 | J103: 120 | K103: 2.094395102 | L103: 336 | M103: 2.0983 | N103: -1.2115 | O103: 0 | P103: 705.0288 | Q103: -407.064 | R103: 0
I104: 7 | J104: 140 | K104: 2.443460953 | L104: 340 | M104: 1.5574 | N104: -1.8561 | O104: 0 | P104: 529.516 | Q104: -631.074 | R104: 0
I105: 8 | J105: 160 | K105: 2.792526803 | L105: 336 | M105: 0.8287 | N105: -2.2768 | O105: 0 | P105: 278.4432 | Q105: -765.0048 | R105: 0
G106: 3 | H106: n | I106: 9 | J106: 180 | K106: 3.141592654 | L106: 340 | M106: 0 | N106: -2.423 | O106: 0 | P106: 0 | Q106: -823.82 | R106: 0
I107: 10 | J107: 200 | K107: 3.490658504 | L107: 336 | M107: -0.8287 | N107: -2.2768 | O107: 0 | P107: -278.4432 | Q107: -765.0048 | R107: 0
I108: 11 | J108: 220 | K108: 3.839724354 | L108: 340 | M108: -1.5574 | N108: -1.8561 | O108: 0 | P108: -529.516 | Q108: -631.074 | R108: 0
G109: 4 | H109: p | I109: 12 | J109: 240 | K109: 4.188790205 | L109: 336 | M109: -2.0983 | N109: -1.2115 | O109: 0 | P109: -705.0288 | Q109: -407.064 | R109: 0
I110: 13 | J110: 260 | K110: 4.537856055 | L110: 340 | M110: -2.3861 | N110: -0.4207 | O110: 0 | P110: -811.274 | Q110: -143.038 | R110: 0
I111: 14 | J111: 280 | K111: 4.886921906 | L111: 336 | M111: -2.3861 | N111: 0.4207 | O111: 0 | P111: -801.7296 | Q111: 141.3552 | R111: 0
G112: 5 | H112: n | I112: 15 | J112: 300 | K112: 5.235987756 | L112: 340 | M112: -2.0983 | N112: 1.2115 | O112: 0 | P112: -713.422 | Q112: 411.91 | R112: 0
I113: 16 | J113: 320 | K113: 5.585053606 | L113: 336 | M113: -1.5574 | N113: 1.8561 | O113: 0 | P113: -523.2864 | Q113: 623.6496 | R113: 0
I114: 17 | J114: 340 | K114: 5.934119457 | L114: 340 | M114: -0.8287 | N114: 2.2768 | O114: 0 | P114: -281.758 | Q114: 774.112 | R114: 0
F115: 2 | G115: 0 | H115: n | I115: 0' | J115: 0 | K115: 0 | L115: 340 | M115: 0 | N115: 2.423 | O115: 0.9616 | P115: 0 | Q115: 823.82 | R115: 326.944
I116: 1' | J116: =J115+20 -> 20 | K116: 0.3490658504 | L116: 336 | M116: 0.8287 | N116: 2.2768 | O116: 0.9616 | P116: 278.4432 | Q116: 765.0048 | R116: 323.0976
I117: 2' | J117: =J116+20 -> 40 | K117: 0.6981317008 | L117: 340 | M117: 1.5574 | N117: 1.8561 | O117: 0.9616 | P117: 529.516 | Q117: 631.074 | R117: 326.944
G118: 1 | H118: p | I118: 3' | J118: =J117+20 -> 60 | K118: 1.047197551 | L118: 336 | M118: 2.0983 | N118: 1.2115 | O118: 0.9616 | P118: 705.0288 | Q118: 407.064 | R118: 323.0976
I119: 4' | J119: =J118+20 -> 80 | K119: 1.396263402 | L119: 340 | M119: 2.3861 | N119: 0.4207 | O119: 0.9616 | P119: 811.274 | Q119: 143.038 | R119: 326.944
I120: 5' | J120: 100 | K120: 1.745329252 | L120: 336 | M120: 2.3861 | N120: -0.4207 | O120: 0.9616 | P120: 801.7296 | Q120: -141.3552 | R120: 323.0976
G121: 2 | H121: n | I121: 6' | J121: 120 | K121: 2.094395102 | L121: 340 | M121: 2.0983 | N121: -1.2115 | O121: 0.9616 | P121: 713.422 | Q121: -411.91 | R121: 326.944
I122: 7' | J122: 140 | K122: 2.443460953 | L122: 336 | M122: 1.5574 | N122: -1.8561 | O122: 0.9616 | P122: 523.2864 | Q122: -623.6496 | R122: 323.0976
I123: 8' | J123: 160 | K123: 2.792526803 | L123: 340 | M123: 0.8287 | N123: -2.2768 | O123: 0.9616 | P123: 281.758 | Q123: -774.112 | R123: 326.944
G124: 3 | H124: p | I124: 9' | J124: 180 | K124: 3.141592654 | L124: 336 | M124: 0 | N124: -2.423 | O124: 0.9616 | P124: 0 | Q124: -814.128 | R124: 323.0976
I125: 10' | J125: 200 | K125: 3.490658504 | L125: 340 | M125: -0.8287 | N125: -2.2768 | O125: 0.9616 | P125: -281.758 | Q125: -774.112 | R125: 326.944
I126: 11' | J126: 220 | K126: 3.839724354 | L126: 336 | M126: -1.5574 | N126: -1.8561 | O126: 0.9616 | P126: -523.2864 | Q126: -623.6496 | R126: 323.0976
G127: 4 | H127: n | I127: 12' | J127: 240 | K127: 4.188790205 | L127: 340 | M127: -2.0983 | N127: -1.2115 | O127: 0.9616 | P127: -713.422 | Q127: -411.91 | R127: 326.944
I128: 13' | J128: 260 | K128: 4.537856055 | L128: 336 | M128: -2.3861 | N128: -0.4207 | O128: 0.9616 | P128: -801.7296 | Q128: -141.3552 | R128: 323.0976
I129: 14' | J129: 280 | K129: 4.886921906 | L129: 340 | M129: -2.3861 | N129: 0.4207 | O129: 0.9616 | P129: -811.274 | Q129: 143.038 | R129: 326.944
G130: 5 | H130: p | I130: 15' | J130: 300 | K130: 5.235987756 | L130: 336 | M130: -2.0983 | N130: 1.2115 | O130: 0.9616 | P130: -705.0288 | Q130: 407.064 | R130: 323.0976
I131: 16' | J131: 320 | K131: 5.585053606 | L131: 340 | M131: -1.5574 | N131: 1.8561 | O131: 0.9616 | P131: -529.516 | Q131: 631.074 | R131: 326.944
I132: 17' | J132: 340 | K132: 5.934119457 | L132: 336 | M132: -0.8287 | N132: 2.2768 | O132: 0.9616 | P132: -278.4432 | Q132: 765.0048 | R132: 323.0976
F133: 3 | G133: 0 | H133: p | I133: 0" | J133: 0 | K133: 0 | L133: 336 | M133: 0 | N133: 2.423 | O133: =2*0.9616 -> 1.9232 | P133: 0 | Q133: 814.128 | R133: 646.1952
I134: 1" | J134: 20 | K134: 0.3490658504 | L134: 340 | M134: 0.8287 | N134: 2.2768 | O134: 1.9232 | P134: 281.758 | Q134: 774.112 | R134: 653.888
B135: Up Quark | I135: 2" | J135: 40 | K135: 0.6981317008 | L135: 336 | M135: 1.5574 | N135: 1.8561 | O135: 1.9232 | P135: 523.2864 | Q135: 623.6496 | R135: 646.1952
B136: Down Quark | G136: 1 | H136: n | I136: 3" | J136: 60 | K136: 1.047197551 | L136: 340 | M136: 2.0983 | N136: 1.2115 | O136: 1.9232 | P136: 713.422 | Q136: 411.91 | R136: 653.888
I137: 4" | J137: 80 | K137: 1.396263402 | L137: 336 | M137: 2.3861 | N137: 0.4207 | O137: 1.9232 | P137: 801.7296 | Q137: 141.3552 | R137: 646.1952
I138: 5" | J138: 100 | K138: 1.745329252 | L138: 340 | M138: 2.3861 | N138: -0.4207 | O138: 1.9232 | P138: 811.274 | Q138: -143.038 | R138: 653.888
G139: 2 | H139: p | I139: 6" | J139: =J138+20 -> 120 | K139: 2.094395102 | L139: 336 | M139: 2.0983 | N139: -1.2115 | O139: 1.9232 | P139: 705.0288 | Q139: -407.064 | R139: 646.1952
I140: 7" | J140: =J139+20 -> 140 | K140: 2.443460953 | L140: 340 | M140: 1.5574 | N140: -1.8561 | O140: 1.9232 | P140: 529.516 | Q140: -631.074 | R140: 653.888
I141: 8" | J141: =J140+20 -> 160 | K141: 2.792526803 | L141: 336 | M141: 0.8287 | N141: -2.2768 | O141: 1.9232 | P141: 278.4432 | Q141: -765.0048 | R141: 646.1952
G142: 3 | H142: n | I142: 9" | J142: 180 | K142: 3.141592654 | L142: 340 | M142: 0 | N142: -2.423 | O142: 1.9232 | P142: 0 | Q142: -823.82 | R142: 653.888
I143: 10" | J143: 200 | K143: 3.490658504 | L143: 336 | M143: -0.8287 | N143: -2.2768 | O143: 1.9232 | P143: -278.4432 | Q143: -765.0048 | R143: 646.1952
I144: 11" | J144: 220 | K144: 3.839724354 | L144: 340 | M144: -1.5574 | N144: -1.8561 | O144: 1.9232 | P144: -529.516 | Q144: -631.074 | R144: 653.888
G145: 4 | H145: p | I145: 12" | J145: 240 | K145: 4.188790205 | L145: 336 | M145: -2.0983 | N145: -1.2115 | O145: 1.9232 | P145: -705.0288 | Q145: -407.064 | R145: 646.1952
I146: 13" | J146: 260 | K146: 4.537856055 | L146: 340 | M146: -2.3861 | N146: -0.4207 | O146: 1.9232 | P146: -811.274 | Q146: -143.038 | R146: 653.888
I147: 14" | J147: 280 | K147: 4.886921906 | L147: 336 | M147: -2.3861 | N147: 0.4207 | O147: 1.9232 | P147: -801.7296 | Q147: 141.3552 | R147: 646.1952
G148: 5 | H148: n | I148: 15" | J148: 300 | K148: 5.235987756 | L148: 340 | M148: -2.0983 | N148: 1.2115 | O148: 1.9232 | P148: -713.422 | Q148: 411.91 | R148: 653.888
I149: 16" | J149: 320 | K149: 5.585053606 | L149: 336 | M149: -1.5574 | N149: 1.8561 | O149: 1.9232 | P149: -523.2864 | Q149: 623.6496 | R149: 646.1952
I150: 17" | J150: 340 | K150: 5.934119457 | L150: 340 | M150: -0.8287 | N150: 2.2768 | O150: 1.9232 | P150: -281.758 | Q150: 774.112 | R150: 653.888
F151: 4 | G151: 0 | H151: n | I151: 0"' | J151: 0 | K151: 0 | L151: 340 | M151: 0 | N151: 2.423 | O151: =3*0.9616 -> 2.8848 | P151: 0 | Q151: 823.82 | R151: 980.832
I152: 1"' | J152: =J151+20 -> 20 | K152: 0.3490658504 | L152: 336 | M152: 0.8287 | N152: 2.2768 | O152: 2.8848 | P152: 278.4432 | Q152: 765.0048 | R152: 969.2928
I153: 2"' | J153: =J152+20 -> 40 | K153: 0.6981317008 | L153: 340 | M153: 1.5574 | N153: 1.8561 | O153: 2.8848 | P153: 529.516 | Q153: 631.074 | R153: 980.832
G154: 1 | H154: p | I154: 3"' | J154: 60 | K154: 1.047197551 | L154: 336 | M154: 2.0983 | N154: 1.2115 | O154: 2.8848 | P154: 705.0288 | Q154: 407.064 | R154: 969.2928
I155: 4"' | J155: 80 | K155: 1.396263402 | L155: 340 | M155: 2.3861 | N155: 0.4207 | O155: 2.8848 | P155: 811.274 | Q155: 143.038 | R155: 980.832
I156: 5"' | J156: 100 | K156: 1.745329252 | L156: 336 | M156: 2.3861 | N156: -0.4207 | O156: 2.8848 | P156: 801.7296 | Q156: -141.3552 | R156: 969.2928
G157: 2 | H157: n | I157: 6"' | J157: 120 | K157: 2.094395102 | L157: 340 | M157: 2.0983 | N157: -1.2115 | O157: 2.8848 | P157: 713.422 | Q157: -411.91 | R157: 980.832
I158: 7"' | J158: 140 | K158: 2.443460953 | L158: 336 | M158: 1.5574 | N158: -1.8561 | O158: 2.8848 | P158: 523.2864 | Q158: -623.6496 | R158: 969.2928
I159: 8"' | J159: 160 | K159: 2.792526803 | L159: 340 | M159: 0.8287 | N159: -2.2768 | O159: 2.8848 | P159: 281.758 | Q159: -774.112 | R159: 980.832
L160: =SUM(L97:L159) -> 21296 | P160: =SUM(P97:P159) -> 4644.458 | Q160: =SUM(Q97:Q159) -> 818.974 | R160: =SUM(R97:R159) -> 26332.4544
O161: Coordinates
O162: x= | P162: =P160/L160 -> 0.2180906273
O163: y= | P163: =Q160/L160 -> 0.03845670548
K164: AQM predicted r (precessing)= | L164: =SQRT((M155-M110)^2+(N155-N110)^2+(O155-O110)^2)/2 -> 2.81974812 | O164: z= | P164: =R160/L160 -> 1.236497671
K165: % agreement= | L165: =ABS(L164-P165)/((P165+L164)/2) -> 5.2% | N165: experimental radius= | P165: 2.9695
O166: AQM predicted r (tumbling)= | P166: =SQRT((M110-P162)^2+(N110-P163)^2+(O110-P164)^2) -> 2.919171148 | Q166: COM to quark 13 | S166: 2.922024391
O167: % agreement= | P167: =ABS(P166-P165)/((P165+P166)/2) -> 1.7% | S167: 2.919171148
A169: Ne-22
F170: ring | G170: nucleon position | H170: type | I170: quark position | J170: angle (deg) | K170: angle (rad) | L170: mass (MeV) | M170: x (fm) | N170: y (fm) | O170: z (fm) | P170: weight x | Q170: weight y | R170: weight z
F172: 1 | G172: 0 | H172: p | I172: 0 | J172: 0 | K172: =RADIANS(J172) -> 0 | L172: 336 | M172: =TRUNC(2.423*SIN(K172),4) -> 0 | N172: =TRUNC(2.423*COS(K172),4) -> 2.423 | O172: 0 | P172: =L172*M172 -> 0 | Q172: =L172*N172 -> 814.128 | R172: =L172*O172 -> 0
I173: 1 | J173: =J172+20 -> 20 | K173: 0.3490658504 | L173: 340 | M173: 0.8287 | N173: 2.2768 | O173: 0 | P173: 281.758 | Q173: 774.112 | R173: 0
I174: 2 | J174: 40 | K174: 0.6981317008 | L174: 336 | M174: 1.5574 | N174: 1.8561 | O174: 0 | P174: 523.2864 | Q174: 623.6496 | R174: 0
G175: 1 | H175: n | I175: 3 | J175: 60 | K175: 1.047197551 | L175: 340 | M175: 2.0983 | N175: 1.2115 | O175: 0 | P175: 713.422 | Q175: 411.91 | R175: 0
I176: 4 | J176: 80 | K176: 1.396263402 | L176: 336 | M176: 2.3861 | N176: 0.4207 | O176: 0 | P176: 801.7296 | Q176: 141.3552 | R176: 0
I177: 5 | J177: 100 | K177: 1.745329252 | L177: 340 | M177: 2.3861 | N177: -0.4207 | O177: 0 | P177: 811.274 | Q177: -143.038 | R177: 0
G178: 2 | H178: p | I178: 6 | J178: 120 | K178: 2.094395102 | L178: 336 | M178: 2.0983 | N178: -1.2115 | O178: 0 | P178: 705.0288 | Q178: -407.064 | R178: 0
I179: 7 | J179: 140 | K179: 2.443460953 | L179: 340 | M179: 1.5574 | N179: -1.8561 | O179: 0 | P179: 529.516 | Q179: -631.074 | R179: 0
I180: 8 | J180: 160 | K180: 2.792526803 | L180: 336 | M180: 0.8287 | N180: -2.2768 | O180: 0 | P180: 278.4432 | Q180: -765.0048 | R180: 0
G181: 3 | H181: n | I181: 9 | J181: 180 | K181: 3.141592654 | L181: 340 | M181: 0 | N181: -2.423 | O181: 0 | P181: 0 | Q181: -823.82 | R181: 0
I182: 10 | J182: 200 | K182: 3.490658504 | L182: 336 | M182: -0.8287 | N182: -2.2768 | O182: 0 | P182: -278.4432 | Q182: -765.0048 | R182: 0
I183: 11 | J183: 220 | K183: 3.839724354 | L183: 340 | M183: -1.5574 | N183: -1.8561 | O183: 0 | P183: -529.516 | Q183: -631.074 | R183: 0
G184: 4 | H184: p | I184: 12 | J184: 240 | K184: 4.188790205 | L184: 336 | M184: -2.0983 | N184: -1.2115 | O184: 0 | P184: -705.0288 | Q184: -407.064 | R184: 0
I185: 13 | J185: 260 | K185: 4.537856055 | L185: 340 | M185: -2.3861 | N185: -0.4207 | O185: 0 | P185: -811.274 | Q185: -143.038 | R185: 0
I186: 14 | J186: 280 | K186: 4.886921906 | L186: 336 | M186: -2.3861 | N186: 0.4207 | O186: 0 | P186: -801.7296 | Q186: 141.3552 | R186: 0
G187: 5 | H187: n | I187: 15 | J187: 300 | K187: 5.235987756 | L187: 340 | M187: -2.0983 | N187: 1.2115 | O187: 0 | P187: -713.422 | Q187: 411.91 | R187: 0
I188: 16 | J188: 320 | K188: 5.585053606 | L188: 336 | M188: -1.5574 | N188: 1.8561 | O188: 0 | P188: -523.2864 | Q188: 623.6496 | R188: 0
I189: 17 | J189: 340 | K189: 5.934119457 | L189: 340 | M189: -0.8287 | N189: 2.2768 | O189: 0 | P189: -281.758 | Q189: 774.112 | R189: 0
F190: 2 | G190: 0 | H190: n | I190: 0' | J190: 0 | K190: 0 | L190: 340 | M190: 0 | N190: 2.423 | O190: 0.9616 | P190: 0 | Q190: 823.82 | R190: 326.944
I191: 1' | J191: =J190+20 -> 20 | K191: 0.3490658504 | L191: 336 | M191: 0.8287 | N191: 2.2768 | O191: 0.9616 | P191: 278.4432 | Q191: 765.0048 | R191: 323.0976
I192: 2' | J192: =J191+20 -> 40 | K192: 0.6981317008 | L192: 340 | M192: 1.5574 | N192: 1.8561 | O192: 0.9616 | P192: 529.516 | Q192: 631.074 | R192: 326.944
A193: Ne-22 | G193: 1 | H193: p | I193: 3' | J193: =J192+20 -> 60 | K193: 1.047197551 | L193: 336 | M193: 2.0983 | N193: 1.2115 | O193: 0.9616 | P193: 705.0288 | Q193: 407.064 | R193: 323.0976
I194: 4' | J194: =J193+20 -> 80 | K194: 1.396263402 | L194: 340 | M194: 2.3861 | N194: 0.4207 | O194: 0.9616 | P194: 811.274 | Q194: 143.038 | R194: 326.944
I195: 5' | J195: 100 | K195: 1.745329252 | L195: 336 | M195: 2.3861 | N195: -0.4207 | O195: 0.9616 | P195: 801.7296 | Q195: -141.3552 | R195: 323.0976
G196: 2 | H196: n | I196: 6' | J196: 120 | K196: 2.094395102 | L196: 340 | M196: 2.0983 | N196: -1.2115 | O196: 0.9616 | P196: 713.422 | Q196: -411.91 | R196: 326.944
I197: 7' | J197: 140 | K197: 2.443460953 | L197: 336 | M197: 1.5574 | N197: -1.8561 | O197: 0.9616 | P197: 523.2864 | Q197: -623.6496 | R197: 323.0976
I198: 8' | J198: 160 | K198: 2.792526803 | L198: 340 | M198: 0.8287 | N198: -2.2768 | O198: 0.9616 | P198: 281.758 | Q198: -774.112 | R198: 326.944
G199: 3 | H199: p | I199: 9' | J199: 180 | K199: 3.141592654 | L199: 336 | M199: 0 | N199: -2.423 | O199: 0.9616 | P199: 0 | Q199: -814.128 | R199: 323.0976
I200: 10' | J200: 200 | K200: 3.490658504 | L200: 340 | M200: -0.8287 | N200: -2.2768 | O200: 0.9616 | P200: -281.758 | Q200: -774.112 | R200: 326.944
I201: 11' | J201: 220 | K201: 3.839724354 | L201: 336 | M201: -1.5574 | N201: -1.8561 | O201: 0.9616 | P201: -523.2864 | Q201: -623.6496 | R201: 323.0976
G202: 4 | H202: n | I202: 12' | J202: 240 | K202: 4.188790205 | L202: 340 | M202: -2.0983 | N202: -1.2115 | O202: 0.9616 | P202: -713.422 | Q202: -411.91 | R202: 326.944
I203: 13' | J203: 260 | K203: 4.537856055 | L203: 336 | M203: -2.3861 | N203: -0.4207 | O203: 0.9616 | P203: -801.7296 | Q203: -141.3552 | R203: 323.0976
I204: 14' | J204: 280 | K204: 4.886921906 | L204: 340 | M204: -2.3861 | N204: 0.4207 | O204: 0.9616 | P204: -811.274 | Q204: 143.038 | R204: 326.944
G205: 5 | H205: p | I205: 15' | J205: 300 | K205: 5.235987756 | L205: 336 | M205: -2.0983 | N205: 1.2115 | O205: 0.9616 | P205: -705.0288 | Q205: 407.064 | R205: 323.0976
I206: 16' | J206: 320 | K206: 5.585053606 | L206: 340 | M206: -1.5574 | N206: 1.8561 | O206: 0.9616 | P206: -529.516 | Q206: 631.074 | R206: 326.944
I207: 17' | J207: 340 | K207: 5.934119457 | L207: 336 | M207: -0.8287 | N207: 2.2768 | O207: 0.9616 | P207: -278.4432 | Q207: 765.0048 | R207: 323.0976
F208: 3 | G208: 0 | H208: p | I208: 0" | J208: 0 | K208: 0 | L208: 336 | M208: 0 | N208: 2.423 | O208: =2*0.9616 -> 1.9232 | P208: 0 | Q208: 814.128 | R208: 646.1952
I209: 1" | J209: 20 | K209: 0.3490658504 | L209: 340 | M209: 0.8287 | N209: 2.2768 | O209: 1.9232 | P209: 281.758 | Q209: 774.112 | R209: 653.888
I210: 2" | J210: 40 | K210: 0.6981317008 | L210: 336 | M210: 1.5574 | N210: 1.8561 | O210: 1.9232 | P210: 523.2864 | Q210: 623.6496 | R210: 646.1952
G211: 1 | H211: n | I211: 3" | J211: 60 | K211: 1.047197551 | L211: 340 | M211: 2.0983 | N211: 1.2115 | O211: 1.9232 | P211: 713.422 | Q211: 411.91 | R211: 653.888
I212: 4" | J212: 80 | K212: 1.396263402 | L212: 336 | M212: 2.3861 | N212: 0.4207 | O212: 1.9232 | P212: 801.7296 | Q212: 141.3552 | R212: 646.1952
I213: 5" | J213: 100 | K213: 1.745329252 | L213: 340 | M213: 2.3861 | N213: -0.4207 | O213: 1.9232 | P213: 811.274 | Q213: -143.038 | R213: 653.888
G214: 2 | H214: p | I214: 6" | J214: =J213+20 -> 120 | K214: 2.094395102 | L214: 336 | M214: 2.0983 | N214: -1.2115 | O214: 1.9232 | P214: 705.0288 | Q214: -407.064 | R214: 646.1952
I215: 7" | J215: =J214+20 -> 140 | K215: 2.443460953 | L215: 340 | M215: 1.5574 | N215: -1.8561 | O215: 1.9232 | P215: 529.516 | Q215: -631.074 | R215: 653.888
B216: Up Quark | I216: 8" | J216: =J215+20 -> 160 | K216: 2.792526803 | L216: 336 | M216: 0.8287 | N216: -2.2768 | O216: 1.9232 | P216: 278.4432 | Q216: -765.0048 | R216: 646.1952
B217: Down Quark | G217: 3 | H217: n | I217: 9" | J217: 180 | K217: 3.141592654 | L217: 340 | M217: 0 | N217: -2.423 | O217: 1.9232 | P217: 0 | Q217: -823.82 | R217: 653.888
I218: 10" | J218: 200 | K218: 3.490658504 | L218: 336 | M218: -0.8287 | N218: -2.2768 | O218: 1.9232 | P218: -278.4432 | Q218: -765.0048 | R218: 646.1952
I219: 11" | J219: 220 | K219: 3.839724354 | L219: 340 | M219: -1.5574 | N219: -1.8561 | O219: 1.9232 | P219: -529.516 | Q219: -631.074 | R219: 653.888
G220: 4 | H220: p | I220: 12" | J220: 240 | K220: 4.188790205 | L220: 336 | M220: -2.0983 | N220: -1.2115 | O220: 1.9232 | P220: -705.0288 | Q220: -407.064 | R220: 646.1952
I221: 13" | J221: 260 | K221: 4.537856055 | L221: 340 | M221: -2.3861 | N221: -0.4207 | O221: 1.9232 | P221: -811.274 | Q221: -143.038 | R221: 653.888
I222: 14" | J222: 280 | K222: 4.886921906 | L222: 336 | M222: -2.3861 | N222: 0.4207 | O222: 1.9232 | P222: -801.7296 | Q222: 141.3552 | R222: 646.1952
G223: 5 | H223: n | I223: 15" | J223: 300 | K223: 5.235987756 | L223: 340 | M223: -2.0983 | N223: 1.2115 | O223: 1.9232 | P223: -713.422 | Q223: 411.91 | R223: 653.888
I224: 16" | J224: 320 | K224: 5.585053606 | L224: 336 | M224: -1.5574 | N224: 1.8561 | O224: 1.9232 | P224: -523.2864 | Q224: 623.6496 | R224: 646.1952
I225: 17" | J225: 340 | K225: 5.934119457 | L225: 340 | M225: -0.8287 | N225: 2.2768 | O225: 1.9232 | P225: -281.758 | Q225: 774.112 | R225: 653.888
F226: 3C | G226: Center | H226: n | I226: C + 0.84(x) | J226: 90 | K226: =RADIANS(J226) -> 1.570796327 | L226: 340 | M226: 0.84 | N226: 0 | O226: 1.9232 | P226: =L226*M226 -> 285.6 | Q226: =L226*N226 -> 0 | R226: =L226*O226 -> 653.888
... 181 more rows

Sheet Mg-25
D2: ring | E2: nucleon position | F2: type | G2: quark position | H2: angle (deg) | I2: angle (rad) | J2: mass (MeV) | K2: x (fm) | L2: y (fm) | M2: z (fm) | N2: weight x | O2: weight y | P2: weight z
D4: 1 | E4: 0 | F4: p | G4: 0 | H4: 0 | I4: =RADIANS(H4) -> 0 | J4: 336 | K4: =TRUNC(2.423*SIN(I4),4) -> 0 | L4: =TRUNC(2.423*COS(I4),4) -> 2.423 | M4: 0 | N4: =J4*K4 -> 0 | O4: =J4*L4 -> 814.128 | P4: =J4*M4 -> 0
G5: 1 | H5: =H4+20 -> 20 | I5: 0.3490658504 | J5: 340 | K5: 0.8287 | L5: 2.2768 | M5: 0 | N5: 281.758 | O5: 774.112 | P5: 0
G6: 2 | H6: 40 | I6: 0.6981317008 | J6: 336 | K6: 1.5574 | L6: 1.8561 | M6: 0 | N6: 523.2864 | O6: 623.6496 | P6: 0
E7: 1 | F7: n | G7: 3 | H7: 60 | I7: 1.047197551 | J7: 340 | K7: 2.0983 | L7: 1.2115 | M7: 0 | N7: 713.422 | O7: 411.91 | P7: 0
G8: 4 | H8: 80 | I8: 1.396263402 | J8: 336 | K8: 2.3861 | L8: 0.4207 | M8: 0 | N8: 801.7296 | O8: 141.3552 | P8: 0
G9: 5 | H9: 100 | I9: 1.745329252 | J9: 340 | K9: 2.3861 | L9: -0.4207 | M9: 0 | N9: 811.274 | O9: -143.038 | P9: 0
E10: 2 | F10: p | G10: 6 | H10: 120 | I10: 2.094395102 | J10: 336 | K10: 2.0983 | L10: -1.2115 | M10: 0 | N10: 705.0288 | O10: -407.064 | P10: 0
G11: 7 | H11: 140 | I11: 2.443460953 | J11: 340 | K11: 1.5574 | L11: -1.8561 | M11: 0 | N11: 529.516 | O11: -631.074 | P11: 0
G12: 8 | H12: 160 | I12: 2.792526803 | J12: 336 | K12: 0.8287 | L12: -2.2768 | M12: 0 | N12: 278.4432 | O12: -765.0048 | P12: 0
E13: 3 | F13: n | G13: 9 | H13: 180 | I13: 3.141592654 | J13: 340 | K13: 0 | L13: -2.423 | M13: 0 | N13: 0 | O13: -823.82 | P13: 0
G14: 10 | H14: 200 | I14: 3.490658504 | J14: 336 | K14: -0.8287 | L14: -2.2768 | M14: 0 | N14: -278.4432 | O14: -765.0048 | P14: 0
G15: 11 | H15: 220 | I15: 3.839724354 | J15: 340 | K15: -1.5574 | L15: -1.8561 | M15: 0 | N15: -529.516 | O15: -631.074 | P15: 0
E16: 4 | F16: p | G16: 12 | H16: 240 | I16: 4.188790205 | J16: 336 | K16: -2.0983 | L16: -1.2115 | M16: 0 | N16: -705.0288 | O16: -407.064 | P16: 0
G17: 13 | H17: 260 | I17: 4.537856055 | J17: 340 | K17: -2.3861 | L17: -0.4207 | M17: 0 | N17: -811.274 | O17: -143.038 | P17: 0
G18: 14 | H18: 280 | I18: 4.886921906 | J18: 336 | K18: -2.3861 | L18: 0.4207 | M18: 0 | N18: -801.7296 | O18: 141.3552 | P18: 0
E19: 5 | F19: n | G19: 15 | H19: 300 | I19: 5.235987756 | J19: 340 | K19: -2.0983 | L19: 1.2115 | M19: 0 | N19: -713.422 | O19: 411.91 | P19: 0
G20: 16 | H20: 320 | I20: 5.585053606 | J20: 336 | K20: -1.5574 | L20: 1.8561 | M20: 0 | N20: -523.2864 | O20: 623.6496 | P20: 0
G21: 17 | H21: 340 | I21: 5.934119457 | J21: 340 | K21: -0.8287 | L21: 2.2768 | M21: 0 | N21: -281.758 | O21: 774.112 | P21: 0
D22: 2 | E22: 0 | F22: n | G22: 0' | H22: 0 | I22: 0 | J22: 340 | K22: 0 | L22: 2.423 | M22: 0.9616 | N22: 0 | O22: 823.82 | P22: 326.944
G23: 1' | H23: =H22+20 -> 20 | I23: 0.3490658504 | J23: 336 | K23: 0.8287 | L23: 2.2768 | M23: 0.9616 | N23: 278.4432 | O23: 765.0048 | P23: 323.0976
G24: 2' | H24: =H23+20 -> 40 | I24: 0.6981317008 | J24: 340 | K24: 1.5574 | L24: 1.8561 | M24: 0.9616 | N24: 529.516 | O24: 631.074 | P24: 326.944
E25: 1 | F25: p | G25: 3' | H25: =H24+20 -> 60 | I25: 1.047197551 | J25: 336 | K25: 2.0983 | L25: 1.2115 | M25: 0.9616 | N25: 705.0288 | O25: 407.064 | P25: 323.0976
G26: 4' | H26: =H25+20 -> 80 | I26: 1.396263402 | J26: 340 | K26: 2.3861 | L26: 0.4207 | M26: 0.9616 | N26: 811.274 | O26: 143.038 | P26: 326.944
G27: 5' | H27: 100 | I27: 1.745329252 | J27: 336 | K27: 2.3861 | L27: -0.4207 | M27: 0.9616 | N27: 801.7296 | O27: -141.3552 | P27: 323.0976
E28: 2 | F28: n | G28: 6' | H28: 120 | I28: 2.094395102 | J28: 340 | K28: 2.0983 | L28: -1.2115 | M28: 0.9616 | N28: 713.422 | O28: -411.91 | P28: 326.944
G29: 7' | H29: 140 | I29: 2.443460953 | J29: 336 | K29: 1.5574 | L29: -1.8561 | M29: 0.9616 | N29: 523.2864 | O29: -623.6496 | P29: 323.0976
G30: 8' | H30: 160 | I30: 2.792526803 | J30: 340 | K30: 0.8287 | L30: -2.2768 | M30: 0.9616 | N30: 281.758 | O30: -774.112 | P30: 326.944
E31: 3 | F31: p | G31: 9' | H31: 180 | I31: 3.141592654 | J31: 336 | K31: 0 | L31: -2.423 | M31: 0.9616 | N31: 0 | O31: -814.128 | P31: 323.0976
G32: 10' | H32: 200 | I32: 3.490658504 | J32: 340 | K32: -0.8287 | L32: -2.2768 | M32: 0.9616 | N32: -281.758 | O32: -774.112 | P32: 326.944
G33: 11' | H33: 220 | I33: 3.839724354 | J33: 336 | K33: -1.5574 | L33: -1.8561 | M33: 0.9616 | N33: -523.2864 | O33: -623.6496 | P33: 323.0976
E34: 4 | F34: n | G34: 12' | H34: 240 | I34: 4.188790205 | J34: 340 | K34: -2.0983 | L34: -1.2115 | M34: 0.9616 | N34: -713.422 | O34: -411.91 | P34: 326.944
G35: 13' | H35: 260 | I35: 4.537856055 | J35: 336 | K35: -2.3861 | L35: -0.4207 | M35: 0.9616 | N35: -801.7296 | O35: -141.3552 | P35: 323.0976
G36: 14' | H36: 280 | I36: 4.886921906 | J36: 340 | K36: -2.3861 | L36: 0.4207 | M36: 0.9616 | N36: -811.274 | O36: 143.038 | P36: 326.944
E37: 5 | F37: p | G37: 15' | H37: 300 | I37: 5.235987756 | J37: 336 | K37: -2.0983 | L37: 1.2115 | M37: 0.9616 | N37: -705.0288 | O37: 407.064 | P37: 323.0976
G38: 16' | H38: 320 | I38: 5.585053606 | J38: 340 | K38: -1.5574 | L38: 1.8561 | M38: 0.9616 | N38: -529.516 | O38: 631.074 | P38: 326.944
G39: 17' | H39: 340 | I39: 5.934119457 | J39: 336 | K39: -0.8287 | L39: 2.2768 | M39: 0.9616 | N39: -278.4432 | O39: 765.0048 | P39: 323.0976
D40: 3 | E40: 0 | F40: p | G40: 0" | H40: 0 | I40: 0 | J40: 336 | K40: 0 | L40: 2.423 | M40: =2*0.9616 -> 1.9232 | N40: 0 | O40: 814.128 | P40: 646.1952
G41: 1" | H41: 20 | I41: 0.3490658504 | J41: 340 | K41: 0.8287 | L41: 2.2768 | M41: 1.9232 | N41: 281.758 | O41: 774.112 | P41: 653.888
G42: 2" | H42: 40 | I42: 0.6981317008 | J42: 336 | K42: 1.5574 | L42: 1.8561 | M42: 1.9232 | N42: 523.2864 | O42: 623.6496 | P42: 646.1952
E43: 1 | F43: n | G43: 3" | H43: 60 | I43: 1.047197551 | J43: 340 | K43: 2.0983 | L43: 1.2115 | M43: 1.9232 | N43: 713.422 | O43: 411.91 | P43: 653.888
G44: 4" | H44: 80 | I44: 1.396263402 | J44: 336 | K44: 2.3861 | L44: 0.4207 | M44: 1.9232 | N44: 801.7296 | O44: 141.3552 | P44: 646.1952
G45: 5" | H45: 100 | I45: 1.745329252 | J45: 340 | K45: 2.3861 | L45: -0.4207 | M45: 1.9232 | N45: 811.274 | O45: -143.038 | P45: 653.888
E46: 2 | F46: p | G46: 6" | H46: =H45+20 -> 120 | I46: 2.094395102 | J46: 336 | K46: 2.0983 | L46: -1.2115 | M46: 1.9232 | N46: 705.0288 | O46: -407.064 | P46: 646.1952
G47: 7" | H47: =H46+20 -> 140 | I47: 2.443460953 | J47: 340 | K47: 1.5574 | L47: -1.8561 | M47: 1.9232 | N47: 529.516 | O47: -631.074 | P47: 653.888
G48: 8" | H48: =H47+20 -> 160 | I48: 2.792526803 | J48: 336 | K48: 0.8287 | L48: -2.2768 | M48: 1.9232 | N48: 278.4432 | O48: -765.0048 | P48: 646.1952
E49: 3 | F49: n | G49: 9" | H49: 180 | I49: 3.141592654 | J49: 340 | K49: 0 | L49: -2.423 | M49: 1.9232 | N49: 0 | O49: -823.82 | P49: 653.888
G50: 10" | H50: 200 | I50: 3.490658504 | J50: 336 | K50: -0.8287 | L50: -2.2768 | M50: 1.9232 | N50: -278.4432 | O50: -765.0048 | P50: 646.1952
G51: 11" | H51: 220 | I51: 3.839724354 | J51: 340 | K51: -1.5574 | L51: -1.8561 | M51: 1.9232 | N51: -529.516 | O51: -631.074 | P51: 653.888
E52: 4 | F52: p | G52: 12" | H52: 240 | I52: 4.188790205 | J52: 336 | K52: -2.0983 | L52: -1.2115 | M52: 1.9232 | N52: -705.0288 | O52: -407.064 | P52: 646.1952
G53: 13" | H53: 260 | I53: 4.537856055 | J53: 340 | K53: -2.3861 | L53: -0.4207 | M53: 1.9232 | N53: -811.274 | O53: -143.038 | P53: 653.888
G54: 14" | H54: 280 | I54: 4.886921906 | J54: 336 | K54: -2.3861 | L54: 0.4207 | M54: 1.9232 | N54: -801.7296 | O54: 141.3552 | P54: 646.1952
E55: 5 | F55: n | G55: 15" | H55: 300 | I55: 5.235987756 | J55: 340 | K55: -2.0983 | L55: 1.2115 | M55: 1.9232 | N55: -713.422 | O55: 411.91 | P55: 653.888
G56: 16" | H56: 320 | I56: 5.585053606 | J56: 336 | K56: -1.5574 | L56: 1.8561 | M56: 1.9232 | N56: -523.2864 | O56: 623.6496 | P56: 646.1952
G57: 17" | H57: 340 | I57: 5.934119457 | J57: 340 | K57: -0.8287 | L57: 2.2768 | M57: 1.9232 | N57: -281.758 | O57: 774.112 | P57: 653.888
D58: 4 | E58: 0 | F58: n | G58: 0"' | H58: 0 | I58: 0 | J58: 340 | K58: 0 | L58: 2.423 | M58: =3*0.9616 -> 2.8848 | N58: 0 | O58: 823.82 | P58: 980.832
G59: 1"' | H59: =H58+20 -> 20 | I59: 0.3490658504 | J59: 336 | K59: 0.8287 | L59: 2.2768 | M59: =3*0.9616 -> 2.8848 | N59: 278.4432 | O59: 765.0048 | P59: 969.2928
G60: 2"' | H60: =H59+20 -> 40 | I60: 0.6981317008 | J60: 340 | K60: 1.5574 | L60: 1.8561 | M60: 2.8848 | N60: 529.516 | O60: 631.074 | P60: 980.832
E61: 1 | F61: p | G61: 3"' | H61: 60 | I61: 1.047197551 | J61: 336 | K61: 2.0983 | L61: 1.2115 | M61: 2.8848 | N61: 705.0288 | O61: 407.064 | P61: 969.2928
G62: 4"' | H62: 80 | I62: 1.396263402 | J62: 340 | K62: 2.3861 | L62: 0.4207 | M62: 2.8848 | N62: 811.274 | O62: 143.038 | P62: 980.832
G63: 5"' | H63: 100 | I63: 1.745329252 | J63: 336 | K63: 2.3861 | L63: -0.4207 | M63: 2.8848 | N63: 801.7296 | O63: -141.3552 | P63: 969.2928
E64: 2 | F64: n | G64: 6"' | H64: 120 | I64: 2.094395102 | J64: 340 | K64: 2.0983 | L64: -1.2115 | M64: 2.8848 | N64: 713.422 | O64: -411.91 | P64: 980.832
G65: 7"' | H65: 140 | I65: 2.443460953 | J65: 336 | K65: 1.5574 | L65: -1.8561 | M65: 2.8848 | N65: 523.2864 | O65: -623.6496 | P65: 969.2928
G66: 8"' | H66: 160 | I66: 2.792526803 | J66: 340 | K66: 0.8287 | L66: -2.2768 | M66: 2.8848 | N66: 281.758 | O66: -774.112 | P66: 980.832
E67: 3 | F67: p | G67: 9"' | H67: 180 | I67: 3.141592654 | J67: 336 | K67: 0 | L67: -2.423 | M67: 2.8848 | N67: 0 | O67: -814.128 | P67: 969.2928
G68: 10"' | H68: 200 | I68: =RADIANS(H68) -> 3.490658504 | J68: 340 | K68: =TRUNC(2.423*SIN(I68),4) -> -0.8287 | L68: =TRUNC(2.423*COS(I68),4) -> -2.2768 | M68: 2.8848 | N68: =J68*K68 -> -281.758 | O68: =J68*L68 -> -774.112 | P68: =J68*M68 -> 980.832
G69: 11"' | H69: 220 | I69: 3.839724354 | J69: 336 | K69: -1.5574 | L69: -1.8561 | M69: 2.8848 | N69: -523.2864 | O69: -623.6496 | P69: 969.2928
E70: 4 | F70: n | G70: 12"' | H70: 240 | I70: 4.188790205 | J70: 340 | K70: -2.0983 | L70: -1.2115 | M70: 2.8848 | N70: -713.422 | O70: -411.91 | P70: 980.832
G71: 13"' | H71: 260 | I71: 4.537856055 | J71: 336 | K71: -2.3861 | L71: -0.4207 | M71: 2.8848 | N71: -801.7296 | O71: -141.3552 | P71: 969.2928
G72: 14" | H72: 280 | I72: 4.886921906 | J72: 340 | K72: -2.3861 | L72: 0.4207 | M72: 2.8848 | N72: -811.274 | O72: 143.038 | P72: 980.832
E73: 5 | F73: p | G73: 15"' | H73: 300 | I73: 5.235987756 | J73: 336 | K73: -2.0983 | L73: 1.2115 | M73: 2.8848 | N73: -705.0288 | O73: 407.064 | P73: 969.2928
G74: 16"' | H74: 320 | I74: 5.585053606 | J74: 340 | K74: -1.5574 | L74: 1.8561 | M74: 2.8848 | N74: -529.516 | O74: 631.074 | P74: 980.832
G75: 17"' | H75: 340 | I75: 5.934119457 | J75: 336 | K75: -0.8287 | L75: 2.2768 | M75: 2.8848 | N75: -278.4432 | O75: 765.0048 | P75: 969.2928
D76: C | E76: Center | F76: n | G76: C + 0.84(x) | H76: 90 | I76: =RADIANS(H76) -> 1.570796327 | J76: 340 | K76: 0.84 | L76: 0 | M76: 2.8848 | N76: 285.6 | O76: 0 | P76: 980.832
G77: C | H77: c | I77: c | J77: 336 | K77: 0 | L77: 0 | M77: 2.8848 | N77: 0 | O77: 0 | P77: 969.2928
G78: C - 0.84(x) | H78: 270 | I78: =RADIANS(H78) -> 4.71238898 | J78: 340 | K78: -0.84 | L78: 0 | M78: 2.8848 | N78: -285.6 | O78: 0 | P78: 980.832
J79: =SUM(J4:J78) -> 25352 | N79: =SUM(N4:N78) -> 0 | O79: =SUM(O4:O78) -> 1.136868377e-13 | P79: =SUM(P4:P78) -> 38033.2032
M80: Coordinates
M81: x= | N81: =N79/J79 -> 0
M82: y= | N82: =O79/J79 -> 4.484334085e-18
H83: AQM predicted r (precessing)= | I83: =SQRT((K5-K68)^2+(L5-L68)^2+(M5-M68)^2)/2 -> 2.819765893 | M83: z= | N83: =P79/J79 -> 1.500205238 | P83: =M72/2 -> 1.4424
H84: % agreement= | I84: =ABS(I83-N84)/((N84+I83)/2) -> 7.1% | K84: Mg-25 experimental radius= | N84: 3.0284
M85: AQM predicted r (tumbling)= | N85: =SQRT((K4-N81)^2+(L4-N82)^2+(M4-N83)^2) -> 2.849832409 | O85: COM to quark 13 | Q85: 2.853334819
M86: % agreement= | N86: =ABS(N85-N84)/((N84+N85)/2) -> 6.1% | Q86: 2.849832409
N87: =N84-N85 -> 0.1785675914

Sheet Mg-26
E9: ring | F9: nucleon position | G9: type | H9: quark position | I9: angle (deg) | J9: angle (rad) | K9: mass (MeV) | L9: x (fm) | M9: y (fm) | N9: z (fm) | O9: weight x | P9: weight y | Q9: weight z
E11: 1 | F11: 0 | G11: p | H11: 0 | I11: 0 | J11: =RADIANS(I11) -> 0 | K11: 336 | L11: =TRUNC(2.423*SIN(J11),4) -> 0 | M11: =TRUNC(2.423*COS(J11),4) -> 2.423 | N11: 0 | O11: =K11*L11 -> 0 | P11: =K11*M11 -> 814.128 | Q11: =K11*N11 -> 0
H12: 1 | I12: =I11+20 -> 20 | J12: =RADIANS(I12) -> 0.3490658504 | K12: 340 | L12: =TRUNC(2.423*SIN(J12),4) -> 0.8287 | M12: =TRUNC(2.423*COS(J12),4) -> 2.2768 | N12: 0 | O12: =K12*L12 -> 281.758 | P12: =K12*M12 -> 774.112 | Q12: =K12*N12 -> 0
H13: 2 | I13: 40 | J13: 0.6981317008 | K13: 336 | L13: 1.5574 | M13: =TRUNC(2.423*COS(J13),4) -> 1.8561 | N13: 0 | O13: 523.2864 | P13: 623.6496 | Q13: 0
F14: 1 | G14: n | H14: 3 | I14: 60 | J14: 1.047197551 | K14: 340 | L14: 2.0983 | M14: 1.2115 | N14: 0 | O14: 713.422 | P14: 411.91 | Q14: 0
H15: 4 | I15: 80 | J15: 1.396263402 | K15: 336 | L15: 2.3861 | M15: 0.4207 | N15: 0 | O15: 801.7296 | P15: 141.3552 | Q15: 0
H16: 5 | I16: 100 | J16: 1.745329252 | K16: 340 | L16: 2.3861 | M16: -0.4207 | N16: 0 | O16: 811.274 | P16: -143.038 | Q16: 0
F17: 2 | G17: p | H17: 6 | I17: 120 | J17: 2.094395102 | K17: 336 | L17: 2.0983 | M17: -1.2115 | N17: 0 | O17: 705.0288 | P17: -407.064 | Q17: 0
H18: 7 | I18: 140 | J18: 2.443460953 | K18: 340 | L18: 1.5574 | M18: -1.8561 | N18: 0 | O18: 529.516 | P18: -631.074 | Q18: 0
H19: 8 | I19: 160 | J19: 2.792526803 | K19: 336 | L19: 0.8287 | M19: -2.2768 | N19: 0 | O19: 278.4432 | P19: -765.0048 | Q19: 0
F20: 3 | G20: n | H20: 9 | I20: 180 | J20: 3.141592654 | K20: 340 | L20: 0 | M20: -2.423 | N20: 0 | O20: 0 | P20: -823.82 | Q20: 0
H21: 10 | I21: 200 | J21: 3.490658504 | K21: 336 | L21: -0.8287 | M21: -2.2768 | N21: 0 | O21: -278.4432 | P21: -765.0048 | Q21: 0
H22: 11 | I22: 220 | J22: 3.839724354 | K22: 340 | L22: -1.5574 | M22: -1.8561 | N22: 0 | O22: -529.516 | P22: -631.074 | Q22: 0
F23: 4 | G23: p | H23: 12 | I23: 240 | J23: 4.188790205 | K23: 336 | L23: -2.0983 | M23: -1.2115 | N23: 0 | O23: -705.0288 | P23: -407.064 | Q23: 0
H24: 13 | I24: 260 | J24: 4.537856055 | K24: 340 | L24: -2.3861 | M24: -0.4207 | N24: 0 | O24: -811.274 | P24: -143.038 | Q24: 0
H25: 14 | I25: 280 | J25: 4.886921906 | K25: 336 | L25: -2.3861 | M25: 0.4207 | N25: 0 | O25: -801.7296 | P25: 141.3552 | Q25: 0
F26: 5 | G26: n | H26: 15 | I26: 300 | J26: 5.235987756 | K26: 340 | L26: -2.0983 | M26: 1.2115 | N26: 0 | O26: -713.422 | P26: 411.91 | Q26: 0
H27: 16 | I27: 320 | J27: 5.585053606 | K27: 336 | L27: -1.5574 | M27: 1.8561 | N27: 0 | O27: -523.2864 | P27: 623.6496 | Q27: 0
H28: 17 | I28: 340 | J28: 5.934119457 | K28: 340 | L28: -0.8287 | M28: 2.2768 | N28: 0 | O28: -281.758 | P28: 774.112 | Q28: 0
E29: C | F29: Center | G29: n | H29: C + 0.84(x) | I29: 90 | J29: =RADIANS(I29) -> 1.570796327 | K29: 4.67 | L29: 0.84 | M29: 0 | N29: 0 | O29: 3.9228 | P29: 0 | Q29: 0
H30: C | I30: c | J30: c | K30: 2.16 | L30: 0 | M30: 0 | N30: 0 | O30: 0 | P30: 0 | Q30: 0
H31: C - 0.84(x) | I31: 270 | J31: =RADIANS(I31) -> 4.71238898 | K31: 4.67 | L31: -0.84 | M31: 0 | N31: 0 | O31: -3.9228 | P31: 0 | Q31: 0
E32: 2 | F32: 0 | G32: n | H32: 0' | I32: 0 | J32: 0 | K32: 340 | L32: 0 | M32: 2.423 | N32: 0.9616 | O32: 0 | P32: 823.82 | Q32: 326.944
H33: 1' | I33: =I32+20 -> 20 | J33: 0.3490658504 | K33: 336 | L33: 0.8287 | M33: 2.2768 | N33: 0.9616 | O33: 278.4432 | P33: 765.0048 | Q33: 323.0976
H34: 2' | I34: =I33+20 -> 40 | J34: 0.6981317008 | K34: 340 | L34: 1.5574 | M34: 1.8561 | N34: 0.9616 | O34: 529.516 | P34: 631.074 | Q34: 326.944
F35: 1 | G35: p | H35: 3' | I35: =I34+20 -> 60 | J35: 1.047197551 | K35: 336 | L35: 2.0983 | M35: 1.2115 | N35: 0.9616 | O35: 705.0288 | P35: 407.064 | Q35: 323.0976
H36: 4' | I36: =I35+20 -> 80 | J36: 1.396263402 | K36: 340 | L36: 2.3861 | M36: 0.4207 | N36: 0.9616 | O36: 811.274 | P36: 143.038 | Q36: 326.944
H37: 5' | I37: 100 | J37: 1.745329252 | K37: 336 | L37: 2.3861 | M37: -0.4207 | N37: 0.9616 | O37: 801.7296 | P37: -141.3552 | Q37: 323.0976
F38: 2 | G38: n | H38: 6' | I38: 120 | J38: 2.094395102 | K38: 340 | L38: 2.0983 | M38: -1.2115 | N38: 0.9616 | O38: 713.422 | P38: -411.91 | Q38: 326.944
H39: 7' | I39: 140 | J39: 2.443460953 | K39: 336 | L39: 1.5574 | M39: -1.8561 | N39: 0.9616 | O39: 523.2864 | P39: -623.6496 | Q39: 323.0976
H40: 8' | I40: 160 | J40: 2.792526803 | K40: 340 | L40: 0.8287 | M40: -2.2768 | N40: 0.9616 | O40: 281.758 | P40: -774.112 | Q40: 326.944
F41: 3 | G41: p | H41: 9' | I41: 180 | J41: 3.141592654 | K41: 336 | L41: 0 | M41: -2.423 | N41: 0.9616 | O41: 0 | P41: -814.128 | Q41: 323.0976
H42: 10' | I42: 200 | J42: 3.490658504 | K42: 340 | L42: -0.8287 | M42: -2.2768 | N42: 0.9616 | O42: -281.758 | P42: -774.112 | Q42: 326.944
H43: 11' | I43: 220 | J43: 3.839724354 | K43: 336 | L43: -1.5574 | M43: -1.8561 | N43: 0.9616 | O43: -523.2864 | P43: -623.6496 | Q43: 323.0976
F44: 4 | G44: n | H44: 12' | I44: 240 | J44: 4.188790205 | K44: 340 | L44: -2.0983 | M44: -1.2115 | N44: 0.9616 | O44: -713.422 | P44: -411.91 | Q44: 326.944
H45: 13' | I45: 260 | J45: 4.537856055 | K45: 336 | L45: -2.3861 | M45: -0.4207 | N45: 0.9616 | O45: -801.7296 | P45: -141.3552 | Q45: 323.0976
H46: 14' | I46: 280 | J46: 4.886921906 | K46: 340 | L46: -2.3861 | M46: 0.4207 | N46: 0.9616 | O46: -811.274 | P46: 143.038 | Q46: 326.944
F47: 5 | G47: p | H47: 15' | I47: 300 | J47: 5.235987756 | K47: 336 | L47: -2.0983 | M47: 1.2115 | N47: 0.9616 | O47: -705.0288 | P47: 407.064 | Q47: 323.0976
H48: 16' | I48: 320 | J48: 5.585053606 | K48: 340 | L48: -1.5574 | M48: 1.8561 | N48: 0.9616 | O48: -529.516 | P48: 631.074 | Q48: 326.944
H49: 17' | I49: 340 | J49: 5.934119457 | K49: 336 | L49: -0.8287 | M49: 2.2768 | N49: 0.9616 | O49: -278.4432 | P49: 765.0048 | Q49: 323.0976
E50: 3 | F50: 0 | G50: p | H50: 0" | I50: 0 | J50: 0 | K50: 336 | L50: 0 | M50: 2.423 | N50: =2*0.9616 -> 1.9232 | O50: 0 | P50: 814.128 | Q50: 646.1952
H51: 1" | I51: 20 | J51: 0.3490658504 | K51: 340 | L51: 0.8287 | M51: 2.2768 | N51: =2*0.9616 -> 1.9232 | O51: 281.758 | P51: 774.112 | Q51: 653.888
H52: 2" | I52: 40 | J52: 0.6981317008 | K52: 336 | L52: 1.5574 | M52: 1.8561 | N52: 1.9232 | O52: 523.2864 | P52: 623.6496 | Q52: 646.1952
F53: 1 | G53: n | H53: 3" | I53: 60 | J53: 1.047197551 | K53: 340 | L53: 2.0983 | M53: 1.2115 | N53: 1.9232 | O53: 713.422 | P53: 411.91 | Q53: 653.888
H54: 4" | I54: 80 | J54: 1.396263402 | K54: 336 | L54: 2.3861 | M54: 0.4207 | N54: 1.9232 | O54: 801.7296 | P54: 141.3552 | Q54: 646.1952
H55: 5" | I55: 100 | J55: 1.745329252 | K55: 340 | L55: 2.3861 | M55: -0.4207 | N55: 1.9232 | O55: 811.274 | P55: -143.038 | Q55: 653.888
F56: 2 | G56: p | H56: 6" | I56: =I55+20 -> 120 | J56: 2.094395102 | K56: 336 | L56: 2.0983 | M56: -1.2115 | N56: 1.9232 | O56: 705.0288 | P56: -407.064 | Q56: 646.1952
H57: 7" | I57: =I56+20 -> 140 | J57: 2.443460953 | K57: 340 | L57: 1.5574 | M57: -1.8561 | N57: 1.9232 | O57: 529.516 | P57: -631.074 | Q57: 653.888
H58: 8" | I58: =I57+20 -> 160 | J58: 2.792526803 | K58: 336 | L58: 0.8287 | M58: -2.2768 | N58: 1.9232 | O58: 278.4432 | P58: -765.0048 | Q58: 646.1952
F59: 3 | G59: n | H59: 9" | I59: 180 | J59: 3.141592654 | K59: 340 | L59: 0 | M59: -2.423 | N59: 1.9232 | O59: 0 | P59: -823.82 | Q59: 653.888
H60: 10" | I60: 200 | J60: 3.490658504 | K60: 336 | L60: -0.8287 | M60: -2.2768 | N60: 1.9232 | O60: -278.4432 | P60: -765.0048 | Q60: 646.1952
H61: 11" | I61: 220 | J61: 3.839724354 | K61: 340 | L61: -1.5574 | M61: -1.8561 | N61: 1.9232 | O61: -529.516 | P61: -631.074 | Q61: 653.888
F62: 4 | G62: p | H62: 12" | I62: 240 | J62: 4.188790205 | K62: 336 | L62: -2.0983 | M62: -1.2115 | N62: 1.9232 | O62: -705.0288 | P62: -407.064 | Q62: 646.1952
H63: 13" | I63: 260 | J63: 4.537856055 | K63: 340 | L63: -2.3861 | M63: -0.4207 | N63: 1.9232 | O63: -811.274 | P63: -143.038 | Q63: 653.888
H64: 14" | I64: 280 | J64: 4.886921906 | K64: 336 | L64: -2.3861 | M64: 0.4207 | N64: 1.9232 | O64: -801.7296 | P64: 141.3552 | Q64: 646.1952
F65: 5 | G65: n | H65: 15" | I65: 300 | J65: 5.235987756 | K65: 340 | L65: -2.0983 | M65: 1.2115 | N65: 1.9232 | O65: -713.422 | P65: 411.91 | Q65: 653.888
H66: 16" | I66: 320 | J66: 5.585053606 | K66: 336 | L66: -1.5574 | M66: 1.8561 | N66: 1.9232 | O66: -523.2864 | P66: 623.6496 | Q66: 646.1952
H67: 17" | I67: 340 | J67: 5.934119457 | K67: 340 | L67: -0.8287 | M67: 2.2768 | N67: 1.9232 | O67: -281.758 | P67: 774.112 | Q67: 653.888
E68: 4 | F68: 0 | G68: n | H68: 0"' | I68: 0 | J68: 0 | K68: 340 | L68: 0 | M68: 2.423 | N68: =3*0.9616 -> 2.8848 | O68: 0 | P68: 823.82 | Q68: 980.832
H69: 1"' | I69: =I68+20 -> 20 | J69: 0.3490658504 | K69: 336 | L69: =TRUNC(2.423*SIN(J69),4) -> 0.8287 | M69: 2.2768 | N69: =3*0.9616 -> 2.8848 | O69: 278.4432 | P69: 765.0048 | Q69: 969.2928
H70: 2"' | I70: =I69+20 -> 40 | J70: 0.6981317008 | K70: 340 | L70: 1.5574 | M70: 1.8561 | N70: 2.8848 | O70: 529.516 | P70: 631.074 | Q70: 980.832
F71: 1 | G71: p | H71: 3"' | I71: 60 | J71: 1.047197551 | K71: 336 | L71: 2.0983 | M71: 1.2115 | N71: 2.8848 | O71: 705.0288 | P71: 407.064 | Q71: 969.2928
H72: 4"' | I72: 80 | J72: 1.396263402 | K72: 340 | L72: 2.3861 | M72: 0.4207 | N72: 2.8848 | O72: 811.274 | P72: 143.038 | Q72: 980.832
H73: 5"' | I73: 100 | J73: 1.745329252 | K73: 336 | L73: 2.3861 | M73: -0.4207 | N73: 2.8848 | O73: 801.7296 | P73: -141.3552 | Q73: 969.2928
F74: 2 | G74: n | H74: 6"' | I74: 120 | J74: =RADIANS(I74) -> 2.094395102 | K74: 340 | L74: =TRUNC(2.423*SIN(J74),4) -> 2.0983 | M74: =TRUNC(2.423*COS(J74),4) -> -1.2115 | N74: 2.8848 | O74: =K74*L74 -> 713.422 | P74: =K74*M74 -> -411.91 | Q74: =K74*N74 -> 980.832
H75: 7"' | I75: 140 | J75: =RADIANS(I75) -> 2.443460953 | K75: 336 | L75: =TRUNC(2.423*SIN(J75),4) -> 1.5574 | M75: =TRUNC(2.423*COS(J75),4) -> -1.8561 | N75: 2.8848 | O75: =K75*L75 -> 523.2864 | P75: =K75*M75 -> -623.6496 | Q75: =K75*N75 -> 969.2928
H76: 8"' | I76: 160 | J76: =RADIANS(I76) -> 2.792526803 | K76: 340 | L76: =TRUNC(2.423*SIN(J76),4) -> 0.8287 | M76: =TRUNC(2.423*COS(J76),4) -> -2.2768 | N76: 2.8848 | O76: =K76*L76 -> 281.758 | P76: =K76*M76 -> -774.112 | Q76: =K76*N76 -> 980.832
F77: 3 | G77: p | H77: 9' | I77: 180 | J77: =RADIANS(I77) -> 3.141592654 | K77: 336 | L77: =TRUNC(2.423*SIN(J77),4) -> 0 | M77: =TRUNC(2.423*COS(J77),4) -> -2.423 | N77: 2.8848 | O77: =K77*L77 -> 0 | P77: =K77*M77 -> -814.128 | Q77: =K77*N77 -> 969.2928
H78: 10' | I78: 200 | J78: 3.490658504 | K78: 340 | L78: -0.8287 | M78: -2.2768 | N78: 2.8848 | O78: -281.758 | P78: -774.112 | Q78: 980.832
H79: 11' | I79: 220 | J79: 3.839724354 | K79: 336 | L79: -1.5574 | M79: -1.8561 | N79: 2.8848 | O79: -523.2864 | P79: -623.6496 | Q79: 969.2928
F80: 4 | G80: n | H80: 12"' | I80: 240 | J80: 4.188790205 | K80: 340 | L80: =TRUNC(2.423*SIN(J80),4) -> -2.0983 | M80: =TRUNC(2.423*COS(J80),4) -> -1.2115 | N80: 2.8848 | O80: =K80*L80 -> -713.422 | P80: =K80*M80 -> -411.91 | Q80: =K80*N80 -> 980.832
H81: 13"' | I81: 260 | J81: 4.537856055 | K81: 336 | L81: =TRUNC(2.423*SIN(J81),4) -> -2.3861 | M81: =TRUNC(2.423*COS(J81),4) -> -0.4207 | N81: 2.8848 | O81: =K81*L81 -> -801.7296 | P81: =K81*M81 -> -141.3552 | Q81: =K81*N81 -> 969.2928
H82: 14" | I82: 280 | J82: 4.886921906 | K82: 340 | L82: =TRUNC(2.423*SIN(J82),4) -> -2.3861 | M82: =TRUNC(2.423*COS(J82),4) -> 0.4207 | N82: 2.8848 | O82: =K82*L82 -> -811.274 | P82: =K82*M82 -> 143.038 | Q82: =K82*N82 -> 980.832
F83: 5 | G83: p | H83: 15"' | I83: 300 | J83: 5.235987756 | K83: 336 | L83: -2.0983 | M83: 1.2115 | N83: 2.8848 | O83: -705.0288 | P83: 407.064 | Q83: 969.2928
H84: 16"' | I84: 320 | J84: 5.585053606 | K84: 340 | L84: -1.5574 | M84: 1.8561 | N84: 2.8848 | O84: -529.516 | P84: 631.074 | Q84: 980.832
H85: 17"' | I85: 340 | J85: 5.934119457 | K85: 336 | L85: -0.8287 | M85: 2.2768 | N85: 2.8848 | O85: =K85*L85 -> -278.4432 | P85: =K85*M85 -> 765.0048 | Q85: =K85*N85 -> 969.2928
E86: C | F86: Center | G86: n | H86: C + 0.84(x) | I86: 90 | J86: =RADIANS(I86) -> 1.570796327 | K86: 4.67 | L86: 0.84 | M86: 0 | N86: 2.8848 | O86: =K86*L86 -> 3.9228 | P86: =K86*M86 -> 0 | Q86: =K86*N86 -> 13.472016
H87: C | I87: c | J87: c | K87: 2.16 | L87: 0 | M87: 0 | N87: 2.8848 | O87: 0 | P87: 0 | Q87: 6.231168
H88: C - 0.84(x) | I88: 270 | J88: =RADIANS(I88) -> 4.71238898 | K88: 4.67 | L88: -0.84 | M88: 0 | N88: 2.8848 | O88: -3.9228 | P88: 0 | Q88: 13.472016
K89: =SUM(K11:K88) -> 24359 | O89: =SUM(O11:O88) -> -1.705302566e-13 | P89: =SUM(P11:P88) -> 1.136868377e-13 | Q89: =SUM(Q11:Q88) -> 35135.4216
N90: Coordinates
N91: x= | O91: =O89/K89 -> -7.000708427e-18
N92: y= | O92: =P89/K89 -> 4.667138952e-18
I93: AQM predicted r (precessing)= | J93: =SQRT((L21-L68)^2+(M21-M68)^2+(N21-N68)^2)/2 -> 2.788231284 | N93: z= | O93: =Q89/K89 -> 1.4424 | Q93: =N82/2 -> 1.4424
I94: % agreement= | J94: =ABS(J93-O94)/((O94+J93)/2) -> 8.4% | L94: Mg-26 experimental radius= | O94: 3.0337
N95: AQM predicted r (tumbling)= | O95: =SQRT((L21-O91)^2+(M21-O92)^2+(N21-O93)^2) -> 2.819765893 | P95: COM to quark 10 | R95: 2.819765893
N96: % agreement= | O96: =ABS(O95-O94)/((O94+O95)/2) -> 7.3%

Sheet Al-27
K1: Aluminum-27
F9: ring | G9: nucleon position | H9: type | I9: quark position | J9: angle (deg) | K9: angle (rad) | L9: mass (MeV) | M9: x (fm) | N9: y (fm) | O9: z (fm) | P9: weight x | Q9: weight y | R9: weight z
F11: 0 | G11: 0 | H11: p | I11: 0 | J11: 0 | K11: =RADIANS(J11) -> 0 | L11: 336 | M11: =TRUNC(2.423*SIN(K11),4) -> 0 | N11: =TRUNC(2.423*COS(K11),4) -> 2.423 | O11: 0 | P11: =L11*M11 -> 0 | Q11: =L11*N11 -> 814.128 | R11: =L11*O11 -> 0
I12: 1 | J12: =J11+20 -> 20 | K12: 0.3490658504 | L12: 340 | M12: 0.8287 | N12: 2.2768 | O12: 0 | P12: =L12*M12 -> 281.758 | Q12: =L12*N12 -> 774.112 | R12: =L12*O12 -> 0
I13: 2 | J13: 40 | K13: 0.6981317008 | L13: 336 | M13: 1.5574 | N13: 1.8561 | O13: 0 | P13: 523.2864 | Q13: 623.6496 | R13: 0
G14: 1 | H14: n | I14: 3 | J14: 60 | K14: 1.047197551 | L14: 340 | M14: 2.0983 | N14: 1.2115 | O14: 0 | P14: 713.422 | Q14: 411.91 | R14: 0
I15: 4 | J15: 80 | K15: 1.396263402 | L15: 336 | M15: 2.3861 | N15: 0.4207 | O15: 0 | P15: 801.7296 | Q15: 141.3552 | R15: 0
I16: 5 | J16: 100 | K16: 1.745329252 | L16: 340 | M16: 2.3861 | N16: -0.4207 | O16: 0 | P16: 811.274 | Q16: -143.038 | R16: 0
G17: 2 | H17: p | I17: 6 | J17: 120 | K17: 2.094395102 | L17: 336 | M17: 2.0983 | N17: -1.2115 | O17: 0 | P17: 705.0288 | Q17: -407.064 | R17: 0
I18: 7 | J18: 140 | K18: 2.443460953 | L18: 340 | M18: 1.5574 | N18: -1.8561 | O18: 0 | P18: 529.516 | Q18: -631.074 | R18: 0
I19: 8 | J19: 160 | K19: 2.792526803 | L19: 336 | M19: 0.8287 | N19: -2.2768 | O19: 0 | P19: 278.4432 | Q19: -765.0048 | R19: 0
G20: 3 | H20: n | I20: 9 | J20: 180 | K20: 3.141592654 | L20: 340 | M20: 0 | N20: -2.423 | O20: 0 | P20: 0 | Q20: -823.82 | R20: 0
I21: 10 | J21: 200 | K21: 3.490658504 | L21: 336 | M21: -0.8287 | N21: -2.2768 | O21: 0 | P21: -278.4432 | Q21: -765.0048 | R21: 0
I22: 11 | J22: 220 | K22: 3.839724354 | L22: 340 | M22: -1.5574 | N22: -1.8561 | O22: 0 | P22: -529.516 | Q22: -631.074 | R22: 0
G23: 4 | H23: p | I23: 12 | J23: 240 | K23: 4.188790205 | L23: 336 | M23: -2.0983 | N23: -1.2115 | O23: 0 | P23: -705.0288 | Q23: -407.064 | R23: 0
I24: 13 | J24: 260 | K24: 4.537856055 | L24: 340 | M24: -2.3861 | N24: -0.4207 | O24: 0 | P24: -811.274 | Q24: -143.038 | R24: 0
I25: 14 | J25: 280 | K25: 4.886921906 | L25: 336 | M25: -2.3861 | N25: 0.4207 | O25: 0 | P25: -801.7296 | Q25: 141.3552 | R25: 0
G26: 5 | H26: n | I26: 15 | J26: 300 | K26: 5.235987756 | L26: 340 | M26: -2.0983 | N26: 1.2115 | O26: 0 | P26: -713.422 | Q26: 411.91 | R26: 0
I27: 16 | J27: 320 | K27: 5.585053606 | L27: 336 | M27: -1.5574 | N27: 1.8561 | O27: 0 | P27: -523.2864 | Q27: 623.6496 | R27: 0
I28: 17 | J28: 340 | K28: 5.934119457 | L28: 340 | M28: -0.8287 | N28: 2.2768 | O28: 0 | P28: -281.758 | Q28: 774.112 | R28: 0
F29: 1 | G29: 0 | H29: n | I29: 0' | J29: 0 | K29: 0 | L29: 340 | M29: 0 | N29: 2.423 | O29: 0.9616 | P29: 0 | Q29: 823.82 | R29: 326.944
I30: 1' | J30: =J29+20 -> 20 | K30: 0.3490658504 | L30: 336 | M30: 0.8287 | N30: 2.2768 | O30: 0.9616 | P30: 278.4432 | Q30: 765.0048 | R30: 323.0976
I31: 2' | J31: =J30+20 -> 40 | K31: 0.6981317008 | L31: 340 | M31: 1.5574 | N31: 1.8561 | O31: 0.9616 | P31: 529.516 | Q31: 631.074 | R31: 326.944
G32: 1 | H32: p | I32: 3' | J32: =J31+20 -> 60 | K32: 1.047197551 | L32: 336 | M32: 2.0983 | N32: 1.2115 | O32: 0.9616 | P32: 705.0288 | Q32: 407.064 | R32: 323.0976
I33: 4' | J33: =J32+20 -> 80 | K33: 1.396263402 | L33: 340 | M33: 2.3861 | N33: 0.4207 | O33: 0.9616 | P33: 811.274 | Q33: 143.038 | R33: 326.944
I34: 5' | J34: 100 | K34: 1.745329252 | L34: 336 | M34: 2.3861 | N34: -0.4207 | O34: 0.9616 | P34: 801.7296 | Q34: -141.3552 | R34: 323.0976
G35: 2 | H35: n | I35: 6' | J35: 120 | K35: 2.094395102 | L35: 340 | M35: 2.0983 | N35: -1.2115 | O35: 0.9616 | P35: 713.422 | Q35: -411.91 | R35: 326.944
I36: 7' | J36: 140 | K36: 2.443460953 | L36: 336 | M36: 1.5574 | N36: -1.8561 | O36: 0.9616 | P36: 523.2864 | Q36: -623.6496 | R36: 323.0976
I37: 8' | J37: 160 | K37: 2.792526803 | L37: 340 | M37: 0.8287 | N37: -2.2768 | O37: 0.9616 | P37: 281.758 | Q37: -774.112 | R37: 326.944
G38: 3 | H38: p | I38: 9' | J38: 180 | K38: 3.141592654 | L38: 336 | M38: 0 | N38: -2.423 | O38: 0.9616 | P38: 0 | Q38: -814.128 | R38: 323.0976
I39: 10' | J39: 200 | K39: 3.490658504 | L39: 340 | M39: -0.8287 | N39: -2.2768 | O39: 0.9616 | P39: -281.758 | Q39: -774.112 | R39: 326.944
I40: 11' | J40: 220 | K40: 3.839724354 | L40: 336 | M40: -1.5574 | N40: -1.8561 | O40: 0.9616 | P40: -523.2864 | Q40: -623.6496 | R40: 323.0976
G41: 4 | H41: n | I41: 12' | J41: 240 | K41: 4.188790205 | L41: 340 | M41: -2.0983 | N41: -1.2115 | O41: 0.9616 | P41: -713.422 | Q41: -411.91 | R41: 326.944
I42: 13' | J42: 260 | K42: 4.537856055 | L42: 336 | M42: -2.3861 | N42: -0.4207 | O42: 0.9616 | P42: -801.7296 | Q42: -141.3552 | R42: 323.0976
I43: 14' | J43: 280 | K43: 4.886921906 | L43: 340 | M43: -2.3861 | N43: 0.4207 | O43: 0.9616 | P43: -811.274 | Q43: 143.038 | R43: 326.944
G44: 5 | H44: p | I44: 15' | J44: 300 | K44: 5.235987756 | L44: 336 | M44: -2.0983 | N44: 1.2115 | O44: 0.9616 | P44: -705.0288 | Q44: 407.064 | R44: 323.0976
I45: 16' | J45: 320 | K45: 5.585053606 | L45: 340 | M45: -1.5574 | N45: 1.8561 | O45: 0.9616 | P45: -529.516 | Q45: 631.074 | R45: 326.944
I46: 17' | J46: 340 | K46: 5.934119457 | L46: 336 | M46: -0.8287 | N46: 2.2768 | O46: 0.9616 | P46: -278.4432 | Q46: 765.0048 | R46: 323.0976
F47: 2 | G47: 0 | H47: p | I47: 0" | J47: 0 | K47: 0 | L47: 336 | M47: 0 | N47: 2.423 | O47: =2*0.9616 -> 1.9232 | P47: 0 | Q47: 814.128 | R47: 646.1952
I48: 1" | J48: 20 | K48: 0.3490658504 | L48: 340 | M48: 0.8287 | N48: 2.2768 | O48: =2*0.9616 -> 1.9232 | P48: 281.758 | Q48: 774.112 | R48: 653.888
I49: 2" | J49: 40 | K49: 0.6981317008 | L49: 336 | M49: 1.5574 | N49: 1.8561 | O49: 1.9232 | P49: 523.2864 | Q49: 623.6496 | R49: 646.1952
G50: 1 | H50: n | I50: 3" | J50: 60 | K50: 1.047197551 | L50: 340 | M50: 2.0983 | N50: 1.2115 | O50: 1.9232 | P50: 713.422 | Q50: 411.91 | R50: 653.888
I51: 4" | J51: 80 | K51: 1.396263402 | L51: 336 | M51: 2.3861 | N51: 0.4207 | O51: 1.9232 | P51: 801.7296 | Q51: 141.3552 | R51: 646.1952
I52: 5" | J52: 100 | K52: 1.745329252 | L52: 340 | M52: 2.3861 | N52: -0.4207 | O52: 1.9232 | P52: 811.274 | Q52: -143.038 | R52: 653.888
G53: 2 | H53: p | I53: 6" | J53: =J52+20 -> 120 | K53: 2.094395102 | L53: 336 | M53: 2.0983 | N53: -1.2115 | O53: 1.9232 | P53: 705.0288 | Q53: -407.064 | R53: 646.1952
I54: 7" | J54: =J53+20 -> 140 | K54: 2.443460953 | L54: 340 | M54: 1.5574 | N54: -1.8561 | O54: 1.9232 | P54: 529.516 | Q54: -631.074 | R54: 653.888
I55: 8" | J55: =J54+20 -> 160 | K55: 2.792526803 | L55: 336 | M55: 0.8287 | N55: -2.2768 | O55: 1.9232 | P55: 278.4432 | Q55: -765.0048 | R55: 646.1952
G56: 3 | H56: n | I56: 9" | J56: 180 | K56: 3.141592654 | L56: 340 | M56: 0 | N56: -2.423 | O56: 1.9232 | P56: 0 | Q56: -823.82 | R56: 653.888
I57: 10" | J57: 200 | K57: 3.490658504 | L57: 336 | M57: -0.8287 | N57: -2.2768 | O57: 1.9232 | P57: -278.4432 | Q57: -765.0048 | R57: 646.1952
I58: 11" | J58: 220 | K58: 3.839724354 | L58: 340 | M58: -1.5574 | N58: -1.8561 | O58: 1.9232 | P58: -529.516 | Q58: -631.074 | R58: 653.888
G59: 4 | H59: p | I59: 12" | J59: 240 | K59: 4.188790205 | L59: 336 | M59: -2.0983 | N59: -1.2115 | O59: 1.9232 | P59: -705.0288 | Q59: -407.064 | R59: 646.1952
I60: 13" | J60: 260 | K60: 4.537856055 | L60: 340 | M60: -2.3861 | N60: -0.4207 | O60: 1.9232 | P60: -811.274 | Q60: -143.038 | R60: 653.888
I61: 14" | J61: 280 | K61: 4.886921906 | L61: 336 | M61: -2.3861 | N61: 0.4207 | O61: 1.9232 | P61: -801.7296 | Q61: 141.3552 | R61: 646.1952
G62: 5 | H62: n | I62: 15" | J62: 300 | K62: 5.235987756 | L62: 340 | M62: -2.0983 | N62: 1.2115 | O62: 1.9232 | P62: -713.422 | Q62: 411.91 | R62: 653.888
I63: 16" | J63: 320 | K63: 5.585053606 | L63: 336 | M63: -1.5574 | N63: 1.8561 | O63: 1.9232 | P63: -523.2864 | Q63: 623.6496 | R63: 646.1952
I64: 17" | J64: 340 | K64: 5.934119457 | L64: 340 | M64: -0.8287 | N64: 2.2768 | O64: 1.9232 | P64: -281.758 | Q64: 774.112 | R64: 653.888
F65: 3 | G65: 0 | H65: n | I65: 0"' | J65: 0 | K65: 0 | L65: 340 | M65: 0 | N65: 2.423 | O65: =3*0.9616 -> 2.8848 | P65: 0 | Q65: 823.82 | R65: 980.832
I66: 1"' | J66: =J65+20 -> 20 | K66: 0.3490658504 | L66: 336 | M66: =TRUNC(2.423*SIN(K66),4) -> 0.8287 | N66: 2.2768 | O66: =3*0.9616 -> 2.8848 | P66: 278.4432 | Q66: 765.0048 | R66: 969.2928
I67: 2"' | J67: =J66+20 -> 40 | K67: 0.6981317008 | L67: 340 | M67: 1.5574 | N67: 1.8561 | O67: 2.8848 | P67: 529.516 | Q67: 631.074 | R67: 980.832
G68: 1 | H68: p | I68: 3"' | J68: 60 | K68: 1.047197551 | L68: 336 | M68: 2.0983 | N68: 1.2115 | O68: 2.8848 | P68: 705.0288 | Q68: 407.064 | R68: 969.2928
I69: 4"' | J69: 80 | K69: 1.396263402 | L69: 340 | M69: 2.3861 | N69: 0.4207 | O69: 2.8848 | P69: 811.274 | Q69: 143.038 | R69: 980.832
I70: 5"' | J70: 100 | K70: 1.745329252 | L70: 336 | M70: =TRUNC(2.423*SIN(K70),4) -> 2.3861 | N70: -0.4207 | O70: 2.8848 | P70: 801.7296 | Q70: -141.3552 | R70: 969.2928
G71: 2 | H71: n | I71: 6"' | J71: 120 | K71: 2.094395102 | L71: 340 | M71: 2.0983 | N71: -1.2115 | O71: 2.8848 | P71: 713.422 | Q71: -411.91 | R71: 980.832
I72: 7"' | J72: 140 | K72: 2.443460953 | L72: 336 | M72: 1.5574 | N72: -1.8561 | O72: 2.8848 | P72: 523.2864 | Q72: -623.6496 | R72: 969.2928
I73: 8"' | J73: 160 | K73: 2.792526803 | L73: 340 | M73: 0.8287 | N73: -2.2768 | O73: 2.8848 | P73: 281.758 | Q73: -774.112 | R73: 980.832
G74: 3 | H74: p | I74: 9'" | J74: 180 | K74: 3.141592654 | L74: 336 | M74: 0 | N74: -2.423 | O74: 2.8848 | P74: 0 | Q74: -814.128 | R74: 969.2928
I75: 10'" | J75: 200 | K75: =RADIANS(J75) -> 3.490658504 | L75: 340 | M75: -0.8287 | N75: -2.2768 | O75: 2.8848 | P75: -281.758 | Q75: -774.112 | R75: 980.832
I76: 11'" | J76: 220 | K76: 3.839724354 | L76: 336 | M76: -1.5574 | N76: -1.8561 | O76: 2.8848 | P76: -523.2864 | Q76: -623.6496 | R76: 969.2928
G77: 4 | H77: n | I77: 12"' | J77: 240 | K77: 4.188790205 | L77: 340 | M77: =TRUNC(2.423*SIN(K77),4) -> -2.0983 | N77: =TRUNC(2.423*COS(K77),4) -> -1.2115 | O77: 2.8848 | P77: =L77*M77 -> -713.422 | Q77: =L77*N77 -> -411.91 | R77: =L77*O77 -> 980.832
I78: 13"' | J78: 260 | K78: 4.537856055 | L78: 336 | M78: =TRUNC(2.423*SIN(K78),4) -> -2.3861 | N78: =TRUNC(2.423*COS(K78),4) -> -0.4207 | O78: 2.8848 | P78: =L78*M78 -> -801.7296 | Q78: =L78*N78 -> -141.3552 | R78: =L78*O78 -> 969.2928
I79: 14" | J79: 280 | K79: 4.886921906 | L79: 340 | M79: =TRUNC(2.423*SIN(K79),4) -> -2.3861 | N79: =TRUNC(2.423*COS(K79),4) -> 0.4207 | O79: 2.8848 | P79: =L79*M79 -> -811.274 | Q79: =L79*N79 -> 143.038 | R79: =L79*O79 -> 980.832
G80: 5 | H80: p | I80: 15"' | J80: 300 | K80: 5.235987756 | L80: 336 | M80: -2.0983 | N80: 1.2115 | O80: 2.8848 | P80: -705.0288 | Q80: 407.064 | R80: 969.2928
I81: 16"' | J81: 320 | K81: 5.585053606 | L81: 340 | M81: -1.5574 | N81: 1.8561 | O81: 2.8848 | P81: -529.516 | Q81: 631.074 | R81: 980.832
I82: 17"' | J82: 340 | K82: 5.934119457 | L82: 336 | M82: -0.8287 | N82: 2.2768 | O82: 2.8848 | P82: =L82*M82 -> -278.4432 | Q82: =L82*N82 -> 765.0048 | R82: =L82*O82 -> 969.2928
F83: 4 | G83: 0 | H83: p | I83: 0"" | J83: 0 | K83: 0 | L83: 336 | M83: 0 | N83: 2.423 | O83: =4*0.9616 -> 3.8464 | P83: =L83*M83 -> 0 | Q83: =L83*N83 -> 814.128 | R83: =L83*O83 -> 1292.3904
I84: 1"" | J84: =J83+20 -> 20 | K84: 0.3490658504 | L84: 340 | M84: =TRUNC(2.423*SIN(K84),4) -> 0.8287 | N84: =TRUNC(2.423*COS(K84),4) -> 2.2768 | O84: =4*0.9616 -> 3.8464 | P84: 281.758 | Q84: 774.112 | R84: 1307.776
I85: 2"" | J85: =J84+20 -> 40 | K85: 0.6981317008 | L85: 336 | M85: 1.5574 | N85: 1.8561 | O85: 3.8464 | P85: 523.2864 | Q85: 623.6496 | R85: 1292.3904
G86: 1 | H86: n | I86: 3"" | J86: 60 | K86: 1.047197551 | L86: 340 | M86: 2.0983 | N86: 1.2115 | O86: 3.8464 | P86: 713.422 | Q86: 411.91 | R86: 1307.776
I87: 4"" | J87: 80 | K87: 1.396263402 | L87: 336 | M87: 2.3861 | N87: 0.4207 | O87: 3.8464 | P87: 801.7296 | Q87: 141.3552 | R87: 1292.3904
I88: 5"" | J88: 100 | K88: 1.745329252 | L88: 340 | M88: 2.3861 | N88: -0.4207 | O88: 3.8464 | P88: 811.274 | Q88: -143.038 | R88: 1307.776
G89: 5 | H89: n | I89: 15"" | J89: 300 | K89: 5.235987756 | L89: 340 | M89: -2.0983 | N89: 1.2115 | O89: 3.8464 | P89: -713.422 | Q89: 411.91 | R89: 1307.776
I90: 16"" | J90: 320 | K90: 5.585053606 | L90: 336 | M90: -1.5574 | N90: 1.8561 | O90: 3.8464 | P90: -523.2864 | Q90: 623.6496 | R90: 1292.3904
I91: 17"" | J91: 340 | K91: 5.934119457 | L91: 340 | M91: -0.8287 | N91: 2.2768 | O91: 3.8464 | P91: -281.758 | Q91: 774.112 | R91: 1307.776
L92: =SUM(L11:L91) -> 27380 | P92: =SUM(P11:P91) -> 1613.0036 | Q92: =SUM(Q11:Q91) -> 4431.7884 | R92: =SUM(R11:R91) -> 46810.688
O93: Coordinates
O94: x= | P94: =P92/L92 -> 0.0589117458
O95: y= | P95: =Q92/L92 -> 0.1618622498
J96: AQM predicted r (precessing)= | K96: =SQRT((M21-M84)^2+(N21-N84)^2+(O21-O84)^2)/2 -> 3.093422081 | O96: z= | P96: =R92/L92 -> 1.709667202 | R96: =O79/2 -> 1.4424
J97: % agreement= | K97: =K96/P97 -> 101.1% | M97: Al-27 experimental radius= | P97: 3.061
O98: AQM predicted r (tumbling)= | P98: =SQRT((M21-P94)^2+(N21-P95)^2+(O21-P96)^2) -> 3.107714614 | Q98: COM to quark 10
K99: 3.093422081 | O99: % agreement= | P99: =P98/P97 -> 101.53%
R101: 3.107714614

Sheet Si-28
E9: ring | F9: nucleon position | G9: type | H9: quark position | I9: angle (deg) | J9: angle (rad) | K9: mass (MeV) | L9: x (fm) | M9: y (fm) | N9: z (fm) | O9: weight x | P9: weight y | Q9: weight z
E11: 1 | F11: 0 | G11: p | H11: 0 | I11: 0 | J11: =RADIANS(I11) -> 0 | K11: 336 | L11: =TRUNC(2.423*SIN(J11),4) -> 0 | M11: =TRUNC(2.423*COS(J11),4) -> 2.423 | N11: 0 | O11: =K11*L11 -> 0 | P11: =K11*M11 -> 814.128 | Q11: =K11*N11 -> 0
H12: 1 | I12: =I11+20 -> 20 | J12: 0.3490658504 | K12: 340 | L12: 0.8287 | M12: 2.2768 | N12: 0 | O12: =K12*L12 -> 281.758 | P12: =K12*M12 -> 774.112 | Q12: =K12*N12 -> 0
H13: 2 | I13: 40 | J13: 0.6981317008 | K13: 336 | L13: 1.5574 | M13: 1.8561 | N13: 0 | O13: 523.2864 | P13: 623.6496 | Q13: 0
F14: 1 | G14: n | H14: 3 | I14: 60 | J14: 1.047197551 | K14: 340 | L14: 2.0983 | M14: 1.2115 | N14: 0 | O14: 713.422 | P14: 411.91 | Q14: 0
H15: 4 | I15: 80 | J15: 1.396263402 | K15: 336 | L15: 2.3861 | M15: 0.4207 | N15: 0 | O15: 801.7296 | P15: 141.3552 | Q15: 0
H16: 5 | I16: 100 | J16: 1.745329252 | K16: 340 | L16: 2.3861 | M16: -0.4207 | N16: 0 | O16: 811.274 | P16: -143.038 | Q16: 0
F17: 2 | G17: p | H17: 6 | I17: 120 | J17: 2.094395102 | K17: 336 | L17: 2.0983 | M17: -1.2115 | N17: 0 | O17: 705.0288 | P17: -407.064 | Q17: 0
H18: 7 | I18: 140 | J18: 2.443460953 | K18: 340 | L18: 1.5574 | M18: -1.8561 | N18: 0 | O18: 529.516 | P18: -631.074 | Q18: 0
H19: 8 | I19: 160 | J19: 2.792526803 | K19: 336 | L19: 0.8287 | M19: -2.2768 | N19: 0 | O19: 278.4432 | P19: -765.0048 | Q19: 0
F20: 3 | G20: n | H20: 9 | I20: 180 | J20: 3.141592654 | K20: 340 | L20: 0 | M20: -2.423 | N20: 0 | O20: 0 | P20: -823.82 | Q20: 0
H21: 10 | I21: 200 | J21: 3.490658504 | K21: 336 | L21: -0.8287 | M21: -2.2768 | N21: 0 | O21: -278.4432 | P21: -765.0048 | Q21: 0
H22: 11 | I22: 220 | J22: 3.839724354 | K22: 340 | L22: -1.5574 | M22: -1.8561 | N22: 0 | O22: -529.516 | P22: -631.074 | Q22: 0
F23: 4 | G23: p | H23: 12 | I23: 240 | J23: 4.188790205 | K23: 336 | L23: -2.0983 | M23: -1.2115 | N23: 0 | O23: -705.0288 | P23: -407.064 | Q23: 0
H24: 13 | I24: 260 | J24: 4.537856055 | K24: 340 | L24: -2.3861 | M24: -0.4207 | N24: 0 | O24: -811.274 | P24: -143.038 | Q24: 0
H25: 14 | I25: 280 | J25: 4.886921906 | K25: 336 | L25: -2.3861 | M25: 0.4207 | N25: 0 | O25: -801.7296 | P25: 141.3552 | Q25: 0
F26: 5 | G26: n | H26: 15 | I26: 300 | J26: 5.235987756 | K26: 340 | L26: -2.0983 | M26: 1.2115 | N26: 0 | O26: -713.422 | P26: 411.91 | Q26: 0
H27: 16 | I27: 320 | J27: 5.585053606 | K27: 336 | L27: -1.5574 | M27: 1.8561 | N27: 0 | O27: -523.2864 | P27: 623.6496 | Q27: 0
H28: 17 | I28: 340 | J28: 5.934119457 | K28: 340 | L28: -0.8287 | M28: 2.2768 | N28: 0 | O28: -281.758 | P28: 774.112 | Q28: 0
E29: 2 | F29: 0 | G29: n | H29: 0' | I29: 0 | J29: 0 | K29: 340 | L29: 0 | M29: 2.423 | N29: 0.9616 | O29: 0 | P29: 823.82 | Q29: 326.944
H30: 1' | I30: =I29+20 -> 20 | J30: 0.3490658504 | K30: 336 | L30: 0.8287 | M30: 2.2768 | N30: 0.9616 | O30: 278.4432 | P30: 765.0048 | Q30: 323.0976
H31: 2' | I31: =I30+20 -> 40 | J31: 0.6981317008 | K31: 340 | L31: 1.5574 | M31: 1.8561 | N31: 0.9616 | O31: 529.516 | P31: 631.074 | Q31: 326.944
F32: 1 | G32: p | H32: 3' | I32: =I31+20 -> 60 | J32: 1.047197551 | K32: 336 | L32: 2.0983 | M32: 1.2115 | N32: 0.9616 | O32: 705.0288 | P32: 407.064 | Q32: 323.0976
H33: 4' | I33: =I32+20 -> 80 | J33: 1.396263402 | K33: 340 | L33: 2.3861 | M33: 0.4207 | N33: 0.9616 | O33: 811.274 | P33: 143.038 | Q33: 326.944
H34: 5' | I34: 100 | J34: 1.745329252 | K34: 336 | L34: 2.3861 | M34: -0.4207 | N34: 0.9616 | O34: 801.7296 | P34: -141.3552 | Q34: 323.0976
F35: 2 | G35: n | H35: 6' | I35: 120 | J35: 2.094395102 | K35: 340 | L35: 2.0983 | M35: -1.2115 | N35: 0.9616 | O35: 713.422 | P35: -411.91 | Q35: 326.944
H36: 7' | I36: 140 | J36: 2.443460953 | K36: 336 | L36: 1.5574 | M36: -1.8561 | N36: 0.9616 | O36: 523.2864 | P36: -623.6496 | Q36: 323.0976
H37: 8' | I37: 160 | J37: 2.792526803 | K37: 340 | L37: 0.8287 | M37: -2.2768 | N37: 0.9616 | O37: 281.758 | P37: -774.112 | Q37: 326.944
F38: 3 | G38: p | H38: 9' | I38: 180 | J38: 3.141592654 | K38: 336 | L38: 0 | M38: -2.423 | N38: 0.9616 | O38: 0 | P38: -814.128 | Q38: 323.0976
H39: 10' | I39: 200 | J39: 3.490658504 | K39: 340 | L39: -0.8287 | M39: -2.2768 | N39: 0.9616 | O39: -281.758 | P39: -774.112 | Q39: 326.944
H40: 11' | I40: 220 | J40: 3.839724354 | K40: 336 | L40: -1.5574 | M40: -1.8561 | N40: 0.9616 | O40: -523.2864 | P40: -623.6496 | Q40: 323.0976
F41: 4 | G41: n | H41: 12' | I41: 240 | J41: 4.188790205 | K41: 340 | L41: -2.0983 | M41: -1.2115 | N41: 0.9616 | O41: -713.422 | P41: -411.91 | Q41: 326.944
H42: 13' | I42: 260 | J42: 4.537856055 | K42: 336 | L42: -2.3861 | M42: -0.4207 | N42: 0.9616 | O42: -801.7296 | P42: -141.3552 | Q42: 323.0976
H43: 14' | I43: 280 | J43: 4.886921906 | K43: 340 | L43: -2.3861 | M43: 0.4207 | N43: 0.9616 | O43: -811.274 | P43: 143.038 | Q43: 326.944
F44: 5 | G44: p | H44: 15' | I44: 300 | J44: 5.235987756 | K44: 336 | L44: -2.0983 | M44: 1.2115 | N44: 0.9616 | O44: -705.0288 | P44: 407.064 | Q44: 323.0976
H45: 16' | I45: 320 | J45: 5.585053606 | K45: 340 | L45: -1.5574 | M45: 1.8561 | N45: 0.9616 | O45: -529.516 | P45: 631.074 | Q45: 326.944
H46: 17' | I46: 340 | J46: 5.934119457 | K46: 336 | L46: -0.8287 | M46: 2.2768 | N46: 0.9616 | O46: -278.4432 | P46: 765.0048 | Q46: 323.0976
E47: 3 | F47: 0 | G47: p | H47: 0" | I47: 0 | J47: 0 | K47: 336 | L47: 0 | M47: 2.423 | N47: =2*0.9616 -> 1.9232 | O47: 0 | P47: 814.128 | Q47: 646.1952
H48: 1" | I48: 20 | J48: 0.3490658504 | K48: 340 | L48: 0.8287 | M48: 2.2768 | N48: =2*0.9616 -> 1.9232 | O48: 281.758 | P48: 774.112 | Q48: 653.888
H49: 2" | I49: 40 | J49: 0.6981317008 | K49: 336 | L49: 1.5574 | M49: 1.8561 | N49: 1.9232 | O49: 523.2864 | P49: 623.6496 | Q49: 646.1952
F50: 1 | G50: n | H50: 3" | I50: 60 | J50: 1.047197551 | K50: 340 | L50: 2.0983 | M50: 1.2115 | N50: 1.9232 | O50: 713.422 | P50: 411.91 | Q50: 653.888
H51: 4" | I51: 80 | J51: 1.396263402 | K51: 336 | L51: 2.3861 | M51: 0.4207 | N51: 1.9232 | O51: 801.7296 | P51: 141.3552 | Q51: 646.1952
H52: 5" | I52: 100 | J52: 1.745329252 | K52: 340 | L52: 2.3861 | M52: -0.4207 | N52: 1.9232 | O52: 811.274 | P52: -143.038 | Q52: 653.888
F53: 2 | G53: p | H53: 6" | I53: =I52+20 -> 120 | J53: 2.094395102 | K53: 336 | L53: 2.0983 | M53: -1.2115 | N53: 1.9232 | O53: 705.0288 | P53: -407.064 | Q53: 646.1952
H54: 7" | I54: =I53+20 -> 140 | J54: 2.443460953 | K54: 340 | L54: 1.5574 | M54: -1.8561 | N54: 1.9232 | O54: 529.516 | P54: -631.074 | Q54: 653.888
H55: 8" | I55: =I54+20 -> 160 | J55: 2.792526803 | K55: 336 | L55: 0.8287 | M55: -2.2768 | N55: 1.9232 | O55: 278.4432 | P55: -765.0048 | Q55: 646.1952
F56: 3 | G56: n | H56: 9" | I56: 180 | J56: 3.141592654 | K56: 340 | L56: 0 | M56: -2.423 | N56: 1.9232 | O56: 0 | P56: -823.82 | Q56: 653.888
H57: 10" | I57: 200 | J57: 3.490658504 | K57: 336 | L57: -0.8287 | M57: -2.2768 | N57: 1.9232 | O57: -278.4432 | P57: -765.0048 | Q57: 646.1952
H58: 11" | I58: 220 | J58: 3.839724354 | K58: 340 | L58: -1.5574 | M58: -1.8561 | N58: 1.9232 | O58: -529.516 | P58: -631.074 | Q58: 653.888
F59: 4 | G59: p | H59: 12" | I59: 240 | J59: 4.188790205 | K59: 336 | L59: -2.0983 | M59: -1.2115 | N59: 1.9232 | O59: -705.0288 | P59: -407.064 | Q59: 646.1952
H60: 13" | I60: 260 | J60: 4.537856055 | K60: 340 | L60: -2.3861 | M60: -0.4207 | N60: 1.9232 | O60: -811.274 | P60: -143.038 | Q60: 653.888
H61: 14" | I61: 280 | J61: 4.886921906 | K61: 336 | L61: -2.3861 | M61: 0.4207 | N61: 1.9232 | O61: -801.7296 | P61: 141.3552 | Q61: 646.1952
F62: 5 | G62: n | H62: 15" | I62: 300 | J62: 5.235987756 | K62: 340 | L62: -2.0983 | M62: 1.2115 | N62: 1.9232 | O62: -713.422 | P62: 411.91 | Q62: 653.888
H63: 16" | I63: 320 | J63: 5.585053606 | K63: 336 | L63: -1.5574 | M63: 1.8561 | N63: 1.9232 | O63: -523.2864 | P63: 623.6496 | Q63: 646.1952
H64: 17" | I64: 340 | J64: 5.934119457 | K64: 340 | L64: -0.8287 | M64: 2.2768 | N64: 1.9232 | O64: -281.758 | P64: 774.112 | Q64: 653.888
E65: 4 | F65: 0 | G65: n | H65: 0"' | I65: 0 | J65: 0 | K65: 340 | L65: 0 | M65: 2.423 | N65: =3*0.9616 -> 2.8848 | O65: 0 | P65: 823.82 | Q65: 980.832
H66: 1"' | I66: =I65+20 -> 20 | J66: 0.3490658504 | K66: 336 | L66: =TRUNC(2.423*SIN(J66),4) -> 0.8287 | M66: 2.2768 | N66: =3*0.9616 -> 2.8848 | O66: 278.4432 | P66: 765.0048 | Q66: 969.2928
H67: 2"' | I67: =I66+20 -> 40 | J67: 0.6981317008 | K67: 340 | L67: 1.5574 | M67: 1.8561 | N67: 2.8848 | O67: 529.516 | P67: 631.074 | Q67: 980.832
F68: 1 | G68: p | H68: 3"' | I68: 60 | J68: 1.047197551 | K68: 336 | L68: 2.0983 | M68: 1.2115 | N68: 2.8848 | O68: 705.0288 | P68: 407.064 | Q68: 969.2928
H69: 4"' | I69: 80 | J69: 1.396263402 | K69: 340 | L69: 2.3861 | M69: 0.4207 | N69: 2.8848 | O69: 811.274 | P69: 143.038 | Q69: 980.832
H70: 5"' | I70: 100 | J70: 1.745329252 | K70: 336 | L70: 2.3861 | M70: -0.4207 | N70: 2.8848 | O70: 801.7296 | P70: -141.3552 | Q70: 969.2928
F71: 2 | G71: n | H71: 6"' | I71: 120 | J71: 2.094395102 | K71: 340 | L71: 2.0983 | M71: -1.2115 | N71: 2.8848 | O71: 713.422 | P71: -411.91 | Q71: 980.832
H72: 7"' | I72: 140 | J72: 2.443460953 | K72: 336 | L72: 1.5574 | M72: -1.8561 | N72: 2.8848 | O72: 523.2864 | P72: -623.6496 | Q72: 969.2928
H73: 8"' | I73: 160 | J73: 2.792526803 | K73: 340 | L73: 0.8287 | M73: -2.2768 | N73: 2.8848 | O73: 281.758 | P73: -774.112 | Q73: 980.832
F74: 3 | G74: p | H74: 9'" | I74: 180 | J74: 3.141592654 | K74: 336 | L74: 0 | M74: -2.423 | N74: 2.8848 | O74: 0 | P74: -814.128 | Q74: 969.2928
H75: 10'" | I75: 200 | J75: =RADIANS(I75) -> 3.490658504 | K75: 340 | L75: -0.8287 | M75: -2.2768 | N75: 2.8848 | O75: -281.758 | P75: -774.112 | Q75: 980.832
H76: 11'" | I76: 220 | J76: 3.839724354 | K76: 336 | L76: -1.5574 | M76: -1.8561 | N76: 2.8848 | O76: -523.2864 | P76: -623.6496 | Q76: 969.2928
F77: 4 | G77: n | H77: 12"' | I77: 240 | J77: 4.188790205 | K77: 340 | L77: =TRUNC(2.423*SIN(J77),4) -> -2.0983 | M77: =TRUNC(2.423*COS(J77),4) -> -1.2115 | N77: 2.8848 | O77: =K77*L77 -> -713.422 | P77: =K77*M77 -> -411.91 | Q77: =K77*N77 -> 980.832
H78: 13"' | I78: 260 | J78: 4.537856055 | K78: 336 | L78: =TRUNC(2.423*SIN(J78),4) -> -2.3861 | M78: =TRUNC(2.423*COS(J78),4) -> -0.4207 | N78: 2.8848 | O78: =K78*L78 -> -801.7296 | P78: =K78*M78 -> -141.3552 | Q78: =K78*N78 -> 969.2928
H79: 14" | I79: 280 | J79: 4.886921906 | K79: 340 | L79: =TRUNC(2.423*SIN(J79),4) -> -2.3861 | M79: =TRUNC(2.423*COS(J79),4) -> 0.4207 | N79: 2.8848 | O79: =K79*L79 -> -811.274 | P79: =K79*M79 -> 143.038 | Q79: =K79*N79 -> 980.832
F80: 5 | G80: p | H80: 15"' | I80: 300 | J80: 5.235987756 | K80: 336 | L80: -2.0983 | M80: 1.2115 | N80: 2.8848 | O80: -705.0288 | P80: 407.064 | Q80: 969.2928
H81: 16"' | I81: 320 | J81: 5.585053606 | K81: 340 | L81: -1.5574 | M81: 1.8561 | N81: 2.8848 | O81: -529.516 | P81: 631.074 | Q81: 980.832
H82: 17"' | I82: 340 | J82: 5.934119457 | K82: 336 | L82: -0.8287 | M82: 2.2768 | N82: 2.8848 | O82: =K82*L82 -> -278.4432 | P82: =K82*M82 -> 765.0048 | Q82: =K82*N82 -> 969.2928
E83: 5 | F83: 0 | G83: p | H83: 0"" | I83: 0 | J83: 0 | K83: 336 | L83: 0 | M83: 2.423 | N83: =4*0.9616 -> 3.8464 | O83: =K83*L83 -> 0 | P83: =K83*M83 -> 814.128 | Q83: =K83*N83 -> 1292.3904
H84: 1"" | I84: =I83+20 -> 20 | J84: 0.3490658504 | K84: 340 | L84: =TRUNC(2.423*SIN(J84),4) -> 0.8287 | M84: =TRUNC(2.423*COS(J84),4) -> 2.2768 | N84: =4*0.9616 -> 3.8464 | O84: 281.758 | P84: 774.112 | Q84: 1307.776
H85: 2"" | I85: =I84+20 -> 40 | J85: 0.6981317008 | K85: 336 | L85: 1.5574 | M85: 1.8561 | N85: 3.8464 | O85: 523.2864 | P85: 623.6496 | Q85: 1292.3904
F86: 1 | G86: n | H86: 3"" | I86: 60 | J86: 1.047197551 | K86: 340 | L86: 2.0983 | M86: 1.2115 | N86: 3.8464 | O86: 713.422 | P86: 411.91 | Q86: 1307.776
H87: 4"" | I87: 80 | J87: 1.396263402 | K87: 336 | L87: 2.3861 | M87: 0.4207 | N87: 3.8464 | O87: 801.7296 | P87: 141.3552 | Q87: 1292.3904
H88: 5"" | I88: 100 | J88: 1.745329252 | K88: 340 | L88: 2.3861 | M88: -0.4207 | N88: 3.8464 | O88: 811.274 | P88: -143.038 | Q88: 1307.776
F89: 2 | G89: p | H89: 6"" | I89: =I88+20 -> 120 | J89: 2.094395102 | K89: 336 | L89: 2.0983 | M89: -1.2115 | N89: 3.8464 | O89: 705.0288 | P89: -407.064 | Q89: 1292.3904
H90: 7"" | I90: =I89+20 -> 140 | J90: 2.443460953 | K90: 340 | L90: 1.5574 | M90: -1.8561 | N90: 3.8464 | O90: 529.516 | P90: -631.074 | Q90: 1307.776
H91: 8"" | I91: =I90+20 -> 160 | J91: 2.792526803 | K91: 336 | L91: 0.8287 | M91: -2.2768 | N91: 3.8464 | O91: 278.4432 | P91: -765.0048 | Q91: 1292.3904
F92: 3 | G92: n | H92: 15"" | I92: 300 | J92: 5.235987756 | K92: 340 | L92: -2.0983 | M92: 1.2115 | N92: 3.8464 | O92: -713.422 | P92: 411.91 | Q92: 1307.776
H93: 16"" | I93: 320 | J93: 5.585053606 | K93: 336 | L93: -1.5574 | M93: 1.8561 | N93: 3.8464 | O93: -523.2864 | P93: 623.6496 | Q93: 1292.3904
H94: 17"" | I94: 340 | J94: 5.934119457 | K94: 340 | L94: -0.8287 | M94: 2.2768 | N94: 3.8464 | O94: -281.758 | P94: 774.112 | Q94: 1307.776
K95: =SUM(K11:K94) -> 28392 | O95: =SUM(O11:O94) -> 3125.9916 | P95: =SUM(P11:P94) -> 2628.6456 | Q95: =SUM(Q11:Q94) -> 50703.2448
K96: =28*3 -> 84 | N96: Coordinates
K97: =84*338 -> 28392 | N97: x= | O97: =O95/K95 -> 0.1101011412
N98: y= | O98: =P95/K95 -> 0.09258402367
I99: AQM predicted r (precessing)= | J99: =SQRT((L23-L86)^2+(M23-M86)^2+(N23-N86)^2)/2 -> 3.093427449 | N99: z= | O99: =Q95/K95 -> 1.785828571 | Q99: =N79/2 -> 1.4424
I100: % agreement= | J100: =ABS(J99-O100)/((O100+J99)/2) -> 0.9% | L100: Si-28 experimental radius= | O100: 3.1224
N101: AQM predicted r (tumbling)= | O101: =SQRT((L23-O97)^2+(M23-O98)^2+(N23-O99)^2) -> 3.125196702 | P101: COM to quark 10
N102: % agreement= | O102: =ABS(O101-O100)/((O100+O101)/2) -> 0.1%

Sheet Si-29
E9: ring | F9: nucleon position | G9: type | H9: quark position | I9: angle (deg) | J9: angle (rad) | K9: mass (MeV) | L9: x (fm) | M9: y (fm) | N9: z (fm) | O9: weight x | P9: weight y | Q9: weight z
E11: 1 | F11: 0 | G11: p | H11: 0 | I11: 0 | J11: =RADIANS(I11) -> 0 | K11: 336 | L11: =TRUNC(2.423*SIN(J11),4) -> 0 | M11: =TRUNC(2.423*COS(J11),4) -> 2.423 | N11: 0 | O11: =K11*L11 -> 0 | P11: =K11*M11 -> 814.128 | Q11: =K11*N11 -> 0
H12: 1 | I12: =I11+20 -> 20 | J12: 0.3490658504 | K12: 340 | L12: 0.8287 | M12: 2.2768 | N12: 0 | O12: =K12*L12 -> 281.758 | P12: =K12*M12 -> 774.112 | Q12: =K12*N12 -> 0
H13: 2 | I13: 40 | J13: 0.6981317008 | K13: 336 | L13: 1.5574 | M13: 1.8561 | N13: 0 | O13: 523.2864 | P13: 623.6496 | Q13: 0
F14: 1 | G14: n | H14: 3 | I14: 60 | J14: 1.047197551 | K14: 340 | L14: 2.0983 | M14: 1.2115 | N14: 0 | O14: 713.422 | P14: 411.91 | Q14: 0
H15: 4 | I15: 80 | J15: 1.396263402 | K15: 336 | L15: 2.3861 | M15: 0.4207 | N15: 0 | O15: 801.7296 | P15: 141.3552 | Q15: 0
H16: 5 | I16: 100 | J16: 1.745329252 | K16: 340 | L16: 2.3861 | M16: -0.4207 | N16: 0 | O16: 811.274 | P16: -143.038 | Q16: 0
F17: 2 | G17: p | H17: 6 | I17: 120 | J17: 2.094395102 | K17: 336 | L17: 2.0983 | M17: -1.2115 | N17: 0 | O17: 705.0288 | P17: -407.064 | Q17: 0
H18: 7 | I18: 140 | J18: 2.443460953 | K18: 340 | L18: 1.5574 | M18: -1.8561 | N18: 0 | O18: 529.516 | P18: -631.074 | Q18: 0
H19: 8 | I19: 160 | J19: 2.792526803 | K19: 336 | L19: 0.8287 | M19: -2.2768 | N19: 0 | O19: 278.4432 | P19: -765.0048 | Q19: 0
F20: 3 | G20: n | H20: 9 | I20: 180 | J20: 3.141592654 | K20: 340 | L20: 0 | M20: -2.423 | N20: 0 | O20: 0 | P20: -823.82 | Q20: 0
H21: 10 | I21: 200 | J21: 3.490658504 | K21: 336 | L21: -0.8287 | M21: -2.2768 | N21: 0 | O21: -278.4432 | P21: -765.0048 | Q21: 0
H22: 11 | I22: 220 | J22: 3.839724354 | K22: 340 | L22: -1.5574 | M22: -1.8561 | N22: 0 | O22: -529.516 | P22: -631.074 | Q22: 0
F23: 4 | G23: p | H23: 12 | I23: 240 | J23: 4.188790205 | K23: 336 | L23: -2.0983 | M23: -1.2115 | N23: 0 | O23: -705.0288 | P23: -407.064 | Q23: 0
H24: 13 | I24: 260 | J24: 4.537856055 | K24: 340 | L24: -2.3861 | M24: -0.4207 | N24: 0 | O24: -811.274 | P24: -143.038 | Q24: 0
H25: 14 | I25: 280 | J25: 4.886921906 | K25: 336 | L25: -2.3861 | M25: 0.4207 | N25: 0 | O25: -801.7296 | P25: 141.3552 | Q25: 0
F26: 5 | G26: n | H26: 15 | I26: 300 | J26: 5.235987756 | K26: 340 | L26: -2.0983 | M26: 1.2115 | N26: 0 | O26: -713.422 | P26: 411.91 | Q26: 0
H27: 16 | I27: 320 | J27: 5.585053606 | K27: 336 | L27: -1.5574 | M27: 1.8561 | N27: 0 | O27: -523.2864 | P27: 623.6496 | Q27: 0
H28: 17 | I28: 340 | J28: 5.934119457 | K28: 340 | L28: -0.8287 | M28: 2.2768 | N28: 0 | O28: -281.758 | P28: 774.112 | Q28: 0
E29: 2 | F29: 0 | G29: n | H29: 0' | I29: 0 | J29: 0 | K29: 340 | L29: 0 | M29: 2.423 | N29: 0.9616 | O29: 0 | P29: 823.82 | Q29: 326.944
H30: 1' | I30: =I29+20 -> 20 | J30: 0.3490658504 | K30: 336 | L30: 0.8287 | M30: 2.2768 | N30: 0.9616 | O30: 278.4432 | P30: 765.0048 | Q30: 323.0976
H31: 2' | I31: =I30+20 -> 40 | J31: 0.6981317008 | K31: 340 | L31: 1.5574 | M31: 1.8561 | N31: 0.9616 | O31: 529.516 | P31: 631.074 | Q31: 326.944
F32: 1 | G32: p | H32: 3' | I32: =I31+20 -> 60 | J32: 1.047197551 | K32: 336 | L32: 2.0983 | M32: 1.2115 | N32: 0.9616 | O32: 705.0288 | P32: 407.064 | Q32: 323.0976
H33: 4' | I33: =I32+20 -> 80 | J33: 1.396263402 | K33: 340 | L33: 2.3861 | M33: 0.4207 | N33: 0.9616 | O33: 811.274 | P33: 143.038 | Q33: 326.944
H34: 5' | I34: 100 | J34: 1.745329252 | K34: 336 | L34: 2.3861 | M34: -0.4207 | N34: 0.9616 | O34: 801.7296 | P34: -141.3552 | Q34: 323.0976
F35: 2 | G35: n | H35: 6' | I35: 120 | J35: 2.094395102 | K35: 340 | L35: 2.0983 | M35: -1.2115 | N35: 0.9616 | O35: 713.422 | P35: -411.91 | Q35: 326.944
H36: 7' | I36: 140 | J36: 2.443460953 | K36: 336 | L36: 1.5574 | M36: -1.8561 | N36: 0.9616 | O36: 523.2864 | P36: -623.6496 | Q36: 323.0976
H37: 8' | I37: 160 | J37: 2.792526803 | K37: 340 | L37: 0.8287 | M37: -2.2768 | N37: 0.9616 | O37: 281.758 | P37: -774.112 | Q37: 326.944
F38: 3 | G38: p | H38: 9' | I38: 180 | J38: 3.141592654 | K38: 336 | L38: 0 | M38: -2.423 | N38: 0.9616 | O38: 0 | P38: -814.128 | Q38: 323.0976
H39: 10' | I39: 200 | J39: 3.490658504 | K39: 340 | L39: -0.8287 | M39: -2.2768 | N39: 0.9616 | O39: -281.758 | P39: -774.112 | Q39: 326.944
H40: 11' | I40: 220 | J40: 3.839724354 | K40: 336 | L40: -1.5574 | M40: -1.8561 | N40: 0.9616 | O40: -523.2864 | P40: -623.6496 | Q40: 323.0976
F41: 4 | G41: n | H41: 12' | I41: 240 | J41: 4.188790205 | K41: 340 | L41: -2.0983 | M41: -1.2115 | N41: 0.9616 | O41: -713.422 | P41: -411.91 | Q41: 326.944
H42: 13' | I42: 260 | J42: 4.537856055 | K42: 336 | L42: -2.3861 | M42: -0.4207 | N42: 0.9616 | O42: -801.7296 | P42: -141.3552 | Q42: 323.0976
H43: 14' | I43: 280 | J43: 4.886921906 | K43: 340 | L43: -2.3861 | M43: 0.4207 | N43: 0.9616 | O43: -811.274 | P43: 143.038 | Q43: 326.944
F44: 5 | G44: p | H44: 15' | I44: 300 | J44: 5.235987756 | K44: 336 | L44: -2.0983 | M44: 1.2115 | N44: 0.9616 | O44: -705.0288 | P44: 407.064 | Q44: 323.0976
H45: 16' | I45: 320 | J45: 5.585053606 | K45: 340 | L45: -1.5574 | M45: 1.8561 | N45: 0.9616 | O45: -529.516 | P45: 631.074 | Q45: 326.944
H46: 17' | I46: 340 | J46: 5.934119457 | K46: 336 | L46: -0.8287 | M46: 2.2768 | N46: 0.9616 | O46: -278.4432 | P46: 765.0048 | Q46: 323.0976
E47: 3 | F47: 0 | G47: p | H47: 0" | I47: 0 | J47: 0 | K47: 336 | L47: 0 | M47: 2.423 | N47: =2*0.9616 -> 1.9232 | O47: 0 | P47: 814.128 | Q47: 646.1952
H48: 1" | I48: 20 | J48: 0.3490658504 | K48: 340 | L48: 0.8287 | M48: 2.2768 | N48: =2*0.9616 -> 1.9232 | O48: 281.758 | P48: 774.112 | Q48: 653.888
H49: 2" | I49: 40 | J49: 0.6981317008 | K49: 336 | L49: 1.5574 | M49: 1.8561 | N49: 1.9232 | O49: 523.2864 | P49: 623.6496 | Q49: 646.1952
F50: 1 | G50: n | H50: 3" | I50: 60 | J50: 1.047197551 | K50: 340 | L50: 2.0983 | M50: 1.2115 | N50: 1.9232 | O50: 713.422 | P50: 411.91 | Q50: 653.888
H51: 4" | I51: 80 | J51: 1.396263402 | K51: 336 | L51: 2.3861 | M51: 0.4207 | N51: 1.9232 | O51: 801.7296 | P51: 141.3552 | Q51: 646.1952
H52: 5" | I52: 100 | J52: 1.745329252 | K52: 340 | L52: 2.3861 | M52: -0.4207 | N52: 1.9232 | O52: 811.274 | P52: -143.038 | Q52: 653.888
F53: 2 | G53: p | H53: 6" | I53: =I52+20 -> 120 | J53: 2.094395102 | K53: 336 | L53: 2.0983 | M53: -1.2115 | N53: 1.9232 | O53: 705.0288 | P53: -407.064 | Q53: 646.1952
H54: 7" | I54: =I53+20 -> 140 | J54: 2.443460953 | K54: 340 | L54: 1.5574 | M54: -1.8561 | N54: 1.9232 | O54: 529.516 | P54: -631.074 | Q54: 653.888
H55: 8" | I55: =I54+20 -> 160 | J55: 2.792526803 | K55: 336 | L55: 0.8287 | M55: -2.2768 | N55: 1.9232 | O55: 278.4432 | P55: -765.0048 | Q55: 646.1952
F56: 3 | G56: n | H56: 9" | I56: 180 | J56: 3.141592654 | K56: 340 | L56: 0 | M56: -2.423 | N56: 1.9232 | O56: 0 | P56: -823.82 | Q56: 653.888
H57: 10" | I57: 200 | J57: 3.490658504 | K57: 336 | L57: -0.8287 | M57: -2.2768 | N57: 1.9232 | O57: -278.4432 | P57: -765.0048 | Q57: 646.1952
H58: 11" | I58: 220 | J58: 3.839724354 | K58: 340 | L58: -1.5574 | M58: -1.8561 | N58: 1.9232 | O58: -529.516 | P58: -631.074 | Q58: 653.888
F59: 4 | G59: p | H59: 12" | I59: 240 | J59: 4.188790205 | K59: 336 | L59: -2.0983 | M59: -1.2115 | N59: 1.9232 | O59: -705.0288 | P59: -407.064 | Q59: 646.1952
H60: 13" | I60: 260 | J60: 4.537856055 | K60: 340 | L60: -2.3861 | M60: -0.4207 | N60: 1.9232 | O60: -811.274 | P60: -143.038 | Q60: 653.888
H61: 14" | I61: 280 | J61: 4.886921906 | K61: 336 | L61: -2.3861 | M61: 0.4207 | N61: 1.9232 | O61: -801.7296 | P61: 141.3552 | Q61: 646.1952
F62: 5 | G62: n | H62: 15" | I62: 300 | J62: 5.235987756 | K62: 340 | L62: -2.0983 | M62: 1.2115 | N62: 1.9232 | O62: -713.422 | P62: 411.91 | Q62: 653.888
H63: 16" | I63: 320 | J63: 5.585053606 | K63: 336 | L63: -1.5574 | M63: 1.8561 | N63: 1.9232 | O63: -523.2864 | P63: 623.6496 | Q63: 646.1952
H64: 17" | I64: 340 | J64: 5.934119457 | K64: 340 | L64: -0.8287 | M64: 2.2768 | N64: 1.9232 | O64: -281.758 | P64: 774.112 | Q64: 653.888
E65: 4 | F65: 0 | G65: n | H65: 0"' | I65: 0 | J65: 0 | K65: 340 | L65: 0 | M65: 2.423 | N65: =3*0.9616 -> 2.8848 | O65: 0 | P65: 823.82 | Q65: 980.832
H66: 1"' | I66: =I65+20 -> 20 | J66: 0.3490658504 | K66: 336 | L66: =TRUNC(2.423*SIN(J66),4) -> 0.8287 | M66: 2.2768 | N66: =3*0.9616 -> 2.8848 | O66: 278.4432 | P66: 765.0048 | Q66: 969.2928
H67: 2"' | I67: =I66+20 -> 40 | J67: 0.6981317008 | K67: 340 | L67: 1.5574 | M67: 1.8561 | N67: 2.8848 | O67: 529.516 | P67: 631.074 | Q67: 980.832
F68: 1 | G68: p | H68: 3"' | I68: 60 | J68: 1.047197551 | K68: 336 | L68: 2.0983 | M68: 1.2115 | N68: 2.8848 | O68: 705.0288 | P68: 407.064 | Q68: 969.2928
H69: 4"' | I69: 80 | J69: 1.396263402 | K69: 340 | L69: 2.3861 | M69: 0.4207 | N69: 2.8848 | O69: 811.274 | P69: 143.038 | Q69: 980.832
H70: 5"' | I70: 100 | J70: 1.745329252 | K70: 336 | L70: 2.3861 | M70: -0.4207 | N70: 2.8848 | O70: 801.7296 | P70: -141.3552 | Q70: 969.2928
F71: 2 | G71: n | H71: 6"' | I71: 120 | J71: 2.094395102 | K71: 340 | L71: 2.0983 | M71: -1.2115 | N71: 2.8848 | O71: 713.422 | P71: -411.91 | Q71: 980.832
H72: 7"' | I72: 140 | J72: 2.443460953 | K72: 336 | L72: 1.5574 | M72: -1.8561 | N72: 2.8848 | O72: 523.2864 | P72: -623.6496 | Q72: 969.2928
H73: 8"' | I73: 160 | J73: 2.792526803 | K73: 340 | L73: 0.8287 | M73: -2.2768 | N73: 2.8848 | O73: 281.758 | P73: -774.112 | Q73: 980.832
F74: 3 | G74: p | H74: 9'" | I74: 180 | J74: 3.141592654 | K74: 336 | L74: 0 | M74: -2.423 | N74: 2.8848 | O74: 0 | P74: -814.128 | Q74: 969.2928
H75: 10'" | I75: 200 | J75: =RADIANS(I75) -> 3.490658504 | K75: 340 | L75: -0.8287 | M75: -2.2768 | N75: 2.8848 | O75: -281.758 | P75: -774.112 | Q75: 980.832
H76: 11'" | I76: 220 | J76: 3.839724354 | K76: 336 | L76: -1.5574 | M76: -1.8561 | N76: 2.8848 | O76: -523.2864 | P76: -623.6496 | Q76: 969.2928
F77: 4 | G77: n | H77: 12"' | I77: 240 | J77: 4.188790205 | K77: 340 | L77: =TRUNC(2.423*SIN(J77),4) -> -2.0983 | M77: =TRUNC(2.423*COS(J77),4) -> -1.2115 | N77: 2.8848 | O77: =K77*L77 -> -713.422 | P77: =K77*M77 -> -411.91 | Q77: =K77*N77 -> 980.832
H78: 13"' | I78: 260 | J78: 4.537856055 | K78: 336 | L78: =TRUNC(2.423*SIN(J78),4) -> -2.3861 | M78: =TRUNC(2.423*COS(J78),4) -> -0.4207 | N78: 2.8848 | O78: =K78*L78 -> -801.7296 | P78: =K78*M78 -> -141.3552 | Q78: =K78*N78 -> 969.2928
H79: 14" | I79: 280 | J79: 4.886921906 | K79: 340 | L79: =TRUNC(2.423*SIN(J79),4) -> -2.3861 | M79: =TRUNC(2.423*COS(J79),4) -> 0.4207 | N79: 2.8848 | O79: =K79*L79 -> -811.274 | P79: =K79*M79 -> 143.038 | Q79: =K79*N79 -> 980.832
F80: 5 | G80: p | H80: 15"' | I80: 300 | J80: 5.235987756 | K80: 336 | L80: -2.0983 | M80: 1.2115 | N80: 2.8848 | O80: -705.0288 | P80: 407.064 | Q80: 969.2928
H81: 16"' | I81: 320 | J81: 5.585053606 | K81: 340 | L81: -1.5574 | M81: 1.8561 | N81: 2.8848 | O81: -529.516 | P81: 631.074 | Q81: 980.832
H82: 17"' | I82: 340 | J82: 5.934119457 | K82: 336 | L82: -0.8287 | M82: 2.2768 | N82: 2.8848 | O82: =K82*L82 -> -278.4432 | P82: =K82*M82 -> 765.0048 | Q82: =K82*N82 -> 969.2928
E83: 5 | F83: 0 | G83: p | H83: 0"" | I83: 0 | J83: 0 | K83: 336 | L83: 0 | M83: 2.423 | N83: =4*0.9616 -> 3.8464 | O83: =K83*L83 -> 0 | P83: =K83*M83 -> 814.128 | Q83: =K83*N83 -> 1292.3904
H84: 1"" | I84: =I83+20 -> 20 | J84: 0.3490658504 | K84: 340 | L84: =TRUNC(2.423*SIN(J84),4) -> 0.8287 | M84: =TRUNC(2.423*COS(J84),4) -> 2.2768 | N84: =4*0.9616 -> 3.8464 | O84: 281.758 | P84: 774.112 | Q84: 1307.776
H85: 2"" | I85: =I84+20 -> 40 | J85: 0.6981317008 | K85: 336 | L85: 1.5574 | M85: 1.8561 | N85: 3.8464 | O85: 523.2864 | P85: 623.6496 | Q85: 1292.3904
F86: 1 | G86: n | H86: 3"" | I86: 60 | J86: 1.047197551 | K86: 340 | L86: 2.0983 | M86: 1.2115 | N86: 3.8464 | O86: 713.422 | P86: 411.91 | Q86: 1307.776
H87: 4"" | I87: 80 | J87: 1.396263402 | K87: 336 | L87: 2.3861 | M87: 0.4207 | N87: 3.8464 | O87: 801.7296 | P87: 141.3552 | Q87: 1292.3904
H88: 5"" | I88: 100 | J88: 1.745329252 | K88: 340 | L88: 2.3861 | M88: -0.4207 | N88: 3.8464 | O88: 811.274 | P88: -143.038 | Q88: 1307.776
F89: 2 | G89: p | H89: 6"" | I89: =I88+20 -> 120 | J89: 2.094395102 | K89: 336 | L89: 2.0983 | M89: -1.2115 | N89: 3.8464 | O89: 705.0288 | P89: -407.064 | Q89: 1292.3904
H90: 7"" | I90: =I89+20 -> 140 | J90: 2.443460953 | K90: 340 | L90: 1.5574 | M90: -1.8561 | N90: 3.8464 | O90: 529.516 | P90: -631.074 | Q90: 1307.776
H91: 8"" | I91: =I90+20 -> 160 | J91: 2.792526803 | K91: 336 | L91: 0.8287 | M91: -2.2768 | N91: 3.8464 | O91: 278.4432 | P91: -765.0048 | Q91: 1292.3904
F92: 3 | G92: n | H92: 9"" | I92: 180 | J92: 3.141592654 | K92: 340 | L92: 0 | M92: -2.423 | N92: 3.8464 | O92: 0 | P92: -823.82 | Q92: 1307.776
H93: 10"" | I93: 200 | J93: 3.490658504 | K93: 336 | L93: -0.8287 | M93: -2.2768 | N93: 3.8464 | O93: -278.4432 | P93: -765.0048 | Q93: 1292.3904
H94: 11"" | I94: 220 | J94: 3.839724354 | K94: 340 | L94: -1.5574 | M94: -1.8561 | N94: 3.8464 | O94: -529.516 | P94: -631.074 | Q94: 1307.776
F95: 5 | G95: n | H95: 15"" | I95: 300 | J95: 5.235987756 | K95: 340 | L95: -2.0983 | M95: 1.2115 | N95: 3.8464 | O95: -713.422 | P95: 411.91 | Q95: 1307.776
H96: 16"" | I96: 320 | J96: 5.585053606 | K96: 336 | L96: -1.5574 | M96: 1.8561 | N96: 3.8464 | O96: -523.2864 | P96: 623.6496 | Q96: 1292.3904
H97: 17"" | I97: 340 | J97: 5.934119457 | K97: 340 | L97: -0.8287 | M97: 2.2768 | N97: 3.8464 | O97: -281.758 | P97: 774.112 | Q97: 1307.776
K98: =SUM(K11:K97) -> 29408 | O98: =SUM(O11:O97) -> 2318.0324 | P98: =SUM(P11:P97) -> 408.7468 | Q98: =SUM(Q11:Q97) -> 54611.1872
K99: =K98/338 -> 87.00591716 | N99: Coordinates
K100: =29*3 -> 87 | N100: x= | O100: =O98/K98 -> 0.07882319097
K101: =87*338 -> 29406 | N101: y= | O101: =P98/K98 -> 0.01389917029
I102: AQM predicted r (precessing)= | J102: =SQRT((L24-L87)^2+(M24-M87)^2+(N24-N87)^2)/2 -> 3.09340588 | N102: z= | O102: =Q98/K98 -> 1.857018063 | Q102: =N79/2 -> 1.4424
I103: % agreement= | J103: =ABS(J102-O103)/((O103+J102)/2) -> 0.8% | L103: Si-29 experimental radius= | O103: 3.1176
N104: AQM predicted r (tumbling)= | O104: =SQRT((L24-O100)^2+(M24-O101)^2+(N24-O102)^2) -> 3.116606947 | P104: COM to quark 10
N105: % agreement= | O105: =ABS(O104-O103)/((O103+O104)/2) -> 0.0%

Sheet Si-30
E9: ring | F9: nucleon position | G9: type | H9: quark position | I9: angle (deg) | J9: angle (rad) | K9: mass (MeV) | L9: x (fm) | M9: y (fm) | N9: z (fm) | O9: weight x | P9: weight y | Q9: weight z
E11: 1 | F11: 0 | G11: p | H11: 0 | I11: 0 | J11: =RADIANS(I11) -> 0 | K11: 336 | L11: =TRUNC(2.423*SIN(J11),4) -> 0 | M11: =TRUNC(2.423*COS(J11),4) -> 2.423 | N11: 0 | O11: =K11*L11 -> 0 | P11: =K11*M11 -> 814.128 | Q11: =K11*N11 -> 0
H12: 1 | I12: =I11+20 -> 20 | J12: 0.3490658504 | K12: 340 | L12: 0.8287 | M12: 2.2768 | N12: 0 | O12: =K12*L12 -> 281.758 | P12: =K12*M12 -> 774.112 | Q12: =K12*N12 -> 0
H13: 2 | I13: 40 | J13: 0.6981317008 | K13: 336 | L13: 1.5574 | M13: 1.8561 | N13: 0 | O13: 523.2864 | P13: 623.6496 | Q13: 0
F14: 1 | G14: n | H14: 3 | I14: 60 | J14: 1.047197551 | K14: 340 | L14: 2.0983 | M14: 1.2115 | N14: 0 | O14: 713.422 | P14: 411.91 | Q14: 0
H15: 4 | I15: 80 | J15: 1.396263402 | K15: 336 | L15: 2.3861 | M15: 0.4207 | N15: 0 | O15: 801.7296 | P15: 141.3552 | Q15: 0
H16: 5 | I16: 100 | J16: 1.745329252 | K16: 340 | L16: 2.3861 | M16: -0.4207 | N16: 0 | O16: 811.274 | P16: -143.038 | Q16: 0
F17: 2 | G17: p | H17: 6 | I17: 120 | J17: 2.094395102 | K17: 336 | L17: 2.0983 | M17: -1.2115 | N17: 0 | O17: 705.0288 | P17: -407.064 | Q17: 0
H18: 7 | I18: 140 | J18: 2.443460953 | K18: 340 | L18: 1.5574 | M18: -1.8561 | N18: 0 | O18: 529.516 | P18: -631.074 | Q18: 0
H19: 8 | I19: 160 | J19: 2.792526803 | K19: 336 | L19: 0.8287 | M19: -2.2768 | N19: 0 | O19: 278.4432 | P19: -765.0048 | Q19: 0
F20: 3 | G20: n | H20: 9 | I20: 180 | J20: 3.141592654 | K20: 340 | L20: 0 | M20: -2.423 | N20: 0 | O20: 0 | P20: -823.82 | Q20: 0
H21: 10 | I21: 200 | J21: 3.490658504 | K21: 336 | L21: -0.8287 | M21: -2.2768 | N21: 0 | O21: -278.4432 | P21: -765.0048 | Q21: 0
H22: 11 | I22: 220 | J22: 3.839724354 | K22: 340 | L22: -1.5574 | M22: -1.8561 | N22: 0 | O22: -529.516 | P22: -631.074 | Q22: 0
F23: 4 | G23: p | H23: 12 | I23: 240 | J23: 4.188790205 | K23: 336 | L23: -2.0983 | M23: -1.2115 | N23: 0 | O23: -705.0288 | P23: -407.064 | Q23: 0
H24: 13 | I24: 260 | J24: 4.537856055 | K24: 340 | L24: -2.3861 | M24: -0.4207 | N24: 0 | O24: -811.274 | P24: -143.038 | Q24: 0
H25: 14 | I25: 280 | J25: 4.886921906 | K25: 336 | L25: -2.3861 | M25: 0.4207 | N25: 0 | O25: -801.7296 | P25: 141.3552 | Q25: 0
F26: 5 | G26: n | H26: 15 | I26: 300 | J26: 5.235987756 | K26: 340 | L26: -2.0983 | M26: 1.2115 | N26: 0 | O26: -713.422 | P26: 411.91 | Q26: 0
H27: 16 | I27: 320 | J27: 5.585053606 | K27: 336 | L27: -1.5574 | M27: 1.8561 | N27: 0 | O27: -523.2864 | P27: 623.6496 | Q27: 0
H28: 17 | I28: 340 | J28: 5.934119457 | K28: 340 | L28: -0.8287 | M28: 2.2768 | N28: 0 | O28: -281.758 | P28: 774.112 | Q28: 0
E29: 2 | F29: 0 | G29: n | H29: 0' | I29: 0 | J29: 0 | K29: 340 | L29: 0 | M29: 2.423 | N29: 0.9616 | O29: 0 | P29: 823.82 | Q29: 326.944
H30: 1' | I30: =I29+20 -> 20 | J30: 0.3490658504 | K30: 336 | L30: 0.8287 | M30: 2.2768 | N30: 0.9616 | O30: 278.4432 | P30: 765.0048 | Q30: 323.0976
H31: 2' | I31: =I30+20 -> 40 | J31: 0.6981317008 | K31: 340 | L31: 1.5574 | M31: 1.8561 | N31: 0.9616 | O31: 529.516 | P31: 631.074 | Q31: 326.944
F32: 1 | G32: p | H32: 3' | I32: =I31+20 -> 60 | J32: 1.047197551 | K32: 336 | L32: 2.0983 | M32: 1.2115 | N32: 0.9616 | O32: 705.0288 | P32: 407.064 | Q32: 323.0976
H33: 4' | I33: =I32+20 -> 80 | J33: 1.396263402 | K33: 340 | L33: 2.3861 | M33: 0.4207 | N33: 0.9616 | O33: 811.274 | P33: 143.038 | Q33: 326.944
H34: 5' | I34: 100 | J34: 1.745329252 | K34: 336 | L34: 2.3861 | M34: -0.4207 | N34: 0.9616 | O34: 801.7296 | P34: -141.3552 | Q34: 323.0976
F35: 2 | G35: n | H35: 6' | I35: 120 | J35: 2.094395102 | K35: 340 | L35: 2.0983 | M35: -1.2115 | N35: 0.9616 | O35: 713.422 | P35: -411.91 | Q35: 326.944
H36: 7' | I36: 140 | J36: 2.443460953 | K36: 336 | L36: 1.5574 | M36: -1.8561 | N36: 0.9616 | O36: 523.2864 | P36: -623.6496 | Q36: 323.0976
H37: 8' | I37: 160 | J37: 2.792526803 | K37: 340 | L37: 0.8287 | M37: -2.2768 | N37: 0.9616 | O37: 281.758 | P37: -774.112 | Q37: 326.944
F38: 3 | G38: p | H38: 9' | I38: 180 | J38: 3.141592654 | K38: 336 | L38: 0 | M38: -2.423 | N38: 0.9616 | O38: 0 | P38: -814.128 | Q38: 323.0976
H39: 10' | I39: 200 | J39: 3.490658504 | K39: 340 | L39: -0.8287 | M39: -2.2768 | N39: 0.9616 | O39: -281.758 | P39: -774.112 | Q39: 326.944
H40: 11' | I40: 220 | J40: 3.839724354 | K40: 336 | L40: -1.5574 | M40: -1.8561 | N40: 0.9616 | O40: -523.2864 | P40: -623.6496 | Q40: 323.0976
F41: 4 | G41: n | H41: 12' | I41: 240 | J41: 4.188790205 | K41: 340 | L41: -2.0983 | M41: -1.2115 | N41: 0.9616 | O41: -713.422 | P41: -411.91 | Q41: 326.944
H42: 13' | I42: 260 | J42: 4.537856055 | K42: 336 | L42: -2.3861 | M42: -0.4207 | N42: 0.9616 | O42: -801.7296 | P42: -141.3552 | Q42: 323.0976
H43: 14' | I43: 280 | J43: 4.886921906 | K43: 340 | L43: -2.3861 | M43: 0.4207 | N43: 0.9616 | O43: -811.274 | P43: 143.038 | Q43: 326.944
F44: 5 | G44: p | H44: 15' | I44: 300 | J44: 5.235987756 | K44: 336 | L44: -2.0983 | M44: 1.2115 | N44: 0.9616 | O44: -705.0288 | P44: 407.064 | Q44: 323.0976
H45: 16' | I45: 320 | J45: 5.585053606 | K45: 340 | L45: -1.5574 | M45: 1.8561 | N45: 0.9616 | O45: -529.516 | P45: 631.074 | Q45: 326.944
H46: 17' | I46: 340 | J46: 5.934119457 | K46: 336 | L46: -0.8287 | M46: 2.2768 | N46: 0.9616 | O46: -278.4432 | P46: 765.0048 | Q46: 323.0976
E47: 3 | F47: 0 | G47: p | H47: 0" | I47: 0 | J47: 0 | K47: 336 | L47: 0 | M47: 2.423 | N47: =2*0.9616 -> 1.9232 | O47: 0 | P47: 814.128 | Q47: 646.1952
H48: 1" | I48: 20 | J48: 0.3490658504 | K48: 340 | L48: 0.8287 | M48: 2.2768 | N48: =2*0.9616 -> 1.9232 | O48: 281.758 | P48: 774.112 | Q48: 653.888
H49: 2" | I49: 40 | J49: 0.6981317008 | K49: 336 | L49: 1.5574 | M49: 1.8561 | N49: 1.9232 | O49: 523.2864 | P49: 623.6496 | Q49: 646.1952
F50: 1 | G50: n | H50: 3" | I50: 60 | J50: 1.047197551 | K50: 340 | L50: 2.0983 | M50: 1.2115 | N50: 1.9232 | O50: 713.422 | P50: 411.91 | Q50: 653.888
H51: 4" | I51: 80 | J51: 1.396263402 | K51: 336 | L51: 2.3861 | M51: 0.4207 | N51: 1.9232 | O51: 801.7296 | P51: 141.3552 | Q51: 646.1952
H52: 5" | I52: 100 | J52: 1.745329252 | K52: 340 | L52: 2.3861 | M52: -0.4207 | N52: 1.9232 | O52: 811.274 | P52: -143.038 | Q52: 653.888
F53: 2 | G53: p | H53: 6" | I53: =I52+20 -> 120 | J53: 2.094395102 | K53: 336 | L53: 2.0983 | M53: -1.2115 | N53: 1.9232 | O53: 705.0288 | P53: -407.064 | Q53: 646.1952
H54: 7" | I54: =I53+20 -> 140 | J54: 2.443460953 | K54: 340 | L54: 1.5574 | M54: -1.8561 | N54: 1.9232 | O54: 529.516 | P54: -631.074 | Q54: 653.888
H55: 8" | I55: =I54+20 -> 160 | J55: 2.792526803 | K55: 336 | L55: 0.8287 | M55: -2.2768 | N55: 1.9232 | O55: 278.4432 | P55: -765.0048 | Q55: 646.1952
F56: 3 | G56: n | H56: 9" | I56: 180 | J56: 3.141592654 | K56: 340 | L56: 0 | M56: -2.423 | N56: 1.9232 | O56: 0 | P56: -823.82 | Q56: 653.888
H57: 10" | I57: 200 | J57: 3.490658504 | K57: 336 | L57: -0.8287 | M57: -2.2768 | N57: 1.9232 | O57: -278.4432 | P57: -765.0048 | Q57: 646.1952
H58: 11" | I58: 220 | J58: 3.839724354 | K58: 340 | L58: -1.5574 | M58: -1.8561 | N58: 1.9232 | O58: -529.516 | P58: -631.074 | Q58: 653.888
F59: 4 | G59: p | H59: 12" | I59: 240 | J59: 4.188790205 | K59: 336 | L59: -2.0983 | M59: -1.2115 | N59: 1.9232 | O59: -705.0288 | P59: -407.064 | Q59: 646.1952
H60: 13" | I60: 260 | J60: 4.537856055 | K60: 340 | L60: -2.3861 | M60: -0.4207 | N60: 1.9232 | O60: -811.274 | P60: -143.038 | Q60: 653.888
H61: 14" | I61: 280 | J61: 4.886921906 | K61: 336 | L61: -2.3861 | M61: 0.4207 | N61: 1.9232 | O61: -801.7296 | P61: 141.3552 | Q61: 646.1952
F62: 5 | G62: n | H62: 15" | I62: 300 | J62: 5.235987756 | K62: 340 | L62: -2.0983 | M62: 1.2115 | N62: 1.9232 | O62: -713.422 | P62: 411.91 | Q62: 653.888
H63: 16" | I63: 320 | J63: 5.585053606 | K63: 336 | L63: -1.5574 | M63: 1.8561 | N63: 1.9232 | O63: -523.2864 | P63: 623.6496 | Q63: 646.1952
H64: 17" | I64: 340 | J64: 5.934119457 | K64: 340 | L64: -0.8287 | M64: 2.2768 | N64: 1.9232 | O64: -281.758 | P64: 774.112 | Q64: 653.888
E65: 4 | F65: 0 | G65: n | H65: 0"' | I65: 0 | J65: 0 | K65: 340 | L65: 0 | M65: 2.423 | N65: =3*0.9616 -> 2.8848 | O65: 0 | P65: 823.82 | Q65: 980.832
H66: 1"' | I66: =I65+20 -> 20 | J66: 0.3490658504 | K66: 336 | L66: =TRUNC(2.423*SIN(J66),4) -> 0.8287 | M66: 2.2768 | N66: =3*0.9616 -> 2.8848 | O66: 278.4432 | P66: 765.0048 | Q66: 969.2928
H67: 2"' | I67: =I66+20 -> 40 | J67: 0.6981317008 | K67: 340 | L67: 1.5574 | M67: 1.8561 | N67: 2.8848 | O67: 529.516 | P67: 631.074 | Q67: 980.832
F68: 1 | G68: p | H68: 3"' | I68: 60 | J68: 1.047197551 | K68: 336 | L68: 2.0983 | M68: 1.2115 | N68: 2.8848 | O68: 705.0288 | P68: 407.064 | Q68: 969.2928
H69: 4"' | I69: 80 | J69: 1.396263402 | K69: 340 | L69: 2.3861 | M69: 0.4207 | N69: 2.8848 | O69: 811.274 | P69: 143.038 | Q69: 980.832
H70: 5"' | I70: 100 | J70: 1.745329252 | K70: 336 | L70: 2.3861 | M70: -0.4207 | N70: 2.8848 | O70: 801.7296 | P70: -141.3552 | Q70: 969.2928
F71: 2 | G71: n | H71: 6"' | I71: 120 | J71: 2.094395102 | K71: 340 | L71: 2.0983 | M71: -1.2115 | N71: 2.8848 | O71: 713.422 | P71: -411.91 | Q71: 980.832
H72: 7"' | I72: 140 | J72: 2.443460953 | K72: 336 | L72: 1.5574 | M72: -1.8561 | N72: 2.8848 | O72: 523.2864 | P72: -623.6496 | Q72: 969.2928
H73: 8"' | I73: 160 | J73: 2.792526803 | K73: 340 | L73: 0.8287 | M73: -2.2768 | N73: 2.8848 | O73: 281.758 | P73: -774.112 | Q73: 980.832
F74: 3 | G74: p | H74: 9'" | I74: 180 | J74: 3.141592654 | K74: 336 | L74: 0 | M74: -2.423 | N74: 2.8848 | O74: 0 | P74: -814.128 | Q74: 969.2928
H75: 10'" | I75: 200 | J75: =RADIANS(I75) -> 3.490658504 | K75: 340 | L75: -0.8287 | M75: -2.2768 | N75: 2.8848 | O75: -281.758 | P75: -774.112 | Q75: 980.832
H76: 11'" | I76: 220 | J76: 3.839724354 | K76: 336 | L76: -1.5574 | M76: -1.8561 | N76: 2.8848 | O76: -523.2864 | P76: -623.6496 | Q76: 969.2928
F77: 4 | G77: n | H77: 12"' | I77: 240 | J77: 4.188790205 | K77: 340 | L77: =TRUNC(2.423*SIN(J77),4) -> -2.0983 | M77: =TRUNC(2.423*COS(J77),4) -> -1.2115 | N77: 2.8848 | O77: =K77*L77 -> -713.422 | P77: =K77*M77 -> -411.91 | Q77: =K77*N77 -> 980.832
H78: 13"' | I78: 260 | J78: 4.537856055 | K78: 336 | L78: =TRUNC(2.423*SIN(J78),4) -> -2.3861 | M78: =TRUNC(2.423*COS(J78),4) -> -0.4207 | N78: 2.8848 | O78: =K78*L78 -> -801.7296 | P78: =K78*M78 -> -141.3552 | Q78: =K78*N78 -> 969.2928
H79: 14" | I79: 280 | J79: 4.886921906 | K79: 340 | L79: =TRUNC(2.423*SIN(J79),4) -> -2.3861 | M79: =TRUNC(2.423*COS(J79),4) -> 0.4207 | N79: 2.8848 | O79: =K79*L79 -> -811.274 | P79: =K79*M79 -> 143.038 | Q79: =K79*N79 -> 980.832
F80: 5 | G80: p | H80: 15"' | I80: 300 | J80: 5.235987756 | K80: 336 | L80: -2.0983 | M80: 1.2115 | N80: 2.8848 | O80: -705.0288 | P80: 407.064 | Q80: 969.2928
H81: 16"' | I81: 320 | J81: 5.585053606 | K81: 340 | L81: -1.5574 | M81: 1.8561 | N81: 2.8848 | O81: -529.516 | P81: 631.074 | Q81: 980.832
H82: 17"' | I82: 340 | J82: 5.934119457 | K82: 336 | L82: -0.8287 | M82: 2.2768 | N82: 2.8848 | O82: =K82*L82 -> -278.4432 | P82: =K82*M82 -> 765.0048 | Q82: =K82*N82 -> 969.2928
E83: 4C | F83: C | G83: n | H83: C + 0.84(x) | I83: 90 | J83: =RADIANS(I83) -> 1.570796327 | K83: 4.67 | L83: 0.84 | M83: 0 | N83: 2.8848 | O83: =K83*L83 -> 3.9228 | P83: =K83*M83 -> 0 | Q83: =K83*N83 -> 13.472016
H84: C | I84: c | J84: c | K84: 2.16 | L84: 0 | M84: 0 | N84: 2.8848 | O84: 0 | P84: 0 | Q84: 6.231168
H85: C - 0.84(x) | I85: 270 | J85: =RADIANS(I85) -> 4.71238898 | K85: 4.67 | L85: -0.84 | M85: 0 | N85: 2.8848 | O85: -3.9228 | P85: 0 | Q85: 13.472016
E86: 5 | F86: 0 | G86: p | H86: 0"" | I86: 0 | J86: 0 | K86: 336 | L86: 0 | M86: 2.423 | N86: =4*0.9616 -> 3.8464 | O86: 0 | P86: 814.128 | Q86: 1292.3904
H87: 1"" | I87: =I86+20 -> 20 | J87: 0.3490658504 | K87: 340 | L87: =TRUNC(2.423*SIN(J87),4) -> 0.8287 | M87: =TRUNC(2.423*COS(J87),4) -> 2.2768 | N87: =4*0.9616 -> 3.8464 | O87: 281.758 | P87: 774.112 | Q87: 1307.776
H88: 2"" | I88: =I87+20 -> 40 | J88: 0.6981317008 | K88: 336 | L88: 1.5574 | M88: 1.8561 | N88: 3.8464 | O88: 523.2864 | P88: 623.6496 | Q88: 1292.3904
F89: 1 | G89: n | H89: 3"" | I89: 60 | J89: 1.047197551 | K89: 340 | L89: 2.0983 | M89: 1.2115 | N89: 3.8464 | O89: 713.422 | P89: 411.91 | Q89: 1307.776
H90: 4"" | I90: 80 | J90: 1.396263402 | K90: 336 | L90: 2.3861 | M90: 0.4207 | N90: 3.8464 | O90: 801.7296 | P90: 141.3552 | Q90: 1292.3904
H91: 5"" | I91: 100 | J91: 1.745329252 | K91: 340 | L91: 2.3861 | M91: -0.4207 | N91: 3.8464 | O91: 811.274 | P91: -143.038 | Q91: 1307.776
F92: 2 | G92: p | H92: 6"" | I92: =I91+20 -> 120 | J92: 2.094395102 | K92: 336 | L92: 2.0983 | M92: -1.2115 | N92: 3.8464 | O92: 705.0288 | P92: -407.064 | Q92: 1292.3904
H93: 7"" | I93: =I92+20 -> 140 | J93: 2.443460953 | K93: 340 | L93: 1.5574 | M93: -1.8561 | N93: 3.8464 | O93: 529.516 | P93: -631.074 | Q93: 1307.776
H94: 8"" | I94: =I93+20 -> 160 | J94: 2.792526803 | K94: 336 | L94: 0.8287 | M94: -2.2768 | N94: =4*0.9616 -> 3.8464 | O94: 278.4432 | P94: -765.0048 | Q94: 1292.3904
F95: 3 | G95: n | H95: 9"" | I95: 180 | J95: 3.141592654 | K95: 340 | L95: 0 | M95: -2.423 | N95: 3.8464 | O95: 0 | P95: -823.82 | Q95: 1307.776
H96: 10"" | I96: 200 | J96: 3.490658504 | K96: 336 | L96: -0.8287 | M96: -2.2768 | N96: 3.8464 | O96: -278.4432 | P96: -765.0048 | Q96: 1292.3904
H97: 11"" | I97: 220 | J97: 3.839724354 | K97: 340 | L97: -1.5574 | M97: -1.8561 | N97: 3.8464 | O97: -529.516 | P97: -631.074 | Q97: 1307.776
F98: 5 | G98: n | H98: 15"" | I98: 300 | J98: 5.235987756 | K98: 340 | L98: -2.0983 | M98: 1.2115 | N98: 3.8464 | O98: -713.422 | P98: 411.91 | Q98: 1307.776
H99: 16"" | I99: 320 | J99: 5.585053606 | K99: 336 | L99: -1.5574 | M99: 1.8561 | N99: 3.8464 | O99: -523.2864 | P99: 623.6496 | Q99: 1292.3904
H100: 17"" | I100: 340 | J100: 5.934119457 | K100: 340 | L100: -0.8287 | M100: 2.2768 | N100: 3.8464 | O100: -281.758 | P100: 774.112 | Q100: 1307.776
K101: =SUM(K11:K100) -> 29419.5 | O101: =SUM(O11:O100) -> 2318.0324 | P101: =SUM(P11:P100) -> 408.7468 | Q101: =SUM(Q11:Q100) -> 54644.3624
N102: Coordinates
N103: x= | O103: =O101/K101 -> 0.0787923792
N104: y= | O104: =P101/K101 -> 0.01389373715
I105: AQM predicted r (precessing)= | J105: =SQRT((L23-K85)^2+(M23-L85)^2+(N23-M85)^2)/2 -> 3.389243911 | N105: z= | O105: =Q101/K101 -> 1.85741982 | Q105: =N79/2 -> 1.4424
I106: % agreement= | J106: =ABS(J105-O106)/((O106+J105)/2) -> 7.8% | L106: Si-30 experimental radius= | O106: 3.1336
N107: AQM predicted r (tumbling)= | O107: =SQRT((L24-O103)^2+(M24-O104)^2+(N24-O105)^2) -> 3.116821225 | P107: COM to quark 12 | R107: 3.116821225
N108: % agreement= | O108: =ABS(O107-O106)/((O106+O107)/2) -> 0.5%

Sheet P-31
H2: P-31
D9: ring | E9: nucleon position | F9: type | G9: quark position | H9: angle (deg) | I9: angle (rad) | J9: mass (MeV) | K9: x (fm) | L9: y (fm) | M9: z (fm) | N9: weight x | O9: weight y | P9: weight z
D11: 1 | E11: 0 | F11: p | G11: 0 | H11: 0 | I11: 0 | J11: 336 | K11: =TRUNC(2.423*SIN(I11),4) -> 0 | L11: =TRUNC(2.423*COS(I11),4) -> 2.423 | M11: 0 | N11: =J11*K11 -> 0 | O11: =J11*L11 -> 814.128 | P11: =J11*M11 -> 0
G12: 1 | H12: 20 | I12: 0.34906585 | J12: 340 | K12: 0.8287 | L12: 2.2768 | M12: 0 | N12: =J12*K12 -> 281.758 | O12: =J12*L12 -> 774.112 | P12: =J12*M12 -> 0
G13: 2 | H13: 40 | I13: 0.6981317 | J13: 336 | K13: 1.5574 | L13: 1.8561 | M13: 0 | N13: 523.2864 | O13: 623.6496 | P13: 0
E14: 1 | F14: n | G14: 3 | H14: 60 | I14: 1.04719755 | J14: 340 | K14: 2.0983 | L14: 1.2115 | M14: 0 | N14: 713.422 | O14: 411.91 | P14: 0
G15: 4 | H15: 80 | I15: 1.3962634 | J15: 336 | K15: 2.3861 | L15: 0.4207 | M15: 0 | N15: 801.7296 | O15: 141.3552 | P15: 0
G16: 5 | H16: 100 | I16: 1.74532925 | J16: 340 | K16: 2.3861 | L16: -0.4207 | M16: 0 | N16: 811.274 | O16: -143.038 | P16: 0
E17: 2 | F17: p | G17: 6 | H17: 120 | I17: 2.0943951 | J17: 336 | K17: 2.0983 | L17: -1.2114 | M17: 0 | N17: 705.0288 | O17: -407.0304 | P17: 0
G18: 7 | H18: 140 | I18: 2.44346095 | J18: 340 | K18: 1.5574 | L18: -1.8561 | M18: 0 | N18: 529.516 | O18: -631.074 | P18: 0
G19: 8 | H19: 160 | I19: 2.7925268 | J19: 336 | K19: 0.8287 | L19: -2.2768 | M19: 0 | N19: 278.4432 | O19: -765.0048 | P19: 0
E20: 3 | F20: n | G20: 9 | H20: 180 | I20: 3.14159265 | J20: 340 | K20: 0 | L20: -2.423 | M20: 0 | N20: 0 | O20: -823.82 | P20: 0
G21: 10 | H21: 200 | I21: 3.4906585 | J21: 336 | K21: -0.8287 | L21: -2.2768 | M21: 0 | N21: -278.4432 | O21: -765.0048 | P21: 0
G22: 11 | H22: 220 | I22: 3.83972435 | J22: 340 | K22: -1.5574 | L22: -1.8561 | M22: 0 | N22: -529.516 | O22: -631.074 | P22: 0
E23: 4 | F23: p | G23: 12 | H23: 240 | I23: 4.1887902 | J23: 336 | K23: -2.0983 | L23: -1.2115 | M23: 0 | N23: -705.0288 | O23: -407.064 | P23: 0
G24: 13 | H24: 260 | I24: 4.53785606 | J24: 340 | K24: -2.3861 | L24: -0.4207 | M24: 0 | N24: -811.274 | O24: -143.038 | P24: 0
G25: 14 | H25: 280 | I25: 4.88692191 | J25: 336 | K25: -2.3861 | L25: 0.4207 | M25: 0 | N25: -801.7296 | O25: 141.3552 | P25: 0
E26: 5 | F26: n | G26: 15 | H26: 300 | I26: 5.23598776 | J26: 340 | K26: -2.0983 | L26: 1.2115 | M26: 0 | N26: -713.422 | O26: 411.91 | P26: 0
G27: 16 | H27: 320 | I27: 5.58505361 | J27: 336 | K27: -1.5574 | L27: 1.8561 | M27: 0 | N27: -523.2864 | O27: 623.6496 | P27: 0
G28: 17 | H28: 340 | I28: 5.93411946 | J28: 340 | K28: -0.8287 | L28: 2.2768 | M28: 0 | N28: -281.758 | O28: 774.112 | P28: 0
D29: 2 | E29: 0 | F29: n | G29: 0' | H29: 0 | I29: 0 | J29: 340 | K29: 0 | L29: 2.423 | M29: 0.9616 | N29: 0 | O29: 823.82 | P29: 326.944
G30: 1' | H30: 20 | I30: 0.34906585 | J30: 336 | K30: 0.8287 | L30: 2.2768 | M30: 0.9616 | N30: 278.4432 | O30: 765.0048 | P30: 323.0976
G31: 2' | H31: 40 | I31: 0.6981317 | J31: 340 | K31: 1.5574 | L31: 1.8561 | M31: 0.9616 | N31: 529.516 | O31: 631.074 | P31: 326.944
E32: 1 | F32: p | G32: 3' | H32: 60 | I32: 1.04719755 | J32: 336 | K32: 2.0983 | L32: 1.2115 | M32: 0.9616 | N32: 705.0288 | O32: 407.064 | P32: 323.0976
G33: 4' | H33: 80 | I33: 1.3962634 | J33: 340 | K33: 2.3861 | L33: 0.4207 | M33: 0.9616 | N33: 811.274 | O33: 143.038 | P33: 326.944
G34: 5' | H34: 100 | I34: 1.74532925 | J34: 336 | K34: 2.3861 | L34: -0.4207 | M34: 0.9616 | N34: 801.7296 | O34: -141.3552 | P34: 323.0976
E35: 2 | F35: n | G35: 6' | H35: 120 | I35: 2.0943951 | J35: 340 | K35: 2.0983 | L35: -1.2114 | M35: 0.9616 | N35: 713.422 | O35: -411.876 | P35: 326.944
G36: 7' | H36: 140 | I36: 2.44346095 | J36: 336 | K36: 1.5574 | L36: -1.8561 | M36: 0.9616 | N36: 523.2864 | O36: -623.6496 | P36: 323.0976
G37: 8' | H37: 160 | I37: 2.7925268 | J37: 340 | K37: 0.8287 | L37: -2.2768 | M37: 0.9616 | N37: 281.758 | O37: -774.112 | P37: 326.944
E38: 3 | F38: p | G38: 9' | H38: 180 | I38: 3.14159265 | J38: 336 | K38: 0 | L38: -2.423 | M38: 0.9616 | N38: 0 | O38: -814.128 | P38: 323.0976
G39: 10' | H39: 200 | I39: 3.4906585 | J39: 340 | K39: -0.8287 | L39: -2.2768 | M39: 0.9616 | N39: -281.758 | O39: -774.112 | P39: 326.944
G40: 11' | H40: 220 | I40: 3.83972435 | J40: 336 | K40: -1.5574 | L40: -1.8561 | M40: 0.9616 | N40: -523.2864 | O40: -623.6496 | P40: 323.0976
E41: 4 | F41: n | G41: 12' | H41: 240 | I41: 4.1887902 | J41: 340 | K41: -2.0983 | L41: -1.2115 | M41: 0.9616 | N41: -713.422 | O41: -411.91 | P41: 326.944
G42: 13' | H42: 260 | I42: 4.53785606 | J42: 336 | K42: -2.3861 | L42: -0.4207 | M42: 0.9616 | N42: -801.7296 | O42: -141.3552 | P42: 323.0976
G43: 14' | H43: 280 | I43: 4.88692191 | J43: 340 | K43: -2.3861 | L43: 0.4207 | M43: 0.9616 | N43: -811.274 | O43: 143.038 | P43: 326.944
E44: 5 | F44: p | G44: 15' | H44: 300 | I44: 5.23598776 | J44: 336 | K44: -2.0983 | L44: 1.2115 | M44: 0.9616 | N44: -705.0288 | O44: 407.064 | P44: 323.0976
G45: 16' | H45: 320 | I45: 5.58505361 | J45: 340 | K45: -1.5574 | L45: 1.8561 | M45: 0.9616 | N45: -529.516 | O45: 631.074 | P45: 326.944
G46: 17' | H46: 340 | I46: 5.93411946 | J46: 336 | K46: -0.8287 | L46: 2.2768 | M46: 0.9616 | N46: -278.4432 | O46: 765.0048 | P46: 323.0976
D47: 3 | E47: 0 | F47: p | G47: 0" | H47: 0 | I47: 0 | J47: 336 | K47: 0 | L47: 2.423 | M47: 1.9232 | N47: 0 | O47: 814.128 | P47: 646.1952
G48: 1" | H48: 20 | I48: 0.34906585 | J48: 340 | K48: 0.8287 | L48: 2.2768 | M48: 1.9232 | N48: 281.758 | O48: 774.112 | P48: 653.888
G49: 2" | H49: 40 | I49: 0.6981317 | J49: 336 | K49: 1.5574 | L49: 1.8561 | M49: 1.9232 | N49: 523.2864 | O49: 623.6496 | P49: 646.1952
E50: 1 | F50: n | G50: 3" | H50: 60 | I50: 1.04719755 | J50: 340 | K50: 2.0983 | L50: 1.2115 | M50: 1.9232 | N50: 713.422 | O50: 411.91 | P50: 653.888
G51: 4" | H51: 80 | I51: 1.3962634 | J51: 336 | K51: 2.3861 | L51: 0.4207 | M51: 1.9232 | N51: 801.7296 | O51: 141.3552 | P51: 646.1952
G52: 5" | H52: 100 | I52: 1.74532925 | J52: 340 | K52: 2.3861 | L52: -0.4207 | M52: 1.9232 | N52: 811.274 | O52: -143.038 | P52: 653.888
E53: 2 | F53: p | G53: 6" | H53: 120 | I53: 2.0943951 | J53: 336 | K53: 2.0983 | L53: -1.2114 | M53: 1.9232 | N53: 705.0288 | O53: -407.0304 | P53: 646.1952
G54: 7" | H54: 140 | I54: 2.44346095 | J54: 340 | K54: 1.5574 | L54: -1.8561 | M54: 1.9232 | N54: 529.516 | O54: -631.074 | P54: 653.888
G55: 8" | H55: 160 | I55: 2.7925268 | J55: 336 | K55: 0.8287 | L55: -2.2768 | M55: 1.9232 | N55: 278.4432 | O55: -765.0048 | P55: 646.1952
E56: 3 | F56: n | G56: 9" | H56: 180 | I56: 3.14159265 | J56: 340 | K56: 0 | L56: -2.423 | M56: 1.9232 | N56: 0 | O56: -823.82 | P56: 653.888
G57: 10" | H57: 200 | I57: 3.4906585 | J57: 336 | K57: -0.8287 | L57: -2.2768 | M57: 1.9232 | N57: -278.4432 | O57: -765.0048 | P57: 646.1952
G58: 11" | H58: 220 | I58: 3.83972435 | J58: 340 | K58: -1.5574 | L58: -1.8561 | M58: 1.9232 | N58: -529.516 | O58: -631.074 | P58: 653.888
E59: 4 | F59: p | G59: 12" | H59: 240 | I59: 4.1887902 | J59: 336 | K59: -2.0983 | L59: -1.2115 | M59: 1.9232 | N59: -705.0288 | O59: -407.064 | P59: 646.1952
G60: 13" | H60: 260 | I60: 4.53785606 | J60: 340 | K60: -2.3861 | L60: -0.4207 | M60: 1.9232 | N60: -811.274 | O60: -143.038 | P60: 653.888
G61: 14" | H61: 280 | I61: 4.88692191 | J61: 336 | K61: -2.3861 | L61: 0.4207 | M61: 1.9232 | N61: -801.7296 | O61: 141.3552 | P61: 646.1952
E62: 5 | F62: n | G62: 15" | H62: 300 | I62: 5.23598776 | J62: 340 | K62: -2.0983 | L62: 1.2115 | M62: 1.9232 | N62: -713.422 | O62: 411.91 | P62: 653.888
G63: 16" | H63: 320 | I63: 5.58505361 | J63: 336 | K63: -1.5574 | L63: 1.8561 | M63: 1.9232 | N63: -523.2864 | O63: 623.6496 | P63: 646.1952
G64: 17" | H64: 340 | I64: 5.93411946 | J64: 340 | K64: -0.8287 | L64: 2.2768 | M64: 1.9232 | N64: -281.758 | O64: 774.112 | P64: 653.888
D65: 4 | E65: 0 | F65: n | G65: 0"' | H65: 0 | I65: 0 | J65: 340 | K65: 0 | L65: 2.423 | M65: 2.8848 | N65: 0 | O65: 823.82 | P65: 980.832
G66: 1"' | H66: 20 | I66: 0.34906585 | J66: 336 | K66: 0.8287 | L66: 2.2768 | M66: 2.8848 | N66: 278.4432 | O66: 765.0048 | P66: 969.2928
G67: 2"' | H67: 40 | I67: 0.6981317 | J67: 340 | K67: 1.5574 | L67: 1.8561 | M67: 2.8848 | N67: 529.516 | O67: 631.074 | P67: 980.832
E68: 1 | F68: p | G68: 3"' | H68: 60 | I68: 1.04719755 | J68: 336 | K68: 2.0983 | L68: 1.2115 | M68: 2.8848 | N68: 705.0288 | O68: 407.064 | P68: 969.2928
G69: 4"' | H69: 80 | I69: 1.3962634 | J69: 340 | K69: 2.3861 | L69: 0.4207 | M69: 2.8848 | N69: 811.274 | O69: 143.038 | P69: 980.832
G70: 5"' | H70: 100 | I70: 1.74532925 | J70: 336 | K70: 2.3861 | L70: -0.4207 | M70: 2.8848 | N70: 801.7296 | O70: -141.3552 | P70: 969.2928
E71: 2 | F71: n | G71: 6"' | H71: 120 | I71: 2.0943951 | J71: 340 | K71: 2.0983 | L71: -1.2114 | M71: 2.8848 | N71: 713.422 | O71: -411.876 | P71: 980.832
G72: 7"' | H72: 140 | I72: 2.44346095 | J72: 336 | K72: 1.5574 | L72: -1.8561 | M72: 2.8848 | N72: 523.2864 | O72: -623.6496 | P72: 969.2928
G73: 8"' | H73: 160 | I73: 2.7925268 | J73: 340 | K73: 0.8287 | L73: -2.2768 | M73: 2.8848 | N73: 281.758 | O73: -774.112 | P73: 980.832
E74: 3 | F74: p | G74: 9'" | H74: 180 | I74: 3.14159265 | J74: 336 | K74: 0 | L74: -2.423 | M74: 2.8848 | N74: 0 | O74: -814.128 | P74: 969.2928
G75: 10'" | H75: 200 | I75: 3.4906585 | J75: 340 | K75: =TRUNC(2.423*SIN(I75),4) -> -0.8287 | L75: =TRUNC(2.423*COS(I75),4) -> -2.2768 | M75: 2.8848 | N75: -281.758 | O75: -774.112 | P75: 980.832
G76: 11'" | H76: 220 | I76: 3.83972435 | J76: 336 | K76: -1.5574 | L76: -1.8561 | M76: 2.8848 | N76: =J76*K76 -> -523.2864 | O76: =J76*L76 -> -623.6496 | P76: =J76*M76 -> 969.2928
E77: 4 | F77: n | G77: 12"' | H77: 240 | I77: 4.1887902 | J77: 340 | K77: -2.0983 | L77: -1.2115 | M77: 2.8848 | N77: -713.422 | O77: -411.91 | P77: 980.832
G78: 13"' | H78: 260 | I78: 4.53785606 | J78: 336 | K78: -2.3861 | L78: -0.4207 | M78: 2.8848 | N78: -801.7296 | O78: -141.3552 | P78: 969.2928
G79: 14" | H79: 280 | I79: 4.88692191 | J79: 340 | K79: -2.3861 | L79: 0.4207 | M79: 2.8848 | N79: -811.274 | O79: 143.038 | P79: 980.832
E80: 5 | F80: p | G80: 15"' | H80: 300 | I80: 5.23598776 | J80: 336 | K80: -2.0983 | L80: 1.2115 | M80: 2.8848 | N80: -705.0288 | O80: 407.064 | P80: 969.2928
G81: 16"' | H81: 320 | I81: 5.58505361 | J81: 340 | K81: -1.5574 | L81: 1.8561 | M81: 2.8848 | N81: -529.516 | O81: 631.074 | P81: 980.832
G82: 17"' | H82: 340 | I82: 5.93411946 | J82: 336 | K82: -0.8287 | L82: 2.2768 | M82: 2.8848 | N82: -278.4432 | O82: 765.0048 | P82: 969.2928
D83: 5 | E83: 0 | F83: p | G83: 0"" | H83: 0 | I83: 0 | J83: 336 | K83: 0 | L83: 2.423 | M83: 3.8464 | N83: 0 | O83: 814.128 | P83: 1292.3904
G84: 1"" | H84: 20 | I84: 0.34906585 | J84: 340 | K84: 0.8287 | L84: 2.2768 | M84: 3.8464 | N84: 281.758 | O84: 774.112 | P84: 1307.776
G85: 2"" | H85: 40 | I85: 0.6981317 | J85: 336 | K85: 1.5574 | L85: 1.8561 | M85: 3.8464 | N85: 523.2864 | O85: 623.6496 | P85: 1292.3904
E86: 1 | F86: n | G86: 3"" | H86: 60 | I86: 1.04719755 | J86: 340 | K86: 2.0983 | L86: 1.2115 | M86: 3.8464 | N86: 713.422 | O86: 411.91 | P86: 1307.776
G87: 4"" | H87: 80 | I87: 1.3962634 | J87: 336 | K87: 2.3861 | L87: 0.4207 | M87: 3.8464 | N87: 801.7296 | O87: 141.3552 | P87: 1292.3904
G88: 5"" | H88: 100 | I88: 1.74532925 | J88: 340 | K88: 2.3861 | L88: -0.4207 | M88: 3.8464 | N88: 811.274 | O88: -143.038 | P88: 1307.776
E89: 2 | F89: p | G89: 6"" | H89: 120 | I89: 2.0943951 | J89: 336 | K89: 2.0983 | L89: -1.2114 | M89: 3.8464 | N89: 705.0288 | O89: -407.0304 | P89: 1292.3904
G90: 7"" | H90: 140 | I90: 2.44346095 | J90: 340 | K90: 1.5574 | L90: -1.8561 | M90: 3.8464 | N90: 529.516 | O90: -631.074 | P90: 1307.776
G91: 8"" | H91: 160 | I91: 2.7925268 | J91: 336 | K91: 0.8287 | L91: -2.2768 | M91: 3.8464 | N91: 278.4432 | O91: -765.0048 | P91: 1292.3904
E92: 3 | F92: n | G92: 9"" | H92: 180 | I92: 3.14159265 | J92: 340 | K92: 0 | L92: -2.423 | M92: 3.8464 | N92: 0 | O92: -823.82 | P92: 1307.776
G93: 10"" | H93: 200 | I93: 3.4906585 | J93: 336 | K93: -0.8287 | L93: -2.2768 | M93: 3.8464 | N93: -278.4432 | O93: -765.0048 | P93: 1292.3904
G94: 11"" | H94: 220 | I94: 3.83972435 | J94: 340 | K94: -1.5574 | L94: -1.8561 | M94: 3.8464 | N94: -529.516 | O94: -631.074 | P94: 1307.776
E95: 4 | F95: p | G95: 12" | H95: 240 | I95: 4.1887902 | J95: 336 | K95: -2.0983 | L95: -1.2115 | M95: 3.8464 | N95: -705.0288 | O95: -407.064 | P95: 1292.3904
G96: 13" | H96: 260 | I96: 4.53785606 | J96: 340 | K96: -2.3861 | L96: -0.4207 | M96: 3.8464 | N96: -811.274 | O96: -143.038 | P96: 1307.776
G97: 14" | H97: 280 | I97: 4.88692191 | J97: 336 | K97: -2.3861 | L97: 0.4207 | M97: 3.8464 | N97: -801.7296 | O97: 141.3552 | P97: 1292.3904
E98: 5 | F98: n | G98: 15"" | H98: 300 | I98: 5.23598776 | J98: 340 | K98: -2.0983 | L98: 1.2115 | M98: 3.8464 | N98: -713.422 | O98: 411.91 | P98: 1307.776
G99: 16"" | H99: 320 | I99: 5.58505361 | J99: 336 | K99: -1.5574 | L99: 1.8561 | M99: 3.8464 | N99: -523.2864 | O99: 623.6496 | P99: 1292.3904
G100: 17"" | H100: 340 | I100: 5.93411946 | J100: 340 | K100: -0.8287 | L100: 2.2768 | M100: 3.8464 | N100: -281.758 | O100: 774.112 | P100: 1307.776
D101: 5C | E101: Center | F101: n | G101: C + 0.84(x) | H101: 90 | I101: =RADIANS(H101) -> 1.570796327 | J101: 340 | K101: 0.84 | L101: 0 | M101: 3.8464 | N101: 285.6 | O101: 0 | P101: 1307.776
G102: C | H102: c | I102: c | J102: 336 | K102: 0 | L102: 0 | M102: 3.8464 | N102: 0 | O102: 0 | P102: 1292.3904
G103: C - 0.84(x) | H103: 270 | I103: =RADIANS(H103) -> 4.71238898 | J103: 340 | K103: -0.84 | L103: 0 | M103: 3.8464 | N103: -285.6 | O103: 0 | P103: 1307.776
J104: =SUM(J11:J103) -> 31436 | N104: =SUM(N11:N103) -> 0 | O104: =SUM(O11:O103) -> 0.1688 | P104: =SUM(P11:P103) -> 62411.6864
M105: Coordinates
M106: x= | N106: =N104/J104 -> 0
M107: y= | N107: =O104/J104 -> 5.369639903e-06
H108: AQM predicted r (precessing)= | I108: =SQRT((K93-K12)^2+(L93-L12)^2+(M93-M12)^2)/2 -> 3.093422081 | M108: z= | N108: =P104/J104 -> 1.985357119 | P108: =M82/2 -> 1.4424
H109: % agreement= | I109: 108.1% | K109: P-31 experimental radius= | N109: 3.1889
M110: AQM predicted r (tumbling)= | N110: =SQRT((K21-N106)^2+(L21-N107)^2+(M21-N108)^2) -> 3.132447808 | O110: COM to quark 12
M111: % agreement= | N111: =ABS(N110-N109)/((N109+N110)/2) -> 1.8%

Sheet S-32
D9: ring | E9: nucleon position | F9: type | G9: quark position | H9: angle (deg) | I9: angle (rad) | J9: mass (MeV) | K9: x (fm) | L9: y (fm) | M9: z (fm) | N9: weight x | O9: weight y | P9: weight z
D11: 1 | E11: 0 | F11: p | G11: 0 | H11: 0 | I11: =RADIANS(H11) -> 0 | J11: 336 | K11: =TRUNC(2.423*SIN(I11),4) -> 0 | L11: =TRUNC(2.423*COS(I11),4) -> 2.423 | M11: 0 | N11: =J11*K11 -> 0 | O11: =J11*L11 -> 814.128 | P11: =J11*M11 -> 0
G12: 1 | H12: 20 | I12: =RADIANS(H12) -> 0.3490658504 | J12: 340 | K12: =TRUNC(2.423*SIN(I12),4) -> 0.8287 | L12: =TRUNC(2.423*COS(I12),4) -> 2.2768 | M12: 0 | N12: =J12*K12 -> 281.758 | O12: =J12*L12 -> 774.112 | P12: =J12*M12 -> 0
G13: 2 | H13: 40 | I13: 0.6981317008 | J13: 336 | K13: 1.5574 | L13: 1.8561 | M13: 0 | N13: 523.2864 | O13: 623.6496 | P13: 0
E14: 1 | F14: n | G14: 3 | H14: 60 | I14: 1.047197551 | J14: 340 | K14: 2.0983 | L14: 1.2115 | M14: 0 | N14: 713.422 | O14: 411.91 | P14: 0
G15: 4 | H15: 80 | I15: 1.396263402 | J15: 336 | K15: 2.3861 | L15: 0.4207 | M15: 0 | N15: 801.7296 | O15: 141.3552 | P15: 0
G16: 5 | H16: 100 | I16: 1.745329252 | J16: 340 | K16: 2.3861 | L16: -0.4207 | M16: 0 | N16: 811.274 | O16: -143.038 | P16: 0
E17: 2 | F17: p | G17: 6 | H17: 120 | I17: 2.094395102 | J17: 336 | K17: 2.0983 | L17: -1.2115 | M17: 0 | N17: 705.0288 | O17: -407.064 | P17: 0
G18: 7 | H18: 140 | I18: 2.443460953 | J18: 340 | K18: 1.5574 | L18: -1.8561 | M18: 0 | N18: 529.516 | O18: -631.074 | P18: 0
G19: 8 | H19: 160 | I19: 2.792526803 | J19: 336 | K19: 0.8287 | L19: -2.2768 | M19: 0 | N19: 278.4432 | O19: -765.0048 | P19: 0
E20: 3 | F20: n | G20: 9 | H20: 180 | I20: 3.141592654 | J20: 340 | K20: 0 | L20: -2.423 | M20: 0 | N20: 0 | O20: -823.82 | P20: 0
G21: 10 | H21: 200 | I21: 3.490658504 | J21: 336 | K21: -0.8287 | L21: -2.2768 | M21: 0 | N21: -278.4432 | O21: -765.0048 | P21: 0
G22: 11 | H22: 220 | I22: 3.839724354 | J22: 340 | K22: -1.5574 | L22: -1.8561 | M22: 0 | N22: -529.516 | O22: -631.074 | P22: 0
E23: 4 | F23: p | G23: 12 | H23: 240 | I23: 4.188790205 | J23: 336 | K23: -2.0983 | L23: -1.2115 | M23: 0 | N23: -705.0288 | O23: -407.064 | P23: 0
G24: 13 | H24: 260 | I24: 4.537856055 | J24: 340 | K24: -2.3861 | L24: -0.4207 | M24: 0 | N24: -811.274 | O24: -143.038 | P24: 0
G25: 14 | H25: 280 | I25: 4.886921906 | J25: 336 | K25: -2.3861 | L25: 0.4207 | M25: 0 | N25: -801.7296 | O25: 141.3552 | P25: 0
E26: 5 | F26: n | G26: 15 | H26: 300 | I26: 5.235987756 | J26: 340 | K26: -2.0983 | L26: 1.2115 | M26: 0 | N26: -713.422 | O26: 411.91 | P26: 0
G27: 16 | H27: 320 | I27: 5.585053606 | J27: 336 | K27: -1.5574 | L27: 1.8561 | M27: 0 | N27: -523.2864 | O27: 623.6496 | P27: 0
G28: 17 | H28: 340 | I28: 5.934119457 | J28: 340 | K28: -0.8287 | L28: 2.2768 | M28: 0 | N28: -281.758 | O28: 774.112 | P28: 0
D29: 2 | E29: 0 | F29: n | G29: 0 | H29: 0 | I29: 0 | J29: 340 | K29: 0 | L29: 2.423 | M29: 0.9616 | N29: 0 | O29: 823.82 | P29: 326.944
G30: 1 | H30: 20 | I30: 0.3490658504 | J30: 336 | K30: 0.8287 | L30: 2.2768 | M30: 0.9616 | N30: 278.4432 | O30: 765.0048 | P30: 323.0976
G31: 2 | H31: 40 | I31: 0.6981317008 | J31: 340 | K31: 1.5574 | L31: 1.8561 | M31: 0.9616 | N31: 529.516 | O31: 631.074 | P31: 326.944
E32: 1 | F32: p | G32: 3 | H32: 60 | I32: 1.047197551 | J32: 336 | K32: 2.0983 | L32: 1.2115 | M32: 0.9616 | N32: 705.0288 | O32: 407.064 | P32: 323.0976
G33: 4 | H33: 80 | I33: 1.396263402 | J33: 340 | K33: 2.3861 | L33: 0.4207 | M33: 0.9616 | N33: 811.274 | O33: 143.038 | P33: 326.944
G34: 5 | H34: 100 | I34: 1.745329252 | J34: 336 | K34: 2.3861 | L34: -0.4207 | M34: 0.9616 | N34: 801.7296 | O34: -141.3552 | P34: 323.0976
E35: 2 | F35: n | G35: 6 | H35: 120 | I35: 2.094395102 | J35: 340 | K35: 2.0983 | L35: -1.2115 | M35: 0.9616 | N35: 713.422 | O35: -411.91 | P35: 326.944
G36: 7 | H36: 140 | I36: 2.443460953 | J36: 336 | K36: 1.5574 | L36: -1.8561 | M36: 0.9616 | N36: 523.2864 | O36: -623.6496 | P36: 323.0976
G37: 8 | H37: 160 | I37: 2.792526803 | J37: 340 | K37: 0.8287 | L37: -2.2768 | M37: 0.9616 | N37: 281.758 | O37: -774.112 | P37: 326.944
E38: 3 | F38: p | G38: 9 | H38: 180 | I38: 3.141592654 | J38: 336 | K38: 0 | L38: -2.423 | M38: 0.9616 | N38: 0 | O38: -814.128 | P38: 323.0976
G39: 10 | H39: 200 | I39: 3.490658504 | J39: 340 | K39: -0.8287 | L39: -2.2768 | M39: 0.9616 | N39: -281.758 | O39: -774.112 | P39: 326.944
G40: 11 | H40: 220 | I40: 3.839724354 | J40: 336 | K40: -1.5574 | L40: -1.8561 | M40: 0.9616 | N40: -523.2864 | O40: -623.6496 | P40: 323.0976
E41: 4 | F41: n | G41: 12 | H41: 240 | I41: 4.188790205 | J41: 340 | K41: -2.0983 | L41: -1.2115 | M41: 0.9616 | N41: -713.422 | O41: -411.91 | P41: 326.944
G42: 13 | H42: 260 | I42: 4.537856055 | J42: 336 | K42: -2.3861 | L42: -0.4207 | M42: 0.9616 | N42: -801.7296 | O42: -141.3552 | P42: 323.0976
G43: 14 | H43: 280 | I43: 4.886921906 | J43: 340 | K43: -2.3861 | L43: 0.4207 | M43: 0.9616 | N43: -811.274 | O43: 143.038 | P43: 326.944
E44: 5 | F44: p | G44: 15 | H44: 300 | I44: 5.235987756 | J44: 336 | K44: -2.0983 | L44: 1.2115 | M44: 0.9616 | N44: -705.0288 | O44: 407.064 | P44: 323.0976
G45: 16 | H45: 320 | I45: 5.585053606 | J45: 340 | K45: -1.5574 | L45: 1.8561 | M45: 0.9616 | N45: -529.516 | O45: 631.074 | P45: 326.944
G46: 17 | H46: 340 | I46: 5.934119457 | J46: 336 | K46: -0.8287 | L46: 2.2768 | M46: 0.9616 | N46: -278.4432 | O46: 765.0048 | P46: 323.0976
D47: 3 | E47: 0 | F47: p | G47: 0 | H47: 0 | I47: 0 | J47: 336 | K47: 0 | L47: 2.423 | M47: =0.9616*2 -> 1.9232 | N47: 0 | O47: 814.128 | P47: 646.1952
G48: 1 | H48: 20 | I48: 0.3490658504 | J48: 340 | K48: 0.8287 | L48: 2.2768 | M48: =0.9616*2 -> 1.9232 | N48: 281.758 | O48: 774.112 | P48: 653.888
G49: 2 | H49: 40 | I49: 0.6981317008 | J49: 336 | K49: 1.5574 | L49: 1.8561 | M49: 1.9232 | N49: 523.2864 | O49: 623.6496 | P49: 646.1952
E50: 1 | F50: n | G50: 3 | H50: 60 | I50: 1.047197551 | J50: 340 | K50: 2.0983 | L50: 1.2115 | M50: 1.9232 | N50: 713.422 | O50: 411.91 | P50: 653.888
G51: 4 | H51: 80 | I51: 1.396263402 | J51: 336 | K51: 2.3861 | L51: 0.4207 | M51: 1.9232 | N51: 801.7296 | O51: 141.3552 | P51: 646.1952
G52: 5 | H52: 100 | I52: 1.745329252 | J52: 340 | K52: 2.3861 | L52: -0.4207 | M52: 1.9232 | N52: 811.274 | O52: -143.038 | P52: 653.888
E53: 2 | F53: p | G53: 6 | H53: 120 | I53: 2.094395102 | J53: 336 | K53: 2.0983 | L53: -1.2115 | M53: 1.9232 | N53: 705.0288 | O53: -407.064 | P53: 646.1952
G54: 7 | H54: 140 | I54: 2.443460953 | J54: 340 | K54: 1.5574 | L54: -1.8561 | M54: 1.9232 | N54: 529.516 | O54: -631.074 | P54: 653.888
G55: 8 | H55: 160 | I55: 2.792526803 | J55: 336 | K55: 0.8287 | L55: -2.2768 | M55: 1.9232 | N55: 278.4432 | O55: -765.0048 | P55: 646.1952
E56: 3 | F56: n | G56: 9 | H56: 180 | I56: 3.141592654 | J56: 340 | K56: 0 | L56: -2.423 | M56: 1.9232 | N56: 0 | O56: -823.82 | P56: 653.888
G57: 10 | H57: 200 | I57: 3.490658504 | J57: 336 | K57: -0.8287 | L57: -2.2768 | M57: 1.9232 | N57: -278.4432 | O57: -765.0048 | P57: 646.1952
G58: 11 | H58: 220 | I58: 3.839724354 | J58: 340 | K58: -1.5574 | L58: -1.8561 | M58: 1.9232 | N58: -529.516 | O58: -631.074 | P58: 653.888
E59: 4 | F59: p | G59: 12 | H59: 240 | I59: 4.188790205 | J59: 336 | K59: -2.0983 | L59: -1.2115 | M59: 1.9232 | N59: -705.0288 | O59: -407.064 | P59: 646.1952
G60: 13 | H60: 260 | I60: 4.537856055 | J60: 340 | K60: -2.3861 | L60: -0.4207 | M60: 1.9232 | N60: -811.274 | O60: -143.038 | P60: 653.888
G61: 14 | H61: 280 | I61: 4.886921906 | J61: 336 | K61: -2.3861 | L61: 0.4207 | M61: 1.9232 | N61: -801.7296 | O61: 141.3552 | P61: 646.1952
E62: 5 | F62: n | G62: 15 | H62: 300 | I62: 5.235987756 | J62: 340 | K62: -2.0983 | L62: 1.2115 | M62: 1.9232 | N62: -713.422 | O62: 411.91 | P62: 653.888
G63: 16 | H63: 320 | I63: 5.585053606 | J63: 336 | K63: -1.5574 | L63: 1.8561 | M63: 1.9232 | N63: -523.2864 | O63: 623.6496 | P63: 646.1952
G64: 17 | H64: 340 | I64: 5.934119457 | J64: 340 | K64: -0.8287 | L64: 2.2768 | M64: 1.9232 | N64: -281.758 | O64: 774.112 | P64: 653.888
D65: 4 | E65: 0 | F65: n | G65: 0 | H65: 0 | I65: 0 | J65: 340 | K65: 0 | L65: 2.423 | M65: =0.9616*3 -> 2.8848 | N65: 0 | O65: 823.82 | P65: 980.832
G66: 1 | H66: 20 | I66: 0.3490658504 | J66: 336 | K66: 0.8287 | L66: 2.2768 | M66: =0.9616*3 -> 2.8848 | N66: 278.4432 | O66: 765.0048 | P66: 969.2928
G67: 2 | H67: 40 | I67: 0.6981317008 | J67: 340 | K67: 1.5574 | L67: 1.8561 | M67: 2.8848 | N67: 529.516 | O67: 631.074 | P67: 980.832
E68: 1 | F68: p | G68: 3 | H68: 60 | I68: 1.047197551 | J68: 336 | K68: 2.0983 | L68: 1.2115 | M68: 2.8848 | N68: 705.0288 | O68: 407.064 | P68: 969.2928
G69: 4 | H69: 80 | I69: 1.396263402 | J69: 340 | K69: 2.3861 | L69: 0.4207 | M69: 2.8848 | N69: 811.274 | O69: 143.038 | P69: 980.832
G70: 5 | H70: 100 | I70: 1.745329252 | J70: 336 | K70: 2.3861 | L70: -0.4207 | M70: 2.8848 | N70: 801.7296 | O70: -141.3552 | P70: 969.2928
E71: 2 | F71: n | G71: 6 | H71: 120 | I71: 2.094395102 | J71: 340 | K71: 2.0983 | L71: -1.2115 | M71: 2.8848 | N71: 713.422 | O71: -411.91 | P71: 980.832
G72: 7 | H72: 140 | I72: 2.443460953 | J72: 336 | K72: 1.5574 | L72: -1.8561 | M72: 2.8848 | N72: 523.2864 | O72: -623.6496 | P72: 969.2928
G73: 8 | H73: 160 | I73: 2.792526803 | J73: 340 | K73: 0.8287 | L73: -2.2768 | M73: 2.8848 | N73: 281.758 | O73: -774.112 | P73: 980.832
E74: 3 | F74: p | G74: 9 | H74: 180 | I74: 3.141592654 | J74: 336 | K74: 0 | L74: -2.423 | M74: 2.8848 | N74: 0 | O74: -814.128 | P74: 969.2928
G75: 10 | H75: 200 | I75: 3.490658504 | J75: 340 | K75: -0.8287 | L75: -2.2768 | M75: 2.8848 | N75: -281.758 | O75: -774.112 | P75: 980.832
G76: 11 | H76: 220 | I76: =RADIANS(H76) -> 3.839724354 | J76: 336 | K76: =TRUNC(2.423*SIN(I76),4) -> -1.5574 | L76: =TRUNC(2.423*COS(I76),4) -> -1.8561 | M76: 2.8848 | N76: =J76*K76 -> -523.2864 | O76: =J76*L76 -> -623.6496 | P76: =J76*M76 -> 969.2928
E77: 4 | F77: n | G77: 12 | H77: 240 | I77: 4.188790205 | J77: 340 | K77: -2.0983 | L77: -1.2115 | M77: 2.8848 | N77: -713.422 | O77: -411.91 | P77: 980.832
G78: 13 | H78: 260 | I78: 4.537856055 | J78: 336 | K78: -2.3861 | L78: -0.4207 | M78: 2.8848 | N78: -801.7296 | O78: -141.3552 | P78: 969.2928
G79: 14 | H79: 280 | I79: 4.886921906 | J79: 340 | K79: -2.3861 | L79: 0.4207 | M79: 2.8848 | N79: -811.274 | O79: 143.038 | P79: 980.832
E80: 5 | F80: p | G80: 15 | H80: 300 | I80: 5.235987756 | J80: 336 | K80: -2.0983 | L80: 1.2115 | M80: 2.8848 | N80: -705.0288 | O80: 407.064 | P80: 969.2928
G81: 16 | H81: 320 | I81: 5.585053606 | J81: 340 | K81: -1.5574 | L81: 1.8561 | M81: 2.8848 | N81: -529.516 | O81: 631.074 | P81: 980.832
G82: 17 | H82: 340 | I82: 5.934119457 | J82: 336 | K82: -0.8287 | L82: 2.2768 | M82: 2.8848 | N82: -278.4432 | O82: 765.0048 | P82: 969.2928
D83: 5 | E83: 0 | F83: p | G83: 0 | H83: 0 | I83: 0 | J83: 336 | K83: 0 | L83: 2.423 | M83: =0.9616*4 -> 3.8464 | N83: 0 | O83: 814.128 | P83: 1292.3904
G84: 1 | H84: 20 | I84: 0.3490658504 | J84: 340 | K84: 0.8287 | L84: 2.2768 | M84: =0.9616*4 -> 3.8464 | N84: 281.758 | O84: 774.112 | P84: 1307.776
G85: 2 | H85: 40 | I85: 0.6981317008 | J85: 336 | K85: 1.5574 | L85: 1.8561 | M85: 3.8464 | N85: 523.2864 | O85: 623.6496 | P85: 1292.3904
E86: 1 | F86: n | G86: 3 | H86: 60 | I86: 1.047197551 | J86: 340 | K86: 2.0983 | L86: 1.2115 | M86: 3.8464 | N86: 713.422 | O86: 411.91 | P86: 1307.776
G87: 4 | H87: 80 | I87: 1.396263402 | J87: 336 | K87: 2.3861 | L87: 0.4207 | M87: 3.8464 | N87: 801.7296 | O87: 141.3552 | P87: 1292.3904
G88: 5 | H88: 100 | I88: 1.745329252 | J88: 340 | K88: 2.3861 | L88: -0.4207 | M88: 3.8464 | N88: 811.274 | O88: -143.038 | P88: 1307.776
E89: 2 | F89: p | G89: 6 | H89: 120 | I89: 2.094395102 | J89: 336 | K89: 2.0983 | L89: -1.2115 | M89: 3.8464 | N89: 705.0288 | O89: -407.064 | P89: 1292.3904
G90: 7 | H90: 140 | I90: 2.443460953 | J90: 340 | K90: 1.5574 | L90: -1.8561 | M90: 3.8464 | N90: 529.516 | O90: -631.074 | P90: 1307.776
G91: 8 | H91: 160 | I91: 2.792526803 | J91: 336 | K91: 0.8287 | L91: -2.2768 | M91: 3.8464 | N91: 278.4432 | O91: -765.0048 | P91: 1292.3904
E92: 3 | F92: n | G92: 9 | H92: 180 | I92: 3.141592654 | J92: 340 | K92: 0 | L92: -2.423 | M92: 3.8464 | N92: 0 | O92: -823.82 | P92: 1307.776
G93: 10 | H93: 200 | I93: 3.490658504 | J93: 336 | K93: -0.8287 | L93: -2.2768 | M93: 3.8464 | N93: -278.4432 | O93: -765.0048 | P93: 1292.3904
G94: 11 | H94: 220 | I94: 3.839724354 | J94: 340 | K94: -1.5574 | L94: -1.8561 | M94: 3.8464 | N94: -529.516 | O94: -631.074 | P94: 1307.776
E95: 4 | F95: p | G95: 12 | H95: 240 | I95: 4.188790205 | J95: 336 | K95: -2.0983 | L95: -1.2115 | M95: 3.8464 | N95: -705.0288 | O95: -407.064 | P95: 1292.3904
G96: 13 | H96: 260 | I96: 4.537856055 | J96: 340 | K96: -2.3861 | L96: -0.4207 | M96: 3.8464 | N96: -811.274 | O96: -143.038 | P96: 1307.776
G97: 14 | H97: 280 | I97: 4.886921906 | J97: 336 | K97: -2.3861 | L97: 0.4207 | M97: 3.8464 | N97: -801.7296 | O97: 141.3552 | P97: 1292.3904
E98: 5 | F98: n | G98: 15 | H98: 300 | I98: 5.235987756 | J98: 340 | K98: -2.0983 | L98: 1.2115 | M98: 3.8464 | N98: -713.422 | O98: 411.91 | P98: 1307.776
G99: 16 | H99: 320 | I99: 5.585053606 | J99: 336 | K99: -1.5574 | L99: 1.8561 | M99: 3.8464 | N99: -523.2864 | O99: 623.6496 | P99: 1292.3904
G100: 17 | H100: 340 | I100: 5.934119457 | J100: 340 | K100: -0.8287 | L100: 2.2768 | M100: 3.8464 | N100: -281.758 | O100: 774.112 | P100: 1307.776
D101: 6 | E101: 0 | F101: n | G101: 0'"" | H101: 0 | I101: 0 | J101: 340 | K101: 0 | L101: 2.423 | M101: 4.808 | N101: 0 | O101: 823.82 | P101: 1634.72
G102: 1'"" | H102: 20 | I102: 0.34906585 | J102: 336 | K102: 0.8287 | L102: 2.2768 | M102: 4.808 | N102: 278.4432 | O102: 765.0048 | P102: 1615.488
G103: 2'"" | H103: 40 | I103: 0.6981317 | J103: 340 | K103: 1.5574 | L103: 1.8561 | M103: 4.808 | N103: 529.516 | O103: 631.074 | P103: 1634.72
E104: 1 | F104: p | G104: 3"' | H104: 60 | I104: 1.04719755 | J104: 336 | K104: 2.0983 | L104: 1.2115 | M104: 4.808 | N104: 705.0288 | O104: 407.064 | P104: 1615.488
G105: 4"' | H105: 80 | I105: 1.3962634 | J105: 340 | K105: 2.3861 | L105: 0.4207 | M105: 4.808 | N105: 811.274 | O105: 143.038 | P105: 1634.72
G106: 5"' | H106: 100 | I106: 1.74532925 | J106: 336 | K106: 2.3861 | L106: -0.4207 | M106: 4.808 | N106: 801.7296 | O106: -141.3552 | P106: 1615.488
J107: =SUM(J11:J106) -> 32448 | N107: =SUM(N11:N106) -> 3125.9916 | O107: =SUM(O11:O106) -> 2628.6456 | P107: =SUM(P11:P106) -> 68254.368
M108: Coordinates
M109: x= | N109: =N107/J107 -> 0.09633849852
M110: y= | N110: =O107/J107 -> 0.08101102071
H111: AQM predicted r (precessing)= | I111: =SQRT((K102-K21)^2+(L102-L21)^2+(M102-M21)^2)/2 -> 3.413177102 | M111: z= | N111: =P107/J107 -> 2.1035
H112: % agreement= | I112: =ABS(I111-N112)/((N112+I111)/2) -> 4.6% | K112: S-32 experimental radius= | N112: 3.2611
M113: AQM predicted r (tumbling)= | N113: =SQRT((K23-N109)^2+(L23-N110)^2+(M23-N111)^2) -> 3.30329156 | O113: COM to quark 12
M114: % agreement= | N114: =ABS(N113-N112)/((N112+N113)/2) -> 1.3%

Sheet S-34
E9: ring | F9: nucleon position | G9: type | H9: quark position | I9: angle (deg) | J9: angle (rad) | K9: mass (MeV) | L9: x (fm) | M9: y (fm) | N9: z (fm) | O9: weight x | P9: weight y | Q9: weight z
E11: 1 | F11: 0 | G11: p | H11: 0 | I11: 0 | J11: 0 | K11: 336 | L11: 0 | M11: 2.423 | N11: 0 | O11: =K11*L11 -> 0 | P11: =K11*M11 -> 814.128 | Q11: =K11*N11 -> 0
H12: 1 | I12: 20 | J12: 0.34906585 | K12: 340 | L12: 0.8287 | M12: 2.2768 | N12: 0 | O12: =K12*L12 -> 281.758 | P12: =K12*M12 -> 774.112 | Q12: =K12*N12 -> 0
H13: 2 | I13: 40 | J13: 0.6981317 | K13: 336 | L13: 1.5574 | M13: 1.8561 | N13: 0 | O13: 523.2864 | P13: 623.6496 | Q13: 0
F14: 1 | G14: n | H14: 3 | I14: 60 | J14: 1.04719755 | K14: 340 | L14: 2.0983 | M14: 1.2115 | N14: 0 | O14: 713.422 | P14: 411.91 | Q14: 0
H15: 4 | I15: 80 | J15: 1.3962634 | K15: 336 | L15: 2.3861 | M15: 0.4207 | N15: 0 | O15: 801.7296 | P15: 141.3552 | Q15: 0
H16: 5 | I16: 100 | J16: 1.74532925 | K16: 340 | L16: 2.3861 | M16: -0.4207 | N16: 0 | O16: 811.274 | P16: -143.038 | Q16: 0
F17: 2 | G17: p | H17: 6 | I17: 120 | J17: 2.0943951 | K17: 336 | L17: 2.0983 | M17: -1.2115 | N17: 0 | O17: 705.0288 | P17: -407.064 | Q17: 0
H18: 7 | I18: 140 | J18: 2.44346095 | K18: 340 | L18: 1.5574 | M18: -1.8561 | N18: 0 | O18: 529.516 | P18: -631.074 | Q18: 0
H19: 8 | I19: 160 | J19: 2.7925268 | K19: 336 | L19: 0.8287 | M19: -2.2768 | N19: 0 | O19: 278.4432 | P19: -765.0048 | Q19: 0
F20: 3 | G20: n | H20: 9 | I20: 180 | J20: 3.14159265 | K20: 340 | L20: 0 | M20: -2.423 | N20: 0 | O20: 0 | P20: -823.82 | Q20: 0
H21: 10 | I21: 200 | J21: 3.4906585 | K21: 336 | L21: -0.8287 | M21: -2.2768 | N21: 0 | O21: -278.4432 | P21: -765.0048 | Q21: 0
H22: 11 | I22: 220 | J22: 3.83972435 | K22: 340 | L22: -1.5574 | M22: -1.8561 | N22: 0 | O22: -529.516 | P22: -631.074 | Q22: 0
F23: 4 | G23: p | H23: 12 | I23: 240 | J23: 4.1887902 | K23: 336 | L23: -2.0983 | M23: -1.2115 | N23: 0 | O23: -705.0288 | P23: -407.064 | Q23: 0
H24: 13 | I24: 260 | J24: 4.53785606 | K24: 340 | L24: -2.3861 | M24: -0.4207 | N24: 0 | O24: -811.274 | P24: -143.038 | Q24: 0
H25: 14 | I25: 280 | J25: 4.88692191 | K25: 336 | L25: -2.3861 | M25: 0.4207 | N25: 0 | O25: -801.7296 | P25: 141.3552 | Q25: 0
F26: 5 | G26: n | H26: 15 | I26: 300 | J26: 5.23598776 | K26: 340 | L26: -2.0983 | M26: 1.2115 | N26: 0 | O26: -713.422 | P26: 411.91 | Q26: 0
H27: 16 | I27: 320 | J27: 5.58505361 | K27: 336 | L27: -1.5574 | M27: 1.8561 | N27: 0 | O27: -523.2864 | P27: 623.6496 | Q27: 0
H28: 17 | I28: 340 | J28: 5.93411946 | K28: 340 | L28: -0.8287 | M28: 2.2768 | N28: 0 | O28: -281.758 | P28: 774.112 | Q28: 0
E29: 2 | F29: 0 | G29: n | H29: 0' | I29: 0 | J29: 0 | K29: 340 | L29: 0 | M29: 2.423 | N29: 0.9616 | O29: 0 | P29: 823.82 | Q29: 326.944
H30: 1' | I30: 20 | J30: 0.34906585 | K30: 336 | L30: 0.8287 | M30: 2.2768 | N30: 0.9616 | O30: 278.4432 | P30: 765.0048 | Q30: 323.0976
H31: 2' | I31: 40 | J31: 0.6981317 | K31: 340 | L31: 1.5574 | M31: 1.8561 | N31: 0.9616 | O31: 529.516 | P31: 631.074 | Q31: 326.944
F32: 1 | G32: p | H32: 3' | I32: 60 | J32: 1.04719755 | K32: 336 | L32: 2.0983 | M32: 1.2115 | N32: 0.9616 | O32: 705.0288 | P32: 407.064 | Q32: 323.0976
H33: 4' | I33: 80 | J33: 1.3962634 | K33: 340 | L33: 2.3861 | M33: 0.4207 | N33: 0.9616 | O33: 811.274 | P33: 143.038 | Q33: 326.944
H34: 5' | I34: 100 | J34: 1.74532925 | K34: 336 | L34: 2.3861 | M34: -0.4207 | N34: 0.9616 | O34: 801.7296 | P34: -141.3552 | Q34: 323.0976
F35: 2 | G35: n | H35: 6' | I35: 120 | J35: 2.0943951 | K35: 340 | L35: 2.0983 | M35: -1.2115 | N35: 0.9616 | O35: 713.422 | P35: -411.91 | Q35: 326.944
H36: 7' | I36: 140 | J36: 2.44346095 | K36: 336 | L36: 1.5574 | M36: -1.8561 | N36: 0.9616 | O36: 523.2864 | P36: -623.6496 | Q36: 323.0976
H37: 8' | I37: 160 | J37: 2.7925268 | K37: 340 | L37: 0.8287 | M37: -2.2768 | N37: 0.9616 | O37: 281.758 | P37: -774.112 | Q37: 326.944
F38: 3 | G38: p | H38: 9' | I38: 180 | J38: 3.14159265 | K38: 336 | L38: 0 | M38: -2.423 | N38: 0.9616 | O38: 0 | P38: -814.128 | Q38: 323.0976
H39: 10' | I39: 200 | J39: 3.4906585 | K39: 340 | L39: -0.8287 | M39: -2.2768 | N39: 0.9616 | O39: -281.758 | P39: -774.112 | Q39: 326.944
H40: 11' | I40: 220 | J40: 3.83972435 | K40: 336 | L40: -1.5574 | M40: -1.8561 | N40: 0.9616 | O40: -523.2864 | P40: -623.6496 | Q40: 323.0976
F41: 4 | G41: n | H41: 12' | I41: 240 | J41: 4.1887902 | K41: 340 | L41: -2.0983 | M41: -1.2115 | N41: 0.9616 | O41: -713.422 | P41: -411.91 | Q41: 326.944
H42: 13' | I42: 260 | J42: 4.53785606 | K42: 336 | L42: -2.3861 | M42: -0.4207 | N42: 0.9616 | O42: -801.7296 | P42: -141.3552 | Q42: 323.0976
H43: 14' | I43: 280 | J43: 4.88692191 | K43: 340 | L43: -2.3861 | M43: 0.4207 | N43: 0.9616 | O43: -811.274 | P43: 143.038 | Q43: 326.944
F44: 5 | G44: p | H44: 15' | I44: 300 | J44: 5.23598776 | K44: 336 | L44: -2.0983 | M44: 1.2115 | N44: 0.9616 | O44: -705.0288 | P44: 407.064 | Q44: 323.0976
H45: 16' | I45: 320 | J45: 5.58505361 | K45: 340 | L45: -1.5574 | M45: 1.8561 | N45: 0.9616 | O45: -529.516 | P45: 631.074 | Q45: 326.944
H46: 17' | I46: 340 | J46: 5.93411946 | K46: 336 | L46: -0.8287 | M46: 2.2768 | N46: 0.9616 | O46: -278.4432 | P46: 765.0048 | Q46: 323.0976
E47: 3 | F47: 0 | G47: p | H47: 0" | I47: 0 | J47: 0 | K47: 336 | L47: 0 | M47: 2.423 | N47: 1.9232 | O47: 0 | P47: 814.128 | Q47: 646.1952
H48: 1" | I48: 20 | J48: 0.34906585 | K48: 340 | L48: 0.8287 | M48: 2.2768 | N48: 1.9232 | O48: 281.758 | P48: 774.112 | Q48: 653.888
H49: 2" | I49: 40 | J49: 0.6981317 | K49: 336 | L49: 1.5574 | M49: 1.8561 | N49: 1.9232 | O49: 523.2864 | P49: 623.6496 | Q49: 646.1952
F50: 1 | G50: n | H50: 3" | I50: 60 | J50: 1.04719755 | K50: 340 | L50: 2.0983 | M50: 1.2115 | N50: 1.9232 | O50: 713.422 | P50: 411.91 | Q50: 653.888
H51: 4" | I51: 80 | J51: 1.3962634 | K51: 336 | L51: 2.3861 | M51: 0.4207 | N51: 1.9232 | O51: 801.7296 | P51: 141.3552 | Q51: 646.1952
H52: 5" | I52: 100 | J52: 1.74532925 | K52: 340 | L52: 2.3861 | M52: -0.4207 | N52: 1.9232 | O52: 811.274 | P52: -143.038 | Q52: 653.888
F53: 2 | G53: p | H53: 6" | I53: 120 | J53: 2.0943951 | K53: 336 | L53: 2.0983 | M53: -1.2115 | N53: 1.9232 | O53: 705.0288 | P53: -407.064 | Q53: 646.1952
H54: 7" | I54: 140 | J54: 2.44346095 | K54: 340 | L54: 1.5574 | M54: -1.8561 | N54: 1.9232 | O54: 529.516 | P54: -631.074 | Q54: 653.888
H55: 8" | I55: 160 | J55: 2.7925268 | K55: 336 | L55: 0.8287 | M55: -2.2768 | N55: 1.9232 | O55: 278.4432 | P55: -765.0048 | Q55: 646.1952
F56: 3 | G56: n | H56: 9" | I56: 180 | J56: 3.14159265 | K56: 340 | L56: 0 | M56: -2.423 | N56: 1.9232 | O56: 0 | P56: -823.82 | Q56: 653.888
H57: 10" | I57: 200 | J57: 3.4906585 | K57: 336 | L57: -0.8287 | M57: -2.2768 | N57: 1.9232 | O57: -278.4432 | P57: -765.0048 | Q57: 646.1952
H58: 11" | I58: 220 | J58: 3.83972435 | K58: 340 | L58: -1.5574 | M58: -1.8561 | N58: 1.9232 | O58: -529.516 | P58: -631.074 | Q58: 653.888
F59: 4 | G59: p | H59: 12" | I59: 240 | J59: 4.1887902 | K59: 336 | L59: -2.0983 | M59: -1.2115 | N59: 1.9232 | O59: -705.0288 | P59: -407.064 | Q59: 646.1952
H60: 13" | I60: 260 | J60: 4.53785606 | K60: 340 | L60: -2.3861 | M60: -0.4207 | N60: 1.9232 | O60: -811.274 | P60: -143.038 | Q60: 653.888
H61: 14" | I61: 280 | J61: 4.88692191 | K61: 336 | L61: -2.3861 | M61: 0.4207 | N61: 1.9232 | O61: -801.7296 | P61: 141.3552 | Q61: 646.1952
F62: 5 | G62: n | H62: 15" | I62: 300 | J62: 5.23598776 | K62: 340 | L62: -2.0983 | M62: 1.2115 | N62: 1.9232 | O62: -713.422 | P62: 411.91 | Q62: 653.888
H63: 16" | I63: 320 | J63: 5.58505361 | K63: 336 | L63: -1.5574 | M63: 1.8561 | N63: 1.9232 | O63: -523.2864 | P63: 623.6496 | Q63: 646.1952
H64: 17" | I64: 340 | J64: 5.93411946 | K64: 340 | L64: -0.8287 | M64: 2.2768 | N64: 1.9232 | O64: -281.758 | P64: 774.112 | Q64: 653.888
E65: 4 | F65: 0 | G65: n | H65: 0"' | I65: 0 | J65: 0 | K65: 340 | L65: 0 | M65: 2.423 | N65: 2.8848 | O65: 0 | P65: 823.82 | Q65: 980.832
H66: 1"' | I66: 20 | J66: 0.34906585 | K66: 336 | L66: 0.8287 | M66: 2.2768 | N66: 2.8848 | O66: 278.4432 | P66: 765.0048 | Q66: 969.2928
H67: 2"' | I67: 40 | J67: 0.6981317 | K67: 340 | L67: 1.5574 | M67: 1.8561 | N67: 2.8848 | O67: 529.516 | P67: 631.074 | Q67: 980.832
F68: 1 | G68: p | H68: 3"' | I68: 60 | J68: 1.04719755 | K68: 336 | L68: 2.0983 | M68: 1.2115 | N68: 2.8848 | O68: 705.0288 | P68: 407.064 | Q68: 969.2928
H69: 4"' | I69: 80 | J69: 1.3962634 | K69: 340 | L69: 2.3861 | M69: 0.4207 | N69: 2.8848 | O69: 811.274 | P69: 143.038 | Q69: 980.832
H70: 5"' | I70: 100 | J70: 1.74532925 | K70: 336 | L70: 2.3861 | M70: -0.4207 | N70: 2.8848 | O70: 801.7296 | P70: -141.3552 | Q70: 969.2928
F71: 2 | G71: n | H71: 6"' | I71: 120 | J71: 2.0943951 | K71: 340 | L71: 2.0983 | M71: -1.2115 | N71: 2.8848 | O71: 713.422 | P71: -411.91 | Q71: 980.832
H72: 7"' | I72: 140 | J72: 2.44346095 | K72: 336 | L72: 1.5574 | M72: -1.8561 | N72: 2.8848 | O72: 523.2864 | P72: -623.6496 | Q72: 969.2928
H73: 8"' | I73: 160 | J73: 2.7925268 | K73: 340 | L73: 0.8287 | M73: -2.2768 | N73: 2.8848 | O73: 281.758 | P73: -774.112 | Q73: 980.832
F74: 3 | G74: p | H74: 9'" | I74: 180 | J74: 3.14159265 | K74: 336 | L74: 0 | M74: -2.423 | N74: 2.8848 | O74: 0 | P74: -814.128 | Q74: 969.2928
H75: 10'" | I75: 200 | J75: 3.4906585 | K75: 340 | L75: -0.8287 | M75: -2.2768 | N75: 2.8848 | O75: -281.758 | P75: -774.112 | Q75: 980.832
H76: 11'" | I76: 220 | J76: 3.83972435 | K76: 336 | L76: -1.5574 | M76: -1.8561 | N76: 2.8848 | O76: =K76*L76 -> -523.2864 | P76: =K76*M76 -> -623.6496 | Q76: =K76*N76 -> 969.2928
F77: 4 | G77: n | H77: 12"' | I77: 240 | J77: 4.1887902 | K77: 340 | L77: -2.0983 | M77: -1.2115 | N77: 2.8848 | O77: -713.422 | P77: -411.91 | Q77: 980.832
H78: 13"' | I78: 260 | J78: 4.53785606 | K78: 336 | L78: -2.3861 | M78: -0.4207 | N78: 2.8848 | O78: -801.7296 | P78: -141.3552 | Q78: 969.2928
H79: 14" | I79: 280 | J79: 4.88692191 | K79: 340 | L79: -2.3861 | M79: 0.4207 | N79: 2.8848 | O79: -811.274 | P79: 143.038 | Q79: 980.832
F80: 5 | G80: p | H80: 15"' | I80: 300 | J80: 5.23598776 | K80: 336 | L80: -2.0983 | M80: 1.2115 | N80: 2.8848 | O80: -705.0288 | P80: 407.064 | Q80: 969.2928
H81: 16"' | I81: 320 | J81: 5.58505361 | K81: 340 | L81: -1.5574 | M81: 1.8561 | N81: 2.8848 | O81: -529.516 | P81: 631.074 | Q81: 980.832
H82: 17"' | I82: 340 | J82: 5.93411946 | K82: 336 | L82: -0.8287 | M82: 2.2768 | N82: 2.8848 | O82: -278.4432 | P82: 765.0048 | Q82: 969.2928
E83: 5 | F83: 0 | G83: p | H83: 0"" | I83: 0 | J83: 0 | K83: 336 | L83: 0 | M83: 2.423 | N83: 3.8464 | O83: 0 | P83: 814.128 | Q83: 1292.3904
H84: 1"" | I84: 20 | J84: 0.34906585 | K84: 340 | L84: 0.8287 | M84: 2.2768 | N84: 3.8464 | O84: 281.758 | P84: 774.112 | Q84: 1307.776
H85: 2"" | I85: 40 | J85: 0.6981317 | K85: 336 | L85: 1.5574 | M85: 1.8561 | N85: 3.8464 | O85: 523.2864 | P85: 623.6496 | Q85: 1292.3904
F86: 1 | G86: n | H86: 3"" | I86: 60 | J86: 1.04719755 | K86: 340 | L86: 2.0983 | M86: 1.2115 | N86: 3.8464 | O86: 713.422 | P86: 411.91 | Q86: 1307.776
H87: 4"" | I87: 80 | J87: 1.3962634 | K87: 336 | L87: 2.3861 | M87: 0.4207 | N87: 3.8464 | O87: 801.7296 | P87: 141.3552 | Q87: 1292.3904
H88: 5"" | I88: 100 | J88: 1.74532925 | K88: 340 | L88: 2.3861 | M88: -0.4207 | N88: 3.8464 | O88: 811.274 | P88: -143.038 | Q88: 1307.776
F89: 2 | G89: p | H89: 6"" | I89: 120 | J89: 2.0943951 | K89: 336 | L89: 2.0983 | M89: -1.2115 | N89: 3.8464 | O89: 705.0288 | P89: -407.064 | Q89: 1292.3904
H90: 7"" | I90: 140 | J90: 2.44346095 | K90: 340 | L90: 1.5574 | M90: -1.8561 | N90: 3.8464 | O90: 529.516 | P90: -631.074 | Q90: 1307.776
H91: 8"" | I91: 160 | J91: 2.7925268 | K91: 336 | L91: 0.8287 | M91: -2.2768 | N91: 3.8464 | O91: 278.4432 | P91: -765.0048 | Q91: 1292.3904
F92: 3 | G92: n | H92: 9"" | I92: 180 | J92: 3.14159265 | K92: 340 | L92: 0 | M92: -2.423 | N92: 3.8464 | O92: 0 | P92: -823.82 | Q92: 1307.776
H93: 10"" | I93: 200 | J93: 3.4906585 | K93: 336 | L93: -0.8287 | M93: -2.2768 | N93: 3.8464 | O93: -278.4432 | P93: -765.0048 | Q93: 1292.3904
H94: 11"" | I94: 220 | J94: 3.83972435 | K94: 340 | L94: -1.5574 | M94: -1.8561 | N94: 3.8464 | O94: -529.516 | P94: -631.074 | Q94: 1307.776
F95: 4 | G95: p | H95: 12" | I95: 240 | J95: 4.1887902 | K95: 336 | L95: -2.0983 | M95: -1.2115 | N95: 3.8464 | O95: -705.0288 | P95: -407.064 | Q95: 1292.3904
H96: 13" | I96: 260 | J96: 4.53785606 | K96: 340 | L96: -2.3861 | M96: -0.4207 | N96: 3.8464 | O96: -811.274 | P96: -143.038 | Q96: 1307.776
H97: 14" | I97: 280 | J97: 4.88692191 | K97: 336 | L97: -2.3861 | M97: 0.4207 | N97: 3.8464 | O97: -801.7296 | P97: 141.3552 | Q97: 1292.3904
F98: 5 | G98: n | H98: 15"" | I98: 300 | J98: 5.23598776 | K98: 340 | L98: -2.0983 | M98: 1.2115 | N98: 3.8464 | O98: -713.422 | P98: 411.91 | Q98: 1307.776
H99: 16"" | I99: 320 | J99: 5.58505361 | K99: 336 | L99: -1.5574 | M99: 1.8561 | N99: 3.8464 | O99: -523.2864 | P99: 623.6496 | Q99: 1292.3904
H100: 17"" | I100: 340 | J100: 5.93411946 | K100: 340 | L100: -0.8287 | M100: 2.2768 | N100: 3.8464 | O100: -281.758 | P100: 774.112 | Q100: 1307.776
E101: 5C | F101: Center | G101: n | H101: C + 0.84(x) | I101: 90 | J101: =RADIANS(I101) -> 1.570796327 | K101: 340 | L101: 0.84 | M101: 0 | N101: 0 | O101: =K101*L101 -> 285.6 | P101: =K101*M101 -> 0 | Q101: =K101*N101 -> 0
H102: C | I102: c | J102: c | K102: 336 | L102: 0 | M102: 0 | N102: 0 | O102: =K102*L102 -> 0 | P102: =K102*M102 -> 0 | Q102: =K102*N102 -> 0
H103: C - 0.84(x) | I103: 270 | J103: =RADIANS(I103) -> 4.71238898 | K103: 340 | L103: -0.84 | M103: 0 | N103: 0 | O103: =K103*L103 -> -285.6 | P103: =K103*M103 -> 0 | Q103: =K103*N103 -> 0
E104: 6 | F104: 0 | G104: n | H104: 0'"" | I104: 0 | J104: 0 | K104: 340 | L104: 0 | M104: 2.423 | N104: =0.9616*5 -> 4.808 | O104: 0 | P104: 823.82 | Q104: 1634.72
H105: 1'"" | I105: 20 | J105: 0.34906585 | K105: 336 | L105: 0.8287 | M105: 2.2768 | N105: =0.9616*5 -> 4.808 | O105: 278.4432 | P105: 765.0048 | Q105: 1615.488
H106: 2'"" | I106: 40 | J106: 0.6981317 | K106: 340 | L106: 1.5574 | M106: 1.8561 | N106: 4.808 | O106: 529.516 | P106: 631.074 | Q106: 1634.72
F107: 1 | G107: p | H107: 3"' | I107: 60 | J107: 1.04719755 | K107: 336 | L107: 2.0983 | M107: 1.2115 | N107: 4.808 | O107: 705.0288 | P107: 407.064 | Q107: 1615.488
H108: 4"' | I108: 80 | J108: 1.3962634 | K108: 340 | L108: 2.3861 | M108: 0.4207 | N108: 4.808 | O108: 811.274 | P108: 143.038 | Q108: 1634.72
H109: 5"' | I109: 100 | J109: 1.74532925 | K109: 336 | L109: 2.3861 | M109: -0.4207 | N109: 4.808 | O109: 801.7296 | P109: -141.3552 | Q109: 1615.488
F110: 2 | G110: n | H110: 6"' | I110: 120 | J110: 2.0943951 | K110: 340 | L110: 0 | M110: 0 | N110: 4.808 | O110: 0 | P110: 0 | Q110: 1634.72
H111: 7"' | I111: 140 | J111: 2.44346095 | K111: 336 | L111: 0 | M111: 0 | N111: 4.808 | O111: 0 | P111: 0 | Q111: 1615.488
H112: 8"' | I112: 160 | J112: 2.7925268 | K112: 340 | L112: 0 | M112: 0 | N112: 4.808 | O112: 0 | P112: 0 | Q112: 1634.72
K113: =SUM(K11:K112) -> 34480 | O113: =SUM(O11:O112) -> 3125.9916 | P113: =SUM(P11:P112) -> 2628.6456 | Q113: =SUM(Q11:Q112) -> 73139.296
M114: Coordinates
M115: x= | N115: =O113/K113 -> 0.09066100928
M116: y= | N116: =P113/K113 -> 0.07623682135
I117: AQM predicted r (precessing)= | J117: =SQRT((L105-L21)^2+(M105-M21)^2+(N105-N21)^2)/2 -> 3.413177102 | M117: z= | N117: =Q113/K113 -> 2.121209281
I118: % agreement= | J118: =ABS(J117-N118)/((O118+J117)/2) -> 7.5% | K118: S-34 experimental radius= | N118: 3.2847
M119: AQM predicted r (tumbling)= | N119: =SQRT((L24-N115)^2+(M24-N116)^2+(N24-N117)^2) -> 3.298608815 | O119: COM to quark 13
M120: % agreement= | N120: =ABS(N119-N118)/((N118+N119)/2) -> 0.4%

Sheet Cl-35
F11: nucleon | G11: quark # | H11: angle (deg) | I11: angle (rad) | J11: mass (MeV) | K11: x-value (fm) | L11: y-value (fm) | M11: z-value (fm) | N11: weight x | O11: weight y | P11: weight z
D12: 1 | E12: 0 | F12: proton | G12: 0 | H12: 0 | I12: 0 | J12: 336 | K12: 0 | L12: 2.423 | M12: 0 | N12: =J12*K12 -> 0 | O12: =J12*L12 -> 814.128 | P12: =J12*M12 -> 0
G13: 1 | H13: 20 | I13: 0.34906585 | J13: 340 | K13: 0.8287 | L13: 2.2768 | M13: 0 | N13: =J13*K13 -> 281.758 | O13: =J13*L13 -> 774.112 | P13: =J13*M13 -> 0
G14: 2 | H14: 40 | I14: 0.6981317 | J14: 336 | K14: 1.5574 | L14: 1.8561 | M14: 0 | N14: 523.2864 | O14: 623.6496 | P14: 0
E15: 1 | F15: neutron | G15: 3 | H15: 60 | I15: 1.04719755 | J15: 340 | K15: 2.0983 | L15: 1.2115 | M15: 0 | N15: 713.422 | O15: 411.91 | P15: 0
G16: 4 | H16: 80 | I16: 1.3962634 | J16: 336 | K16: 2.3861 | L16: 0.4207 | M16: 0 | N16: 801.7296 | O16: 141.3552 | P16: 0
G17: 5 | H17: 100 | I17: 1.74532925 | J17: 340 | K17: 2.3861 | L17: -0.4207 | M17: 0 | N17: 811.274 | O17: -143.038 | P17: 0
E18: 2 | F18: proton | G18: 6 | H18: 120 | I18: 2.0943951 | J18: 336 | K18: 2.0983 | L18: -1.2115 | M18: 0 | N18: 705.0288 | O18: -407.064 | P18: 0
G19: 7 | H19: 140 | I19: 2.44346095 | J19: 340 | K19: 1.5574 | L19: -1.8561 | M19: 0 | N19: 529.516 | O19: -631.074 | P19: 0
G20: 8 | H20: 160 | I20: 2.7925268 | J20: 336 | K20: 0.8287 | L20: -2.2768 | M20: 0 | N20: 278.4432 | O20: -765.0048 | P20: 0
E21: 3 | F21: neutron | G21: 9 | H21: 180 | I21: 3.14159265 | J21: 340 | K21: 0 | L21: -2.423 | M21: 0 | N21: 0 | O21: -823.82 | P21: 0
G22: 10 | H22: 200 | I22: 3.4906585 | J22: 336 | K22: -0.8287 | L22: -2.2768 | M22: 0 | N22: -278.4432 | O22: -765.0048 | P22: 0
G23: 11 | H23: 220 | I23: 3.83972435 | J23: 340 | K23: -1.5574 | L23: -1.8561 | M23: 0 | N23: -529.516 | O23: -631.074 | P23: 0
E24: 4 | F24: proton | G24: 12 | H24: 240 | I24: 4.1887902 | J24: 336 | K24: -2.0983 | L24: -1.2115 | M24: 0 | N24: -705.0288 | O24: -407.064 | P24: 0
G25: 13 | H25: 260 | I25: 4.53785606 | J25: 340 | K25: -2.3861 | L25: -0.4207 | M25: 0 | N25: -811.274 | O25: -143.038 | P25: 0
G26: 14 | H26: 280 | I26: 4.88692191 | J26: 336 | K26: -2.3861 | L26: 0.4207 | M26: 0 | N26: -801.7296 | O26: 141.3552 | P26: 0
E27: 5 | F27: neutron | G27: 15 | H27: 300 | I27: 5.23598776 | J27: 340 | K27: -2.0983 | L27: 1.2115 | M27: 0 | N27: -713.422 | O27: 411.91 | P27: 0
G28: 16 | H28: 320 | I28: 5.58505361 | J28: 336 | K28: -1.5574 | L28: 1.8561 | M28: 0 | N28: -523.2864 | O28: 623.6496 | P28: 0
G29: 17 | H29: 340 | I29: 5.93411946 | J29: 340 | K29: -0.8287 | L29: 2.2768 | M29: 0 | N29: -281.758 | O29: 774.112 | P29: 0
D30: 2 | E30: 0 | F30: neutron | G30: 0' | H30: 0 | I30: 0 | J30: 340 | K30: 0 | L30: 2.423 | M30: 0.9616 | N30: 0 | O30: 823.82 | P30: 326.944
G31: 1' | H31: 20 | I31: 0.34906585 | J31: 336 | K31: 0.8287 | L31: 2.2768 | M31: 0.9616 | N31: 278.4432 | O31: 765.0048 | P31: 323.0976
G32: 2' | H32: 40 | I32: 0.6981317 | J32: 340 | K32: 1.5574 | L32: 1.8561 | M32: 0.9616 | N32: 529.516 | O32: 631.074 | P32: 326.944
E33: 1 | F33: proton | G33: 3' | H33: 60 | I33: 1.04719755 | J33: 336 | K33: 2.0983 | L33: 1.2115 | M33: 0.9616 | N33: 705.0288 | O33: 407.064 | P33: 323.0976
G34: 4' | H34: 80 | I34: 1.3962634 | J34: 340 | K34: 2.3861 | L34: 0.4207 | M34: 0.9616 | N34: 811.274 | O34: 143.038 | P34: 326.944
G35: 5' | H35: 100 | I35: 1.74532925 | J35: 336 | K35: 2.3861 | L35: -0.4207 | M35: 0.9616 | N35: 801.7296 | O35: -141.3552 | P35: 323.0976
E36: 2 | F36: neutron | G36: 6' | H36: 120 | I36: 2.0943951 | J36: 340 | K36: 2.0983 | L36: -1.2115 | M36: 0.9616 | N36: 713.422 | O36: -411.91 | P36: 326.944
G37: 7' | H37: 140 | I37: 2.44346095 | J37: 336 | K37: 1.5574 | L37: -1.8561 | M37: 0.9616 | N37: 523.2864 | O37: -623.6496 | P37: 323.0976
G38: 8' | H38: 160 | I38: 2.7925268 | J38: 340 | K38: 0.8287 | L38: -2.2768 | M38: 0.9616 | N38: 281.758 | O38: -774.112 | P38: 326.944
E39: 3 | F39: proton | G39: 9' | H39: 180 | I39: 3.14159265 | J39: 336 | K39: 0 | L39: -2.423 | M39: 0.9616 | N39: 0 | O39: -814.128 | P39: 323.0976
G40: 10' | H40: 200 | I40: 3.4906585 | J40: 340 | K40: -0.8287 | L40: -2.2768 | M40: 0.9616 | N40: -281.758 | O40: -774.112 | P40: 326.944
G41: 11' | H41: 220 | I41: 3.83972435 | J41: 336 | K41: -1.5574 | L41: -1.8561 | M41: 0.9616 | N41: -523.2864 | O41: -623.6496 | P41: 323.0976
E42: 4 | F42: neutron | G42: 12' | H42: 240 | I42: 4.1887902 | J42: 340 | K42: -2.0983 | L42: -1.2115 | M42: 0.9616 | N42: -713.422 | O42: -411.91 | P42: 326.944
G43: 13' | H43: 260 | I43: 4.53785606 | J43: 336 | K43: -2.3861 | L43: -0.4207 | M43: 0.9616 | N43: -801.7296 | O43: -141.3552 | P43: 323.0976
G44: 14' | H44: 280 | I44: 4.88692191 | J44: 340 | K44: -2.3861 | L44: 0.4207 | M44: 0.9616 | N44: -811.274 | O44: 143.038 | P44: 326.944
E45: 5 | F45: proton | G45: 15' | H45: 300 | I45: 5.23598776 | J45: 336 | K45: -2.0983 | L45: 1.2115 | M45: 0.9616 | N45: -705.0288 | O45: 407.064 | P45: 323.0976
G46: 16' | H46: 320 | I46: 5.58505361 | J46: 340 | K46: -1.5574 | L46: 1.8561 | M46: 0.9616 | N46: -529.516 | O46: 631.074 | P46: 326.944
G47: 17' | H47: 340 | I47: 5.93411946 | J47: 336 | K47: -0.8287 | L47: 2.2768 | M47: 0.9616 | N47: -278.4432 | O47: 765.0048 | P47: 323.0976
D48: 3 | E48: 0 | F48: proton | G48: 0" | H48: 0 | I48: 0 | J48: 336 | K48: 0 | L48: 2.423 | M48: 1.9232 | N48: 0 | O48: 814.128 | P48: 646.1952
G49: 1" | H49: 20 | I49: 0.34906585 | J49: 340 | K49: 0.8287 | L49: 2.2768 | M49: 1.9232 | N49: 281.758 | O49: 774.112 | P49: 653.888
G50: 2" | H50: 40 | I50: 0.6981317 | J50: 336 | K50: 1.5574 | L50: 1.8561 | M50: 1.9232 | N50: 523.2864 | O50: 623.6496 | P50: 646.1952
E51: 1 | F51: neutron | G51: 3" | H51: 60 | I51: 1.04719755 | J51: 340 | K51: 2.0983 | L51: 1.2115 | M51: 1.9232 | N51: 713.422 | O51: 411.91 | P51: 653.888
G52: 4" | H52: 80 | I52: 1.3962634 | J52: 336 | K52: 2.3861 | L52: 0.4207 | M52: 1.9232 | N52: 801.7296 | O52: 141.3552 | P52: 646.1952
G53: 5" | H53: 100 | I53: 1.74532925 | J53: 340 | K53: 2.3861 | L53: -0.4207 | M53: 1.9232 | N53: 811.274 | O53: -143.038 | P53: 653.888
E54: 2 | F54: proton | G54: 6" | H54: 120 | I54: 2.0943951 | J54: 336 | K54: 2.0983 | L54: -1.2115 | M54: 1.9232 | N54: 705.0288 | O54: -407.064 | P54: 646.1952
G55: 7" | H55: 140 | I55: 2.44346095 | J55: 340 | K55: 1.5574 | L55: -1.8561 | M55: 1.9232 | N55: 529.516 | O55: -631.074 | P55: 653.888
G56: 8" | H56: 160 | I56: 2.7925268 | J56: 336 | K56: 0.8287 | L56: -2.2768 | M56: 1.9232 | N56: 278.4432 | O56: -765.0048 | P56: 646.1952
E57: 3 | F57: neutron | G57: 9" | H57: 180 | I57: 3.14159265 | J57: 340 | K57: 0 | L57: -2.423 | M57: 1.9232 | N57: 0 | O57: -823.82 | P57: 653.888
G58: 10" | H58: 200 | I58: 3.4906585 | J58: 336 | K58: -0.8287 | L58: -2.2768 | M58: 1.9232 | N58: -278.4432 | O58: -765.0048 | P58: 646.1952
G59: 11" | H59: 220 | I59: 3.83972435 | J59: 340 | K59: -1.5574 | L59: -1.8561 | M59: 1.9232 | N59: -529.516 | O59: -631.074 | P59: 653.888
E60: 4 | F60: proton | G60: 12" | H60: 240 | I60: 4.1887902 | J60: 336 | K60: -2.0983 | L60: -1.2115 | M60: 1.9232 | N60: -705.0288 | O60: -407.064 | P60: 646.1952
G61: 13" | H61: 260 | I61: 4.53785606 | J61: 340 | K61: -2.3861 | L61: -0.4207 | M61: 1.9232 | N61: -811.274 | O61: -143.038 | P61: 653.888
G62: 14" | H62: 280 | I62: 4.88692191 | J62: 336 | K62: -2.3861 | L62: 0.4207 | M62: 1.9232 | N62: -801.7296 | O62: 141.3552 | P62: 646.1952
E63: 5 | F63: neutron | G63: 15" | H63: 300 | I63: 5.23598776 | J63: 340 | K63: -2.0983 | L63: 1.2115 | M63: 1.9232 | N63: -713.422 | O63: 411.91 | P63: 653.888
G64: 16" | H64: 320 | I64: 5.58505361 | J64: 336 | K64: -1.5574 | L64: 1.8561 | M64: 1.9232 | N64: -523.2864 | O64: 623.6496 | P64: 646.1952
G65: 17" | H65: 340 | I65: 5.93411946 | J65: 340 | K65: -0.8287 | L65: 2.2768 | M65: 1.9232 | N65: -281.758 | O65: 774.112 | P65: 653.888
D66: 4 | E66: 0 | F66: neutron | G66: 0"' | H66: 0 | I66: 0 | J66: 340 | K66: 0 | L66: 2.423 | M66: 2.8848 | N66: 0 | O66: 823.82 | P66: 980.832
G67: 1"' | H67: 20 | I67: 0.34906585 | J67: 336 | K67: 0.8287 | L67: 2.2768 | M67: 2.8848 | N67: 278.4432 | O67: 765.0048 | P67: 969.2928
G68: 2"' | H68: 40 | I68: 0.6981317 | J68: 340 | K68: 1.5574 | L68: 1.8561 | M68: 2.8848 | N68: 529.516 | O68: 631.074 | P68: 980.832
E69: 1 | F69: proton | G69: 3"' | H69: 60 | I69: 1.04719755 | J69: 336 | K69: 2.0983 | L69: 1.2115 | M69: 2.8848 | N69: 705.0288 | O69: 407.064 | P69: 969.2928
G70: 4"' | H70: 80 | I70: 1.3962634 | J70: 340 | K70: 2.3861 | L70: 0.4207 | M70: 2.8848 | N70: 811.274 | O70: 143.038 | P70: 980.832
G71: 5"' | H71: 100 | I71: 1.74532925 | J71: 336 | K71: 2.3861 | L71: -0.4207 | M71: 2.8848 | N71: 801.7296 | O71: -141.3552 | P71: 969.2928
E72: 2 | F72: neutron | G72: 6"' | H72: 120 | I72: 2.0943951 | J72: 340 | K72: 2.0983 | L72: -1.2115 | M72: 2.8848 | N72: 713.422 | O72: -411.91 | P72: 980.832
G73: 7"' | H73: 140 | I73: 2.44346095 | J73: 336 | K73: 1.5574 | L73: -1.8561 | M73: 2.8848 | N73: 523.2864 | O73: -623.6496 | P73: 969.2928
G74: 8"' | H74: 160 | I74: 2.7925268 | J74: 340 | K74: 0.8287 | L74: -2.2768 | M74: 2.8848 | N74: 281.758 | O74: -774.112 | P74: 980.832
E75: 3 | F75: proton | G75: 9'" | H75: 180 | I75: 3.14159265 | J75: 336 | K75: 0 | L75: -2.423 | M75: 2.8848 | N75: 0 | O75: -814.128 | P75: 969.2928
G76: 10'" | H76: 200 | I76: 3.4906585 | J76: 340 | K76: -0.8287 | L76: -2.2768 | M76: 2.8848 | N76: -281.758 | O76: -774.112 | P76: 980.832
G77: 11'" | H77: 220 | I77: 3.83972435 | J77: 336 | K77: -1.5574 | L77: -1.8561 | M77: 2.8848 | N77: =J77*K77 -> -523.2864 | O77: =J77*L77 -> -623.6496 | P77: =J77*M77 -> 969.2928
E78: 4 | F78: neutron | G78: 12"' | H78: 240 | I78: 4.1887902 | J78: 340 | K78: -2.0983 | L78: -1.2115 | M78: 2.8848 | N78: -713.422 | O78: -411.91 | P78: 980.832
G79: 13"' | H79: 260 | I79: 4.53785606 | J79: 336 | K79: -2.3861 | L79: -0.4207 | M79: 2.8848 | N79: -801.7296 | O79: -141.3552 | P79: 969.2928
G80: 14" | H80: 280 | I80: 4.88692191 | J80: 340 | K80: -2.3861 | L80: 0.4207 | M80: 2.8848 | N80: -811.274 | O80: 143.038 | P80: 980.832
E81: 5 | F81: proton | G81: 15"' | H81: 300 | I81: 5.23598776 | J81: 336 | K81: -2.0983 | L81: 1.2115 | M81: 2.8848 | N81: -705.0288 | O81: 407.064 | P81: 969.2928
G82: 16"' | H82: 320 | I82: 5.58505361 | J82: 340 | K82: -1.5574 | L82: 1.8561 | M82: 2.8848 | N82: -529.516 | O82: 631.074 | P82: 980.832
G83: 17"' | H83: 340 | I83: 5.93411946 | J83: 336 | K83: -0.8287 | L83: 2.2768 | M83: 2.8848 | N83: -278.4432 | O83: 765.0048 | P83: 969.2928
D84: 5 | E84: 0 | F84: proton | G84: 0"" | H84: 0 | I84: 0 | J84: 336 | K84: 0 | L84: 2.423 | M84: 3.8464 | N84: 0 | O84: 814.128 | P84: 1292.3904
G85: 1"" | H85: 20 | I85: 0.34906585 | J85: 340 | K85: 0.8287 | L85: 2.2768 | M85: 3.8464 | N85: 281.758 | O85: 774.112 | P85: 1307.776
G86: 2"" | H86: 40 | I86: 0.6981317 | J86: 336 | K86: 1.5574 | L86: 1.8561 | M86: 3.8464 | N86: 523.2864 | O86: 623.6496 | P86: 1292.3904
E87: 1 | F87: neutron | G87: 3"" | H87: 60 | I87: 1.04719755 | J87: 340 | K87: 2.0983 | L87: 1.2115 | M87: 3.8464 | N87: 713.422 | O87: 411.91 | P87: 1307.776
G88: 4"" | H88: 80 | I88: 1.3962634 | J88: 336 | K88: 2.3861 | L88: 0.4207 | M88: 3.8464 | N88: 801.7296 | O88: 141.3552 | P88: 1292.3904
G89: 5"" | H89: 100 | I89: 1.74532925 | J89: 340 | K89: 2.3861 | L89: -0.4207 | M89: 3.8464 | N89: 811.274 | O89: -143.038 | P89: 1307.776
E90: 2 | F90: proton | G90: 6"" | H90: 120 | I90: 2.0943951 | J90: 336 | K90: 2.0983 | L90: -1.2115 | M90: 3.8464 | N90: 705.0288 | O90: -407.064 | P90: 1292.3904
G91: 7"" | H91: 140 | I91: 2.44346095 | J91: 340 | K91: 1.5574 | L91: -1.8561 | M91: 3.8464 | N91: 529.516 | O91: -631.074 | P91: 1307.776
G92: 8"" | H92: 160 | I92: 2.7925268 | J92: 336 | K92: 0.8287 | L92: -2.2768 | M92: 3.8464 | N92: 278.4432 | O92: -765.0048 | P92: 1292.3904
E93: 3 | F93: neutron | G93: 9"" | H93: 180 | I93: 3.14159265 | J93: 340 | K93: 0 | L93: -2.423 | M93: 3.8464 | N93: 0 | O93: -823.82 | P93: 1307.776
G94: 10"" | H94: 200 | I94: 3.4906585 | J94: 336 | K94: -0.8287 | L94: -2.2768 | M94: 3.8464 | N94: -278.4432 | O94: -765.0048 | P94: 1292.3904
G95: 11"" | H95: 220 | I95: 3.83972435 | J95: 340 | K95: -1.5574 | L95: -1.8561 | M95: 3.8464 | N95: -529.516 | O95: -631.074 | P95: 1307.776
E96: 4 | F96: proton | G96: 12" | H96: 240 | I96: 4.1887902 | J96: 336 | K96: -2.0983 | L96: -1.2115 | M96: 3.8464 | N96: -705.0288 | O96: -407.064 | P96: 1292.3904
G97: 13" | H97: 260 | I97: 4.53785606 | J97: 340 | K97: -2.3861 | L97: -0.4207 | M97: 3.8464 | N97: -811.274 | O97: -143.038 | P97: 1307.776
G98: 14" | H98: 280 | I98: 4.88692191 | J98: 336 | K98: -2.3861 | L98: 0.4207 | M98: 3.8464 | N98: -801.7296 | O98: 141.3552 | P98: 1292.3904
E99: 5 | F99: neutron | G99: 15"" | H99: 300 | I99: 5.23598776 | J99: 340 | K99: -2.0983 | L99: 1.2115 | M99: 3.8464 | N99: -713.422 | O99: 411.91 | P99: 1307.776
G100: 16"" | H100: 320 | I100: 5.58505361 | J100: 336 | K100: -1.5574 | L100: 1.8561 | M100: 3.8464 | N100: -523.2864 | O100: 623.6496 | P100: 1292.3904
G101: 17"" | H101: 340 | I101: 5.93411946 | J101: 340 | K101: -0.8287 | L101: 2.2768 | M101: 3.8464 | N101: -281.758 | O101: 774.112 | P101: 1307.776
D102: 6 | E102: 0 | F102: neutron | G102: 0'"" | H102: 0 | I102: 0 | J102: 340 | K102: 0 | L102: 2.423 | M102: 4.808 | N102: 0 | O102: 823.82 | P102: 1634.72
G103: 1'"" | H103: 20 | I103: 0.34906585 | J103: 336 | K103: 0.8287 | L103: 2.2768 | M103: 4.808 | N103: 278.4432 | O103: 765.0048 | P103: 1615.488
G104: 2'"" | H104: 40 | I104: 0.6981317 | J104: 340 | K104: 1.5574 | L104: 1.8561 | M104: 4.808 | N104: 529.516 | O104: 631.074 | P104: 1634.72
E105: 1 | F105: proton | G105: 3"' | H105: 60 | I105: 1.04719755 | J105: 336 | K105: 2.0983 | L105: 1.2115 | M105: 4.808 | N105: 705.0288 | O105: 407.064 | P105: 1615.488
G106: 4"' | H106: 80 | I106: 1.3962634 | J106: 340 | K106: 2.3861 | L106: 0.4207 | M106: 4.808 | N106: 811.274 | O106: 143.038 | P106: 1634.72
G107: 5"' | H107: 100 | I107: 1.74532925 | J107: 336 | K107: 2.3861 | L107: -0.4207 | M107: 4.808 | N107: 801.7296 | O107: -141.3552 | P107: 1615.488
E108: 2 | F108: neutron | G108: 6"' | H108: 120 | I108: 2.0943951 | J108: 340 | K108: 2.0983 | L108: -1.2115 | M108: 4.808 | N108: 713.422 | O108: -411.91 | P108: 1634.72
G109: 7"' | H109: 140 | I109: 2.44346095 | J109: 336 | K109: 1.5574 | L109: -1.8561 | M109: 4.808 | N109: 523.2864 | O109: -623.6496 | P109: 1615.488
G110: 8"' | H110: 160 | I110: 2.7925268 | J110: 340 | K110: 0.8287 | L110: -2.2768 | M110: 4.808 | N110: 281.758 | O110: -774.112 | P110: 1634.72
E111: 3 | F111: proton | G111: 9'" | H111: 180 | I111: 3.14159265 | J111: 336 | K111: 0 | L111: -2.423 | M111: 4.808 | N111: 0 | O111: -814.128 | P111: 1615.488
G112: 10'" | H112: 200 | I112: 3.4906585 | J112: 340 | K112: -0.8287 | L112: -2.2768 | M112: 4.808 | N112: -281.758 | O112: -774.112 | P112: 1634.72
G113: 11'" | H113: 220 | I113: 3.83972435 | J113: 336 | K113: -1.5574 | L113: -1.8561 | M113: 4.808 | N113: -523.2864 | O113: -623.6496 | P113: 1615.488
E114: 4 | F114: neutron | G114: 12"' | H114: 240 | I114: 4.1887902 | J114: 340 | K114: -2.0983 | L114: -1.2115 | M114: 4.808 | N114: -713.422 | O114: -411.91 | P114: 1634.72
G115: 13"' | H115: 260 | I115: 4.53785606 | J115: 336 | K115: -2.3861 | L115: -0.4207 | M115: 4.808 | N115: -801.7296 | O115: -141.3552 | P115: 1615.488
G116: 14" | H116: 280 | I116: 4.88692191 | J116: 340 | K116: -2.3861 | L116: 0.4207 | M116: 4.808 | N116: -811.274 | O116: 143.038 | P116: 1634.72
J117: =SUM(J12:J116) -> 35492 | N117: =SUM(N12:N116) -> 1512.988 | O117: =SUM(O12:O116) -> -1803.1428 | P117: =SUM(P12:P116) -> 82889.92
M118: Coordinates
M119: x= | N119: =N117/J117 -> 0.04262898681
M120: y= | N120: =O117/J117 -> -0.05080420376
H121: AQM predicted r (precessing)= | I121: =SQRT((K106-K25)^2+(L106-L25)^2+(M106-M25)^2)/2 -> 3.413162419 | M121: z= | N121: =P117/J117 -> 2.335453623
H122: % agreement= | I122: =ABS(I121-M122)/((N122+I121)/2) -> 100.7% | K122: Cl-35 experimental radius= | N122: 3.3654
M123: AQM predicted r (tumbling)= | N123: =SQRT((K28-N119)^2+(L28-N120)^2+(M28-N121)^2) -> 3.413315108 | O123: COM to quark 13
M124: % agreement= | N124: =ABS(N123-N122)/((N122+N123)/2) -> 1.4%

Sheet Ar-36,38,40
E3: Ar-36
E5: ring level | F5: nucleon position | G5: nucleon type | H5: quark position | I5: angle (deg) | J5: angle (rad) | K5: mass (MeV) | L5: x-value (fm) | M5: y-value (fm) | N5: z-value (fm) | O5: weight x | P5: weight y | Q5: weight z
E7: 1 | F7: 0 | G7: p | H7: 0 | I7: 0 | J7: =RADIANS(I7) -> 0 | K7: 336 | L7: =TRUNC(2.423*SIN(J7),4) -> 0 | M7: =TRUNC(2.423*COS(J7),4) -> 2.423 | N7: 0 | O7: =K7*L7 -> 0 | P7: =K7*M7 -> 814.128 | Q7: =K7*N7 -> 0
H8: 1 | I8: 20 | J8: 0.3490658504 | K8: 340 | L8: 0.8287 | M8: 2.2768 | N8: 0 | O8: 281.758 | P8: 774.112 | Q8: 0
H9: 2 | I9: 40 | J9: 0.6981317008 | K9: 336 | L9: 1.5574 | M9: 1.8561 | N9: 0 | O9: 523.2864 | P9: 623.6496 | Q9: 0
F10: 1 | G10: n | H10: 3 | I10: 60 | J10: 1.047197551 | K10: 340 | L10: 2.0983 | M10: 1.2115 | N10: 0 | O10: 713.422 | P10: 411.91 | Q10: 0
H11: 4 | I11: 80 | J11: 1.396263402 | K11: 336 | L11: 2.3861 | M11: 0.4207 | N11: 0 | O11: 801.7296 | P11: 141.3552 | Q11: 0
H12: 5 | I12: 100 | J12: 1.745329252 | K12: 340 | L12: 2.3861 | M12: -0.4207 | N12: 0 | O12: 811.274 | P12: -143.038 | Q12: 0
F13: 2 | G13: p | H13: 6 | I13: 120 | J13: 2.094395102 | K13: 336 | L13: 2.0983 | M13: -1.2115 | N13: 0 | O13: 705.0288 | P13: -407.064 | Q13: 0
H14: 7 | I14: 140 | J14: 2.443460953 | K14: 340 | L14: 1.5574 | M14: -1.8561 | N14: 0 | O14: 529.516 | P14: -631.074 | Q14: 0
H15: 8 | I15: 160 | J15: 2.792526803 | K15: 336 | L15: 0.8287 | M15: -2.2768 | N15: 0 | O15: 278.4432 | P15: -765.0048 | Q15: 0
F16: 3 | G16: n | H16: 9 | I16: 180 | J16: 3.141592654 | K16: 340 | L16: 0 | M16: -2.423 | N16: 0 | O16: 0 | P16: -823.82 | Q16: 0
H17: 10 | I17: 200 | J17: 3.490658504 | K17: 336 | L17: -0.8287 | M17: -2.2768 | N17: 0 | O17: -278.4432 | P17: -765.0048 | Q17: 0
H18: 11 | I18: 220 | J18: 3.839724354 | K18: 340 | L18: -1.5574 | M18: -1.8561 | N18: 0 | O18: -529.516 | P18: -631.074 | Q18: 0
F19: 4 | G19: p | H19: 12 | I19: 240 | J19: 4.188790205 | K19: 336 | L19: -2.0983 | M19: -1.2115 | N19: 0 | O19: -705.0288 | P19: -407.064 | Q19: 0
H20: 13 | I20: 260 | J20: 4.537856055 | K20: 340 | L20: -2.3861 | M20: -0.4207 | N20: 0 | O20: -811.274 | P20: -143.038 | Q20: 0
H21: 14 | I21: 280 | J21: 4.886921906 | K21: 336 | L21: -2.3861 | M21: 0.4207 | N21: 0 | O21: -801.7296 | P21: 141.3552 | Q21: 0
F22: 5 | G22: n | H22: 15 | I22: 300 | J22: 5.235987756 | K22: 340 | L22: -2.0983 | M22: 1.2115 | N22: 0 | O22: -713.422 | P22: 411.91 | Q22: 0
H23: 16 | I23: 320 | J23: 5.585053606 | K23: 336 | L23: -1.5574 | M23: 1.8561 | N23: 0 | O23: -523.2864 | P23: 623.6496 | Q23: 0
H24: 17 | I24: 340 | J24: 5.934119457 | K24: 340 | L24: -0.8287 | M24: 2.2768 | N24: 0 | O24: -281.758 | P24: 774.112 | Q24: 0
E25: 2 | F25: 0 | G25: n | H25: 0 | I25: 0 | J25: 0 | K25: 340 | L25: 0 | M25: 2.423 | N25: 0.9616 | O25: 0 | P25: 823.82 | Q25: 326.944
H26: 1 | I26: 20 | J26: 0.3490658504 | K26: 336 | L26: 0.8287 | M26: 2.2768 | N26: 0.9616 | O26: 278.4432 | P26: 765.0048 | Q26: 323.0976
H27: 2 | I27: 40 | J27: 0.6981317008 | K27: 340 | L27: 1.5574 | M27: 1.8561 | N27: 0.9616 | O27: 529.516 | P27: 631.074 | Q27: 326.944
F28: 1 | G28: p | H28: 3 | I28: 60 | J28: 1.047197551 | K28: 336 | L28: 2.0983 | M28: 1.2115 | N28: 0.9616 | O28: 705.0288 | P28: 407.064 | Q28: 323.0976
H29: 4 | I29: 80 | J29: 1.396263402 | K29: 340 | L29: 2.3861 | M29: 0.4207 | N29: 0.9616 | O29: 811.274 | P29: 143.038 | Q29: 326.944
H30: 5 | I30: 100 | J30: 1.745329252 | K30: 336 | L30: 2.3861 | M30: -0.4207 | N30: 0.9616 | O30: 801.7296 | P30: -141.3552 | Q30: 323.0976
F31: 2 | G31: n | H31: 6 | I31: 120 | J31: 2.094395102 | K31: 340 | L31: 2.0983 | M31: -1.2115 | N31: 0.9616 | O31: 713.422 | P31: -411.91 | Q31: 326.944
H32: 7 | I32: 140 | J32: 2.443460953 | K32: 336 | L32: 1.5574 | M32: -1.8561 | N32: 0.9616 | O32: 523.2864 | P32: -623.6496 | Q32: 323.0976
H33: 8 | I33: 160 | J33: 2.792526803 | K33: 340 | L33: 0.8287 | M33: -2.2768 | N33: 0.9616 | O33: 281.758 | P33: -774.112 | Q33: 326.944
F34: 3 | G34: p | H34: 9 | I34: 180 | J34: 3.141592654 | K34: 336 | L34: 0 | M34: -2.423 | N34: 0.9616 | O34: 0 | P34: -814.128 | Q34: 323.0976
H35: 10 | I35: 200 | J35: 3.490658504 | K35: 340 | L35: -0.8287 | M35: -2.2768 | N35: 0.9616 | O35: -281.758 | P35: -774.112 | Q35: 326.944
H36: 11 | I36: 220 | J36: 3.839724354 | K36: 336 | L36: -1.5574 | M36: -1.8561 | N36: 0.9616 | O36: -523.2864 | P36: -623.6496 | Q36: 323.0976
F37: 4 | G37: n | H37: 12 | I37: 240 | J37: 4.188790205 | K37: 340 | L37: -2.0983 | M37: -1.2115 | N37: 0.9616 | O37: -713.422 | P37: -411.91 | Q37: 326.944
H38: 13 | I38: 260 | J38: 4.537856055 | K38: 336 | L38: -2.3861 | M38: -0.4207 | N38: 0.9616 | O38: -801.7296 | P38: -141.3552 | Q38: 323.0976
H39: 14 | I39: 280 | J39: =RADIANS(I39) -> 4.886921906 | K39: 340 | L39: =TRUNC(2.423*SIN(J39),4) -> -2.3861 | M39: =TRUNC(2.423*COS(J39),4) -> 0.4207 | N39: 0.9616 | O39: =K39*L39 -> -811.274 | P39: =K39*M39 -> 143.038 | Q39: =K39*N39 -> 326.944
F40: 5 | G40: p | H40: 15 | I40: 300 | J40: 5.235987756 | K40: 336 | L40: -2.0983 | M40: 1.2115 | N40: 0.9616 | O40: -705.0288 | P40: 407.064 | Q40: 323.0976
H41: 16 | I41: 320 | J41: 5.585053606 | K41: 340 | L41: -1.5574 | M41: 1.8561 | N41: 0.9616 | O41: -529.516 | P41: 631.074 | Q41: 326.944
H42: 17 | I42: 340 | J42: 5.934119457 | K42: 336 | L42: -0.8287 | M42: 2.2768 | N42: 0.9616 | O42: -278.4432 | P42: 765.0048 | Q42: 323.0976
E43: 3 | F43: 0 | G43: p | H43: 0 | I43: 0 | J43: 0 | K43: 336 | L43: 0 | M43: 2.423 | N43: =0.9616*2 -> 1.9232 | O43: 0 | P43: 814.128 | Q43: 646.1952
H44: 1 | I44: 20 | J44: 0.3490658504 | K44: 340 | L44: 0.8287 | M44: 2.2768 | N44: 1.9232 | O44: 281.758 | P44: 774.112 | Q44: 653.888
H45: 2 | I45: 40 | J45: 0.6981317008 | K45: 336 | L45: 1.5574 | M45: 1.8561 | N45: 1.9232 | O45: 523.2864 | P45: 623.6496 | Q45: 646.1952
F46: 1 | G46: n | H46: 3 | I46: 60 | J46: 1.047197551 | K46: 340 | L46: 2.0983 | M46: 1.2115 | N46: 1.9232 | O46: 713.422 | P46: 411.91 | Q46: 653.888
H47: 4 | I47: 80 | J47: 1.396263402 | K47: 336 | L47: 2.3861 | M47: 0.4207 | N47: 1.9232 | O47: 801.7296 | P47: 141.3552 | Q47: 646.1952
H48: 5 | I48: 100 | J48: 1.745329252 | K48: 340 | L48: 2.3861 | M48: -0.4207 | N48: 1.9232 | O48: 811.274 | P48: -143.038 | Q48: 653.888
F49: 2 | G49: p | H49: 6 | I49: 120 | J49: 2.094395102 | K49: 336 | L49: 2.0983 | M49: -1.2115 | N49: 1.9232 | O49: 705.0288 | P49: -407.064 | Q49: 646.1952
H50: 7 | I50: 140 | J50: 2.443460953 | K50: 340 | L50: 1.5574 | M50: -1.8561 | N50: 1.9232 | O50: 529.516 | P50: -631.074 | Q50: 653.888
H51: 8 | I51: 160 | J51: 2.792526803 | K51: 336 | L51: 0.8287 | M51: -2.2768 | N51: 1.9232 | O51: 278.4432 | P51: -765.0048 | Q51: 646.1952
F52: 3 | G52: n | H52: 9 | I52: 180 | J52: 3.141592654 | K52: 340 | L52: 0 | M52: -2.423 | N52: 1.9232 | O52: 0 | P52: -823.82 | Q52: 653.888
H53: 10 | I53: 200 | J53: 3.490658504 | K53: 336 | L53: -0.8287 | M53: -2.2768 | N53: 1.9232 | O53: -278.4432 | P53: -765.0048 | Q53: 646.1952
H54: 11 | I54: 220 | J54: 3.839724354 | K54: 340 | L54: -1.5574 | M54: -1.8561 | N54: 1.9232 | O54: -529.516 | P54: -631.074 | Q54: 653.888
F55: 4 | G55: p | H55: 12 | I55: 240 | J55: 4.188790205 | K55: 336 | L55: -2.0983 | M55: -1.2115 | N55: 1.9232 | O55: -705.0288 | P55: -407.064 | Q55: 646.1952
H56: 13 | I56: 260 | J56: 4.537856055 | K56: 340 | L56: -2.3861 | M56: -0.4207 | N56: 1.9232 | O56: -811.274 | P56: -143.038 | Q56: 653.888
H57: 14 | I57: 280 | J57: 4.886921906 | K57: 336 | L57: -2.3861 | M57: 0.4207 | N57: 1.9232 | O57: -801.7296 | P57: 141.3552 | Q57: 646.1952
F58: 5 | G58: n | H58: 15 | I58: 300 | J58: 5.235987756 | K58: 340 | L58: -2.0983 | M58: 1.2115 | N58: 1.9232 | O58: -713.422 | P58: 411.91 | Q58: 653.888
H59: 16 | I59: 320 | J59: 5.585053606 | K59: 336 | L59: -1.5574 | M59: 1.8561 | N59: 1.9232 | O59: -523.2864 | P59: 623.6496 | Q59: 646.1952
H60: 17 | I60: 340 | J60: 5.934119457 | K60: 340 | L60: -0.8287 | M60: 2.2768 | N60: 1.9232 | O60: -281.758 | P60: 774.112 | Q60: 653.888
E61: 4 | F61: 0 | G61: n | H61: 0 | I61: 0 | J61: 0 | K61: 340 | L61: 0 | M61: 2.423 | N61: =0.9616*3 -> 2.8848 | O61: 0 | P61: 823.82 | Q61: 980.832
H62: 1 | I62: 20 | J62: 0.3490658504 | K62: 336 | L62: 0.8287 | M62: 2.2768 | N62: 2.8848 | O62: 278.4432 | P62: 765.0048 | Q62: 969.2928
H63: 2 | I63: 40 | J63: 0.6981317008 | K63: 340 | L63: 1.5574 | M63: 1.8561 | N63: 2.8848 | O63: 529.516 | P63: 631.074 | Q63: 980.832
F64: 1 | G64: p | H64: 3 | I64: 60 | J64: 1.047197551 | K64: 336 | L64: 2.0983 | M64: 1.2115 | N64: 2.8848 | O64: 705.0288 | P64: 407.064 | Q64: 969.2928
H65: 4 | I65: 80 | J65: 1.396263402 | K65: 340 | L65: 2.3861 | M65: 0.4207 | N65: 2.8848 | O65: 811.274 | P65: 143.038 | Q65: 980.832
H66: 5 | I66: 100 | J66: 1.745329252 | K66: 336 | L66: 2.3861 | M66: -0.4207 | N66: 2.8848 | O66: 801.7296 | P66: -141.3552 | Q66: 969.2928
F67: 2 | G67: n | H67: 6 | I67: 120 | J67: 2.094395102 | K67: 340 | L67: 2.0983 | M67: -1.2115 | N67: 2.8848 | O67: 713.422 | P67: -411.91 | Q67: 980.832
H68: 7 | I68: 140 | J68: 2.443460953 | K68: 336 | L68: 1.5574 | M68: -1.8561 | N68: 2.8848 | O68: 523.2864 | P68: -623.6496 | Q68: 969.2928
H69: 8 | I69: 160 | J69: 2.792526803 | K69: 340 | L69: 0.8287 | M69: -2.2768 | N69: 2.8848 | O69: 281.758 | P69: -774.112 | Q69: 980.832
F70: 3 | G70: p | H70: 9 | I70: 180 | J70: 3.141592654 | K70: 336 | L70: 0 | M70: -2.423 | N70: 2.8848 | O70: 0 | P70: -814.128 | Q70: 969.2928
H71: 10 | I71: 200 | J71: =RADIANS(I71) -> 3.490658504 | K71: 340 | L71: =TRUNC(2.423*SIN(J71),4) -> -0.8287 | M71: =TRUNC(2.423*COS(J71),4) -> -2.2768 | N71: 2.8848 | O71: =K71*L71 -> -281.758 | P71: =K71*M71 -> -774.112 | Q71: =K71*N71 -> 980.832
H72: 11 | I72: 220 | J72: 3.839724354 | K72: 336 | L72: -1.5574 | M72: -1.8561 | N72: 2.8848 | O72: -523.2864 | P72: -623.6496 | Q72: 969.2928
F73: 4 | G73: n | H73: 12 | I73: 240 | J73: 4.188790205 | K73: 340 | L73: -2.0983 | M73: -1.2115 | N73: 2.8848 | O73: -713.422 | P73: -411.91 | Q73: 980.832
H74: 13 | I74: 260 | J74: 4.537856055 | K74: 336 | L74: -2.3861 | M74: -0.4207 | N74: 2.8848 | O74: -801.7296 | P74: -141.3552 | Q74: 969.2928
H75: 14 | I75: 280 | J75: 4.886921906 | K75: 340 | L75: -2.3861 | M75: 0.4207 | N75: 2.8848 | O75: -811.274 | P75: 143.038 | Q75: 980.832
F76: 5 | G76: p | H76: 15 | I76: 300 | J76: 5.235987756 | K76: 336 | L76: -2.0983 | M76: 1.2115 | N76: 2.8848 | O76: -705.0288 | P76: 407.064 | Q76: 969.2928
H77: 16 | I77: 320 | J77: 5.585053606 | K77: 340 | L77: -1.5574 | M77: 1.8561 | N77: 2.8848 | O77: -529.516 | P77: 631.074 | Q77: 980.832
H78: 17 | I78: 340 | J78: 5.934119457 | K78: 336 | L78: -0.8287 | M78: 2.2768 | N78: 2.8848 | O78: -278.4432 | P78: 765.0048 | Q78: 969.2928
E79: 5 | F79: 0 | G79: p | H79: 0 | I79: 0 | J79: 0 | K79: 336 | L79: 0 | M79: 2.423 | N79: =0.9616*4 -> 3.8464 | O79: 0 | P79: 814.128 | Q79: 1292.3904
H80: 1 | I80: 20 | J80: 0.3490658504 | K80: 340 | L80: 0.8287 | M80: 2.2768 | N80: 3.8464 | O80: 281.758 | P80: 774.112 | Q80: 1307.776
H81: 2 | I81: 40 | J81: 0.6981317008 | K81: 336 | L81: 1.5574 | M81: 1.8561 | N81: 3.8464 | O81: 523.2864 | P81: 623.6496 | Q81: 1292.3904
F82: 1 | G82: n | H82: 3 | I82: 60 | J82: 1.047197551 | K82: 340 | L82: 2.0983 | M82: 1.2115 | N82: 3.8464 | O82: 713.422 | P82: 411.91 | Q82: 1307.776
H83: 4 | I83: 80 | J83: 1.396263402 | K83: 336 | L83: 2.3861 | M83: 0.4207 | N83: 3.8464 | O83: 801.7296 | P83: 141.3552 | Q83: 1292.3904
H84: 5 | I84: 100 | J84: 1.745329252 | K84: 340 | L84: 2.3861 | M84: -0.4207 | N84: 3.8464 | O84: 811.274 | P84: -143.038 | Q84: 1307.776
F85: 2 | G85: p | H85: 6 | I85: 120 | J85: 2.094395102 | K85: 336 | L85: 2.0983 | M85: -1.2115 | N85: 3.8464 | O85: 705.0288 | P85: -407.064 | Q85: 1292.3904
H86: 7 | I86: 140 | J86: 2.443460953 | K86: 340 | L86: 1.5574 | M86: -1.8561 | N86: 3.8464 | O86: 529.516 | P86: -631.074 | Q86: 1307.776
H87: 8 | I87: 160 | J87: 2.792526803 | K87: 336 | L87: 0.8287 | M87: -2.2768 | N87: 3.8464 | O87: 278.4432 | P87: -765.0048 | Q87: 1292.3904
F88: 3 | G88: n | H88: 9 | I88: 180 | J88: 3.141592654 | K88: 340 | L88: 0 | M88: -2.423 | N88: 3.8464 | O88: 0 | P88: -823.82 | Q88: 1307.776
H89: 10 | I89: 200 | J89: 3.490658504 | K89: 336 | L89: -0.8287 | M89: -2.2768 | N89: 3.8464 | O89: -278.4432 | P89: -765.0048 | Q89: 1292.3904
H90: 11 | I90: 220 | J90: 3.839724354 | K90: 340 | L90: -1.5574 | M90: -1.8561 | N90: 3.8464 | O90: -529.516 | P90: -631.074 | Q90: 1307.776
F91: 4 | G91: p | H91: 12 | I91: 240 | J91: 4.188790205 | K91: 336 | L91: -2.0983 | M91: -1.2115 | N91: 3.8464 | O91: -705.0288 | P91: -407.064 | Q91: 1292.3904
H92: 13 | I92: 260 | J92: 4.537856055 | K92: 340 | L92: -2.3861 | M92: -0.4207 | N92: 3.8464 | O92: -811.274 | P92: -143.038 | Q92: 1307.776
H93: 14 | I93: 280 | J93: 4.886921906 | K93: 336 | L93: -2.3861 | M93: 0.4207 | N93: 3.8464 | O93: -801.7296 | P93: 141.3552 | Q93: 1292.3904
F94: 5 | G94: n | H94: 15 | I94: 300 | J94: 5.235987756 | K94: 340 | L94: -2.0983 | M94: 1.2115 | N94: 3.8464 | O94: -713.422 | P94: 411.91 | Q94: 1307.776
H95: 16 | I95: 320 | J95: 5.585053606 | K95: 336 | L95: -1.5574 | M95: 1.8561 | N95: 3.8464 | O95: -523.2864 | P95: 623.6496 | Q95: 1292.3904
H96: 17 | I96: 340 | J96: 5.934119457 | K96: 340 | L96: -0.8287 | M96: 2.2768 | N96: 3.8464 | O96: -281.758 | P96: 774.112 | Q96: 1307.776
E97: 6 | F97: 0 | G97: n | H97: 0 | I97: 0 | J97: 0 | K97: 340 | L97: 0 | M97: 2.423 | N97: =0.9616*5 -> 4.808 | O97: 0 | P97: 823.82 | Q97: 1634.72
H98: 1 | I98: 20 | J98: 0.3490658504 | K98: 336 | L98: 0.8287 | M98: 2.2768 | N98: 4.808 | O98: 278.4432 | P98: 765.0048 | Q98: 1615.488
H99: 2 | I99: 40 | J99: 0.6981317008 | K99: 340 | L99: 1.5574 | M99: 1.8561 | N99: 4.808 | O99: 529.516 | P99: 631.074 | Q99: 1634.72
F100: 1 | G100: p | H100: 3 | I100: 60 | J100: 1.047197551 | K100: 336 | L100: 2.0983 | M100: 1.2115 | N100: 4.808 | O100: 705.0288 | P100: 407.064 | Q100: 1615.488
H101: 4 | I101: 80 | J101: 1.396263402 | K101: 340 | L101: 2.3861 | M101: 0.4207 | N101: 4.808 | O101: 811.274 | P101: 143.038 | Q101: 1634.72
H102: 5 | I102: 100 | J102: 1.745329252 | K102: 336 | L102: 2.3861 | M102: -0.4207 | N102: 4.808 | O102: 801.7296 | P102: -141.3552 | Q102: 1615.488
F103: 2 | G103: n | H103: 6 | I103: 120 | J103: =RADIANS(I103) -> 2.094395102 | K103: 340 | L103: =TRUNC(2.423*SIN(J103),4) -> 2.0983 | M103: =TRUNC(2.423*COS(J103),4) -> -1.2115 | N103: 4.808 | O103: =K103*L103 -> 713.422 | P103: =K103*M103 -> -411.91 | Q103: =K103*N103 -> 1634.72
H104: 7 | I104: 140 | J104: 2.443460953 | K104: 336 | L104: 1.5574 | M104: -1.8561 | N104: 4.808 | O104: 523.2864 | P104: -623.6496 | Q104: 1615.488
H105: 8 | I105: 160 | J105: 2.792526803 | K105: 340 | L105: 0.8287 | M105: -2.2768 | N105: 4.808 | O105: 281.758 | P105: -774.112 | Q105: 1634.72
F106: 3 | G106: p | H106: 9 | I106: 180 | J106: 3.141592654 | K106: 336 | L106: 0 | M106: -2.423 | N106: 4.808 | O106: 0 | P106: -814.128 | Q106: 1615.488
H107: 10 | I107: 200 | J107: 3.490658504 | K107: 340 | L107: -0.8287 | M107: -2.2768 | N107: 4.808 | O107: -281.758 | P107: -774.112 | Q107: 1634.72
H108: 11 | I108: 220 | J108: 3.839724354 | K108: 336 | L108: -1.5574 | M108: -1.8561 | N108: 4.808 | O108: -523.2864 | P108: -623.6496 | Q108: 1615.488
F109: 4 | G109: n | H109: 12 | I109: 240 | J109: 4.188790205 | K109: 340 | L109: -2.0983 | M109: -1.2115 | N109: 4.808 | O109: -713.422 | P109: -411.91 | Q109: 1634.72
H110: 13 | I110: 260 | J110: 4.537856055 | K110: 336 | L110: -2.3861 | M110: -0.4207 | N110: 4.808 | O110: -801.7296 | P110: -141.3552 | Q110: 1615.488
H111: 14 | I111: 280 | J111: 4.886921906 | K111: 340 | L111: -2.3861 | M111: 0.4207 | N111: 4.808 | O111: -811.274 | P111: 143.038 | Q111: 1634.72
F112: 5 | G112: p | H112: 15 | I112: 300 | J112: 5.235987756 | K112: 336 | L112: -2.0983 | M112: 1.2115 | N112: 4.808 | O112: -705.0288 | P112: 407.064 | Q112: 1615.488
H113: 16 | I113: 320 | J113: 5.585053606 | K113: 340 | L113: -1.5574 | M113: 1.8561 | N113: 4.808 | O113: -529.516 | P113: 631.074 | Q113: 1634.72
H114: 17 | I114: 340 | J114: 5.934119457 | K114: 336 | L114: -0.8287 | M114: 2.2768 | N114: 4.808 | O114: -278.4432 | P114: 765.0048 | Q114: 1615.488
K115: =SUM(K7:K114) -> 36504 | O115: =SUM(O7:O114) -> 0 | P115: =SUM(P7:P114) -> 0 | Q115: =SUM(Q7:Q114) -> 87755.616
N116: Coordinates
N117: x= | O117: =O115/K115 -> 0
N118: y= | O118: =P115/K115 -> 0
I119: AQM predicted r (precessing)= | J119: =SQRT((L107-L8)^2+(M107-M8)^2+(N107-N8)^2)/2 -> 3.413177102 | N119: z= | O119: =Q115/K115 -> 2.404
I120: % agreement= | J120: =ABS(J119-N120)/((O120+J119)/2) -> 100.3% | L120: Ar-36 experimental radius= | O120: 3.3905
N121: AQM predicted r (tumbling)= | O121: =SQRT((L22-O117)^2+(M22-O118)^2+(N22-O119)^2) -> 3.413181967 | P121: COM to quark 15
N122: % agreement= | O122: =ABS(O121-O120)/((O120+O121)/2) -> 0.7%

Sheet Quark Confinement
D8: ke^2=1.4400MeVfm
C9: Coulombs Constant k (Nm^2/C^2)= | F9: 9.00E+09 | H9: 6.24E12 MeV per joule
C10: Distance between quarks in an array= | F10: 0.8414 | H10: 1 e = 1.602×10−19 C
C11: Coulombs Constant k (Nfm^2/C^2)= | F11: =(9000000000)*(0.000000000000001)^2 -> 9e-21
H12: 1.6E-19 J/eV
H13: 1E-6MeV/eV
Z27: =37*(0.5/1000000000000000)*6240000000000 -> 0.11544
B31: =((9000000000)*(2/3)^2/(C36)^2)*(1000000000000000)^2/(0.00000000000016) -> 8.857709751e+51 | C31: =(9000000000)*(2/3)^2*(1.602E-19)*(1000000000000000)/(C36)*0.000001 -> 0.3814285714 | Z31: =(9000000000)*(2/3)^2*(1.602E-19)^2*(1000000000000000)^2/(C36) -> 61.10485714
D34: Distance from q3 | I34: Vertical Component | N34: Force (N) | S34: vertical component of Force (N) | W34: Total Force (N) | AA34: Potential (MeV) | AE34: Total | AG34: Total Force (N)
C35: q1 | D35: q2 | E35: q4 | F35: q5 | G35: q6 | H35: q1 | I35: q2 | J35: q4 | K35: q5 | L35: q6 | M35: q1 | N35: q2 | O35: q4 | P35: q5 | Q35: q6 | R35: q1 | S35: q2 | T35: q4 | U35: q5 | V35: q6 | Z35: q1 | AA35: q2 | AB35: q4 | AC35: q5 | AD35: q6
B36: 0 | C36: =2*0.84 -> 1.68 | D36: =0.84 -> 0.84 | E36: =0.84 -> 0.84 | F36: =2*0.84 -> 1.68 | G36: =3*0.84 -> 2.52 | H36: =B36/C36 -> 0 | I36: =B36/D36 -> 0 | J36: =B36/E36 -> 0 | K36: =B36/F36 -> 0 | L36: =B36/G36 -> 0 | M36: =(9000000000)*(2/3)^2*(1.602E-19)^2*(1000000000000000)^2/(C36)^2 -> 36.37193878 | N36: =(9000000000)*(2/3)*(-1/3)*(1.602E-19)^2*(1000000000000000)^2/(D36)^2 -> -72.74387755 | O36: =(9000000000)*(2/3)*(-1/3)*(1.602E-19)^2*(1000000000000000)^2/(E36)^2 -> -72.74387755 | P36: =(9000000000)*(2/3)^2*(1.602E-19)^2*(1000000000000000)^2/(F36)^2 -> 36.37193878 | Q36: =(9000000000)*(2/3)*(-1/3)*(1.602E-19)^2*(1000000000000000)^2/(G36)^2 -> -8.082653061 | R36: =H36*M36 -> 0 | S36: =I36*N36 -> 0 | T36: =J36*O36 -> 0 | U36: =K36*P36 -> 0 | V36: =L36*Q36 -> 0 | W36: =SUM(R36:V36) -> 0 | Y36: 0 | Z36: =(9000000000)*(2/3)^2*(1.602E-19)*(1000000000000000)/(C36)*0.000001 -> 3.81E-01 | AA36: =(9000000000)*(2/3)^2*(1.602E-19)*(1000000000000000)/(D36)*0.000001 -> 7.63E-01 | AB36: =(9000000000)*(2/3)^2*(1.602E-19)*(1000000000000000)/(E36)*0.000001 -> 7.63E-01 | AC36: =(9000000000)*(2/3)^2*(1.602E-19)*(1000000000000000)/(F36)*0.000001 -> 3.81E-01 | AD36: =(9000000000)*(2/3)^2*(1.602E-19)*(1000000000000000)/(G36)*0.000001 -> 2.54E-01 | AE36: =SUM(Z36:AD36) -> 2.542857143 | AG36: 0 | AH36: =AG36*-1 -> 0
B37: 0.1 | C37: =SQRT(B37^2+1.68^2) -> 1.682973559 | D37: =SQRT(B37^2+0.84^2) -> 0.8459314393 | E37: =SQRT(B37^2+0.84^2) -> 0.8459314393 | F37: =SQRT(B37^2+1.68^2) -> 1.682973559 | G37: =SQRT(B37^2+2.52^2) -> 2.521983346 | H37: 0.05941863998 | I37: 0.1182128898 | J37: 0.1182128898 | K37: 0.05941863998 | L37: 0.03965133241 | M37: 36.24352493 | N37: -71.72733371 | O37: -71.72733371 | P37: 36.24352493 | Q37: -8.069945286 | R37: 2.153540959 | S37: -8.479095394 | T37: -8.479095394 | U37: 2.153540959 | V37: -0.3199840831 | W37: -12.97109295 | Y37: 0.1 | Z37: 3.81E-01 | AA37: 7.58E-01 | AB37: 7.58E-01 | AC37: 3.81E-01 | AD37: 2.54E-01 | AE37: 2.530611424 | AG37: -12.97109295 | AH37: 12.97109295
B38: 0.2 | C38: 1.691862879 | D38: 0.8634813258 | E38: 0.8634813258 | F38: 1.691862879 | G38: 2.527924049 | H38: 0.1182128898 | I38: 0.2316205273 | J38: 0.2316205273 | K38: 0.1182128898 | L38: 0.079116301 | M38: 35.86366685 | N38: -68.84130901 | O38: -68.84130901 | P38: 35.86366685 | Q38: -8.032060591 | R38: 4.239547697 | S38: -15.94506029 | T38: -15.94506029 | U38: 4.239547697 | V38: -0.6354669233 | W38: -24.04649212 | Y38: 0.2 | Z38: 3.79E-01 | AA38: 7.42E-01 | AB38: 7.42E-01 | AC38: 3.79E-01 | AD38: 2.53E-01 | AE38: 2.495221165 | AG38: -24.04649212 | AH38: 24.04649212
B39: 0.3 | C39: 1.706575518 | D39: 0.8919641248 | E39: 0.8919641248 | F39: 1.706575518 | G39: 2.537794318 | H39: 0.1757906385 | I39: 0.336336397 | J39: 0.336336397 | K39: 0.1757906385 | L39: 0.1182128898 | M39: 35.24796044 | N39: -64.51493213 | O39: -64.51493213 | P39: 35.24796044 | Q39: -7.969703745 | R39: 6.196261472 | S39: -21.69871982 | T39: -21.69871982 | U39: 6.196261472 | V39: -0.9421217104 | W39: -31.94703841 | Y39: 0.3 | Z39: 3.75E-01 | AA39: 7.18E-01 | AB39: 7.18E-01 | AC39: 3.75E-01 | AD39: 2.53E-01 | AE39: 2.440309428 | AG39: -31.94703841 | AH39: 31.94703841
B40: 0.4 | C40: 1.726962652 | D40: 0.930376268 | E40: 0.930376268 | F40: 1.726962652 | G40: 2.551548549 | H40: 0.2316205273 | I40: 0.4299335804 | J40: 0.4299335804 | K40: 0.2316205273 | L40: 0.1567675442 | M40: 34.42065451 | N40: -59.29768946 | O40: -59.29768946 | P40: 34.42065451 | Q40: -7.884013271 | R40: 7.972530147 | S40: -25.49406794 | T40: -25.49406794 | U40: 7.972530147 | V40: -1.235957399 | W40: -36.27903299 | Y40: 0.4 | Z40: 3.71E-01 | AA40: 6.89E-01 | AB40: 6.89E-01 | AC40: 3.71E-01 | AD40: 2.51E-01 | AE40: 2.370760967 | AG40: -36.27903299 | AH40: 36.27903299
B41: 0.5 | C41: 1.752826289 | D41: 0.9775479528 | E41: 0.9775479528 | F41: 1.752826289 | G41: 2.569124364 | H41: 0.2852535948 | I41: 0.5114838598 | J41: 0.5114838598 | K41: 0.2852535948 | L41: 0.1946188386 | M41: 33.41236818 | N41: -53.71293428 | O41: -53.71293428 | P41: 33.41236818 | Q41: -7.776510515 | R41: 9.530998134 | S41: -27.47329895 | T41: -27.47329895 | U41: 9.530998134 | V41: -1.513455445 | W41: -37.39805707 | Y41: 0.5 | Z41: 3.66E-01 | AA41: 6.56E-01 | AB41: 6.56E-01 | AC41: 3.66E-01 | AD41: 2.49E-01 | AE41: 2.291620947 | AG41: -37.39805707 | AH41: 37.39805707
B42: 0.6 | C42: 1.78392825 | D42: 1.032279032 | E42: 1.032279032 | F42: 1.78392825 | G42: 2.590443977 | H42: 0.336336397 | I42: 0.5812381937 | J42: 0.5812381937 | K42: 0.336336397 | L42: 0.2316205273 | M42: 32.25746606 | N42: -48.16824324 | O42: -48.16824324 | P42: 32.25746606 | Q42: -7.649034335 | R42: 10.84935991 | S42: -27.9972227 | T42: -27.9972227 | U42: 10.84935991 | V42: -1.771673366 | W42: -36.06739894 | Y42: 0.6 | Z42: 3.59E-01 | AA42: 6.21E-01 | AB42: 6.21E-01 | AC42: 3.59E-01 | AD42: 2.47E-01 | AE42: 2.207310049 | AG42: -36.06739894 | AH42: 36.06739894
B43: 0.7 | C43: 1.82 | D43: 1.093434955 | E43: 1.093434955 | F43: 1.82 | G43: 2.615415837 | H43: 0.3846153846 | I43: 0.6401843997 | J43: 0.6401843997 | K43: 0.3846153846 | L43: 0.2676438638 | M43: 30.99147446 | N43: -42.93081298 | O43: -42.93081298 | P43: 30.99147446 | Q43: -7.503666452 | R43: 11.91979787 | S43: -27.48363674 | T43: -27.48363674 | U43: 11.91979787 | V43: -2.008310282 | W43: -33.13598801 | Y43: 0.7 | Z43: 3.52E-01 | AA43: 5.86E-01 | AB43: 5.86E-01 | AC43: 3.52E-01 | AD43: 2.45E-01 | AE43: 2.121270845
B44: 0.8 | C44: 1.860752536 | D44: 1.16 | E44: 1.16 | F44: 1.860752536 | G44: 2.643936459 | H44: 0.4299335804 | I44: 0.6896551724 | J44: 0.6896551724 | K44: 0.4299335804 | L44: 0.3025791324 | M44: 29.64884473 | N44: -38.14512485 | O44: -38.14512485 | P44: 29.64884473 | Q44: -7.342652781 | R44: 12.74703397 | S44: -26.30698266 | T44: -26.30698266 | U44: 12.74703397 | V44: -2.221733508 | W44: -29.34163088 | Y44: 0.8 | Z44: 3.44E-01 | AA44: 5.52E-01 | AB44: 5.52E-01 | AC44: 3.44E-01 | AD44: 2.42E-01 | AE44: 2.035947067
B45: 0.9 | C45: 1.905885621 | D45: 1.231097072 | E45: 1.231097072 | F45: 1.905885621 | G45: 2.675892375 | H45: 0.4722214125 | I45: 0.7310552682 | J45: 0.7310552682 | K45: 0.4722214125 | L45: 0.336336397 | M45: 28.26124876 | N45: -33.86650831 | O45: -33.86650831 | P45: 28.26124876 | Q45: -7.168325792 | R45: 13.34556681 | S45: -24.75828932 | T45: -24.75828932 | U45: 13.34556681 | V45: -2.410968869 | W45: -25.23641389 | Y45: 0.9 | Z45: 3.36E-01 | AA45: 5.21E-01 | AB45: 5.21E-01 | AC45: 3.36E-01 | AD45: 2.39E-01 | AE45: 1.952937508
B46: 1 | C46: 1.955095906 | D46: 1.305986217 | E46: 1.305986217 | F46: 1.955095906 | G46: 2.711162112 | H46: 0.5114838598 | I46: 0.7657048648 | J46: 0.7657048648 | K46: 0.5114838598 | L46: 0.3688455203 | M46: 26.85646714 | N46: -30.09385553 | O46: -30.09385553 | P46: 26.85646714 | Q46: -6.983032216 | R46: 13.73664947 | S46: -23.04301158 | T46: -23.04301158 | U46: 13.73664947 | V46: -2.575660151 | W46: -21.18838437 | Y46: 1 | Z46: 3.28E-01 | AA46: 4.91E-01 | AB46: 4.91E-01 | AC46: 3.28E-01 | AD46: 2.36E-01 | AE46: 1.873201279
B47: 1.1 | C47: 2.008083664 | D47: 1.384052022 | E47: 1.384052022 | F47: 2.008083664 | G47: 2.749618155 | H47: 0.5477859414 | I47: 0.7947678139 | J47: 0.7947678139 | K47: 0.5477859414 | L47: 0.4000555488 | M47: 25.45783156 | N47: -26.7947797 | O47: -26.7947797 | P47: 25.45783156 | Q47: -6.789069361 | R47: 13.94544223 | S47: -21.29562849 | T47: -21.29562849 | U47: 13.94544223 | V47: -2.716004869 | W47: -17.41637739 | Y47: 1.1 | Z47: 3.19E-01 | AA47: 4.63E-01 | AB47: 4.63E-01 | AC47: 3.19E-01 | AD47: 2.33E-01 | AE47: 1.797247717
B48: 1.2 | C48: 2.064558064 | D48: 1.464786674 | E48: 1.464786674 | F48: 2.064558064 | G48: 2.791128804 | H48: 0.5812381937 | I48: 0.8192319205 | J48: 0.8192319205 | K48: 0.5812381937 | L48: 0.4299335804 | M48: 24.08412162 | N48: -23.92248322 | O48: -23.92248322 | P48: 24.08412162 | Q48: -6.588632163 | R48: 13.99861135 | S48: -19.59806187 | T48: -19.59806187 | U48: 13.99861135 | V48: -2.832674216 | W48: -14.03157526 | Y48: 1.2 | Z48: 3.10E-01 | AA48: 4.37E-01 | AB48: 4.37E-01 | AC48: 3.10E-01 | AD48: 2.30E-01 | AE48: 1.725286614
B49: 1.3 | C49: 2.124241041 | D49: 1.547772593 | E49: 1.547772593 | F49: 2.124241041 | G49: 2.835559909 | H49: 0.6119832801 | I49: 0.8399166685 | J49: 0.8399166685 | K49: 0.6119832801 | L49: 0.4584632459 | M49: 22.74979169 | N49: -21.42598097 | O49: -21.42598097 | P49: 22.74979169 | Q49: -6.383771952 | R49: 13.92249214 | S49: -17.99603855 | T49: -17.99603855 | U49: 13.92249214 | V49: -2.92672481 | W49: -11.07381764 | Y49: 1.3 | Z49: 3.02E-01 | AA49: 4.14E-01 | AB49: 4.14E-01 | AC49: 3.02E-01 | AD49: 2.26E-01 | AE49: 1.657337094
B50: 1.4 | C50: 2.186869909 | D50: 1.632666531 | E50: 1.632666531 | F50: 2.186869909 | G50: 2.882776439 | H50: 0.6401843997 | I50: 0.8574929257 | J50: 0.8574929257 | K50: 0.6401843997 | L50: 0.4856429312 | M50: 21.46540649 | N50: -19.25573229 | O50: -19.25573229 | P50: 21.46540649 | Q50: -6.176366962 | R50: 13.74181837 | S50: -16.51165422 | T50: -16.51165422 | U50: 13.74181837 | V50: -2.999508955 | W50: -8.539180661 | Y50: 1.4 | Z50: 2.93E-01 | AA50: 3.92E-01 | AB50: 3.92E-01 | AC50: 2.93E-01 | AD50: 2.22E-01 | AE50: 1.593302322
B51: 1.5 | C51: 2.252198925 | D51: 1.719185854 | E51: 1.719185854 | F51: 2.252198925 | G51: 2.932643858 | H51: 0.6660157693 | I51: 0.8725060159 | J51: 0.8725060159 | K51: 0.6660157693 | L51: 0.5114838598 | M51: 20.23818311 | N51: -17.36638246 | O51: -17.36638246 | P51: 20.23818311 | Q51: -5.968103809 | R51: 13.47894909 | S51: -15.15227317 | T51: -15.15227317 | U51: 13.47894909 | V51: -3.052588772 | W51: -6.399236931 | Y51: 1.5 | Z51: 2.85E-01 | AA51: 3.73E-01 | AB51: 3.73E-01 | AC51: 2.85E-01 | AD51: 2.19E-01 | AE51: 1.533018918
B52: 1.6 | C52: 2.32 | D52: 1.80709712 | E52: 1.80709712 | F52: 2.32 | G52: 2.985029313 | H52: 0.6896551724 | I52: 0.8853979028 | J52: 0.8853979028 | K52: 0.6896551724 | L52: 0.5360081367 | M52: 19.07256243 | N52: -15.7178099 | O52: -15.7178099 | P52: 19.07256243 | Q52: -5.760468666 | R52: 13.15349133 | S52: -13.91651592 | T52: -13.91651592 | U52: 13.15349133 | V52: -3.087658076 | W52: -4.61370726 | Y52: 1.6 | Z52: 2.76E-01 | AA52: 3.55E-01 | AB52: 3.55E-01 | AC52: 2.76E-01 | AD52: 2.15E-01 | AE52: 1.476288772
B53: 1.7 | C53: 2.390062761 | D53: 1.89620674 | E53: 1.89620674 | F53: 2.390062761 | G53: 3.039802625 | H53: 0.7112783932 | I53: 0.8965267153 | J53: 0.8965267153 | K53: 0.7112783932 | L53: 0.5592468359 | M53: 17.97075835 | N53: -14.27524752 | O53: -14.27524752 | P53: 17.97075835 | Q53: -5.554746548 | R53: 12.78221212 | S53: -12.79814077 | T53: -12.79814077 | U53: 12.78221212 | V53: -3.106474431 | W53: -3.138331732 | Y53: 1.7 | Z53: 2.68E-01 | AA53: 3.38E-01 | AB53: 3.38E-01 | AC53: 2.68E-01 | AD53: 2.11E-01 | AE53: 1.422899059
B54: 1.8 | C54: 2.462194143 | D54: 1.986353443 | E54: 1.986353443 | F54: 2.462194143 | G54: 3.096837096 | H54: 0.7310552682 | I54: 0.90618314 | J54: 0.90618314 | K54: 0.7310552682 | L54: 0.5812381937 | M54: 16.93325416 | N54: -13.00894161 | O54: -13.00894161 | P54: 16.93325416 | Q54: -5.352027027 | R54: 12.37914466 | S54: -11.78848355 | T54: -11.78848355 | U54: 12.37914466 | V54: -3.110802522 | W54: -1.929480307 | Y54: 1.8 | Z54: 2.60E-01 | AA54: 3.23E-01 | AB54: 3.23E-01 | AC54: 2.60E-01 | AD54: 2.07E-01 | AE54: 1.372634544
B55: 1.9 | C55: 2.536217656 | D55: 2.077402224 | E55: 2.077402224 | F55: 2.536217656 | G55: 3.156010139 | H55: 0.7491470597 | I55: 0.9146038153 | J55: 0.9146038153 | K55: 0.7491470597 | L55: 0.6020259492 | M55: 15.95923139 | N55: -11.89361387 | O55: -11.89361387 | P55: 15.95923139 | Q55: -5.15321473 | R55: 11.95581127 | S55: -10.87794462 | T55: -10.87794462 | U55: 11.95581127 | V55: -3.10236899 | W55: -0.9466356857 | Y55: 1.9 | Z55: 2.53E-01 | AA55: 3.08E-01 | AB55: 3.08E-01 | AC55: 2.53E-01 | AD55: 2.03E-01 | AE55: 1.325284921
B56: 2 | C56: 2.611972435 | D56: 2.169239498 | E56: 2.169239498 | F56: 2.611972435 | G56: 3.217203755 | H56: 0.7657048648 | I56: 0.9219821056 | J56: 0.9219821056 | K56: 0.7657048648 | L56: 0.6216578596 | M56: 15.04692777 | N56: -10.90787147 | O56: -10.90787147 | P56: 15.04692777 | Q56: -4.959043129 | R56: 11.52150579 | S56: -10.05686231 | T56: -10.05686231 | U56: 11.52150579 | V56: -3.082828137 | W56: -0.1535411691 | Y56: 2 | Z56: 2.45E-01 | AA56: 2.95E-01 | AB56: 2.95E-01 | AC56: 2.45E-01 | AD56: 1.99E-01 | AE56: 1.280648989
B57: 2.1 | C57: 2.68931218 | D57: 2.261769219 | E57: 2.261769219 | F57: 2.68931218 | G57: 3.280304864 | H57: 0.7808688094 | I57: 0.9284766909 | J57: 0.9284766909 | K57: 0.7808688094 | L57: 0.6401843997 | M57: 14.19392733 | N57: -10.03363828 | O57: -10.03363828 | P57: 14.19392733 | Q57: -4.770090331 | R57: 11.08359513 | S57: -9.31599927 | T57: -9.31599927 | U57: 11.08359513 | V57: -3.053737415 | W57: 0.4814543104 | Y57: 2.1 | Z57: 2.38E-01 | AA57: 2.83E-01 | AB57: 2.83E-01 | AC57: 2.38E-01 | AD57: 1.95E-01 | AE57: 1.238536836
B58: 2.2 | C58: 2.768104044 | D58: 2.354909765 | E58: 2.354909765 | F58: 2.768104044 | G58: 3.345205524 | H58: 0.7947678139 | I58: 0.9342183862 | J58: 0.9342183862 | K58: 0.7947678139 | L58: 0.6576576488 | M58: 13.39738985 | N58: -9.255640508 | O58: -9.255640508 | P58: 13.39738985 | Q58: -4.586795825 | R58: 10.64781424 | S58: -8.646789538 | T58: -8.646789538 | U58: 10.64781424 | V58: -3.016541358 | W58: 0.9855080551 | Y58: 2.2 | Z58: 2.31E-01 | AA58: 2.72E-01 | AB58: 2.72E-01 | AC58: 2.31E-01 | AD58: 1.92E-01 | AE58: 1.198770789
B59: 2.3 | C59: 2.848227519 | D59: 2.448591432 | E59: 2.448591432 | F59: 2.848227519 | G59: 3.411803042 | H59: 0.8075197591 | I59: 0.9393155469 | J59: 0.9393155469 | K59: 0.8075197591 | L59: 0.6741303561 | M59: 12.6542281 | N59: -8.560958036 | O59: -8.560958036 | P59: 12.6542281 | Q59: -4.409477338 | R59: 10.21853922 | S59: -8.04144098 | T59: -8.04144098 | U59: 10.21853922 | V59: -2.972562528 | W59: 1.381633959 | Y59: 2.3 | Z59: 2.25E-01 | AA59: 2.62E-01 | AB59: 2.62E-01 | AC59: 2.25E-01 | AD59: 1.88E-01 | AE59: 1.161185591
B60: 2.4 | C60: 2.929573348 | D60: 2.542754412 | E60: 2.542754412 | F60: 2.929573348 | G60: 3.48 | H60: 0.8192319205 | I60: 0.9438583564 | J60: 0.9438583564 | K60: 0.8192319205 | L60: 0.6896551724 | M60: 11.96124161 | N60: -7.938641425 | O60: -7.938641425 | P60: 11.96124161 | Q60: -4.238347206 | R60: 9.799030937 | S60: -7.492953048 | T60: -7.492953048 | U60: 9.799030937 | V60: -2.922998073 | W60: 1.689157705 | Y60: 2.4 | Z60: 2.19E-01 | AA60: 2.52E-01 | AB60: 2.52E-01 | AC60: 2.19E-01 | AD60: 1.84E-01 | AE60: 1.125628139
B61: 2.5 | C61: 3.012042496 | D61: 2.637347152 | E61: 2.637347152 | F61: 3.012042496 | G61: 3.549704213 | H61: 0.8300015697 | I61: 0.9479222324 | J61: 0.9479222324 | K61: 0.8300015697 | L61: 0.7042840333 | M61: 11.31521538 | N61: -7.379389269 | O61: -7.379389269 | P61: 11.31521538 | Q61: -4.073527825 | R61: 9.391646526 | S61: -6.99508715 | T61: -6.99508715 | U61: 9.391646526 | V61: -2.868920606 | W61: 1.924198146 | Y61: 2.5 | Z61: 2.13E-01 | AA61: 2.43E-01 | AB61: 2.43E-01 | AC61: 2.13E-01 | AD61: 1.81E-01 | AE61: 1.091956941
B62: 2.6 | C62: 3.095545186 | D62: 2.732325017 | E62: 2.732325017 | F62: 3.095545186 | G62: 3.620828634 | H62: 0.8399166685 | I62: 0.9515705429 | J62: 0.9515705429 | K62: 0.8399166685 | L62: 0.7180676752 | M62: 10.71299048 | N62: -6.875278611 | O62: -6.875278611 | P62: 10.71299048 | Q62: -3.915065902 | R62: 8.998019276 | S62: -6.542312601 | T62: -6.542312601 | U62: 8.998019276 | V62: -2.811282271 | W62: 2.10013108 | Y62: 2.6 | Z62: 2.07E-01 | AA62: 2.35E-01 | AB62: 2.35E-01 | AC62: 2.07E-01 | AD62: 1.77E-01 | AE62: 1.060041452
B63: 2.7 | C63: 3.18 | D63: 2.8276492 | E63: 2.8276492 | F63: 3.18 | G63: 3.693291215 | H63: 0.8490566038 | I63: 0.9548567763 | J63: 0.9548567763 | K63: 0.8490566038 | L63: 0.7310552682 | M63: 10.15151299 | N63: -6.419540747 | O63: -6.419540747 | P63: 10.15151299 | Q63: -3.762945368 | R63: 8.619209146 | S63: -6.129741984 | T63: -6.129741984 | U63: 8.619209146 | V63: -2.750921036 | W63: 2.228013289 | Y63: 2.7 | Z63: 2.02E-01 | AA63: 2.27E-01 | AB63: 2.27E-01 | AC63: 2.02E-01 | AD63: 1.74E-01 | AE63: 1.029761335
B64: 2.8 | C64: 3.265333061 | D64: 2.923285822 | E64: 2.923285822 | F64: 3.265333061 | G64: 3.767014733 | H64: 0.8574929257 | I64: 0.9578262852 | J64: 0.9578262852 | K64: 0.8574929257 | L64: 0.7432941462 | M64: 9.627866146 | N64: -6.006375211 | O64: -6.006375211 | P64: 9.627866146 | Q64: -3.617098884 | R64: 8.25582711 | S64: -5.753064056 | T64: -5.753064056 | U64: 8.25582711 | V64: -2.688568427 | W64: 2.316957683 | Y64: 2.8 | Z64: 1.96E-01 | AA64: 2.19E-01 | AB64: 2.19E-01 | AC64: 1.96E-01 | AD64: 1.70E-01 | AE64: 1.001005711
B65: 2.9 | C65: 3.351477286 | D65: 3.019205193 | E65: 3.019205193 | F65: 3.351477286 | G65: 3.8419266 | H65: 0.8652900653 | I65: 0.9605176907 | J65: 0.9605176907 | K65: 0.8652900653 | L65: 0.7548296212 | M65: 9.139289911 | N65: -5.630795559 | O65: -5.630795559 | P65: 9.139289911 | Q65: -3.477417956 | R65: 7.908136765 | S65: -5.408478747 | T65: -5.408478747 | U65: 7.908136765 | V65: -2.624858078 | W65: 2.374457957 | Y65: 2.9 | Z65: 1.91E-01 | AA65: 2.12E-01 | AB65: 2.12E-01 | AC65: 1.91E-01 | AD65: 1.67E-01 | AE65: 0.973672428
B66: 3 | C66: 3.438371708 | D66: 3.115381197 | E66: 3.115381197 | F66: 3.438371708 | G66: 3.917958652 | H66: 0.8725060159 | I66: 0.9629640197 | J66: 0.9629640197 | K66: 0.8725060159 | L66: 0.7657048648 | M66: 8.68319123 | N66: -5.288501484 | O66: -5.288501484 | P66: 8.68319123 | Q66: -3.343761726 | R66: 7.576136586 | S66: -5.092636647 | T66: -5.092636647 | U66: 7.576136586 | V66: -2.56033462 | W66: 2.406665258 | Y66: 3 | Z66: 1.86E-01 | AA66: 2.06E-01 | AB66: 2.06E-01 | AC66: 1.86E-01 | AD66: 1.64E-01 | AE66: 0.9476673584
D91: Distance from q4 | I91: Vertical Component | N91: Force (N) | S91: vertical component of Force (N) | W91: Total Force (N)
C92: q1 | D92: q2 | E92: q3 | F92: q5 | G92: q6 | H92: q1 | I92: q2 | J92: q3 | K92: q5 | L92: q6 | M92: q1 | N92: q2 | O92: q3 | P92: q5 | Q92: q6 | R92: q1 | S92: q2 | T92: q3 | U92: q5 | V92: q6
B93: 0 | C93: 2.52 | D93: 1.68 | E93: =0.84 -> 0.84 | F93: 0.84 | G93: 1.68 | H93: =B93/C93 -> 0 | I93: =B93/D93 -> 0 | J93: =B93/E93 -> 0 | K93: =B93/F93 -> 0 | L93: =B93/G93 -> 0 | M93: =(9000000000)*(-1/3)*(2/3)*(1.602E-19)^2*(1000000000000000)^2/(C93)^2 -> -8.082653061 | N93: =(9000000000)*(-1/3)^2*(1.602E-19)^2*(1000000000000000)^2/(D93)^2 -> 9.092984694 | O93: =(9000000000)*(2/3)*(-1/3)*(1.602E-19)^2*(1000000000000000)^2/(E93)^2 -> -72.74387755 | P93: =(9000000000)*(2/3)*(-1/3 )*(1.602E-19)^2*(1000000000000000)^2/(F93)^2 -> -72.74387755 | Q93: =(9000000000)*(-1/3)^2*(1.602E-19)^2*(1000000000000000)^2/(G93)^2 -> 9.092984694 | R93: =H93*M93 -> 0 | S93: =I93*N93 -> 0 | T93: =J93*O93 -> 0 | U93: =K93*P93 -> 0 | V93: =L93*Q93 -> 0 | W93: =SUM(R93:V93) -> 0
B94: 0.1 | C94: 2.521983346 | D94: 1.682973559 | E94: =SQRT(B94^2+0.84^2) -> 0.8459314393 | F94: 0.8459314393 | G94: 1.682973559 | H94: 0.03965133241 | I94: 0.05941863998 | J94: 0.1182128898 | K94: 0.1182128898 | L94: 0.05941863998 | M94: -8.069945286 | N94: =(9000000000)*(-1/3)^2*(1.602E-19)^2*(1000000000000000)^2/(D94)^2 -> 9.060881231 | O94: -71.72733371 | P94: -71.72733371 | Q94: =(9000000000)*(-1/3)^2*(1.602E-19)^2*(1000000000000000)^2/(G94)^2 -> 9.060881231 | R94: -0.3199840831 | S94: 0.5383852398 | T94: -8.479095394 | U94: -8.479095394 | V94: 0.5383852398 | W94: -16.20140439
B95: 0.2 | C95: 2.527924049 | D95: 1.691862879 | E95: 0.8634813258 | F95: 0.8634813258 | G95: 1.691862879 | H95: 0.079116301 | I95: 0.1182128898 | J95: 0.2316205273 | K95: 0.2316205273 | L95: 0.1182128898 | M95: -8.032060591 | N95: 8.965916713 | O95: -68.84130901 | P95: -68.84130901 | Q95: 8.965916713 | R95: -0.6354669233 | S95: 1.059886924 | T95: -15.94506029 | U95: -15.94506029 | V95: 1.059886924 | W95: -30.40581366
B96: 0.3 | C96: 2.537794318 | D96: 1.706575518 | E96: 0.8919641248 | F96: 0.8919641248 | G96: 1.706575518 | H96: 0.1182128898 | I96: 0.1757906385 | J96: 0.336336397 | K96: 0.336336397 | L96: 0.1757906385 | M96: -7.969703745 | N96: 8.811990111 | O96: -64.51493213 | P96: -64.51493213 | Q96: 8.811990111 | R96: -0.9421217104 | S96: 1.549065368 | T96: -21.69871982 | U96: -21.69871982 | V96: 1.549065368 | W96: -41.24143062
B97: 0.4 | C97: 2.551548549 | D97: 1.726962652 | E97: 0.930376268 | F97: 0.930376268 | G97: 1.726962652 | H97: 0.1567675442 | I97: 0.2316205273 | J97: 0.4299335804 | K97: 0.4299335804 | L97: 0.2316205273 | M97: -7.884013271 | N97: 8.605163627 | O97: -59.29768946 | P97: -59.29768946 | Q97: 8.605163627 | R97: -1.235957399 | S97: 1.993132537 | T97: -25.49406794 | U97: -25.49406794 | V97: 1.993132537 | W97: -48.23782821
B98: 0.5 | C98: 2.569124364 | D98: 1.752826289 | E98: 0.9775479528 | F98: 0.9775479528 | G98: 1.752826289 | H98: 0.1946188386 | I98: 0.2852535948 | J98: 0.5114838598 | K98: 0.5114838598 | L98: 0.2852535948 | M98: -7.776510515 | N98: 8.353092045 | O98: -53.71293428 | P98: -53.71293428 | Q98: 8.353092045 | R98: -1.513455445 | S98: 2.382749533 | T98: -27.47329895 | U98: -27.47329895 | V98: 2.382749533 | W98: -51.69455427
B99: 0.6 | C99: 2.590443977 | D99: 1.78392825 | E99: 1.032279032 | F99: 1.032279032 | G99: 1.78392825 | H99: 0.2316205273 | I99: 0.336336397 | J99: 0.5812381937 | K99: 0.5812381937 | L99: 0.336336397 | M99: -7.649034335 | N99: 8.064366516 | O99: -48.16824324 | P99: -48.16824324 | Q99: 8.064366516 | R99: -1.771673366 | S99: 2.712339978 | T99: -27.9972227 | U99: -27.9972227 | V99: 2.712339978 | W99: -52.3414388
B100: 0.7 | C100: 2.615415837 | D100: 1.82 | E100: 1.093434955 | F100: 1.093434955 | G100: 1.82 | H100: 0.2676438638 | I100: 0.3846153846 | J100: 0.6401843997 | K100: 0.6401843997 | L100: 0.3846153846 | M100: -7.503666452 | N100: 7.747868615 | O100: -42.93081298 | P100: -42.93081298 | Q100: 7.747868615 | R100: -2.008310282 | S100: 2.979949467 | T100: -27.48363674 | U100: -27.48363674 | V100: 2.979949467 | W100: -51.01568482
B101: 0.8 | C101: 2.643936459 | D101: 1.860752536 | E101: 1.16 | F101: 1.16 | G101: 1.860752536 | H101: 0.3025791324 | I101: 0.4299335804 | J101: 0.6896551724 | K101: 0.6896551724 | L101: 0.4299335804 | M101: -7.342652781 | N101: 7.412211183 | O101: -38.14512485 | P101: -38.14512485 | Q101: 7.412211183 | R101: -2.221733508 | S101: 3.186758493 | T101: -26.30698266 | U101: -26.30698266 | V101: 3.186758493 | W101: -48.46218184
B102: 0.9 | C102: 2.675892375 | D102: 1.905885621 | E102: 1.231097072 | F102: 1.231097072 | G102: 1.905885621 | H102: 0.336336397 | I102: 0.4722214125 | J102: 0.7310552682 | K102: 0.7310552682 | L102: 0.4722214125 | M102: -7.168325792 | N102: 7.06531219 | O102: -33.86650831 | P102: -33.86650831 | Q102: 7.06531219 | R102: -2.410968869 | S102: 3.336391702 | T102: -24.75828932 | U102: -24.75828932 | V102: 3.336391702 | W102: -45.2547641
B103: 1 | C103: 2.711162112 | D103: 1.955095906 | E103: 1.305986217 | F103: 1.305986217 | G103: 1.955095906 | H103: 0.3688455203 | I103: 0.5114838598 | J103: 0.7657048648 | K103: 0.7657048648 | L103: 0.5114838598 | M103: -6.983032216 | N103: 6.714116785 | O103: -30.09385553 | P103: -30.09385553 | Q103: 6.714116785 | R103: -2.575660151 | S103: 3.434162368 | T103: -23.04301158 | U103: -23.04301158 | V103: 3.434162368 | W103: -41.79335858
B104: 1.1 | C104: 2.749618155 | D104: 2.008083664 | E104: 1.384052022 | F104: 1.384052022 | G104: 2.008083664 | H104: 0.4000555488 | I104: 0.5477859414 | J104: 0.7947678139 | K104: 0.7947678139 | L104: 0.5477859414 | M104: -6.789069361 | N104: 6.364457891 | O104: -26.7947797 | P104: -26.7947797 | Q104: 6.364457891 | R104: -2.716004869 | S104: 3.486360557 | T104: -21.29562849 | U104: -21.29562849 | V104: 3.486360557 | W104: -38.33454073
B105: 1.2 | C105: 2.791128804 | D105: 2.064558064 | E105: 1.464786674 | F105: 1.464786674 | G105: 2.064558064 | H105: 0.4299335804 | I105: 0.5812381937 | J105: 0.8192319205 | K105: 0.8192319205 | L105: 0.5812381937 | M105: -6.588632163 | N105: 6.021030405 | O105: -23.92248322 | P105: -23.92248322 | Q105: 6.021030405 | R105: -2.832674216 | S105: 3.499652837 | T105: -19.59806187 | U105: -19.59806187 | V105: 3.499652837 | W105: -35.02949229
B106: 1.3 | C106: 2.835559909 | D106: 2.124241041 | E106: 1.547772593 | F106: 1.547772593 | G106: 2.124241041 | H106: 0.4584632459 | I106: 0.6119832801 | J106: 0.8399166685 | K106: 0.8399166685 | L106: 0.6119832801 | M106: -6.383771952 | N106: 5.687447921 | O106: -21.42598097 | P106: -21.42598097 | Q106: 5.687447921 | R106: -2.92672481 | S106: 3.480623034 | T106: -17.99603855 | U106: -17.99603855 | V106: 3.480623034 | W106: -31.95755584
B107: 1.4 | C107: 2.882776439 | D107: 2.186869909 | E107: 1.632666531 | F107: 1.632666531 | G107: 2.186869909 | H107: 0.4856429312 | I107: 0.6401843997 | J107: 0.8574929257 | K107: 0.8574929257 | L107: 0.6401843997 | M107: -6.176366962 | N107: 5.366351623 | O107: -19.25573229 | P107: -19.25573229 | Q107: 5.366351623 | R107: -2.999508955 | S107: 3.435454592 | T107: -16.51165422 | U107: -16.51165422 | V107: 3.435454592 | W107: -29.15190821
B108: 1.5 | C108: 2.932643858 | D108: 2.252198925 | E108: 1.719185854 | F108: 1.719185854 | G108: 2.252198925 | H108: 0.5114838598 | I108: 0.6660157693 | J108: 0.8725060159 | K108: 0.8725060159 | L108: 0.6660157693 | M108: -5.968103809 | N108: 5.059545777 | O108: -17.36638246 | P108: -17.36638246 | Q108: 5.059545777 | R108: -3.052588772 | S108: 3.369737273 | T108: -15.15227317 | U108: -15.15227317 | V108: 3.369737273 | W108: -26.61766057
B109: 1.6 | C109: 2.985029313 | D109: 2.32 | E109: 1.80709712 | F109: 1.80709712 | G109: 2.32 | H109: 0.5360081367 | I109: 0.6896551724 | J109: 0.8853979028 | K109: 0.8853979028 | L109: 0.6896551724 | M109: -5.760468666 | N109: 4.768140606 | O109: -15.7178099 | P109: -15.7178099 | Q109: 4.768140606 | R109: -3.087658076 | S109: 3.288372832 | T109: -13.91651592 | U109: -13.91651592 | V109: 3.288372832 | W109: -24.34394425
B110: 1.7 | C110: 3.039802625 | D110: 2.390062761 | E110: 1.89620674 | F110: 1.89620674 | G110: 2.390062761 | H110: 0.5592468359 | I110: 0.7112783932 | J110: 0.8965267153 | K110: 0.8965267153 | L110: 0.7112783932 | M110: -5.554746548 | N110: 4.492689588 | O110: -14.27524752 | P110: -14.27524752 | Q110: 4.492689588 | R110: -3.106474431 | S110: 3.195553031 | T110: -12.79814077 | U110: -12.79814077 | V110: 3.195553031 | W110: -22.31164992
B111: 1.8 | C111: 3.096837096 | D111: 2.462194143 | E111: 1.986353443 | F111: 1.986353443 | G111: 2.462194143 | H111: 0.5812381937 | I111: 0.7310552682 | J111: 0.90618314 | K111: 0.90618314 | L111: 0.7310552682 | M111: -5.352027027 | N111: 4.233313539 | O111: -13.00894161 | P111: -13.00894161 | Q111: 4.233313539 | R111: -3.110802522 | S111: 3.094786165 | T111: -11.78848355 | U111: -11.78848355 | V111: 3.094786165 | W111: -20.4981973
B112: 1.9 | C112: 3.156010139 | D112: 2.536217656 | E112: 2.077402224 | F112: 2.077402224 | G112: 2.536217656 | H112: 0.6020259492 | I112: 0.7491470597 | J112: 0.9146038153 | K112: 0.9146038153 | L112: 0.7491470597 | M112: -5.15321473 | N112: 3.989807848 | O112: -11.89361387 | P112: -11.89361387 | Q112: 3.989807848 | R112: -3.10236899 | S112: 2.988952818 | T112: -10.87794462 | U112: -10.87794462 | V112: 2.988952818 | W112: -18.88035259
B113: 2 | C113: 3.217203755 | D113: 2.611972435 | E113: 2.169239498 | F113: 2.169239498 | G113: 2.611972435 | H113: 0.6216578596 | I113: 0.7657048648 | J113: 0.9219821056 | K113: 0.9219821056 | L113: 0.7657048648 | M113: -4.959043129 | N113: 3.761731942 | O113: -10.90787147 | P113: -10.90787147 | Q113: 3.761731942 | R113: -3.082828137 | S113: 2.880376448 | T113: -10.05686231 | U113: -10.05686231 | V113: 2.880376448 | W113: -17.43579986
B114: 2.1 | C114: 3.280304864 | D114: 2.68931218 | E114: 2.261769219 | F114: 2.261769219 | G114: 2.68931218 | H114: 0.6401843997 | I114: 0.7808688094 | J114: 0.9284766909 | K114: 0.9284766909 | L114: 0.7808688094 | M114: -4.770090331 | N114: 3.548481832 | O114: -10.03363828 | P114: -10.03363828 | Q114: 3.548481832 | R114: -3.053737415 | S114: 2.770898783 | T114: -9.31599927 | U114: -9.31599927 | V114: 2.770898783 | W114: -16.14393839
B115: 2.2 | C115: 3.345205524 | D115: 2.768104044 | E115: 2.354909765 | F115: 2.354909765 | G115: 2.768104044 | H115: 0.6576576488 | I115: 0.7947678139 | J115: 0.9342183862 | K115: 0.9342183862 | L115: 0.7947678139 | M115: -4.586795825 | N115: 3.349347463 | O115: -9.255640508 | P115: -9.255640508 | Q115: 3.349347463 | R115: -3.016541358 | S115: 2.661953561 | T115: -8.646789538 | U115: -8.646789538 | V115: 2.661953561 | W115: -14.98621331
B116: 2.3 | C116: 3.411803042 | D116: 2.848227519 | E116: 2.448591432 | F116: 2.448591432 | G116: 2.848227519 | H116: 0.6741303561 | I116: 0.8075197591 | J116: 0.9393155469 | K116: 0.9393155469 | L116: 0.8075197591 | M116: -4.409477338 | N116: 3.163557024 | O116: -8.560958036 | P116: -8.560958036 | Q116: 3.163557024 | R116: -2.972562528 | S116: 2.554634806 | T116: -8.04144098 | U116: -8.04144098 | V116: 2.554634806 | W116: -13.94617488
B117: 2.4 | C117: 3.48 | D117: 2.929573348 | E117: 2.542754412 | F117: 2.542754412 | G117: 2.929573348 | H117: 0.6896551724 | I117: 0.8192319205 | J117: 0.9438583564 | K117: 0.9438583564 | L117: 0.8192319205 | M117: -4.238347206 | N117: 2.990310403 | O117: -7.938641425 | P117: -7.938641425 | Q117: 2.990310403 | R117: -2.922998073 | S117: 2.449757734 | T117: -7.492953048 | U117: -7.492953048 | V117: 2.449757734 | W117: -13.0093887
B118: 2.5 | C118: 3.549704213 | D118: 3.012042496 | E118: 2.637347152 | F118: 2.637347152 | G118: 3.012042496 | H118: 0.7042840333 | I118: 0.8300015697 | J118: 0.9479222324 | K118: 0.9479222324 | L118: 0.8300015697 | M118: -4.073527825 | N118: 2.828803845 | O118: -7.379389269 | P118: -7.379389269 | Q118: 2.828803845 | R118: -2.868920606 | S118: 2.347911631 | T118: -6.99508715 | U118: -6.99508715 | V118: 2.347911631 | W118: -12.16327164
B119: 2.6 | C119: 3.620828634 | D119: 3.095545186 | E119: 2.732325017 | F119: 2.732325017 | G119: 3.095545186 | H119: 0.7180676752 | I119: 0.8399166685 | J119: 0.9515705429 | K119: 0.9515705429 | L119: 0.8399166685 | M119: -3.915065902 | N119: 2.678247621 | O119: -6.875278611 | P119: -6.875278611 | Q119: 2.678247621 | R119: -2.811282271 | S119: 2.249504819 | T119: -6.542312601 | U119: -6.542312601 | V119: 2.249504819 | W119: -11.39689783
B120: 2.7 | C120: 3.693291215 | D120: 3.18 | E120: 2.8276492 | F120: 2.8276492 | G120: 3.18 | H120: 0.7310552682 | I120: 0.8490566038 | J120: 0.9548567763 | K120: 0.9548567763 | L120: 0.8490566038 | M120: -3.762945368 | N120: 2.537878248 | O120: -6.419540747 | P120: -6.419540747 | Q120: 2.537878248 | R120: -2.750921036 | S120: 2.154802286 | T120: -6.129741984 | U120: -6.129741984 | V120: 2.154802286 | W120: -10.70080043
B121: 2.8 | C121: 3.767014733 | D121: 3.265333061 | E121: 2.923285822 | F121: 2.923285822 | G121: 3.265333061 | H121: 0.7432941462 | I121: 0.8574929257 | J121: 0.9578262852 | K121: 0.9578262852 | L121: 0.8574929257 | M121: -3.617098884 | N121: 2.406966537 | O121: -6.006375211 | P121: -6.006375211 | Q121: 2.406966537 | R121: -2.688568427 | S121: 2.063956778 | T121: -5.753064056 | U121: -5.753064056 | V121: 2.063956778 | W121: -10.06678298
B122: 2.9 | C122: 3.8419266 | D122: 3.351477286 | E122: 3.019205193 | F122: 3.019205193 | G122: 3.351477286 | H122: 0.7548296212 | I122: 0.8652900653 | J122: 0.9605176907 | K122: 0.9605176907 | L122: 0.8652900653 | M122: -3.477417956 | N122: 2.284822478 | O122: -5.630795559 | P122: -5.630795559 | Q122: 2.284822478 | R122: -2.624858078 | S122: 1.977034191 | T122: -5.408478747 | U122: -5.408478747 | V122: 1.977034191 | W122: -9.48774719
B123: 3 | C123: 3.917958652 | D123: 3.438371708 | E123: 3.115381197 | F123: 3.115381197 | G123: 3.438371708 | H123: 0.7657048648 | I123: 0.8725060159 | J123: 0.9629640197 | K123: 0.9629640197 | L123: 0.8725060159 | M123: -3.343761726 | N123: 2.170797808 | O123: -5.288501484 | P123: -5.288501484 | Q123: 2.170797808 | R123: -2.56033462 | S123: 1.894034146 | T123: -5.092636647 | U123: -5.092636647 | V123: 1.894034146 | W123: -8.957539621

Sheet H2 vs H2' antiparallel
N16: Coulombs Constant k (Nm^2/C^2)=
N17: Distance between quarks in an array=
A18: 1 MeV is equal to 1.6021773E-13 joule | N18: Coulombs Constant k (Nfm^2/C^2)=
A26: q1 vs deuteron'
E29: distance from quark q1 (fm) | K29: Coulombic Potential from quark q1 (MeV) | Q29: distance (fm) | R29: horizontal
D30: quark--> | E30: q6' | F30: q5' | G30: q4' | H30: q3' | I30: q2' | J30: q1' | K30: q6' | L30: q5' | M30: q4' | N30: q3' | O30: q2' | P30: q1' | R30: sum (MeV)
D31: 0.1 | E31: =D31 -> 0.1 | F31: =SQRT((0.8414)^2+D31^2) -> 0.847321639 | G31: =SQRT((2*0.8414)^2+D31^2) -> 1.68576862 | H31: =SQRT((3*0.8414)^2+D31^2) -> 2.526180049 | I31: =SQRT((4*0.8414)^2+D31^2) -> 3.367085291 | J31: =SQRT((5*0.8414)^2+D31^2) -> 4.208188328 | K31: =1.44*(2/3)*(-1/3)/E31 -> -3.2 | L31: =1.44*(2/3 )^2/F31 -> 0.7553212033 | M31: =1.44*(2/3)*(-1/3)/G31 -> -0.18982439 | N31: =1.44*(2/3)^2/H31 -> 0.2533469458 | O31: =1.44*(2/3)*(-1/3)/I31 -> -0.09503768758 | P31: =1.44*(2/3)^2/J31 -> 0.1520844483 | Q31: 0.1 | R31: =SUM(K31:P31) -> -2.32410948
D32: 0.2 | E32: =D32 -> 0.2 | F32: =SQRT((0.8414)^2+D32^2) -> 0.8648433153 | G32: 1.694643278 | H32: 2.532110906 | I32: 3.37153724 | J32: 4.211751298 | K32: =1.44*(2/3)*(-1/3)/E32 -> -1.6 | L32: =(1.44)*(2/3 )^2/F32 -> 0.7400184388 | M32: =1.44*(2/3)*(-1/3)/G32 -> -0.1888303008 | N32: =1.44*(2/3)^2/H32 -> 0.2527535419 | O32: =1.44*(2/3)*(-1/3)/I32 -> -0.09491219501 | P32: =1.44*(2/3)^2/J32 -> 0.151955791 | Q32: 0.2 | R32: =SUM(K32:P32) -> -0.7390147241
D33: 0.3 | E33: 0.3 | F33: 0.8932826876 | G33: 1.709331986 | H33: 2.541964917 | I33: 3.378944119 | J33: 4.217682895 | K33: -1.066666667 | L33: 0.7164585286 | M33: -0.1872076358 | N33: 0.2517737344 | O33: -0.09470414092 | P33: 0.1517420859 | Q33: 0.3 | R33: -0.2286040945
D34: 0.4 | E34: 0.4 | F34: 0.9316404671 | G34: 1.729686631 | H34: 2.555696703 | I34: 3.389286556 | J34: 4.225973142 | K34: -0.8 | L34: 0.6869602841 | M34: -0.1850046097 | N34: 0.2504209514 | O34: -0.09441515041 | P34: 0.1514444078 | Q34: 0.4 | R34: 0.009405883234
D35: 0.5 | E35: 0.5 | F35: 0.9787512248 | G35: 1.755510137 | H35: 2.573244186 | I35: 3.402537782 | J35: 4.236608195 | K35: -0.64 | L35: 0.6538944563 | M35: -0.182283197 | N35: 0.2487132793 | O35: -0.09404744943 | P35: 0.1510642407 | Q35: 0.5 | R35: 0.1373413299
D36: 0.6 | E36: 0.6 | F36: 1.033418579 | G36: 1.786565375 | H36: 2.594529946 | I36: 3.418663973 | J36: 4.249570449 | K36: -0.5333333333 | L36: 0.6193037486 | M36: -0.1791146322 | N36: 0.2466728129 | O36: -0.0936038179 | P36: 0.1506034569 | Q36: 0.6 | R36: 0.210528235
D37: 0.7 | E37: 0.7 | F37: 1.094510831 | G37: 1.822584934 | H37: 2.619462853 | I37: 3.437624668 | J37: 4.264838684 | K37: -0.4571428571 | L37: 0.5847361046 | M37: -0.1755748081 | N37: 0.2443249001 | O37: -0.09308753307 | P37: 0.1500642926 | Q37: 0.7 | R37: 0.253320099
D38: 0.8 | E38: 0.8 | F38: 1.161014195 | G38: 1.863280934 | H38: 2.647939886 | I38: 3.459373261 | J38: 4.282388236 | K38: -0.4 | L38: 0.5512421838 | M38: -0.171740071 | N38: 0.2416973298 | O38: -0.09250230485 | P38: 0.1494493177 | Q38: 0.8 | R38: 0.2781464554
D39: 0.9 | E39: 0.9 | F39: 1.232052742 | G39: 1.908354223 | H39: 2.679848063 | I39: 3.48385754 | J39: 4.302191186 | K39: -0.3555555556 | L39: 0.5194582813 | M39: -0.167683754 | N39: 0.2388195095 | O39: -0.09185220587 | P39: 0.1487614037 | Q39: 0.9 | R39: 0.2919476792
D40: 1 | E40: 1 | F40: 1.306887126 | G40: 1.95750245 | H40: 2.715066415 | I40: 3.511020273 | J40: 4.324216576 | K40: -0.32 | L40: 0.4897132945 | M40: -0.1634736141 | N40: 0.2357216738 | O40: -0.09114159848 | P40: 0.1480036878 | Q40: 1 | R40: 0.2988234435
D41: 1.1 | E41: 1.1 | F41: 1.384902148 | G41: 2.010426781 | H41: 2.75346793 | I41: 3.540799819 | J41: 4.348430636 | K41: -0.2909090909 | L41: 0.4621265126 | M41: -0.1591701837 | N41: 0.2324341581 | O41: -0.0903750611 | P41: 0.1471795352 | Q41: 1.1 | R41: 0.3012858701
D42: 1.2 | E42: 1.2 | F42: 1.46558997 | G42: 2.066837159 | H42: 2.794921401 | I42: 3.57313075 | J42: 4.374797024 | K42: -0.2666666667 | L42: 0.4366842112 | M42: -0.1548259371 | N42: 0.2289867614 | O42: -0.08955731608 | P42: 0.1462925015 | Q42: 1.2 | R42: 0.3009135542
D43: 1.3 | E43: 1.3 | F43: 1.548532841 | G43: 2.126456169 | H43: 2.839293159 | I43: 3.607944479 | J43: 4.403277075 | K43: -0.2461538462 | L43: 0.4132944314 | M43: -0.1504851144 | N43: 0.225408214 | O43: -0.08869316086 | P43: 0.145346293 | Q43: 1.3 | R43: 0.298716817
D44: 1.4 | E44: 1.4 | F44: 1.633387266 | G44: 2.189021663 | H44: 2.886448621 | I44: 3.645169867 | J44: 4.43383006 | K44: -0.2285714286 | L44: 0.3918237967 | M44: -0.1461840262 | N44: 0.2217257551 | O44: -0.08778740406 | P44: 0.1443447294 | Q44: 1.4 | R44: 0.2953514224
D45: 1.5 | E45: 1.5 | F45: 1.719870332 | G45: 2.254288322 | H45: 2.936253674 | I45: 3.684733825 | J45: 4.466413438 | K45: -0.2133333333 | L45: 0.3721210768 | M45: -0.1419516735 | N45: 0.2179648188 | O45: -0.08684480758 | P45: 0.1432917057 | Q45: 1.5 | R45: 0.2912477868
D46: 1.6 | E46: 1.6 | F46: 1.807748312 | G46: 2.322028389 | H46: 2.988575855 | I46: 3.726561869 | J46: 4.500983115 | K46: -0.2 | L46: 0.3540315849 | M46: -0.1378105459 | N46: 0.2141488224 | O46: -0.08587003552 | P46: 0.1421911577 | Q46: 1.6 | R46: 0.2866909836
D47: 1.7 | E47: 1.7 | F47: 1.896827341 | G47: 2.392031739 | H47: 3.043285337 | I47: 3.770578651 | J47: 4.537493691 | K47: -0.1882352941 | L47: 0.337405512 | M47: -0.1337774892 | N47: 0.210299045 | O47: -0.08486761043 | P47: 0.1410470281 | Q47: 1.7 | R47: 0.2818711914
D48: 1.8 | E48: 1.8 | F48: 1.986945888 | G48: 2.464105485 | H48: 3.100255738 | I48: 3.816708446 | J48: 4.57589871 | K48: -0.1777777778 | L48: 0.3221023803 | M48: -0.1298645703 | N48: 0.2064345829 | O48: -0.08384187699 | P48: 0.1398632358 | Q48: 1.8 | R48: 0.2769159739
D49: 1.9 | E49: 1.9 | F49: 2.07796871 | G49: 2.538073253 | H49: 3.159364753 | I49: 3.864875594 | J49: 4.616150886 | K49: -0.1684210526 | L49: 0.3079930881 | M49: -0.1260798913 | N49: 0.2025723682 | O49: -0.08279697294 | P49: 0.1386436483 | Q49: 1.9 | R49: 0.2719111877
D50: 2 | E50: 2 | F50: 2.169782007 | G50: 2.613774252 | H50: 3.220494627 | I50: 3.915004899 | J50: 4.658202336 | K50: -0.16 | L50: 0.2949605065 | M50: -0.1224283236 | N50: 0.1987272373 | O50: -0.08173680704 | P50: 0.1373920568 | Q50: 2 | R50: 0.26691467
D51: 2.1 | E51: 2.1 | F51: 2.262289539 | G51: 2.691062214 | H51: 3.283532494 | I51: 3.967021976 | J51: 4.702004785 | K51: -0.1523809524 | L51: 0.2828992438 | M51: -0.1189121524 | N51: 0.1949120349 | O51: -0.08066504343 | P51: 0.1361121541 | Q51: 2.1 | R51: 0.2619652846
D52: 2.2 | E52: 2.2 | F52: 2.35540951 | G52: 2.769804296 | H52: 3.348370595 | I52: 4.020853561 | J52: 4.747509768 | K52: -0.1454545455 | L52: 0.2717149597 | M52: -0.1155316281 | N52: 0.1911377435 | O52: -0.07958509186 | P52: 0.1348075162 | Q52: 2.2 | R52: 0.2570889539
D53: 2.3 | E53: 2.3 | F53: 2.449072061 | G53: 2.849879969 | H53: 3.414906388 | I53: 4.07642777 | J53: 4.79466881 | K53: -0.1391304348 | L53: 0.2613234662 | M53: -0.1122854308 | N53: 0.1874136293 | O53: -0.07850010305 | P53: 0.1334815866 | Q53: 2.3 | R53: 0.2523027135
D54: 2.4 | E54: 2.4 | F54: 2.543217246 | G54: 2.93117994 | H54: 3.483042584 | I54: 4.133674317 | J54: 4.843433596 | K54: -0.1333333333 | L54: 0.2516497562 | M54: -0.1091710528 | N54: 0.1837473946 | O54: -0.07741296857 | P54: 0.1321376638 | Q54: 2.4 | R54: 0.2476174599
D55: 2.5 | E55: 2.5 | F55: 2.637793388 | G55: 3.013605123 | H55: 3.552687101 | I55: 4.1925247 | J55: 4.893756124 | K55: -0.128 | L55: 0.2426270393 | M55: -0.1061851128 | N55: 0.1801453327 | O55: -0.07632632433 | P55: 0.1307788913 | Q55: 2.5 | R55: 0.2430398261
D56: 2.6 | E56: 2.6 | F56: 2.732755745 | G56: 3.097065682 | H56: 3.623752977 | I56: 4.252912339 | J56: 4.945588843 | K56: -0.1230769231 | L56: 0.2341958301 | M56: -0.1033236078 | N56: 0.1766124799 | O56: -0.07524255722 | P56: 0.1294082505 | Q56: 2.6 | R56: 0.2385734724
D57: 2.7 | E57: 2.7 | F57: 2.828065409 | G57: 3.181480134 | H57: 3.696158227 | I57: 4.314772689 | J57: 4.998884776 | K57: -0.1185185185 | L57: 0.2263031109 | M57: -0.1005821148 | N57: 0.1731527604 | O57: -0.07416381419 | P57: 0.1280285561 | Q57: 2.7 | R57: 0.2342199799
D58: 2.8 | E58: 2.8 | F58: 2.923688417 | G58: 3.266774532 | H58: 3.769825678 | I58: 4.378043326 | J58: 5.053597629 | K58: -0.1142857143 | L58: 0.2189015752 | M58: -0.09795594918 | N58: 0.1697691232 | O58: -0.07309201308 | P58: 0.1266424529 | Q58: 2.8 | R58: 0.2299794749
D59: 2.9 | E59: 2.9 | F59: 3.019594999 | G59: 3.352881722 | H59: 3.844682775 | I59: 4.442663994 | J59: 5.109681888 | K59: -0.1103448276 | L59: 0.2119489535 | M59: -0.09544028885 | N59: 0.1664636688 | O59: -0.07202885486 | P59: 0.1252524157 | Q59: 2.9 | R59: 0.2258510666
D60: 3 | E60: 3 | F60: 3.11575897 | G60: 3.439740665 | H60: 3.920661378 | I60: 4.508576645 | J60: 5.167092896 | K60: -0.1066666667 | L60: 0.2054074163 | M60: -0.0930302692 | N60: 0.1632377648 | O60: -0.07097583677 | P60: 0.1238607497 | Q60: 3 | R60: 0.2218331583
D61: 3.1 | E61: 3.1 | F61: 3.212157213 | G61: 3.527295825 | H61: 3.997697542 | I61: 4.575725446 | J61: 5.225786926 | K61: -0.1032258065 | L61: 0.1992430499 | M61: -0.0907210554 | N61: 0.1600921514 | O61: -0.06993426589 | P61: 0.1224695934 | Q61: 3.1 | R61: 0.2179236669
D62: 3.2 | E62: 3.2 | F62: 3.308769252 | G62: 3.615496624 | H62: 4.075731301 | I62: 4.644056778 | J62: 5.285721237 | K62: -0.1 | L62: 0.1934253952 | M62: -0.08850789622 | N62: 0.1570270346 | O62: -0.06890527297 | P62: 0.1210809218 | Q62: 3.2 | R62: 0.2141201824
D63: 3.3 | E63: =D63 -> 3.3 | F63: =SQRT((0.8414)^2+D63^2) -> 3.405576891 | G63: =SQRT((2*0.8414)^2+D63^2) -> 3.704296943 | H63: =SQRT((3*0.8414)^2+D63^2) -> 4.154706445 | I63: =SQRT((4*0.8414)^2+D63^2) -> 4.713519212 | J63: =SQRT((5*0.8414)^2+D63^2) -> 5.346854122 | K63: =1.44*(2/3)*(-1/3)/E63 -> -0.09696969697 | L63: 0.1879270445 | M63: =1.44*(2/3)*(-1/3)/G63 -> -0.08638616314 | N63: =1.44*(2/3)^2/H63 -> 0.1540421709 | O63: =1.44*(2/3)*(-1/3)/I63 -> -0.06788982618 | P63: =1.44*(2/3)^2/J63 -> 0.1196965515 | Q63: 3.3 | R63: 0.2104200806
D64: 3.4 | E64: 3.4 | F64: 3.502563912 | G64: 3.793654681 | H64: 4.234570302 | I64: 4.784063478 | J64: 5.409144942 | K64: -0.09411764706 | L64: =(1.44)*(2/3 )^2/F64 -> 0.1827232896 | M64: -0.084351378 | N64: 0.1511369406 | O64: -0.06688874458 | P64: 0.1183181458 | Q64: 3.4 | R64: 0.2068206063
D65: 3.5 | E65: 3.5 | F65: 3.599715817 | G65: 3.883531362 | H65: 4.31527353 | I65: 4.855642425 | J65: 5.472554157 | K65: -0.09142857143 | L65: 0.1777918126 | M65: -0.08239923157 | N65: 0.1483104131 | O65: -0.06590271111 | P65: 0.1169472209 | Q65: 3.5 | R65: 0.2033189326
D66: 3.6 | E66: 3.6 | F66: 3.697019605 | G66: 3.973891775 | H66: 4.39676991 | I66: 4.92821097 | J66: 5.537043345 | K66: -0.08888888889 | L66: 0.1731124171 | M66: -0.08052559509 | N66: 0.1455614037 | O66: -0.06493228516 | P66: 0.1155851526 | Q66: 3.6 | R66: 0.1999122043
D67: 3.7 | E67: 3.7 | F67: 3.794463593 | G67: 4.06470366 | H67: 4.479016146 | I67: 5.001726038 | J67: 5.602575211 | K67: -0.08648648649 | L67: 0.1686667916 | M67: -0.07872652641 | N67: 0.1428885226 | O67: -0.06397791434 | P67: 0.1142331831 | Q67: 3.7 | R67: 0.1965975701
D68: 3.8 | E68: 3.8 | F68: 3.892037251 | G68: 4.15593742 | H68: 4.561971683 | I68: 5.076146507 | J68: 5.669113599 | K68: -0.08421052632 | L68: 0.1644383028 | M68: -0.07699827203 | N68: 0.1402902176 | O68: -0.06303994567 | P68: 0.1128924282 | Q68: 3.8 | R68: 0.1933722046
D69: 3.9 | E69: 3.9 | F69: 3.989731064 | G69: 4.247565872 | H69: 4.645598523 | I69: 5.151433137 | J69: 5.736623484 | K69: -0.08205128205 | L69: 0.1604118147 | M69: -0.07533726601 | N69: 0.1377648105 | O69: -0.06211863602 | P69: 0.1115638845 | Q69: 3.9 | R69: 0.1902333256
D70: =D69+0.1 -> 4 | E70: 4 | F70: 4.087536417 | G70: 4.339564015 | H70: 4.729861059 | I70: 5.227548504 | J70: 5.805070973 | K70: -0.08 | L70: 0.1565735286 | M70: -0.07374012663 | N70: 0.1353105286 | O70: -0.06121416181 | P70: 0.1102484368 | Q70: =Q69+0.1 -> 4 | R70: 0.1871782055
D71: 4.1 | E71: 4.1 | F71: 4.185445491 | G71: 4.431908826 | H71: 4.814725915 | I71: 5.304456934 | J71: 5.874423291 | K71: -0.07804878049 | L71: 0.1529108434 | M71: -0.07220365142 | N71: 0.1329255312 | O71: -0.06032662797 | P71: 0.1089468648 | Q71: 4.1 | R71: 0.1842041795
D72: 4.2 | E72: 4.2 | F72: 4.283451174 | G72: 4.524579079 | H72: 4.900161797 | I72: 5.382124428 | J72: 5.94464877 | K72: -0.07619047619 | L72: 0.1494122319 | M72: -0.07072481096 | N72: 0.1306079322 | O72: -0.05945607618 | P72: 0.1076598509 | Q72: 4.2 | R72: 0.1813086516
D73: 4.3 | E73: 4.3 | F73: 4.381546983 | G73: 4.61755518 | H73: 4.986139352 | I73: 5.460518598 | J73: 6.015716832 | K73: -0.07441860465 | L73: 0.1460671317 | M73: -0.06930074196 | N73: 0.128355819 | O73: -0.05860249247 | P73: 0.1063879863 | Q73: 4.3 | R73: 0.1784890979
D74: 4.4 | E74: 4.4 | F74: 4.479726996 | G74: 4.71081902 | H74: 5.072631037 | I74: 5.539608593 | J74: 6.087597966 | K74: -0.07272727273 | L74: 0.1428658489 | M74: -0.06792873991 | N74: 0.1261672681 | O74: -0.05776581407 | P74: 0.1051317783 | Q74: 4.4 | R74: 0.1757430686
D75: 4.5 | E75: 4.5 | F75: 4.577985797 | G75: 4.804353842 | H75: 5.159610997 | I75: 5.619365032 | J75: 6.160263712 | K75: -0.07111111111 | L75: 0.1397994726 | M75: -0.06660625144 | N75: 0.1240403589 | O75: -0.05694593574 | P75: 0.1038916563 | Q75: 4.5 | R75: 0.1730681895
D76: 4.6 | E76: 4.6 | F76: 4.676318419 | G76: 4.898144122 | H76: 5.247054949 | I76: 5.699759939 | J76: 6.23368663 | K76: -0.06956521739 | L76: 0.1368597992 | M76: -0.06533086655 | N76: 0.1219731842 | O76: -0.05614271538 | P76: 0.1026679777 | Q76: 4.6 | R76: 0.1704621618
D77: 4.7 | E77: 4.7 | F77: 4.774720302 | G77: 4.992175462 | H77: 5.334940078 | I77: 5.780766676 | J77: 6.30784028 | K77: -0.06808510638 | L77: 0.134039265 | M77: -0.06410031107 | N77: 0.1199638591 | O77: -0.05535597922 | P77: 0.1014610345 | Q77: 4.7 | R77: 0.1679227619
D78: 4.8 | E78: 4.8 | F78: 4.873187249 | G78: 5.086434492 | H78: 5.423244936 | I78: 5.86235988 | J78: 6.382699194 | K78: -0.06666666667 | L78: 0.1313308862 | M78: -0.06291243906 | N78: 0.1180105283 | O78: -0.0545855264 | P78: 0.1002710578 | Q78: 4.8 | R78: 0.1654478402
D79: 4.9 | E79: 4.9 | F79: 4.971715394 | G79: 5.180908785 | H79: 5.51194935 | I79: 5.944515402 | J79: 6.458238847 | K79: -0.06530612245 | L79: 0.1287282053 | M79: -0.06176522561 | N79: 0.1161113717 | O79: -0.05383113313 | P79: 0.09909822402 | Q79: 4.9 | R79: 0.1630353199
D80: 5 | E80: 5 | F80: 5.070301171 | G80: 5.275586777 | H80: 5.601034337 | I80: 6.027210247 | J80: 6.53443563 | K80: -0.064 | L80: 0.1262252435 | M80: -0.06065675981 | N80: 0.1142646093 | O80: -0.05309255641 | P80: 0.0979426589 | Q80: 5 | R80: 0.1606831955
D81: 5.1 | E81: 5.1 | F81: 5.16894128 | G81: 5.370457694 | H81: 5.690482022 | I81: 6.110422519 | J81: 6.611266823 | K81: -0.06274509804 | L81: 0.1238164578 | M81: -0.05958523803 | N81: 0.112468504 | O81: -0.0523695373 | P81: 0.09680444265 | Q81: 5.1 | R81: 0.1583895311
D82: 5.2 | E82: 5.2 | F82: 5.267632671 | G82: 5.465511489 | H82: 5.780275568 | I82: 6.194131364 | J82: 6.688710563 | K82: -0.06153846154 | L82: 0.1214967026 | M82: -0.05854895752 | N82: 0.1107213648 | O82: -0.05166180392 | P82: 0.09568361404 | Q82: 5.2 | R82: 0.1561524585
D83: 5.3 | E83: 5.3 | F83: 5.366372514 | G83: 5.560738785 | H83: 5.870399104 | I83: 6.278316921 | J83: 6.766745821 | K83: -0.06037735849 | L83: 0.1192611952 | M83: -0.05754631036 | N83: 0.1090215484 | O83: -0.05096907404 | P83: 0.09458017443 | Q83: 5.3 | R83: 0.1539701751
D84: 5.4 | E84: 5.4 | F84: 5.465158183 | G84: 5.656130819 | H84: 5.960837663 | I84: 6.362960267 | J84: 6.845352365 | K84: -0.05925925926 | L84: 0.1171054851 | M84: -0.05657577773 | N84: 0.1073674601 | O84: -0.0502910574 | P84: 0.09349409145 | Q84: 5.4 | R84: 0.1518409423
D85: 5.5 | E85: 5.5 | F85: 5.563987236 | G85: 5.751679393 | H85: 6.05157712 | I85: 6.448043375 | J85: 6.924510741 | K85: -0.05818181818 | L85: 0.1150254256 | M85: -0.05563592442 | N85: 0.105757555 | O85: -0.04962745773 | P85: 0.09242530252 | Q85: 5.5 | R85: 0.1497630828
D86: 5.6 | E86: 5.6 | F86: 5.662857402 | G86: 5.847376834 | H86: 6.142604142 | I86: 6.533549063 | J86: 7.004202239 | K86: -0.05714285714 | L86: 0.1130171492 | M86: -0.05472539381 | N86: 0.1041903377 | O86: -0.04897797459 | P86: 0.09137371798 | Q86: 5.6 | R86: 0.1477349794
D87: 5.7 | E87: 5.7 | F87: 5.761766566 | G87: 5.943215951 | H87: 6.23390613 | I87: 6.619460957 | J87: 7.084408867 | K87: -0.05614035088 | L87: 0.1110770443 | M87: -0.05384290301 | N87: 0.1026643627 | O87: -0.04834230492 | P87: 0.09033922406 | Q87: 5.7 | R87: 0.1457550722
D88: 5.8 | E88: 5.8 | F88: 5.860712752 | G88: 6.039189999 | H88: 6.325471179 | I88: 6.705763443 | J88: 7.165113328 | K88: -0.05517241379 | L88: 0.1092017349 | M88: -0.05298723837 | N88: 0.1011782335 | O88: -0.04772014442 | P88: 0.08932168561 | Q88: 5.8 | R88: 0.1438218574
D89: 5.9 | E89: 5.9 | F89: 5.959694116 | G89: 6.135292645 | H89: 6.417288028 | I89: 6.792441635 | J89: 7.246298986 | K89: -0.05423728814 | L89: 0.1073880618 | M89: -0.05215725125 | N89: 0.09973060227 | O89: -0.04711118876 | P89: 0.08832094856 | Q89: 5.9 | R89: 0.1419338845
D90: 6 | E90: 6 | F90: 6.058708935 | G90: 6.23151794 | H90: 6.509346022 | I90: 6.879481329 | J90: 7.32794985 | K90: -0.05333333333 | L90: 0.1056330659 | M90: -0.05135185409 | N90: 0.09832016885 | O90: -0.0465151346 | P90: 0.08733684224 | Q90: 6 | R90: 0.1400897549
E97: distance from quark q2 (fm) | K97: Coulombic Potential from quark q2 (MeV) | Q97: distance (fm) | R97: horizontal
D98: quark--> | E98: q6' | F98: q5' | G98: q4' | H98: q3' | I98: q2' | J98: q1' | K98: q6' | L98: q5' | M98: q4' | N98: q3' | O98: q2' | P98: q1' | R98: sum (MeV)
D99: 0.1 | E99: =SQRT((0.8414)^2+D99^2) -> 0.847321639 | F99: =D99 -> 0.1 | G99: =SQRT((0.8414)^2+D99^2) -> 0.847321639 | H99: =SQRT((2*0.8414)^2+D99^2) -> 1.68576862 | I99: =SQRT((3*0.8414)^2+D99^2) -> 2.526180049 | J99: =SQRT((4*0.8414)^2+D99^2) -> 3.367085291 | K99: =1.44*(-1/3)^2/E99 -> 0.1888303008 | L99: =(1.44)*(-1/3 )*(2/3)/F99 -> -3.2 | M99: =1.44*(-1/3)^2/G99 -> 0.1888303008 | N99: =1.44*(-1/3)*(2/3)/H99 -> -0.18982439 | O99: =1.44*(-1/3)^2/I99 -> 0.06333673645 | P99: =1.44*(-1/3)*(2/3)/J99 -> -0.09503768758 | Q99: 0.1 | R99: =SUM(L99:P99) -> -3.23269504
D100: 0.2 | E100: =SQRT((0.8414)^2+D100^2) -> 0.8648433153 | F100: 0.2 | G100: =SQRT((0.8414)^2+D100^2) -> 0.8648433153 | H100: 1.694643278 | I100: 2.532110906 | J100: 3.37153724 | K100: 0.1850046097 | L100: -1.6 | M100: 0.1850046097 | N100: -0.1888303008 | O100: 0.06318838548 | P100: -0.09491219501 | Q100: 0.2 | R100: =SUM(L100:P100) -> -1.635549501
D101: 0.3 | E101: 0.8932826876 | F101: 0.3 | G101: 0.8932826876 | H101: 1.709331986 | I101: 2.541964917 | J101: 3.378944119 | K101: 0.1791146322 | L101: -1.066666667 | M101: 0.1791146322 | N101: -0.1872076358 | O101: 0.06294343361 | P101: -0.09470414092 | Q101: 0.3 | R101: -1.106520378
D102: 0.4 | E102: 0.9316404671 | F102: 0.4 | G102: 0.9316404671 | H102: 1.729686631 | I102: 2.555696703 | J102: 3.389286556 | K102: 0.171740071 | L102: -0.8 | M102: 0.171740071 | N102: -0.1850046097 | O102: 0.06260523785 | P102: -0.09441515041 | Q102: 0.4 | R102: -0.8450744512
D103: 0.5 | E103: 0.9787512248 | F103: 0.5 | G103: 0.9787512248 | H103: 1.755510137 | I103: 2.573244186 | J103: 3.402537782 | K103: 0.1634736141 | L103: -0.64 | M103: 0.1634736141 | N103: -0.182283197 | O103: 0.06217831983 | P103: -0.09404744943 | Q103: 0.5 | R103: -0.6906787125
D104: 0.6 | E104: 1.033418579 | F104: 0.6 | G104: 1.033418579 | H104: 1.786565375 | I104: 2.594529946 | J104: 3.418663973 | K104: 0.1548259371 | L104: -0.5333333333 | M104: 0.1548259371 | N104: -0.1791146322 | O104: 0.06166820323 | P104: -0.0936038179 | Q104: 0.6 | R104: -0.589557643
D105: 0.7 | E105: 1.094510831 | F105: 0.7 | G105: 1.094510831 | H105: 1.822584934 | I105: 2.619462853 | J105: 3.437624668 | K105: 0.1461840262 | L105: -0.4571428571 | M105: 0.1461840262 | N105: -0.1755748081 | O105: 0.06108122503 | P105: -0.09308753307 | Q105: 0.7 | R105: -0.5185399472
D106: 0.8 | E106: 1.161014195 | F106: 0.8 | G106: 1.161014195 | H106: 1.863280934 | I106: 2.647939886 | J106: 3.459373261 | K106: 0.1378105459 | L106: -0.4 | M106: 0.1378105459 | N106: -0.171740071 | O106: 0.06042433246 | P106: -0.09250230485 | Q106: 0.8 | R106: -0.4660074975
D107: 0.9 | E107: 1.232052742 | F107: 0.9 | G107: 1.232052742 | H107: 1.908354223 | I107: 2.679848063 | J107: 3.48385754 | K107: 0.1298645703 | L107: -0.3555555556 | M107: 0.1298645703 | N107: -0.167683754 | O107: 0.05970487738 | P107: -0.09185220587 | Q107: 0.9 | R107: -0.4255220677
D108: 1 | E108: 1.306887126 | F108: 1 | G108: 1.306887126 | H108: 1.95750245 | I108: 2.715066415 | J108: 3.511020273 | K108: 0.1224283236 | L108: -0.32 | M108: 0.1224283236 | N108: -0.1634736141 | O108: 0.05893041846 | P108: -0.09114159848 | Q108: 1 | R108: -0.3932564705
D109: 1.1 | E109: 1.384902148 | F109: 1.1 | G109: 1.384902148 | H109: 2.010426781 | I109: 2.75346793 | J109: 3.540799819 | K109: 0.1155316281 | L109: -0.2909090909 | M109: 0.1155316281 | N109: -0.1591701837 | O109: 0.05810853952 | P109: -0.0903750611 | Q109: 1.1 | R109: -0.3668141681
D110: 1.2 | E110: 1.46558997 | F110: 1.2 | G110: 1.46558997 | H110: 2.066837159 | I110: 2.794921401 | J110: 3.57313075 | K110: 0.1091710528 | L110: -0.2666666667 | M110: 0.1091710528 | N110: -0.1548259371 | O110: 0.05724669034 | P110: -0.08955731608 | Q110: 1.2 | R110: -0.3446321767
D111: 1.3 | E111: 1.548532841 | F111: 1.3 | G111: 1.548532841 | H111: 2.126456169 | I111: 2.839293159 | J111: 3.607944479 | K111: 0.1033236078 | L111: -0.2461538462 | M111: 0.1033236078 | N111: -0.1504851144 | O111: 0.05635205351 | P111: -0.08869316086 | Q111: 1.3 | R111: -0.3256564601
D112: 1.4 | E112: 1.633387266 | F112: 1.4 | G112: 1.633387266 | H112: 2.189021663 | I112: 2.886448621 | J112: 3.645169867 | K112: 0.09795594918 | L112: -0.2285714286 | M112: 0.09795594918 | N112: -0.1461840262 | O112: 0.05543143878 | P112: -0.08778740406 | Q112: 1.4 | R112: -0.3091554708
D113: 1.5 | E113: 1.719870332 | F113: 1.5 | G113: 1.719870332 | H113: 2.254288322 | I113: 2.936253674 | J113: 3.684733825 | K113: 0.0930302692 | L113: -0.2133333333 | M113: 0.0930302692 | N113: -0.1419516735 | O113: 0.05449120469 | P113: -0.08684480758 | Q113: 1.5 | R113: -0.2946083406
D114: 1.6 | E114: 1.807748312 | F114: 1.6 | G114: 1.807748312 | H114: 2.322028389 | I114: 2.988575855 | J114: 3.726561869 | K114: 0.08850789622 | L114: -0.2 | M114: 0.08850789622 | N114: -0.1378105459 | O114: 0.0535372056 | P114: -0.08587003552 | Q114: 1.6 | R114: -0.2816354796
D115: 1.7 | E115: 1.896827341 | F115: 1.7 | G115: 1.896827341 | H115: 2.392031739 | I115: 3.043285337 | J115: 3.770578651 | K115: 0.084351378 | L115: -0.1882352941 | M115: 0.084351378 | N115: -0.1337774892 | O115: 0.05257476125 | P115: -0.08486761043 | Q115: 1.7 | R115: -0.2699542544
D116: 1.8 | E116: 1.986945888 | F116: 1.8 | G116: 1.986945888 | H116: 2.464105485 | I116: 3.100255738 | J116: 3.816708446 | K116: 0.08052559509 | L116: -0.1777777778 | M116: 0.08052559509 | N116: -0.1298645703 | O116: 0.05160864572 | P116: -0.08384187699 | Q116: 1.8 | R116: -0.2593499843
D117: 1.9 | E117: 2.07796871 | F117: 1.9 | G117: 2.07796871 | H117: 2.538073253 | I117: 3.159364753 | J117: 3.864875594 | K117: 0.07699827203 | L117: -0.1684210526 | M117: 0.07699827203 | N117: -0.1260798913 | O117: 0.05064309205 | P117: -0.08279697294 | Q117: 1.9 | R117: -0.2496565528
D118: 2 | E118: 2.169782007 | F118: 2 | G118: 2.169782007 | H118: 2.613774252 | I118: 3.220494627 | J118: 3.915004899 | K118: 0.07374012663 | L118: -0.16 | M118: 0.07374012663 | N118: -0.1224283236 | O118: 0.04968180933 | P118: -0.08173680704 | Q118: 2 | R118: -0.2407431947
D119: 2.1 | E119: 2.262289539 | F119: 2.1 | G119: 2.262289539 | H119: 2.691062214 | I119: 3.283532494 | J119: 3.967021976 | K119: 0.07072481096 | L119: -0.1523809524 | M119: 0.07072481096 | N119: -0.1189121524 | O119: 0.04872800872 | P119: -0.08066504343 | Q119: 2.1 | R119: -0.2325053285
D120: 2.2 | E120: 2.35540951 | F120: 2.2 | G120: 2.35540951 | H120: 2.769804296 | I120: 3.348370595 | J120: 4.020853561 | K120: 0.06792873991 | L120: -0.1454545455 | M120: 0.06792873991 | N120: -0.1155316281 | O120: 0.04778443588 | P120: -0.07958509186 | Q120: 2.2 | R120: -0.2248580897
D121: 2.3 | E121: 2.449072061 | F121: 2.3 | G121: 2.449072061 | H121: 2.849879969 | I121: 3.414906388 | J121: 4.07642777 | K121: 0.06533086655 | L121: -0.1391304348 | M121: 0.06533086655 | N121: -0.1122854308 | O121: 0.04685340733 | P121: -0.07850010305 | Q121: 2.3 | R121: -0.2177316947
D122: 2.4 | E122: 2.543217246 | F122: 2.4 | G122: 2.543217246 | H122: 2.93117994 | I122: 3.483042584 | J122: 4.133674317 | K122: 0.06291243906 | L122: -0.1333333333 | M122: 0.06291243906 | N122: -0.1091710528 | O122: 0.04593684865 | P122: -0.07741296857 | Q122: 2.4 | R122: -0.211068067
D123: 2.5 | E123: 2.637793388 | F123: 2.5 | G123: 2.637793388 | H123: 3.013605123 | I123: 3.552687101 | J123: 4.1925247 | K123: 0.06065675981 | L123: -0.128 | M123: 0.06065675981 | N123: -0.1061851128 | O123: 0.04503633319 | P123: -0.07632632433 | Q123: 2.5 | R123: -0.2048183441
D124: 2.6 | E124: 2.732755745 | F124: 2.6 | G124: 2.732755745 | H124: 3.097065682 | I124: 3.623752977 | J124: 4.252912339 | K124: 0.05854895752 | L124: -0.1230769231 | M124: 0.05854895752 | N124: -0.1033236078 | O124: 0.04415311999 | P124: -0.07524255722 | Q124: 2.6 | R124: -0.1989410106
D125: 2.7 | E125: 2.828065409 | F125: 2.7 | G125: 2.828065409 | H125: 3.181480134 | I125: 3.696158227 | J125: 4.314772689 | K125: 0.05657577773 | L125: -0.1185185185 | M125: 0.05657577773 | N125: -0.1005821148 | O125: 0.04328819011 | P125: -0.07416381419 | Q125: 2.7 | R125: -0.1934004797
D126: 2.8 | E126: 2.923688417 | F126: 2.8 | G126: 2.923688417 | H126: 3.266774532 | I126: 3.769825678 | J126: 4.378043326 | K126: 0.05472539381 | L126: -0.1142857143 | M126: 0.05472539381 | N126: -0.09795594918 | O126: 0.04244228081 | P126: -0.07309201308 | Q126: 2.8 | R126: -0.1881660019
D127: 2.9 | E127: 3.019594999 | F127: 2.9 | G127: 3.019594999 | H127: 3.352881722 | I127: 3.844682775 | J127: 4.442663994 | K127: 0.05298723837 | L127: -0.1103448276 | M127: 0.05298723837 | N127: -0.09544028885 | O127: 0.04161591719 | P127: -0.07202885486 | Q127: 2.9 | R127: -0.1832108157
D128: 3 | E128: 3.11575897 | F128: 3 | G128: 3.11575897 | H128: 3.439740665 | I128: 3.920661378 | J128: 4.508576645 | K128: 0.05135185409 | L128: -0.1066666667 | M128: 0.05135185409 | N128: -0.0930302692 | O128: 0.04080944121 | P128: -0.07097583677 | Q128: 3 | R128: -0.1785114773
D129: 3.1 | E129: 3.212157213 | F129: 3.1 | G129: 3.212157213 | H129: 3.527295825 | I129: 3.997697542 | J129: 4.575725446 | K129: 0.04981076249 | L129: -0.1032258065 | M129: 0.04981076249 | N129: -0.0907210554 | O129: 0.04002303784 | P129: -0.06993426589 | Q129: 3.1 | R129: -0.1740473274
D130: 3.2 | E130: 3.308769252 | F130: 3.2 | G130: 3.308769252 | H130: 3.615496624 | I130: 4.075731301 | J130: 4.644056778 | K130: 0.04835634879 | L130: -0.1 | M130: 0.04835634879 | N130: -0.08850789622 | O130: 0.03925675865 | P130: -0.06890527297 | Q130: 3.2 | R130: -0.1698000618
D131: 3.3 | E131: =SQRT((0.8414)^2+D131^2) -> 3.405576891 | F131: =D131 -> 3.3 | G131: =SQRT((0.8414)^2+D131^2) -> 3.405576891 | H131: =SQRT((2*0.8414)^2+D131^2) -> 3.704296943 | I131: =SQRT((3*0.8414)^2+D131^2) -> 4.154706445 | J131: =SQRT((4*0.8414)^2+D131^2) -> 4.713519212 | K131: =1.44*(-1/3)^2/E131 -> 0.04698176113 | L131: =(1.44)*(-1/3 )*(2/3)/F131 -> -0.09696969697 | M131: =1.44*(-1/3)^2/G131 -> 0.04698176113 | N131: =1.44*(-1/3)*(2/3)/H131 -> -0.08638616314 | O131: =1.44*(-1/3)^2/I131 -> 0.03851054272 | P131: =1.44*(-1/3)*(2/3)/J131 -> -0.06788982618 | Q131: 3.3 | R131: -0.1657533824
D132: 3.4 | E132: 3.502563912 | F132: 3.4 | G132: 3.502563912 | H132: 3.793654681 | I132: 4.234570302 | J132: 4.784063478 | K132: 0.04568082239 | L132: -0.09411764706 | M132: 0.04568082239 | N132: -0.084351378 | O132: 0.03778423514 | P132: -0.06688874458 | Q132: 3.4 | R132: -0.1618927121
D133: 3.5 | E133: 3.599715817 | F133: 3.5 | G133: 3.599715817 | H133: 3.883531362 | I133: 4.31527353 | J133: 4.855642425 | K133: 0.04444795316 | L133: -0.09142857143 | M133: 0.04444795316 | N133: -0.08239923157 | O133: 0.03707760328 | P133: -0.06590271111 | Q133: 3.5 | R133: -0.1582049577
D134: 3.6 | E134: 3.697019605 | F134: 3.6 | G134: 3.697019605 | H134: 3.973891775 | I134: 4.39676991 | J134: 4.92821097 | K134: 0.04327810428 | L134: -0.08888888889 | M134: 0.04327810428 | N134: -0.08052559509 | O134: 0.03639035094 | P134: -0.06493228516 | Q134: 3.6 | R134: -0.1546783139
D135: 3.7 | E135: 3.794463593 | F135: 3.7 | G135: 3.794463593 | H135: 4.06470366 | I135: 4.479016146 | J135: 5.001726038 | K135: 0.04216669789 | L135: -0.08648648649 | M135: 0.04216669789 | N135: -0.07872652641 | O135: 0.03572213066 | P135: -0.06397791434 | Q135: 3.7 | R135: -0.1513020987
D136: 3.8 | E136: 3.892037251 | F136: 3.8 | G136: 3.892037251 | H136: 4.15593742 | I136: 4.561971683 | J136: 5.076146507 | K136: 0.04110957571 | L136: -0.08421052632 | M136: 0.04110957571 | N136: -0.07699827203 | O136: 0.03507255439 | P136: -0.06303994567 | Q136: 3.8 | R136: -0.1480666139
D137: 3.9 | E137: 3.989731064 | F137: 3.9 | G137: 3.989731064 | H137: 4.247565872 | I137: 4.645598523 | J137: 5.151433137 | K137: 0.04010295367 | L137: -0.08205128205 | M137: 0.04010295367 | N137: -0.07533726601 | O137: 0.03444120261 | P137: -0.06211863602 | Q137: 3.9 | R137: -0.1449630278
D138: =D137+0.1 -> 4 | E138: 4.087536417 | F138: 4 | G138: 4.087536417 | H138: 4.339564015 | I138: 4.729861059 | J138: 5.227548504 | K138: 0.03914338214 | L138: -0.08 | M138: 0.03914338214 | N138: -0.07374012663 | O138: 0.03382763214 | P138: -0.06121416181 | Q138: =Q137+0.1 -> 4 | R138: -0.1419832742
D139: 4.1 | E139: 4.185445491 | F139: 4.1 | G139: 4.185445491 | H139: 4.431908826 | I139: 4.814725915 | J139: 5.304456934 | K139: 0.03822771085 | L139: -0.07804878049 | M139: 0.03822771085 | N139: -0.07220365142 | O139: 0.03323138281 | P139: -0.06032662797 | Q139: 4.1 | R139: -0.1391199662
D140: 4.2 | E140: 4.283451174 | F140: 4.2 | G140: 4.283451174 | H140: 4.524579079 | I140: 4.900161797 | J140: 5.382124428 | K140: 0.03735305797 | L140: -0.07619047619 | M140: 0.03735305797 | N140: -0.07072481096 | O140: 0.03265198306 | P140: -0.05945607618 | Q140: 4.2 | R140: -0.1363663223
D141: 4.3 | E141: 4.381546983 | F141: 4.3 | G141: 4.381546983 | H141: 4.61755518 | I141: 4.986139352 | J141: 5.460518598 | K141: 0.03651678292 | L141: -0.07441860465 | M141: 0.03651678292 | N141: -0.06930074196 | O141: 0.03208895474 | P141: -0.05860249247 | Q141: 4.3 | R141: -0.1337161014
D142: 4.4 | E142: 4.479726996 | F142: 4.4 | G142: 4.479726996 | H142: 4.71081902 | I142: 5.072631037 | J142: 5.539608593 | K142: 0.03571646222 | L142: -0.07272727273 | M142: 0.03571646222 | N142: -0.06792873991 | O142: 0.03154181702 | P142: -0.05776581407 | Q142: 4.4 | R142: -0.1311635475
D143: 4.5 | E143: 4.577985797 | F143: 4.5 | G143: 4.577985797 | H143: 4.804353842 | I143: 5.159610997 | J143: 5.619365032 | K143: 0.03494986815 | L143: -0.07111111111 | M143: 0.03494986815 | N143: -0.06660625144 | O143: 0.03101008973 | P143: -0.05694593574 | Q143: 4.5 | R143: -0.1287033404
D144: 4.6 | E144: 4.676318419 | F144: 4.6 | G144: 4.676318419 | H144: 4.898144122 | I144: 5.247054949 | J144: 5.699759939 | K144: 0.03421494981 | L144: -0.06956521739 | M144: 0.03421494981 | N144: -0.06533086655 | O144: 0.03049329606 | P144: -0.05614271538 | Q144: 4.6 | R144: -0.1263305535
D145: 4.7 | E145: 4.774720302 | F145: 4.7 | G145: 4.774720302 | H145: 4.992175462 | I145: 5.334940078 | J145: 5.780766676 | K145: 0.03350981626 | L145: -0.06808510638 | M145: 0.03350981626 | N145: -0.06410031107 | O145: 0.02999096478 | P145: -0.05535597922 | Q145: 4.7 | R145: -0.1240406156
D146: 4.8 | E146: 4.873187249 | F146: 4.8 | G146: 4.873187249 | H146: 5.086434492 | I146: 5.423244936 | J146: 5.86235988 | K146: 0.03283272155 | L146: -0.06666666667 | M146: 0.03283272155 | N146: -0.06291243906 | O146: 0.02950263207 | P146: -0.0545855264 | Q146: 4.8 | R146: -0.1218292785
D147: 4.9 | E147: 4.971715394 | F147: 4.9 | G147: 4.971715394 | H147: 5.180908785 | I147: 5.51194935 | J147: 5.944515402 | K147: 0.03218205133 | L147: -0.06530612245 | M147: 0.03218205133 | N147: -0.06176522561 | O147: 0.02902784293 | P147: -0.05383113313 | Q147: 4.9 | R147: -0.1196925869
D148: 5 | E148: 5.070301171 | F148: 5 | G148: 5.070301171 | H148: 5.275586777 | I148: 5.601034337 | J148: 6.027210247 | K148: 0.03155631088 | L148: -0.064 | M148: 0.03155631088 | N148: -0.06065675981 | O148: 0.02856615232 | P148: -0.05309255641 | Q148: 5 | R148: -0.117626853
D149: 5.1 | E149: 5.16894128 | F149: 5.1 | G149: 5.16894128 | H149: 5.370457694 | I149: 5.690482022 | J149: 6.110422519 | K149: 0.03095411445 | L149: -0.06274509804 | M149: 0.03095411445 | N149: -0.05958523803 | O149: 0.028117126 | P149: -0.0523695373 | Q149: 5.1 | R149: -0.1156286329
D150: 5.2 | E150: 5.267632671 | F150: 5.2 | G150: 5.267632671 | H150: 5.465511489 | I150: 5.780275568 | J150: 6.194131364 | K150: 0.03037417565 | L150: -0.06153846154 | M150: 0.03037417565 | N150: -0.05854895752 | O150: 0.02768034121 | P150: -0.05166180392 | Q150: 5.2 | R150: -0.1136947061
D151: 5.3 | E151: 5.366372514 | F151: 5.3 | G151: 5.366372514 | H151: 5.560738785 | I151: 5.870399104 | J151: 6.278316921 | K151: 0.0298152988 | L151: -0.06037735849 | M151: 0.0298152988 | N151: -0.05754631036 | O151: 0.0272553871 | P151: -0.05096907404 | Q151: 5.3 | R151: -0.111822057
D152: 5.4 | E152: 5.465158183 | F152: 5.4 | G152: 5.465158183 | H152: 5.656130819 | I152: 5.960837663 | J152: 6.362960267 | K152: 0.02927637127 | L152: -0.05925925926 | M152: 0.02927637127 | N152: -0.05657577773 | O152: 0.02684186503 | P152: -0.0502910574 | Q152: 5.4 | R152: -0.1100078581
D153: 5.5 | E153: 5.563987236 | F153: 5.5 | G153: 5.563987236 | H153: 5.751679393 | I153: 6.05157712 | J153: 6.448043375 | K153: 0.02875635641 | L153: -0.05818181818 | M153: 0.02875635641 | N153: -0.05563592442 | O153: 0.02643938875 | P153: -0.04962745773 | Q153: 5.5 | R153: -0.1082494552
D154: 5.6 | E154: 5.662857402 | F154: 5.6 | G154: 5.662857402 | H154: 5.847376834 | I154: 6.142604142 | J154: 6.533549063 | K154: 0.0282542873 | L154: -0.05714285714 | M154: 0.0282542873 | N154: -0.05472539381 | O154: 0.02604758443 | P154: -0.04897797459 | Q154: 5.6 | R154: -0.1065443538
D155: 5.7 | E155: 5.761766566 | F155: 5.7 | G155: 5.761766566 | H155: 5.943215951 | I155: 6.23390613 | J155: 6.619460957 | K155: 0.02776926107 | L155: -0.05614035088 | M155: 0.02776926107 | N155: -0.05384290301 | O155: 0.02566609068 | P155: -0.04834230492 | Q155: 5.7 | R155: -0.1048902071
D156: 5.8 | E156: 5.860712752 | F156: 5.8 | G156: 5.860712752 | H156: 6.039189999 | I156: 6.325471179 | J156: 6.705763443 | K156: 0.02730043371 | L156: -0.05517241379 | M156: 0.02730043371 | N156: -0.05298723837 | O156: 0.02529455838 | P156: -0.04772014442 | Q156: 5.8 | R156: -0.1032848045
D157: 5.9 | E157: 5.959694116 | F157: 5.9 | G157: 5.959694116 | H157: 6.135292645 | I157: 6.417288028 | J157: 6.792441635 | K157: 0.02684701545 | L157: -0.05423728814 | M157: 0.02684701545 | N157: -0.05215725125 | O157: 0.02493265057 | P157: -0.04711118876 | Q157: 5.9 | R157: -0.1017260621
D158: 6 | E158: 6.058708935 | F158: 6 | G158: 6.058708935 | H158: 6.23151794 | I158: 6.509346022 | J158: 6.879481329 | K158: 0.02640826647 | L158: -0.05333333333 | M158: 0.02640826647 | N158: -0.05135185409 | O158: 0.02458004221 | P158: -0.0465151346 | Q158: 6 | R158: -0.1002120133
J163: =SQRT((2*0.8414)^2+F163^2) -> 1.6828
E165: distance from quark q3 (fm) | K165: Coulombic Potential from quark q3 (MeV) | Q165: distance (fm) | R165: horizontal
D166: quark--> | E166: q6' | F166: q5' | G166: q4' | H166: q3' | I166: q2' | J166: q1' | K166: q6' | L166: q5' | M166: q4' | N166: q3' | O166: q2' | P166: q1' | R166: sum (MeV)
D167: 0.1 | E167: =SQRT((2*0.8414)^2+D167^2) -> 1.68576862 | F167: =SQRT((0.8414)^2+D167^2) -> 0.847321639 | G167: =D167 -> 0.1 | H167: =SQRT((0.8414)^2+D167^2) -> 0.847321639 | I167: =SQRT((2*0.8414)^2+D167^2) -> 1.68576862 | J167: =SQRT((3*0.8414)^2+D167^2) -> 2.526180049 | K167: =1.44*(2/3)*(-1/3)/E167 -> -0.18982439 | L167: =(1.44)*(2/3 )^2/F167 -> 0.7553212033 | M167: =1.44*(2/3)*(-1/3)/G167 -> -3.2 | N167: =1.44*(2/3)^2/H167 -> 0.7553212033 | O167: =1.44*(2/3)*(-1/3)/I167 -> -0.18982439 | P167: =1.44*(2/3)^2/J167 -> 0.2533469458 | Q167: 0.1 | R167: =SUM(K167:P167) -> -1.815659428
D168: 0.2 | E168: 1.694643278 | F168: 0.8648433153 | G168: 0.2 | H168: 0.8648433153 | I168: 1.694643278 | J168: 2.532110906 | K168: -0.1888303008 | L168: 0.7400184388 | M168: -1.6 | N168: 0.7400184388 | O168: -0.1888303008 | P168: 0.2527535419 | Q168: 0.2 | R168: =SUM(K168:P168) -> -0.2448701821
D169: 0.3 | E169: 1.709331986 | F169: 0.8932826876 | G169: 0.3 | H169: 0.8932826876 | I169: 1.709331986 | J169: 2.541964917 | K169: -0.1872076358 | L169: 0.7164585286 | M169: -1.066666667 | N169: 0.7164585286 | O169: -0.1872076358 | P169: 0.2517737344 | Q169: 0.3 | R169: 0.2436088534
D170: 0.4 | E170: 1.729686631 | F170: 0.9316404671 | G170: 0.4 | H170: 0.9316404671 | I170: 1.729686631 | J170: 2.555696703 | K170: -0.1850046097 | L170: 0.6869602841 | M170: -0.8 | N170: 0.6869602841 | O170: -0.1850046097 | P170: 0.2504209514 | Q170: 0.4 | R170: 0.4543323002
D171: 0.5 | E171: 1.755510137 | F171: 0.9787512248 | G171: 0.5 | H171: 0.9787512248 | I171: 1.755510137 | J171: 2.573244186 | K171: -0.182283197 | L171: 0.6538944563 | M171: -0.64 | N171: 0.6538944563 | O171: -0.182283197 | P171: 0.2487132793 | Q171: 0.5 | R171: 0.5519357981
D172: 0.6 | E172: 1.786565375 | F172: 1.033418579 | G172: 0.6 | H172: 1.033418579 | I172: 1.786565375 | J172: 2.594529946 | K172: -0.1791146322 | L172: 0.6193037486 | M172: -0.5333333333 | N172: 0.6193037486 | O172: -0.1791146322 | P172: 0.2466728129 | Q172: 0.6 | R172: 0.5937177125
D173: 0.7 | E173: 1.822584934 | F173: 1.094510831 | G173: 0.7 | H173: 1.094510831 | I173: 1.822584934 | J173: 2.619462853 | K173: -0.1755748081 | L173: 0.5847361046 | M173: -0.4571428571 | N173: 0.5847361046 | O173: -0.1755748081 | P173: 0.2443249001 | Q173: 0.7 | R173: 0.605504636
D174: 0.8 | E174: 1.863280934 | F174: 1.161014195 | G174: 0.8 | H174: 1.161014195 | I174: 1.863280934 | J174: 2.647939886 | K174: -0.171740071 | L174: 0.5512421838 | M174: -0.4 | N174: 0.5512421838 | O174: -0.171740071 | P174: 0.2416973298 | Q174: 0.8 | R174: 0.6007015553
D175: 0.9 | E175: 1.908354223 | F175: 1.232052742 | G175: 0.9 | H175: 1.232052742 | I175: 1.908354223 | J175: 2.679848063 | K175: -0.167683754 | L175: 0.5194582813 | M175: -0.3555555556 | N175: 0.5194582813 | O175: -0.167683754 | P175: 0.2388195095 | Q175: 0.9 | R175: 0.5868130086
D176: 1 | E176: 1.95750245 | F176: 1.306887126 | G176: 1 | H176: 1.306887126 | I176: 1.95750245 | J176: 2.715066415 | K176: -0.1634736141 | L176: 0.4897132945 | M176: -0.32 | N176: 0.4897132945 | O176: -0.1634736141 | P176: 0.2357216738 | Q176: 1 | R176: 0.5682010347
D177: 1.1 | E177: 2.010426781 | F177: 1.384902148 | G177: 1.1 | H177: 1.384902148 | I177: 2.010426781 | J177: 2.75346793 | K177: -0.1591701837 | L177: 0.4621265126 | M177: -0.2909090909 | N177: 0.4621265126 | O177: -0.1591701837 | P177: 0.2324341581 | Q177: 1.1 | R177: 0.5474377249
D178: 1.2 | E178: 2.066837159 | F178: 1.46558997 | G178: 1.2 | H178: 1.46558997 | I178: 2.066837159 | J178: 2.794921401 | K178: -0.1548259371 | L178: 0.4366842112 | M178: -0.2666666667 | N178: 0.4366842112 | O178: -0.1548259371 | P178: 0.2289867614 | Q178: 1.2 | R178: 0.5260366429
D179: 1.3 | E179: 2.126456169 | F179: 1.548532841 | G179: 1.3 | H179: 1.548532841 | I179: 2.126456169 | J179: 2.839293159 | K179: -0.1504851144 | L179: 0.4132944314 | M179: -0.2461538462 | N179: 0.4132944314 | O179: -0.1504851144 | P179: 0.225408214 | Q179: 1.3 | R179: 0.5048730017
D180: 1.4 | E180: 2.189021663 | F180: 1.633387266 | G180: 1.4 | H180: 1.633387266 | I180: 2.189021663 | J180: 2.886448621 | K180: -0.1461840262 | L180: 0.3918237967 | M180: -0.2285714286 | N180: 0.3918237967 | O180: -0.1461840262 | P180: 0.2217257551 | Q180: 1.4 | R180: 0.4844338677
D181: 1.5 | E181: 2.254288322 | F181: 1.719870332 | G181: 1.5 | H181: 1.719870332 | I181: 2.254288322 | J181: 2.936253674 | K181: -0.1419516735 | L181: 0.3721210768 | M181: -0.2133333333 | N181: 0.3721210768 | O181: -0.1419516735 | P181: 0.2179648188 | Q181: 1.5 | R181: 0.4649702919
D182: 1.6 | E182: 2.322028389 | F182: 1.807748312 | G182: 1.6 | H182: 1.807748312 | I182: 2.322028389 | J182: 2.988575855 | K182: -0.1378105459 | L182: 0.3540315849 | M182: -0.2 | N182: 0.3540315849 | O182: -0.1378105459 | P182: 0.2141488224 | Q182: 1.6 | R182: 0.4465909003
D183: 1.7 | E183: 2.392031739 | F183: 1.896827341 | G183: 1.7 | H183: 1.896827341 | I183: 2.392031739 | J183: 3.043285337 | K183: -0.1337774892 | L183: 0.337405512 | M183: -0.1882352941 | N183: 0.337405512 | O183: -0.1337774892 | P183: 0.210299045 | Q183: 1.7 | R183: 0.4293197966
D184: 1.8 | E184: 2.464105485 | F184: 1.986945888 | G184: 1.8 | H184: 1.986945888 | I184: 2.464105485 | J184: 3.100255738 | K184: -0.1298645703 | L184: 0.3221023803 | M184: -0.1777777778 | N184: 0.3221023803 | O184: -0.1298645703 | P184: 0.2064345829 | Q184: 1.8 | R184: 0.4131324251
D185: 1.9 | E185: 2.538073253 | F185: 2.07796871 | G185: 1.9 | H185: 2.07796871 | I185: 2.538073253 | J185: 3.159364753 | K185: -0.1260798913 | L185: 0.3079930881 | M185: -0.1684210526 | N185: 0.3079930881 | O185: -0.1260798913 | P185: 0.2025723682 | Q185: 1.9 | R185: 0.3979777091
D186: 2 | E186: 2.613774252 | F186: 2.169782007 | G186: 2 | H186: 2.169782007 | I186: 2.613774252 | J186: 3.220494627 | K186: -0.1224283236 | L186: 0.2949605065 | M186: -0.16 | N186: 0.2949605065 | O186: -0.1224283236 | P186: 0.1987272373 | Q186: 2 | R186: 0.3837916032
D187: 2.1 | E187: 2.691062214 | F187: 2.262289539 | G187: 2.1 | H187: 2.262289539 | I187: 2.691062214 | J187: 3.283532494 | K187: -0.1189121524 | L187: 0.2828992438 | M187: -0.1523809524 | N187: 0.2828992438 | O187: -0.1189121524 | P187: 0.1949120349 | Q187: 2.1 | R187: 0.3705052654
D188: 2.2 | E188: 2.769804296 | F188: 2.35540951 | G188: 2.2 | H188: 2.35540951 | I188: 2.769804296 | J188: 3.348370595 | K188: -0.1155316281 | L188: 0.2717149597 | M188: -0.1454545455 | N188: 0.2717149597 | O188: -0.1155316281 | P188: 0.1911377435 | Q188: 2.2 | R188: 0.3580498611
D189: 2.3 | E189: 2.849879969 | F189: 2.449072061 | G189: 2.3 | H189: 2.449072061 | I189: 2.849879969 | J189: 3.414906388 | K189: -0.1122854308 | L189: 0.2613234662 | M189: -0.1391304348 | N189: 0.2613234662 | O189: -0.1122854308 | P189: 0.1874136293 | Q189: 2.3 | R189: 0.3463592654
D190: 2.4 | E190: 2.93117994 | F190: 2.543217246 | G190: 2.4 | H190: 2.543217246 | I190: 2.93117994 | J190: 3.483042584 | K190: -0.1091710528 | L190: 0.2516497562 | M190: -0.1333333333 | N190: 0.2516497562 | O190: -0.1091710528 | P190: 0.1837473946 | Q190: 2.4 | R190: 0.3353714681
D191: 2.5 | E191: 3.013605123 | F191: 2.637793388 | G191: 2.5 | H191: 2.637793388 | I191: 3.013605123 | J191: 3.552687101 | K191: -0.1061851128 | L191: 0.2426270393 | M191: -0.128 | N191: 0.2426270393 | O191: -0.1061851128 | P191: 0.1801453327 | Q191: 2.5 | R191: 0.3250291856
D192: 2.6 | E192: 3.097065682 | F192: 2.732755745 | G192: 2.6 | H192: 2.732755745 | I192: 3.097065682 | J192: 3.623752977 | K192: -0.1033236078 | L192: 0.2341958301 | M192: -0.1230769231 | N192: 0.2341958301 | O192: -0.1033236078 | P192: 0.1766124799 | Q192: 2.6 | R192: 0.3152800013
D193: 2.7 | E193: 3.181480134 | F193: 2.828065409 | G193: 2.7 | H193: 2.828065409 | I193: 3.181480134 | J193: 3.696158227 | K193: -0.1005821148 | L193: 0.2263031109 | M193: -0.1185185185 | N193: 0.2263031109 | O193: -0.1005821148 | P193: 0.1731527604 | Q193: 2.7 | R193: 0.3060762341
D194: 2.8 | E194: 3.266774532 | F194: 2.923688417 | G194: 2.8 | H194: 2.923688417 | I194: 3.266774532 | J194: 3.769825678 | K194: -0.09795594918 | L194: 0.2189015752 | M194: -0.1142857143 | N194: 0.2189015752 | O194: -0.09795594918 | P194: 0.1697691232 | Q194: 2.8 | R194: 0.2973746611
D195: 2.9 | E195: 3.352881722 | F195: 3.019594999 | G195: 2.9 | H195: 3.019594999 | I195: 3.352881722 | J195: 3.844682775 | K195: -0.09544028885 | L195: 0.2119489535 | M195: -0.1103448276 | N195: 0.2119489535 | O195: -0.09544028885 | P195: 0.1664636688 | Q195: 2.9 | R195: 0.2891361704
D196: 3 | E196: 3.439740665 | F196: 3.11575897 | G196: 3 | H196: 3.11575897 | I196: 3.439740665 | J196: 3.920661378 | K196: -0.0930302692 | L196: 0.2054074163 | M196: -0.1066666667 | N196: 0.2054074163 | O196: -0.0930302692 | P196: 0.1632377648 | Q196: 3 | R196: 0.2813253925
D197: 3.1 | E197: 3.527295825 | F197: 3.212157213 | G197: 3.1 | H197: 3.212157213 | I197: 3.527295825 | J197: 3.997697542 | K197: -0.0907210554 | L197: 0.1992430499 | M197: -0.1032258065 | N197: 0.1992430499 | O197: -0.0907210554 | P197: 0.1600921514 | Q197: 3.1 | R197: 0.273910334
D198: 3.2 | E198: 3.615496624 | F198: 3.308769252 | G198: 3.2 | H198: 3.308769252 | I198: 3.615496624 | J198: 4.075731301 | K198: -0.08850789622 | L198: 0.1934253952 | M198: -0.1 | N198: 0.1934253952 | O198: -0.08850789622 | P198: 0.1570270346 | Q198: 3.2 | R198: 0.2668620325
D199: 3.3 | E199: =SQRT((2*0.8414)^2+D199^2) -> 3.704296943 | F199: =SQRT((0.8414)^2+D199^2) -> 3.405576891 | G199: =D199 -> 3.3 | H199: =SQRT((0.8414)^2+D199^2) -> 3.405576891 | I199: =SQRT((2*0.8414)^2+D199^2) -> 3.704296943 | J199: =SQRT((3*0.8414)^2+D199^2) -> 4.154706445 | K199: =1.44*(2/3)*(-1/3)/E199 -> -0.08638616314 | L199: =(1.44)*(2/3 )^2/F199 -> 0.1879270445 | M199: =1.44*(2/3)*(-1/3)/G199 -> -0.09696969697 | N199: =1.44*(2/3)^2/H199 -> 0.1879270445 | O199: =1.44*(2/3)*(-1/3)/I199 -> -0.08638616314 | P199: =1.44*(2/3)^2/J199 -> 0.1540421709 | Q199: 3.3 | R199: 0.2601542367
D200: 3.4 | E200: 3.793654681 | F200: 3.502563912 | G200: 3.4 | H200: 3.502563912 | I200: 3.793654681 | J200: 4.234570302 | K200: -0.084351378 | L200: 0.1827232896 | M200: -0.09411764706 | N200: 0.1827232896 | O200: -0.084351378 | P200: 0.1511369406 | Q200: 3.4 | R200: 0.2537631167
D201: 3.5 | E201: 3.883531362 | F201: 3.599715817 | G201: 3.5 | H201: 3.599715817 | I201: 3.883531362 | J201: 4.31527353 | K201: -0.08239923157 | L201: 0.1777918126 | M201: -0.09142857143 | N201: 0.1777918126 | O201: -0.08239923157 | P201: 0.1483104131 | Q201: 3.5 | R201: 0.2476670038
D202: 3.6 | E202: 3.973891775 | F202: 3.697019605 | G202: 3.6 | H202: 3.697019605 | I202: 3.973891775 | J202: 4.39676991 | K202: -0.08052559509 | L202: 0.1731124171 | M202: -0.08888888889 | N202: 0.1731124171 | O202: -0.08052559509 | P202: 0.1455614037 | Q202: 3.6 | R202: 0.2418461589
D203: 3.7 | E203: 4.06470366 | F203: 3.794463593 | G203: 3.7 | H203: 3.794463593 | I203: 4.06470366 | J203: 4.479016146 | K203: -0.07872652641 | L203: 0.1686667916 | M203: -0.08648648649 | N203: 0.1686667916 | O203: -0.07872652641 | P203: 0.1428885226 | Q203: 3.7 | R203: 0.2362825665
